Workbook

Sheet Utility Group Criteria
A1: VALUE LINE ELECTRIC UTILITIES
F4: (a) | I4: (b) | L4: (e) | R4: (d)
F5: S&P | I5: Moody's | L5: Value Line | T5: Override:
F6: Credit | I6: Issuer | L6: Safety | N6: Finaneial | R6: Market | T6: "Y" for Incl.
B7: Included | C7: SYM | D7: Company | F7: Rating | I7: Rating | L7: Rank | N7: Strength | P7: Beta | R7: Cap | T7: "X" for Excl. | U7: Comments
A8: =A7+1 -> 1 | B8: =IF(AND(G8<=$G$63,G8>=$G$64,J8<=$J$63,J8>=$J$64,L8>=$L$63,L8<=$L$64,T8<>"X"),"Y",IF(T8="Y","Y","")) -> Y | C8: ='Electric Utility Data'!B8 -> AQN | D8: ='Electric Utility Data'!C8 -> Algonquin Pwr & Util | F8: ='Electric Utility Data'!AA8 -> BBB | G8: =IF(F8="NR",0,VLOOKUP(F8,'Ordinal Ratings'!A$8:B$30,2,FALSE)) -> 9 | I8: ='Electric Utility Data'!AB8 -> NR | J8: =IF(I8="NR",0,VLOOKUP(I8,'Ordinal Ratings'!I$8:J$26,2,FALSE)) -> 0 | L8: ='Electric Utility Data'!W8 -> n/a | N8: ='Electric Utility Data'!Y8 -> n/a | P8: ='Electric Utility Data'!X8 -> n/a | R8: ='Electric Utility Data'!AC8 -> 5520 | T8: Y | U8: S&P rating meets criteria
A9: =A8+1 -> 2 | C9: ='Electric Utility Data'!B9 -> ALE | D9: ='Electric Utility Data'!C9 -> ALLETE | F9: ='Electric Utility Data'!AA9 -> BBB+ | G9: =IF(F9="NR",0,VLOOKUP(F9,'Ordinal Ratings'!A$8:B$30,2,FALSE)) -> 8 | I9: ='Electric Utility Data'!AB9 -> A3 | J9: =IF(I9="NR",0,VLOOKUP(I9,'Ordinal Ratings'!I$8:J$26,2,FALSE)) -> 7 | L9: ='Electric Utility Data'!W9 -> 2 | N9: ='Electric Utility Data'!Y9 -> A | P9: ='Electric Utility Data'!X9 -> 0.65 | R9: ='Electric Utility Data'!AC9 -> 4240.51
A10: 3 | C10: ='Electric Utility Data'!B10 -> LNT | D10: ='Electric Utility Data'!C10 -> Alliant Energy | F10: ='Electric Utility Data'!AA10 -> A- | G10: =IF(F10="NR",0,VLOOKUP(F10,'Ordinal Ratings'!A$8:B$30,2,FALSE)) -> 7 | I10: ='Electric Utility Data'!AB10 -> Baa1 | J10: =IF(I10="NR",0,VLOOKUP(I10,'Ordinal Ratings'!I$8:J$26,2,FALSE)) -> 8 | L10: ='Electric Utility Data'!W10 -> 2 | N10: ='Electric Utility Data'!Y10 -> A | P10: ='Electric Utility Data'!X10 -> 0.65 | R10: ='Electric Utility Data'!AC10 -> 11123.29
A11: 4 | B11: Y | C11: ='Electric Utility Data'!B11 -> AEE | D11: ='Electric Utility Data'!C11 -> Ameren Corp. | F11: ='Electric Utility Data'!AA11 -> BBB+ | G11: =IF(F11="NR",0,VLOOKUP(F11,'Ordinal Ratings'!A$8:B$30,2,FALSE)) -> 8 | I11: ='Electric Utility Data'!AB11 -> Baa1 | J11: =IF(I11="NR",0,VLOOKUP(I11,'Ordinal Ratings'!I$8:J$26,2,FALSE)) -> 8 | L11: ='Electric Utility Data'!W11 -> 2 | N11: ='Electric Utility Data'!Y11 -> A | P11: ='Electric Utility Data'!X11 -> 0.6 | R11: ='Electric Utility Data'!AC11 -> 17912.07
A12: 5 | C12: ='Electric Utility Data'!B12 -> AEP | D12: ='Electric Utility Data'!C12 -> American Elec Pwr | F12: ='Electric Utility Data'!AA12 -> A- | G12: =IF(F12="NR",0,VLOOKUP(F12,'Ordinal Ratings'!A$8:B$30,2,FALSE)) -> 7 | I12: ='Electric Utility Data'!AB12 -> Baa1 | J12: =IF(I12="NR",0,VLOOKUP(I12,'Ordinal Ratings'!I$8:J$26,2,FALSE)) -> 8 | L12: ='Electric Utility Data'!W12 -> 1 | N12: ='Electric Utility Data'!Y12 -> A+ | P12: ='Electric Utility Data'!X12 -> 0.55 | R12: ='Electric Utility Data'!AC12 -> 41476.97
A13: 6 | B13: Y | C13: ='Electric Utility Data'!B13 -> AGR | D13: ='Electric Utility Data'!C13 -> Avangrid, Inc. | F13: ='Electric Utility Data'!AA13 -> BBB+ | G13: =IF(F13="NR",0,VLOOKUP(F13,'Ordinal Ratings'!A$8:B$30,2,FALSE)) -> 8 | I13: ='Electric Utility Data'!AB13 -> Baa1 | J13: =IF(I13="NR",0,VLOOKUP(I13,'Ordinal Ratings'!I$8:J$26,2,FALSE)) -> 8 | L13: ='Electric Utility Data'!W13 -> 2 | N13: ='Electric Utility Data'!Y13 -> B++ | P13: ='Electric Utility Data'!X13 -> 0.4 | R13: ='Electric Utility Data'!AC13 -> 15252.49
A14: 7 | B14: Y | C14: ='Electric Utility Data'!B14 -> AVA | D14: ='Electric Utility Data'!C14 -> Avista Corp. | F14: ='Electric Utility Data'!AA14 -> BBB | G14: =IF(F14="NR",0,VLOOKUP(F14,'Ordinal Ratings'!A$8:B$30,2,FALSE)) -> 9 | I14: ='Electric Utility Data'!AB14 -> Baa2 | J14: =IF(I14="NR",0,VLOOKUP(I14,'Ordinal Ratings'!I$8:J$26,2,FALSE)) -> 9 | L14: ='Electric Utility Data'!W14 -> 2 | N14: ='Electric Utility Data'!Y14 -> A | P14: ='Electric Utility Data'!X14 -> 0.65 | R14: ='Electric Utility Data'!AC14 -> 2684.67 | U14: Hydro One acquisition terminated 1/23/19.
A15: 8 | B15: Y | C15: ='Electric Utility Data'!B15 -> BKH | D15: ='Electric Utility Data'!C15 -> Black Hills Corp. | F15: ='Electric Utility Data'!AA15 -> BBB+ | G15: =IF(F15="NR",0,VLOOKUP(F15,'Ordinal Ratings'!A$8:B$30,2,FALSE)) -> 8 | I15: ='Electric Utility Data'!AB15 -> Baa2 | J15: =IF(I15="NR",0,VLOOKUP(I15,'Ordinal Ratings'!I$8:J$26,2,FALSE)) -> 9 | L15: ='Electric Utility Data'!W15 -> 2 | N15: ='Electric Utility Data'!Y15 -> A | P15: ='Electric Utility Data'!X15 -> 0.75 | R15: ='Electric Utility Data'!AC15 -> 4359.29
A16: 9 | B16: Y | C16: ='Electric Utility Data'!B16 -> CNP | D16: ='Electric Utility Data'!C16 -> CenterPoint Energy | F16: ='Electric Utility Data'!AA16 -> BBB+ | G16: =IF(F16="NR",0,VLOOKUP(F16,'Ordinal Ratings'!A$8:B$30,2,FALSE)) -> 8 | I16: ='Electric Utility Data'!AB16 -> Baa2 | J16: =IF(I16="NR",0,VLOOKUP(I16,'Ordinal Ratings'!I$8:J$26,2,FALSE)) -> 9 | L16: ='Electric Utility Data'!W16 -> 3 | N16: ='Electric Utility Data'!Y16 -> B+ | P16: ='Electric Utility Data'!X16 -> 0.8 | R16: ='Electric Utility Data'!AC16 -> 15346.65 | U16: Acquisition of Vectren completed 2/1/19.
A17: 10 | B17: Y | C17: ='Electric Utility Data'!B17 -> CMS | D17: ='Electric Utility Data'!C17 -> CMS Energy Corp. | F17: ='Electric Utility Data'!AA17 -> BBB+ | G17: =IF(F17="NR",0,VLOOKUP(F17,'Ordinal Ratings'!A$8:B$30,2,FALSE)) -> 8 | I17: ='Electric Utility Data'!AB17 -> Baa1 | J17: =IF(I17="NR",0,VLOOKUP(I17,'Ordinal Ratings'!I$8:J$26,2,FALSE)) -> 8 | L17: ='Electric Utility Data'!W17 -> 2 | N17: ='Electric Utility Data'!Y17 -> B++ | P17: ='Electric Utility Data'!X17 -> 0.55 | R17: ='Electric Utility Data'!AC17 -> 15647.91
A18: 11 | C18: ='Electric Utility Data'!B18 -> ED | D18: ='Electric Utility Data'!C18 -> Consolidated Edison | F18: ='Electric Utility Data'!AA18 -> A- | G18: =IF(F18="NR",0,VLOOKUP(F18,'Ordinal Ratings'!A$8:B$30,2,FALSE)) -> 7 | I18: ='Electric Utility Data'!AB18 -> Baa1 | J18: =IF(I18="NR",0,VLOOKUP(I18,'Ordinal Ratings'!I$8:J$26,2,FALSE)) -> 8 | L18: ='Electric Utility Data'!W18 -> 1 | N18: ='Electric Utility Data'!Y18 -> A+ | P18: ='Electric Utility Data'!X18 -> 0.45 | R18: ='Electric Utility Data'!AC18 -> 27089.19
A19: 12 | B19: Y | C19: ='Electric Utility Data'!B19 -> D | D19: ='Electric Utility Data'!C19 -> Dominion Energy | F19: ='Electric Utility Data'!AA19 -> BBB+ | G19: =IF(F19="NR",0,VLOOKUP(F19,'Ordinal Ratings'!A$8:B$30,2,FALSE)) -> 8 | I19: ='Electric Utility Data'!AB19 -> Baa2 | J19: =IF(I19="NR",0,VLOOKUP(I19,'Ordinal Ratings'!I$8:J$26,2,FALSE)) -> 9 | L19: ='Electric Utility Data'!W19 -> 2 | N19: ='Electric Utility Data'!Y19 -> B++ | P19: ='Electric Utility Data'!X19 -> 0.55 | R19: ='Electric Utility Data'!AC19 -> 49197.05 | U19: Acquisition of SCANA completed 01/02/19.
A20: 13 | B20: Y | C20: ='Electric Utility Data'!B20 -> DTE | D20: ='Electric Utility Data'!C20 -> DTE Energy Co. | F20: ='Electric Utility Data'!AA20 -> BBB+ | G20: =IF(F20="NR",0,VLOOKUP(F20,'Ordinal Ratings'!A$8:B$30,2,FALSE)) -> 8 | I20: ='Electric Utility Data'!AB20 -> Baa1 | J20: =IF(I20="NR",0,VLOOKUP(I20,'Ordinal Ratings'!I$8:J$26,2,FALSE)) -> 8 | L20: ='Electric Utility Data'!W20 -> 2 | N20: ='Electric Utility Data'!Y20 -> B++ | P20: ='Electric Utility Data'!X20 -> 0.55 | R20: ='Electric Utility Data'!AC20 -> 22420.44
A21: 14 | C21: ='Electric Utility Data'!B21 -> DUK | D21: ='Electric Utility Data'!C21 -> Duke Energy Corp. | F21: ='Electric Utility Data'!AA21 -> A- | G21: =IF(F21="NR",0,VLOOKUP(F21,'Ordinal Ratings'!A$8:B$30,2,FALSE)) -> 7 | I21: ='Electric Utility Data'!AB21 -> Baa1 | J21: =IF(I21="NR",0,VLOOKUP(I21,'Ordinal Ratings'!I$8:J$26,2,FALSE)) -> 8 | L21: ='Electric Utility Data'!W21 -> 2 | N21: ='Electric Utility Data'!Y21 -> A | P21: ='Electric Utility Data'!X21 -> 0.5 | R21: ='Electric Utility Data'!AC21 -> 64105.83
A22: 15 | B22: Y | C22: ='Electric Utility Data'!B22 -> EIX | D22: ='Electric Utility Data'!C22 -> Edison International | F22: ='Electric Utility Data'!AA22 -> BBB | G22: =IF(F22="NR",0,VLOOKUP(F22,'Ordinal Ratings'!A$8:B$30,2,FALSE)) -> 9 | I22: ='Electric Utility Data'!AB22 -> Baa3 | J22: =IF(I22="NR",0,VLOOKUP(I22,'Ordinal Ratings'!I$8:J$26,2,FALSE)) -> 10 | L22: ='Electric Utility Data'!W22 -> 3 | N22: ='Electric Utility Data'!Y22 -> B+ | P22: ='Electric Utility Data'!X22 -> 0.55 | R22: ='Electric Utility Data'!AC22 -> 21171.2
A23: 16 | B23: Y | C23: ='Electric Utility Data'!B23 -> EE | D23: ='Electric Utility Data'!C23 -> El Paso Electric Co. | F23: ='Electric Utility Data'!AA23 -> BBB | G23: =IF(F23="NR",0,VLOOKUP(F23,'Ordinal Ratings'!A$8:B$30,2,FALSE)) -> 9 | I23: ='Electric Utility Data'!AB23 -> Baa1 | J23: =IF(I23="NR",0,VLOOKUP(I23,'Ordinal Ratings'!I$8:J$26,2,FALSE)) -> 8 | L23: ='Electric Utility Data'!W23 -> 2 | N23: ='Electric Utility Data'!Y23 -> B++ | P23: ='Electric Utility Data'!X23 -> 0.65 | R23: ='Electric Utility Data'!AC23 -> 2359.09
A24: 17 | B24: Y | C24: ='Electric Utility Data'!B24 -> EMA | D24: ='Electric Utility Data'!C24 -> Emera Inc. | F24: ='Electric Utility Data'!AA24 -> BBB+ | G24: =IF(F24="NR",0,VLOOKUP(F24,'Ordinal Ratings'!A$8:B$30,2,FALSE)) -> 8 | I24: ='Electric Utility Data'!AB24 -> Baa3 | J24: =IF(I24="NR",0,VLOOKUP(I24,'Ordinal Ratings'!I$8:J$26,2,FALSE)) -> 10 | L24: ='Electric Utility Data'!W24 -> 2 | N24: ='Electric Utility Data'!Y24 -> B+ | P24: ='Electric Utility Data'!X24 -> 0.55 | R24: ='Electric Utility Data'!AC24 -> 11301.63 | U24: Announced sale of Emera Maine 3/25/19 for purchase price of USD$959M/CAN$1.3B, equals approx 4% of total assets $32.3B
A25: 18 | B25: Y | C25: ='Electric Utility Data'!B25 -> ETR | D25: ='Electric Utility Data'!C25 -> Entergy Corp. | F25: ='Electric Utility Data'!AA25 -> BBB+ | G25: =IF(F25="NR",0,VLOOKUP(F25,'Ordinal Ratings'!A$8:B$30,2,FALSE)) -> 8 | I25: ='Electric Utility Data'!AB25 -> Baa2 | J25: =IF(I25="NR",0,VLOOKUP(I25,'Ordinal Ratings'!I$8:J$26,2,FALSE)) -> 9 | L25: ='Electric Utility Data'!W25 -> 3 | N25: ='Electric Utility Data'!Y25 -> B++ | P25: ='Electric Utility Data'!X25 -> 0.6 | R25: ='Electric Utility Data'!AC25 -> 17950.87
A26: 19 | C26: ='Electric Utility Data'!B26 -> EVRG | D26: ='Electric Utility Data'!C26 -> Evergy Inc. | F26: ='Electric Utility Data'!AA26 -> A- | G26: =IF(F26="NR",0,VLOOKUP(F26,'Ordinal Ratings'!A$8:B$30,2,FALSE)) -> 7 | I26: ='Electric Utility Data'!AB26 -> Baa2 | J26: =IF(I26="NR",0,VLOOKUP(I26,'Ordinal Ratings'!I$8:J$26,2,FALSE)) -> 9 | L26: ='Electric Utility Data'!W26 -> 2 | N26: ='Electric Utility Data'!Y26 -> B++ | P26: ='Electric Utility Data'!X26 -> n/a | R26: ='Electric Utility Data'!AC26 -> 14640.39
A27: 20 | C27: ='Electric Utility Data'!B27 -> ES | D27: ='Electric Utility Data'!C27 -> Eversource Energy | F27: ='Electric Utility Data'!AA27 -> A+ | G27: =IF(F27="NR",0,VLOOKUP(F27,'Ordinal Ratings'!A$8:B$30,2,FALSE)) -> 5 | I27: ='Electric Utility Data'!AB27 -> Baa1 | J27: =IF(I27="NR",0,VLOOKUP(I27,'Ordinal Ratings'!I$8:J$26,2,FALSE)) -> 8 | L27: ='Electric Utility Data'!W27 -> 1 | N27: ='Electric Utility Data'!Y27 -> A | P27: ='Electric Utility Data'!X27 -> 0.6 | R27: ='Electric Utility Data'!AC27 -> 22454.47
A28: 21 | B28: Y | C28: ='Electric Utility Data'!B28 -> EXC | D28: ='Electric Utility Data'!C28 -> Exelon Corp. | F28: ='Electric Utility Data'!AA28 -> BBB+ | G28: =IF(F28="NR",0,VLOOKUP(F28,'Ordinal Ratings'!A$8:B$30,2,FALSE)) -> 8 | I28: ='Electric Utility Data'!AB28 -> Baa2 | J28: =IF(I28="NR",0,VLOOKUP(I28,'Ordinal Ratings'!I$8:J$26,2,FALSE)) -> 9 | L28: ='Electric Utility Data'!W28 -> 3 | N28: ='Electric Utility Data'!Y28 -> B++ | P28: ='Electric Utility Data'!X28 -> 0.7 | R28: ='Electric Utility Data'!AC28 -> 48021.22
A29: 22 | B29: Y | C29: ='Electric Utility Data'!B29 -> FE | D29: ='Electric Utility Data'!C29 -> FirstEnergy Corp. | F29: ='Electric Utility Data'!AA29 -> BBB | G29: =IF(F29="NR",0,VLOOKUP(F29,'Ordinal Ratings'!A$8:B$30,2,FALSE)) -> 9 | I29: ='Electric Utility Data'!AB29 -> Baa3 | J29: =IF(I29="NR",0,VLOOKUP(I29,'Ordinal Ratings'!I$8:J$26,2,FALSE)) -> 10 | L29: ='Electric Utility Data'!W29 -> 2 | N29: ='Electric Utility Data'!Y29 -> B++ | P29: ='Electric Utility Data'!X29 -> 0.65 | R29: ='Electric Utility Data'!AC29 -> 21091.99
A30: 23 | C30: ='Electric Utility Data'!B30 -> FTS | D30: ='Electric Utility Data'!C30 -> Fortis Inc. | F30: ='Electric Utility Data'!AA30 -> A- | G30: =IF(F30="NR",0,VLOOKUP(F30,'Ordinal Ratings'!A$8:B$30,2,FALSE)) -> 7 | I30: ='Electric Utility Data'!AB30 -> Baa3 | J30: =IF(I30="NR",0,VLOOKUP(I30,'Ordinal Ratings'!I$8:J$26,2,FALSE)) -> 10 | L30: ='Electric Utility Data'!W30 -> 2 | N30: ='Electric Utility Data'!Y30 -> B++ | P30: ='Electric Utility Data'!X30 -> 0.65 | R30: ='Electric Utility Data'!AC30 -> 21125.05
A31: 24 | B31: Y | C31: ='Electric Utility Data'!B31 -> HE | D31: ='Electric Utility Data'!C31 -> Hawaiian Elec. | F31: ='Electric Utility Data'!AA31 -> BBB- | G31: =IF(F31="NR",0,VLOOKUP(F31,'Ordinal Ratings'!A$8:B$30,2,FALSE)) -> 10 | I31: ='Electric Utility Data'!AB31 -> Baa2 | J31: =IF(I31="NR",0,VLOOKUP(I31,'Ordinal Ratings'!I$8:J$26,2,FALSE)) -> 9 | L31: ='Electric Utility Data'!W31 -> 2 | N31: ='Electric Utility Data'!Y31 -> A | P31: ='Electric Utility Data'!X31 -> 0.6 | R31: ='Electric Utility Data'!AC31 -> 4419.4
A32: 25 | B32: Y | C32: ='Electric Utility Data'!B32 -> IDA | D32: ='Electric Utility Data'!C32 -> IDACORP, Inc. | F32: ='Electric Utility Data'!AA32 -> BBB | G32: =IF(F32="NR",0,VLOOKUP(F32,'Ordinal Ratings'!A$8:B$30,2,FALSE)) -> 9 | I32: ='Electric Utility Data'!AB32 -> Baa1 | J32: =IF(I32="NR",0,VLOOKUP(I32,'Ordinal Ratings'!I$8:J$26,2,FALSE)) -> 8 | L32: ='Electric Utility Data'!W32 -> 2 | N32: ='Electric Utility Data'!Y32 -> A | P32: ='Electric Utility Data'!X32 -> 0.55 | R32: ='Electric Utility Data'!AC32 -> 5011.75
A33: 26 | C33: ='Electric Utility Data'!B33 -> MGEE | D33: ='Electric Utility Data'!C33 -> MGE Energy | F33: ='Electric Utility Data'!AA33 -> NR | G33: =IF(F33="NR",0,VLOOKUP(F33,'Ordinal Ratings'!A$8:B$30,2,FALSE)) -> 0 | I33: ='Electric Utility Data'!AB33 -> NR | J33: =IF(I33="NR",0,VLOOKUP(I33,'Ordinal Ratings'!I$8:J$26,2,FALSE)) -> 0 | L33: ='Electric Utility Data'!W33 -> 1 | N33: ='Electric Utility Data'!Y33 -> A | P33: ='Electric Utility Data'!X33 -> 0.6 | R33: ='Electric Utility Data'!AC33 -> 2289.13
A34: 27 | C34: ='Electric Utility Data'!B34 -> NEE | D34: ='Electric Utility Data'!C34 -> NextEra Energy, Inc. | F34: ='Electric Utility Data'!AA34 -> A- | G34: =IF(F34="NR",0,VLOOKUP(F34,'Ordinal Ratings'!A$8:B$30,2,FALSE)) -> 7 | I34: ='Electric Utility Data'!AB34 -> Baa1 | J34: =IF(I34="NR",0,VLOOKUP(I34,'Ordinal Ratings'!I$8:J$26,2,FALSE)) -> 8 | L34: ='Electric Utility Data'!W34 -> 1 | N34: ='Electric Utility Data'!Y34 -> A+ | P34: ='Electric Utility Data'!X34 -> 0.6 | R34: ='Electric Utility Data'!AC34 -> 91722.43 | U34: Purchase of Gulf Power to NextEra closed 1/1/19.
A35: 28 | B35: Y | C35: ='Electric Utility Data'!B35 -> NWE | D35: ='Electric Utility Data'!C35 -> NorthWestern Corp. | F35: ='Electric Utility Data'!AA35 -> BBB | G35: =IF(F35="NR",0,VLOOKUP(F35,'Ordinal Ratings'!A$8:B$30,2,FALSE)) -> 9 | I35: ='Electric Utility Data'!AB35 -> Baa2 | J35: =IF(I35="NR",0,VLOOKUP(I35,'Ordinal Ratings'!I$8:J$26,2,FALSE)) -> 9 | L35: ='Electric Utility Data'!W35 -> 2 | N35: ='Electric Utility Data'!Y35 -> B++ | P35: ='Electric Utility Data'!X35 -> 0.55 | R35: ='Electric Utility Data'!AC35 -> 3544.75
A36: 29 | B36: Y | C36: ='Electric Utility Data'!B36 -> OGE | D36: ='Electric Utility Data'!C36 -> OGE Energy Corp. | F36: ='Electric Utility Data'!AA36 -> BBB+ | G36: =IF(F36="NR",0,VLOOKUP(F36,'Ordinal Ratings'!A$8:B$30,2,FALSE)) -> 8 | I36: ='Electric Utility Data'!AB36 -> Baa1 | J36: =IF(I36="NR",0,VLOOKUP(I36,'Ordinal Ratings'!I$8:J$26,2,FALSE)) -> 8 | L36: ='Electric Utility Data'!W36 -> 2 | N36: ='Electric Utility Data'!Y36 -> A | P36: ='Electric Utility Data'!X36 -> 0.85 | R36: ='Electric Utility Data'!AC36 -> 8551.15
A37: 30 | B37: Y | C37: ='Electric Utility Data'!B37 -> OTTR | D37: ='Electric Utility Data'!C37 -> Otter Tail Corp. | F37: ='Electric Utility Data'!AA37 -> BBB | G37: =IF(F37="NR",0,VLOOKUP(F37,'Ordinal Ratings'!A$8:B$30,2,FALSE)) -> 9 | I37: ='Electric Utility Data'!AB37 -> Baa2 | J37: =IF(I37="NR",0,VLOOKUP(I37,'Ordinal Ratings'!I$8:J$26,2,FALSE)) -> 9 | L37: ='Electric Utility Data'!W37 -> 2 | N37: ='Electric Utility Data'!Y37 -> A | P37: ='Electric Utility Data'!X37 -> 0.7 | R37: ='Electric Utility Data'!AC37 -> 1951.07
A38: 31 | C38: ='Electric Utility Data'!B38 -> PNW | D38: ='Electric Utility Data'!C38 -> Pinnacle West Capital | F38: ='Electric Utility Data'!AA38 -> A- | G38: =IF(F38="NR",0,VLOOKUP(F38,'Ordinal Ratings'!A$8:B$30,2,FALSE)) -> 7 | I38: ='Electric Utility Data'!AB38 -> A3 | J38: =IF(I38="NR",0,VLOOKUP(I38,'Ordinal Ratings'!I$8:J$26,2,FALSE)) -> 7 | L38: ='Electric Utility Data'!W38 -> 1 | N38: ='Electric Utility Data'!Y38 -> A+ | P38: ='Electric Utility Data'!X38 -> 0.55 | R38: ='Electric Utility Data'!AC38 -> 10742.64
A39: 32 | B39: Y | C39: ='Electric Utility Data'!B39 -> PNM | D39: ='Electric Utility Data'!C39 -> PNM Resources | F39: ='Electric Utility Data'!AA39 -> BBB+ | G39: =IF(F39="NR",0,VLOOKUP(F39,'Ordinal Ratings'!A$8:B$30,2,FALSE)) -> 8 | I39: ='Electric Utility Data'!AB39 -> Baa3 | J39: =IF(I39="NR",0,VLOOKUP(I39,'Ordinal Ratings'!I$8:J$26,2,FALSE)) -> 10 | L39: ='Electric Utility Data'!W39 -> 3 | N39: ='Electric Utility Data'!Y39 -> B+ | P39: ='Electric Utility Data'!X39 -> 0.65 | R39: ='Electric Utility Data'!AC39 -> 3748.47
A40: 33 | C40: ='Electric Utility Data'!B40 -> POR | D40: ='Electric Utility Data'!C40 -> Portland General Elec. | F40: ='Electric Utility Data'!AA40 -> BBB+ | G40: =IF(F40="NR",0,VLOOKUP(F40,'Ordinal Ratings'!A$8:B$30,2,FALSE)) -> 8 | I40: ='Electric Utility Data'!AB40 -> A3 | J40: =IF(I40="NR",0,VLOOKUP(I40,'Ordinal Ratings'!I$8:J$26,2,FALSE)) -> 7 | L40: ='Electric Utility Data'!W40 -> 2 | N40: ='Electric Utility Data'!Y40 -> B++ | P40: ='Electric Utility Data'!X40 -> 0.6 | R40: ='Electric Utility Data'!AC40 -> 4605.28
A41: 34 | C41: ='Electric Utility Data'!B41 -> PPL | D41: ='Electric Utility Data'!C41 -> PPL Corp. | F41: ='Electric Utility Data'!AA41 -> A- | G41: =IF(F41="NR",0,VLOOKUP(F41,'Ordinal Ratings'!A$8:B$30,2,FALSE)) -> 7 | I41: ='Electric Utility Data'!AB41 -> Baa2 | J41: =IF(I41="NR",0,VLOOKUP(I41,'Ordinal Ratings'!I$8:J$26,2,FALSE)) -> 9 | L41: ='Electric Utility Data'!W41 -> 2 | N41: ='Electric Utility Data'!Y41 -> B++ | P41: ='Electric Utility Data'!X41 -> 0.7 | R41: ='Electric Utility Data'!AC41 -> 23266.44
A42: 35 | C42: ='Electric Utility Data'!B42 -> PEG | D42: ='Electric Utility Data'!C42 -> Pub Sv Enterprise Grp. | F42: ='Electric Utility Data'!AA42 -> BBB+ | G42: =IF(F42="NR",0,VLOOKUP(F42,'Ordinal Ratings'!A$8:B$30,2,FALSE)) -> 8 | I42: ='Electric Utility Data'!AB42 -> Baa1 | J42: =IF(I42="NR",0,VLOOKUP(I42,'Ordinal Ratings'!I$8:J$26,2,FALSE)) -> 8 | L42: ='Electric Utility Data'!W42 -> 1 | N42: ='Electric Utility Data'!Y42 -> A++ | P42: ='Electric Utility Data'!X42 -> 0.65 | R42: ='Electric Utility Data'!AC42 -> 29977.92
A43: 36 | B43: Y | C43: ='Electric Utility Data'!B43 -> SRE | D43: ='Electric Utility Data'!C43 -> Sempra Energy | F43: ='Electric Utility Data'!AA43 -> BBB+ | G43: =IF(F43="NR",0,VLOOKUP(F43,'Ordinal Ratings'!A$8:B$30,2,FALSE)) -> 8 | I43: ='Electric Utility Data'!AB43 -> Baa1 | J43: =IF(I43="NR",0,VLOOKUP(I43,'Ordinal Ratings'!I$8:J$26,2,FALSE)) -> 8 | L43: ='Electric Utility Data'!W43 -> 2 | N43: ='Electric Utility Data'!Y43 -> A | P43: ='Electric Utility Data'!X43 -> 0.75 | R43: ='Electric Utility Data'!AC43 -> 34459.3
A44: 37 | C44: ='Electric Utility Data'!B44 -> SO | D44: ='Electric Utility Data'!C44 -> Southern Company | F44: ='Electric Utility Data'!AA44 -> A- | G44: =IF(F44="NR",0,VLOOKUP(F44,'Ordinal Ratings'!A$8:B$30,2,FALSE)) -> 7 | I44: ='Electric Utility Data'!AB44 -> Baa2 | J44: =IF(I44="NR",0,VLOOKUP(I44,'Ordinal Ratings'!I$8:J$26,2,FALSE)) -> 9 | L44: ='Electric Utility Data'!W44 -> 2 | N44: ='Electric Utility Data'!Y44 -> A | P44: ='Electric Utility Data'!X44 -> 0.5 | R44: ='Electric Utility Data'!AC44 -> 51518.43 | U44: Sale of Gulf Power to NextEra closed 1/1/19.
A45: 38 | C45: ='Electric Utility Data'!B45 -> WEC | D45: ='Electric Utility Data'!C45 -> WEC Energy Group | F45: ='Electric Utility Data'!AA45 -> A- | G45: =IF(F45="NR",0,VLOOKUP(F45,'Ordinal Ratings'!A$8:B$30,2,FALSE)) -> 7 | I45: ='Electric Utility Data'!AB45 -> Baa1 | J45: =IF(I45="NR",0,VLOOKUP(I45,'Ordinal Ratings'!I$8:J$26,2,FALSE)) -> 8 | L45: ='Electric Utility Data'!W45 -> 1 | N45: ='Electric Utility Data'!Y45 -> A+ | P45: ='Electric Utility Data'!X45 -> 0.55 | R45: ='Electric Utility Data'!AC45 -> 24853.75
A46: 39 | C46: ='Electric Utility Data'!B46 -> XEL | D46: ='Electric Utility Data'!C46 -> Xcel Energy Inc. | F46: ='Electric Utility Data'!AA46 -> A- | G46: =IF(F46="NR",0,VLOOKUP(F46,'Ordinal Ratings'!A$8:B$30,2,FALSE)) -> 7 | I46: ='Electric Utility Data'!AB46 -> A3 | J46: =IF(I46="NR",0,VLOOKUP(I46,'Ordinal Ratings'!I$8:J$26,2,FALSE)) -> 7 | L46: ='Electric Utility Data'!W46 -> 1 | N46: ='Electric Utility Data'!Y46 -> A+ | P46: ='Electric Utility Data'!X46 -> 0.5 | R46: ='Electric Utility Data'!AC46 -> 29032.76
A49: (a) | B49: ='Electric Utility Data'!B52 -> Issuer credit rating from www.standardandpoors.com (retrieved Mar. 26, 2019).
A50: (b) | B50: ='Electric Utility Data'!B53 -> Long-term rating from www.moodys.com (retrieved Mar. 26, 2019).
A51: (c) | B51: ='Electric Utility Data'!B51 -> The Value Line Investment Survey (Jan. 25, Feb. 15 & Mar. 15, 2019)
A52: (d) | B52: ='Electric Utility Data'!B54 -> www.valueline.com (retrieved Mar. 26, 2019).
B54: =COUNTIF(B8:B46,"Y") -> 22 | D54: ="S&P corporate credit rating of "&VLOOKUP(G63,'Ordinal Ratings'!B$8:C$30,2,FALSE)&", "&F62&", or "&VLOOKUP(G64,'Ordinal Ratings'!B$8:C$30,2,FALSE) -> S&P corporate credit rating of BBB-, BBB, or BBB+
D55: ="Moody's issure rating of "&VLOOKUP(J63,'Ordinal Ratings'!J$8:K$30,2,FALSE)&", "&I62&", or "&VLOOKUP(J64,'Ordinal Ratings'!J$8:K$30,2,FALSE) -> Moody's issure rating of Baa3, Baa2, or Baa1
D56: Safety Rank of "2" or "3"
D61: Proxy Group Criteria | F61: S&P | I61: Moodys | L61: Safety
D62: Avista Corp. | F62: BBB | G62: =IF(F62="NR",0,VLOOKUP(F62,'Ordinal Ratings'!A$8:B$30,2,FALSE)) -> 9 | I62: Baa2 | J62: =IF(I62="NR",0,VLOOKUP(I62,'Ordinal Ratings'!I$8:J$26,2,FALSE)) -> 9 | L62: 2
D63: Low Rating | F63: =VLOOKUP(G63,'Ordinal Ratings'!$B$8:$C$28,2,FALSE) -> BBB- | G63: =VLOOKUP(F$62,'Ordinal Ratings'!A$8:B$30,2,FALSE)+1 -> 10 | I63: =VLOOKUP(J63,'Ordinal Ratings'!$J$8:$K$28,2,FALSE) -> Baa3 | J63: =VLOOKUP(I$62,'Ordinal Ratings'!I$8:J$26,2,FALSE)+1 -> 10 | L63: =L62 -> 2
D64: High Rating | F64: =VLOOKUP(G64,'Ordinal Ratings'!$B$8:$C$28,2,FALSE) -> BBB+ | G64: =VLOOKUP(F$62,'Ordinal Ratings'!A$8:B$30,2,FALSE)-1 -> 8 | I64: =VLOOKUP(J64,'Ordinal Ratings'!$J$8:$K$28,2,FALSE) -> Baa1 | J64: =VLOOKUP(I$62,'Ordinal Ratings'!I$8:J$26,2,FALSE)-1 -> 8 | L64: =L62+1 -> 3
C70: =IF($B8="Y",C8,"zzz") -> AQN | D70: Algonquin Pwr & Util
C71: zzz | D71: zzz
C72: zzz | D72: zzz
C73: AEE | D73: Ameren Corp.
C74: zzz | D74: zzz
C75: AGR | D75: Avangrid, Inc.
C76: AVA | D76: Avista Corp.
C77: BKH | D77: Black Hills Corp.
C78: CNP | D78: CenterPoint Energy
C79: CMS | D79: CMS Energy Corp.
C80: zzz | D80: zzz
C81: D | D81: Dominion Energy
C82: DTE | D82: DTE Energy Co.
C83: zzz | D83: zzz
C84: EIX | D84: Edison International
C85: EE | D85: El Paso Electric Co.
C86: EMA | D86: Emera Inc.
C87: ETR | D87: Entergy Corp.
C88: zzz | D88: zzz
C89: zzz | D89: zzz
C90: EXC | D90: Exelon Corp.
C91: FE | D91: FirstEnergy Corp.
C92: zzz | D92: zzz
C93: HE | D93: Hawaiian Elec.
C94: IDA | D94: IDACORP, Inc.
C95: zzz | D95: zzz
C96: zzz | D96: zzz
C97: NWE | D97: NorthWestern Corp.
C98: OGE | D98: OGE Energy Corp.
C99: OTTR | D99: Otter Tail Corp.
C100: =IF(#REF!="Y",#REF!,"zzz") ->  | D100: =IF(#REF!="Y",#REF!,"zzz") -> 
C101: =IF($B38="Y",C38,"zzz") -> zzz | D101: zzz
C102: PNM | D102: PNM Resources
C103: zzz | D103: zzz
C104: zzz | D104: zzz
C105: zzz | D105: zzz
C106: =IF(#REF!="Y",#REF!,"zzz") ->  | D106: =IF(#REF!="Y",#REF!,"zzz") -> 
C107: =IF($B43="Y",C43,"zzz") -> SRE | D107: =IF($B43="Y",D43,"zzz") -> Sempra Energy
C108: =IF(#REF!="Y",#REF!,"zzz") ->  | D108: =IF(#REF!="Y",#REF!,"zzz") -> 
C109: =IF($B44="Y",C44,"zzz") -> zzz | D109: =IF($B44="Y",D44,"zzz") -> zzz
C110: =IF(#REF!="Y",#REF!,"zzz") ->  | D110: =IF(#REF!="Y",#REF!,"zzz") -> 
C111: =IF($B45="Y",C45,"zzz") -> zzz | D111: zzz
C112: zzz | D112: zzz

Sheet Utility Group
B2: SYM | C2: Company
A3: =A2+1 -> 1 | B3: ='Utility Group Criteria'!C70 -> AQN | C3: ='Utility Group Criteria'!D70 -> Algonquin Pwr & Util
A4: =A3+1 -> 2 | B4: ='Utility Group Criteria'!C73 -> AEE | C4: ='Utility Group Criteria'!D73 -> Ameren Corp.
A5: 3 | B5: ='Utility Group Criteria'!C75 -> AGR | C5: ='Utility Group Criteria'!D75 -> Avangrid, Inc.
A6: 4 | B6: ='Utility Group Criteria'!C76 -> AVA | C6: ='Utility Group Criteria'!D76 -> Avista Corp.
A7: 5 | B7: ='Utility Group Criteria'!C77 -> BKH | C7: ='Utility Group Criteria'!D77 -> Black Hills Corp.
A8: 6 | B8: ='Utility Group Criteria'!C78 -> CNP | C8: ='Utility Group Criteria'!D78 -> CenterPoint Energy
A9: 7 | B9: ='Utility Group Criteria'!C79 -> CMS | C9: ='Utility Group Criteria'!D79 -> CMS Energy Corp.
A10: 8 | B10: ='Utility Group Criteria'!C81 -> D | C10: ='Utility Group Criteria'!D81 -> Dominion Energy
A11: 9 | B11: ='Utility Group Criteria'!C82 -> DTE | C11: ='Utility Group Criteria'!D82 -> DTE Energy Co.
A12: 10 | B12: ='Utility Group Criteria'!C84 -> EIX | C12: ='Utility Group Criteria'!D84 -> Edison International
A13: 11 | B13: ='Utility Group Criteria'!C85 -> EE | C13: ='Utility Group Criteria'!D85 -> El Paso Electric Co.
A14: 12 | B14: ='Utility Group Criteria'!C86 -> EMA | C14: ='Utility Group Criteria'!D86 -> Emera Inc.
A15: 13 | B15: ='Utility Group Criteria'!C87 -> ETR | C15: ='Utility Group Criteria'!D87 -> Entergy Corp.
A16: 14 | B16: ='Utility Group Criteria'!C90 -> EXC | C16: ='Utility Group Criteria'!D90 -> Exelon Corp.
A17: 15 | B17: ='Utility Group Criteria'!C91 -> FE | C17: ='Utility Group Criteria'!D91 -> FirstEnergy Corp.
A18: 16 | B18: ='Utility Group Criteria'!C93 -> HE | C18: ='Utility Group Criteria'!D93 -> Hawaiian Elec.
A19: 17 | B19: ='Utility Group Criteria'!C94 -> IDA | C19: ='Utility Group Criteria'!D94 -> IDACORP, Inc.
A20: 18 | B20: ='Utility Group Criteria'!C97 -> NWE | C20: ='Utility Group Criteria'!D97 -> NorthWestern Corp.
A21: 19 | B21: ='Utility Group Criteria'!C98 -> OGE | C21: ='Utility Group Criteria'!D98 -> OGE Energy Corp.
A22: 20 | B22: ='Utility Group Criteria'!C99 -> OTTR | C22: ='Utility Group Criteria'!D99 -> Otter Tail Corp.
A23: 21 | B23: ='Utility Group Criteria'!C102 -> PNM | C23: ='Utility Group Criteria'!D102 -> PNM Resources
A24: 22 | B24: ='Utility Group Criteria'!C107 -> SRE | C24: ='Utility Group Criteria'!D107 -> Sempra Energy
A25: 23 | B25: ='Utility Group Criteria'!C105 -> zzz | C25: ='Utility Group Criteria'!D105 -> zzz
A26: 24 | B26: ='Utility Group Criteria'!C89 -> zzz | C26: ='Utility Group Criteria'!D89 -> zzz
A27: 25 | B27: ='Utility Group Criteria'!C71 -> zzz | C27: ='Utility Group Criteria'!D71 -> zzz
A28: 26 | B28: ='Utility Group Criteria'!C72 -> zzz | C28: ='Utility Group Criteria'!D72 -> zzz
A29: 27 | B29: ='Utility Group Criteria'!C74 -> zzz | C29: ='Utility Group Criteria'!D74 -> zzz
A30: 28 | B30: ='Utility Group Criteria'!C80 -> zzz | C30: ='Utility Group Criteria'!D80 -> zzz
A31: 29 | B31: ='Utility Group Criteria'!C83 -> zzz | C31: ='Utility Group Criteria'!D83 -> zzz
A32: 30 | B32: ='Utility Group Criteria'!C96 -> zzz | C32: ='Utility Group Criteria'!D96 -> zzz
A33: 31 | B33: ='Utility Group Criteria'!C101 -> zzz | C33: ='Utility Group Criteria'!D101 -> zzz
A34: 32 | B34: ='Utility Group Criteria'!C103 -> zzz | C34: ='Utility Group Criteria'!D103 -> zzz
A35: 33 | B35: ='Utility Group Criteria'!C104 -> zzz | C35: ='Utility Group Criteria'!D104 -> zzz
A36: 34 | B36: ='Utility Group Criteria'!C112 -> zzz | C36: ='Utility Group Criteria'!D112 -> zzz
A37: 35 | B37: ='Utility Group Criteria'!C109 -> zzz | C37: ='Utility Group Criteria'!D109 -> zzz
A38: 36 | B38: ='Utility Group Criteria'!C88 -> zzz | C38: ='Utility Group Criteria'!D88 -> zzz
A39: 37 | B39: ='Utility Group Criteria'!C92 -> zzz | C39: ='Utility Group Criteria'!D92 -> zzz
A40: 38 | B40: ='Utility Group Criteria'!C95 -> zzz | C40: ='Utility Group Criteria'!D95 -> zzz
A41: 39 | B41: ='Utility Group Criteria'!C111 -> zzz | C41: ='Utility Group Criteria'!D111 -> zzz
A42: 40 | B42: ='Utility Group Criteria'!C100 ->  | C42: ='Utility Group Criteria'!D100 -> 

Sheet Exhibit List
A1: Tab | B1: Designation | C1: Title I | D1: Title II
A2: 2 | B2: Exh. AMM-4 | C2: ROE ANALYSIS | D2: SUMMARY OF RESULTS
A3: 4 (1) | B3: Exh. AMM-5 | C3: CAPITAL STRUCTURE | D3: UTILITY GROUP
A4: 4 (2-3) | B4: Exh. AMM-5 | C4: CAPITAL STRUCTURE | D4: ELECTRIC GROUP OPERATING SUBSIDIARIES
A5: 5 (1) | B5: Exh. AMM-6 | C5: DCF MODEL - UTILITY GROUP | D5: DIVIDEND YIELD
A6: 5 (2) | B6: Exh. AMM-6 | C6: DCF MODEL - UTILITY GROUP | D6: GROWTH RATES
A7: 5 (3) | B7: Exh. AMM-6 | C7: DCF MODEL - UTILITY GROUP | D7: DCF COST OF EQUITY ESTIMATES
A8: 6 | B8: Exh. AMM-7 | C8: DCF MODEL - UTILITY GROUP | D8: BR+SV GROWTH RATE
A9: 7 (1) | B9: Exh. AMM-8 | C9: CAPM - CURRENT BOND YIELD | D9: UTILITY GROUP
A10: 7 (2) | B10: Exh. AMM-8 | C10: CAPM - PROJECTED BOND YIELD | D10: UTILITY GROUP
A11: 8 (1) | B11: Exh. AMM-9 | C11: EMPIRICAL CAPM - CURRENT BOND YIELD | D11: UTILITY GROUP
A12: 8 (2) | B12: Exh. AMM-9 | C12: EMPIRICAL CAPM - PROJECTED BOND YIELD | D12: UTILITY GROUP
A13: 9 (1) | B13: Exh. AMM-10 | C13: ELECTRIC UTILITY RISK PREMIUM | D13: CURRENT BOND YIELD
A14: 9 (2) | B14: Exh. AMM-10 | C14: ELECTRIC UTILITY RISK PREMIUM | D14: PROJECTED BOND YIELD
A15: 9 (3) | B15: Exh. AMM-10 | C15: ELECTRIC UTILITY RISK PREMIUM | D15: AUTHORIZED RETURNS
A16: 9 (4) | B16: Exh. AMM-10 | C16: ELECTRIC UTILITY RISK PREMIUM | D16: REGRESSION RESULTS
A17: 10 | B17: Exh. AMM-11 | C17: EXPECTED EARNINGS APPROACH | D17: UTILITY GROUP
A18: 11 (1) | B18: Exh. AMM-12 | C18: DCF MODEL - NON-UTILITY GROUP | D18: DIVIDEND YIELD
A19: 11 (2) | B19: Exh. AMM-12 | C19: DCF MODEL - NON-UTILITY GROUP | D19: GROWTH RATES
A20: 11 (3) | B20: Exh. AMM-12 | C20: DCF MODEL - NON-UTILITY GROUP | D20: DCF COST OF EQUITY ESTIMATES
A21: 14 | B21: Exh. AMM-13 | C21: FLOTATION COST STUDY | D21: ELECTRIC & GAS UTILITIES
A22: 3 (1) | B22: Exh. AMM-14 | C22: REGULATORY MECHANISMS | D22: UTILITY GROUP
A23: 3 (2-4) | B23: Exh. AMM-14 | C23: REGULATORY MECHANISMS | D23: UTILITY GROUP OPERATING COS.

Sheet Proxy Group Risk Measures
A1: RISK MEASURES
A3: ELECTRIC GROUP
D5: (a) | G5: (b) | J5: (c) | Q5: (d)
J6: Value Line
D7: Credit Ratings | J7: Safety | L7: Financial | Q7: Market
B8: Company | D8: S&P | G8: Moody's | J8: Rank | L8: Strength | O8: Beta | Q8: Cap
A9: =A8+1 -> 1 | B9: =VLOOKUP('Utility Group'!$B3,vldatabase,2,FALSE) -> Algonquin Pwr & Util | D9: =VLOOKUP('Utility Group'!$B3,vldatabase,26,FALSE) -> BBB | E9: =VLOOKUP(D9,'Ordinal Ratings'!A$8:C$30,2,FALSE) -> 9 | G9: =VLOOKUP('Utility Group'!$B3,vldatabase,27,FALSE) -> NR | H9: =VLOOKUP(G9,'Ordinal Ratings'!I$9:K$28,2,FALSE) ->  | J9: =VLOOKUP('Utility Group'!$B3,vldatabase,22,FALSE) -> n/a | L9: =VLOOKUP('Utility Group'!$B3,vldatabase,24,FALSE) -> n/a | M9: =VLOOKUP(L9,'Ordinal Ratings'!E$8:F$18,2,FALSE) ->  | O9: =VLOOKUP('Utility Group'!$B3,vldatabase,23,FALSE) -> n/a | Q9: =VLOOKUP('Utility Group'!$B3,vldatabase,28,FALSE) -> 5520
A10: =A9+1 -> 2 | B10: =VLOOKUP('Utility Group'!$B4,vldatabase,2,FALSE) -> Ameren Corp. | D10: =VLOOKUP('Utility Group'!$B4,vldatabase,26,FALSE) -> BBB+ | E10: =VLOOKUP(D10,'Ordinal Ratings'!A$8:C$30,2,FALSE) -> 8 | G10: =VLOOKUP('Utility Group'!$B4,vldatabase,27,FALSE) -> Baa1 | H10: =VLOOKUP(G10,'Ordinal Ratings'!I$9:K$28,2,FALSE) -> 8 | J10: =VLOOKUP('Utility Group'!$B4,vldatabase,22,FALSE) -> 2 | L10: =VLOOKUP('Utility Group'!$B4,vldatabase,24,FALSE) -> A | M10: =VLOOKUP(L10,'Ordinal Ratings'!E$8:F$18,2,FALSE) -> 3 | O10: =VLOOKUP('Utility Group'!$B4,vldatabase,23,FALSE) -> 0.6 | Q10: =VLOOKUP('Utility Group'!$B4,vldatabase,28,FALSE) -> 17912.07
A11: 3 | B11: =VLOOKUP('Utility Group'!$B5,vldatabase,2,FALSE) -> Avangrid, Inc. | D11: =VLOOKUP('Utility Group'!$B5,vldatabase,26,FALSE) -> BBB+ | E11: =VLOOKUP(D11,'Ordinal Ratings'!A$8:C$30,2,FALSE) -> 8 | G11: =VLOOKUP('Utility Group'!$B5,vldatabase,27,FALSE) -> Baa1 | H11: =VLOOKUP(G11,'Ordinal Ratings'!I$9:K$28,2,FALSE) -> 8 | J11: =VLOOKUP('Utility Group'!$B5,vldatabase,22,FALSE) -> 2 | L11: =VLOOKUP('Utility Group'!$B5,vldatabase,24,FALSE) -> B++ | M11: =VLOOKUP(L11,'Ordinal Ratings'!E$8:F$18,2,FALSE) -> 4 | O11: =VLOOKUP('Utility Group'!$B5,vldatabase,23,FALSE) -> 0.4 | Q11: =VLOOKUP('Utility Group'!$B5,vldatabase,28,FALSE) -> 15252.49
A12: 4 | B12: =VLOOKUP('Utility Group'!$B6,vldatabase,2,FALSE) -> Avista Corp. | D12: =VLOOKUP('Utility Group'!$B6,vldatabase,26,FALSE) -> BBB | E12: =VLOOKUP(D12,'Ordinal Ratings'!A$8:C$30,2,FALSE) -> 9 | G12: =VLOOKUP('Utility Group'!$B6,vldatabase,27,FALSE) -> Baa2 | H12: =VLOOKUP(G12,'Ordinal Ratings'!I$9:K$28,2,FALSE) -> 9 | J12: =VLOOKUP('Utility Group'!$B6,vldatabase,22,FALSE) -> 2 | L12: =VLOOKUP('Utility Group'!$B6,vldatabase,24,FALSE) -> A | M12: =VLOOKUP(L12,'Ordinal Ratings'!E$8:F$18,2,FALSE) -> 3 | O12: =VLOOKUP('Utility Group'!$B6,vldatabase,23,FALSE) -> 0.65 | Q12: =VLOOKUP('Utility Group'!$B6,vldatabase,28,FALSE) -> 2684.67
A13: 5 | B13: =VLOOKUP('Utility Group'!$B7,vldatabase,2,FALSE) -> Black Hills Corp. | D13: =VLOOKUP('Utility Group'!$B7,vldatabase,26,FALSE) -> BBB+ | E13: =VLOOKUP(D13,'Ordinal Ratings'!A$8:C$30,2,FALSE) -> 8 | G13: =VLOOKUP('Utility Group'!$B7,vldatabase,27,FALSE) -> Baa2 | H13: =VLOOKUP(G13,'Ordinal Ratings'!I$9:K$28,2,FALSE) -> 9 | J13: =VLOOKUP('Utility Group'!$B7,vldatabase,22,FALSE) -> 2 | L13: =VLOOKUP('Utility Group'!$B7,vldatabase,24,FALSE) -> A | M13: =VLOOKUP(L13,'Ordinal Ratings'!E$8:F$18,2,FALSE) -> 3 | O13: =VLOOKUP('Utility Group'!$B7,vldatabase,23,FALSE) -> 0.75 | Q13: =VLOOKUP('Utility Group'!$B7,vldatabase,28,FALSE) -> 4359.29
A14: 6 | B14: =VLOOKUP('Utility Group'!$B8,vldatabase,2,FALSE) -> CenterPoint Energy | D14: =VLOOKUP('Utility Group'!$B8,vldatabase,26,FALSE) -> BBB+ | E14: =VLOOKUP(D14,'Ordinal Ratings'!A$8:C$30,2,FALSE) -> 8 | G14: =VLOOKUP('Utility Group'!$B8,vldatabase,27,FALSE) -> Baa2 | H14: =VLOOKUP(G14,'Ordinal Ratings'!I$9:K$28,2,FALSE) -> 9 | J14: =VLOOKUP('Utility Group'!$B8,vldatabase,22,FALSE) -> 3 | L14: =VLOOKUP('Utility Group'!$B8,vldatabase,24,FALSE) -> B+ | M14: =VLOOKUP(L14,'Ordinal Ratings'!E$8:F$18,2,FALSE) -> 5 | O14: =VLOOKUP('Utility Group'!$B8,vldatabase,23,FALSE) -> 0.8 | Q14: =VLOOKUP('Utility Group'!$B8,vldatabase,28,FALSE) -> 15346.65
A15: 7 | B15: =VLOOKUP('Utility Group'!$B9,vldatabase,2,FALSE) -> CMS Energy Corp. | D15: =VLOOKUP('Utility Group'!$B9,vldatabase,26,FALSE) -> BBB+ | E15: =VLOOKUP(D15,'Ordinal Ratings'!A$8:C$30,2,FALSE) -> 8 | G15: =VLOOKUP('Utility Group'!$B9,vldatabase,27,FALSE) -> Baa1 | H15: =VLOOKUP(G15,'Ordinal Ratings'!I$9:K$28,2,FALSE) -> 8 | J15: =VLOOKUP('Utility Group'!$B9,vldatabase,22,FALSE) -> 2 | L15: =VLOOKUP('Utility Group'!$B9,vldatabase,24,FALSE) -> B++ | M15: =VLOOKUP(L15,'Ordinal Ratings'!E$8:F$18,2,FALSE) -> 4 | O15: =VLOOKUP('Utility Group'!$B9,vldatabase,23,FALSE) -> 0.55 | Q15: =VLOOKUP('Utility Group'!$B9,vldatabase,28,FALSE) -> 15647.91
A16: 8 | B16: =VLOOKUP('Utility Group'!$B10,vldatabase,2,FALSE) -> Dominion Energy | D16: =VLOOKUP('Utility Group'!$B10,vldatabase,26,FALSE) -> BBB+ | E16: =VLOOKUP(D16,'Ordinal Ratings'!A$8:C$30,2,FALSE) -> 8 | G16: =VLOOKUP('Utility Group'!$B10,vldatabase,27,FALSE) -> Baa2 | H16: =VLOOKUP(G16,'Ordinal Ratings'!I$9:K$28,2,FALSE) -> 9 | J16: =VLOOKUP('Utility Group'!$B10,vldatabase,22,FALSE) -> 2 | L16: =VLOOKUP('Utility Group'!$B10,vldatabase,24,FALSE) -> B++ | M16: =VLOOKUP(L16,'Ordinal Ratings'!E$8:F$18,2,FALSE) -> 4 | O16: =VLOOKUP('Utility Group'!$B10,vldatabase,23,FALSE) -> 0.55 | Q16: =VLOOKUP('Utility Group'!$B10,vldatabase,28,FALSE) -> 49197.05
A17: 9 | B17: =VLOOKUP('Utility Group'!$B11,vldatabase,2,FALSE) -> DTE Energy Co. | D17: =VLOOKUP('Utility Group'!$B11,vldatabase,26,FALSE) -> BBB+ | E17: =VLOOKUP(D17,'Ordinal Ratings'!A$8:C$30,2,FALSE) -> 8 | G17: =VLOOKUP('Utility Group'!$B11,vldatabase,27,FALSE) -> Baa1 | H17: =VLOOKUP(G17,'Ordinal Ratings'!I$9:K$28,2,FALSE) -> 8 | J17: =VLOOKUP('Utility Group'!$B11,vldatabase,22,FALSE) -> 2 | L17: =VLOOKUP('Utility Group'!$B11,vldatabase,24,FALSE) -> B++ | M17: =VLOOKUP(L17,'Ordinal Ratings'!E$8:F$18,2,FALSE) -> 4 | O17: =VLOOKUP('Utility Group'!$B11,vldatabase,23,FALSE) -> 0.55 | Q17: =VLOOKUP('Utility Group'!$B11,vldatabase,28,FALSE) -> 22420.44
A18: 10 | B18: =VLOOKUP('Utility Group'!$B12,vldatabase,2,FALSE) -> Edison International | D18: =VLOOKUP('Utility Group'!$B12,vldatabase,26,FALSE) -> BBB | E18: =VLOOKUP(D18,'Ordinal Ratings'!A$8:C$30,2,FALSE) -> 9 | G18: =VLOOKUP('Utility Group'!$B12,vldatabase,27,FALSE) -> Baa3 | H18: =VLOOKUP(G18,'Ordinal Ratings'!I$9:K$28,2,FALSE) -> 10 | J18: =VLOOKUP('Utility Group'!$B12,vldatabase,22,FALSE) -> 3 | L18: =VLOOKUP('Utility Group'!$B12,vldatabase,24,FALSE) -> B+ | M18: =VLOOKUP(L18,'Ordinal Ratings'!E$8:F$18,2,FALSE) -> 5 | O18: =VLOOKUP('Utility Group'!$B12,vldatabase,23,FALSE) -> 0.55 | Q18: =VLOOKUP('Utility Group'!$B12,vldatabase,28,FALSE) -> 21171.2
A19: 11 | B19: =VLOOKUP('Utility Group'!$B13,vldatabase,2,FALSE) -> El Paso Electric Co. | D19: =VLOOKUP('Utility Group'!$B13,vldatabase,26,FALSE) -> BBB | E19: =VLOOKUP(D19,'Ordinal Ratings'!A$8:C$30,2,FALSE) -> 9 | G19: =VLOOKUP('Utility Group'!$B13,vldatabase,27,FALSE) -> Baa1 | H19: =VLOOKUP(G19,'Ordinal Ratings'!I$9:K$28,2,FALSE) -> 8 | J19: =VLOOKUP('Utility Group'!$B13,vldatabase,22,FALSE) -> 2 | L19: =VLOOKUP('Utility Group'!$B13,vldatabase,24,FALSE) -> B++ | M19: =VLOOKUP(L19,'Ordinal Ratings'!E$8:F$18,2,FALSE) -> 4 | O19: =VLOOKUP('Utility Group'!$B13,vldatabase,23,FALSE) -> 0.65 | Q19: =VLOOKUP('Utility Group'!$B13,vldatabase,28,FALSE) -> 2359.09
A20: 12 | B20: =VLOOKUP('Utility Group'!$B14,vldatabase,2,FALSE) -> Emera Inc. | D20: =VLOOKUP('Utility Group'!$B14,vldatabase,26,FALSE) -> BBB+ | E20: =VLOOKUP(D20,'Ordinal Ratings'!A$8:C$30,2,FALSE) -> 8 | G20: =VLOOKUP('Utility Group'!$B14,vldatabase,27,FALSE) -> Baa3 | H20: =VLOOKUP(G20,'Ordinal Ratings'!I$9:K$28,2,FALSE) -> 10 | J20: =VLOOKUP('Utility Group'!$B14,vldatabase,22,FALSE) -> 2 | L20: =VLOOKUP('Utility Group'!$B14,vldatabase,24,FALSE) -> B+ | M20: =VLOOKUP(L20,'Ordinal Ratings'!E$8:F$18,2,FALSE) -> 5 | O20: =VLOOKUP('Utility Group'!$B14,vldatabase,23,FALSE) -> 0.55 | Q20: =VLOOKUP('Utility Group'!$B14,vldatabase,28,FALSE) -> 11301.63
A21: 13 | B21: =VLOOKUP('Utility Group'!$B15,vldatabase,2,FALSE) -> Entergy Corp. | D21: =VLOOKUP('Utility Group'!$B15,vldatabase,26,FALSE) -> BBB+ | E21: =VLOOKUP(D21,'Ordinal Ratings'!A$8:C$30,2,FALSE) -> 8 | G21: =VLOOKUP('Utility Group'!$B15,vldatabase,27,FALSE) -> Baa2 | H21: =VLOOKUP(G21,'Ordinal Ratings'!I$9:K$28,2,FALSE) -> 9 | J21: =VLOOKUP('Utility Group'!$B15,vldatabase,22,FALSE) -> 3 | L21: =VLOOKUP('Utility Group'!$B15,vldatabase,24,FALSE) -> B++ | M21: =VLOOKUP(L21,'Ordinal Ratings'!E$8:F$18,2,FALSE) -> 4 | O21: =VLOOKUP('Utility Group'!$B15,vldatabase,23,FALSE) -> 0.6 | Q21: =VLOOKUP('Utility Group'!$B15,vldatabase,28,FALSE) -> 17950.87
A22: 14 | B22: =VLOOKUP('Utility Group'!$B16,vldatabase,2,FALSE) -> Exelon Corp. | D22: =VLOOKUP('Utility Group'!$B16,vldatabase,26,FALSE) -> BBB+ | E22: =VLOOKUP(D22,'Ordinal Ratings'!A$8:C$30,2,FALSE) -> 8 | G22: =VLOOKUP('Utility Group'!$B16,vldatabase,27,FALSE) -> Baa2 | H22: =VLOOKUP(G22,'Ordinal Ratings'!I$9:K$28,2,FALSE) -> 9 | J22: =VLOOKUP('Utility Group'!$B16,vldatabase,22,FALSE) -> 3 | L22: =VLOOKUP('Utility Group'!$B16,vldatabase,24,FALSE) -> B++ | M22: =VLOOKUP(L22,'Ordinal Ratings'!E$8:F$18,2,FALSE) -> 4 | O22: =VLOOKUP('Utility Group'!$B16,vldatabase,23,FALSE) -> 0.7 | Q22: =VLOOKUP('Utility Group'!$B16,vldatabase,28,FALSE) -> 48021.22
A23: 15 | B23: =VLOOKUP('Utility Group'!$B17,vldatabase,2,FALSE) -> FirstEnergy Corp. | D23: =VLOOKUP('Utility Group'!$B17,vldatabase,26,FALSE) -> BBB | E23: =VLOOKUP(D23,'Ordinal Ratings'!A$8:C$30,2,FALSE) -> 9 | G23: =VLOOKUP('Utility Group'!$B17,vldatabase,27,FALSE) -> Baa3 | H23: =VLOOKUP(G23,'Ordinal Ratings'!I$9:K$28,2,FALSE) -> 10 | J23: =VLOOKUP('Utility Group'!$B17,vldatabase,22,FALSE) -> 2 | L23: =VLOOKUP('Utility Group'!$B17,vldatabase,24,FALSE) -> B++ | M23: =VLOOKUP(L23,'Ordinal Ratings'!E$8:F$18,2,FALSE) -> 4 | O23: =VLOOKUP('Utility Group'!$B17,vldatabase,23,FALSE) -> 0.65 | Q23: =VLOOKUP('Utility Group'!$B17,vldatabase,28,FALSE) -> 21091.99
A24: 16 | B24: =VLOOKUP('Utility Group'!$B18,vldatabase,2,FALSE) -> Hawaiian Elec. | D24: =VLOOKUP('Utility Group'!$B18,vldatabase,26,FALSE) -> BBB- | E24: =VLOOKUP(D24,'Ordinal Ratings'!A$8:C$30,2,FALSE) -> 10 | G24: =VLOOKUP('Utility Group'!$B18,vldatabase,27,FALSE) -> Baa2 | H24: =VLOOKUP(G24,'Ordinal Ratings'!I$9:K$28,2,FALSE) -> 9 | J24: =VLOOKUP('Utility Group'!$B18,vldatabase,22,FALSE) -> 2 | L24: =VLOOKUP('Utility Group'!$B18,vldatabase,24,FALSE) -> A | M24: =VLOOKUP(L24,'Ordinal Ratings'!E$8:F$18,2,FALSE) -> 3 | O24: =VLOOKUP('Utility Group'!$B18,vldatabase,23,FALSE) -> 0.6 | Q24: =VLOOKUP('Utility Group'!$B18,vldatabase,28,FALSE) -> 4419.4
A25: 17 | B25: =VLOOKUP('Utility Group'!$B19,vldatabase,2,FALSE) -> IDACORP, Inc. | D25: =VLOOKUP('Utility Group'!$B19,vldatabase,26,FALSE) -> BBB | E25: =VLOOKUP(D25,'Ordinal Ratings'!A$8:C$30,2,FALSE) -> 9 | G25: =VLOOKUP('Utility Group'!$B19,vldatabase,27,FALSE) -> Baa1 | H25: =VLOOKUP(G25,'Ordinal Ratings'!I$9:K$28,2,FALSE) -> 8 | J25: =VLOOKUP('Utility Group'!$B19,vldatabase,22,FALSE) -> 2 | L25: =VLOOKUP('Utility Group'!$B19,vldatabase,24,FALSE) -> A | M25: =VLOOKUP(L25,'Ordinal Ratings'!E$8:F$18,2,FALSE) -> 3 | O25: =VLOOKUP('Utility Group'!$B19,vldatabase,23,FALSE) -> 0.55 | Q25: =VLOOKUP('Utility Group'!$B19,vldatabase,28,FALSE) -> 5011.75
A26: 18 | B26: =VLOOKUP('Utility Group'!$B20,vldatabase,2,FALSE) -> NorthWestern Corp. | D26: =VLOOKUP('Utility Group'!$B20,vldatabase,26,FALSE) -> BBB | E26: =VLOOKUP(D26,'Ordinal Ratings'!A$8:C$30,2,FALSE) -> 9 | G26: =VLOOKUP('Utility Group'!$B20,vldatabase,27,FALSE) -> Baa2 | H26: =VLOOKUP(G26,'Ordinal Ratings'!I$9:K$28,2,FALSE) -> 9 | J26: =VLOOKUP('Utility Group'!$B20,vldatabase,22,FALSE) -> 2 | L26: =VLOOKUP('Utility Group'!$B20,vldatabase,24,FALSE) -> B++ | M26: =VLOOKUP(L26,'Ordinal Ratings'!E$8:F$18,2,FALSE) -> 4 | O26: =VLOOKUP('Utility Group'!$B20,vldatabase,23,FALSE) -> 0.55 | Q26: =VLOOKUP('Utility Group'!$B20,vldatabase,28,FALSE) -> 3544.75
A27: 19 | B27: =VLOOKUP('Utility Group'!$B21,vldatabase,2,FALSE) -> OGE Energy Corp. | D27: =VLOOKUP('Utility Group'!$B21,vldatabase,26,FALSE) -> BBB+ | E27: =VLOOKUP(D27,'Ordinal Ratings'!A$8:C$30,2,FALSE) -> 8 | G27: =VLOOKUP('Utility Group'!$B21,vldatabase,27,FALSE) -> Baa1 | H27: =VLOOKUP(G27,'Ordinal Ratings'!I$9:K$28,2,FALSE) -> 8 | J27: =VLOOKUP('Utility Group'!$B21,vldatabase,22,FALSE) -> 2 | L27: =VLOOKUP('Utility Group'!$B21,vldatabase,24,FALSE) -> A | M27: =VLOOKUP(L27,'Ordinal Ratings'!E$8:F$18,2,FALSE) -> 3 | O27: =VLOOKUP('Utility Group'!$B21,vldatabase,23,FALSE) -> 0.85 | Q27: =VLOOKUP('Utility Group'!$B21,vldatabase,28,FALSE) -> 8551.15
A28: 20 | B28: =VLOOKUP('Utility Group'!$B22,vldatabase,2,FALSE) -> Otter Tail Corp. | D28: =VLOOKUP('Utility Group'!$B22,vldatabase,26,FALSE) -> BBB | E28: =VLOOKUP(D28,'Ordinal Ratings'!A$8:C$30,2,FALSE) -> 9 | G28: =VLOOKUP('Utility Group'!$B22,vldatabase,27,FALSE) -> Baa2 | H28: =VLOOKUP(G28,'Ordinal Ratings'!I$9:K$28,2,FALSE) -> 9 | J28: =VLOOKUP('Utility Group'!$B22,vldatabase,22,FALSE) -> 2 | L28: =VLOOKUP('Utility Group'!$B22,vldatabase,24,FALSE) -> A | M28: =VLOOKUP(L28,'Ordinal Ratings'!E$8:F$18,2,FALSE) -> 3 | O28: =VLOOKUP('Utility Group'!$B22,vldatabase,23,FALSE) -> 0.7 | Q28: =VLOOKUP('Utility Group'!$B22,vldatabase,28,FALSE) -> 1951.07
A29: 21 | B29: =VLOOKUP('Utility Group'!$B23,vldatabase,2,FALSE) -> PNM Resources | D29: =VLOOKUP('Utility Group'!$B23,vldatabase,26,FALSE) -> BBB+ | E29: =VLOOKUP(D29,'Ordinal Ratings'!A$8:C$30,2,FALSE) -> 8 | G29: =VLOOKUP('Utility Group'!$B23,vldatabase,27,FALSE) -> Baa3 | H29: =VLOOKUP(G29,'Ordinal Ratings'!I$9:K$28,2,FALSE) -> 10 | J29: =VLOOKUP('Utility Group'!$B23,vldatabase,22,FALSE) -> 3 | L29: =VLOOKUP('Utility Group'!$B23,vldatabase,24,FALSE) -> B+ | M29: =VLOOKUP(L29,'Ordinal Ratings'!E$8:F$18,2,FALSE) -> 5 | O29: =VLOOKUP('Utility Group'!$B23,vldatabase,23,FALSE) -> 0.65 | Q29: =VLOOKUP('Utility Group'!$B23,vldatabase,28,FALSE) -> 3748.47
A30: 22 | B30: =VLOOKUP('Utility Group'!$B24,vldatabase,2,FALSE) -> Sempra Energy | D30: =VLOOKUP('Utility Group'!$B24,vldatabase,26,FALSE) -> BBB+ | E30: =VLOOKUP(D30,'Ordinal Ratings'!A$8:C$30,2,FALSE) -> 8 | G30: =VLOOKUP('Utility Group'!$B24,vldatabase,27,FALSE) -> Baa1 | H30: =VLOOKUP(G30,'Ordinal Ratings'!I$9:K$28,2,FALSE) -> 8 | J30: =VLOOKUP('Utility Group'!$B24,vldatabase,22,FALSE) -> 2 | L30: =VLOOKUP('Utility Group'!$B24,vldatabase,24,FALSE) -> A | M30: =VLOOKUP(L30,'Ordinal Ratings'!E$8:F$18,2,FALSE) -> 3 | O30: =VLOOKUP('Utility Group'!$B24,vldatabase,23,FALSE) -> 0.75 | Q30: =VLOOKUP('Utility Group'!$B24,vldatabase,28,FALSE) -> 34459.3
B32: Average | D32: =VLOOKUP(E32,'Ordinal Ratings'!$B$8:$C$28,2,FALSE) -> BBB+ | E32: =ROUND(AVERAGE(E9:E30),0) -> 8 | G32: =VLOOKUP(H32,'Ordinal Ratings'!$J$8:$K$28,2,FALSE) -> Baa2 | H32: =ROUND(AVERAGE(H9:H30),0) -> 9 | J32: =AVERAGE(J9:J30) -> 2.238095238 | L32: =VLOOKUP(M32,'Ordinal Ratings'!$F$8:$G$17,2,FALSE) -> B++ | M32: =ROUND(AVERAGE(M9:M30),0) -> 4 | O32: =AVERAGE(O9:O30) -> 0.6285714286 | Q32: =AVERAGE(Q9:Q30) -> 15087.38455
A36: (a) | B36: ='Electric Utility Data'!B52 -> Issuer credit rating from www.standardandpoors.com (retrieved Mar. 26, 2019).
A37: (b) | B37: ='Electric Utility Data'!B53 -> Long-term rating from www.moodys.com (retrieved Mar. 26, 2019).
A38: (c) | B38: ='Utility Group Criteria'!B51 -> The Value Line Investment Survey (Jan. 25, Feb. 15 & Mar. 15, 2019)
A39: (d) | B39: ='Electric Utility Data'!B54 -> www.valueline.com (retrieved Mar. 26, 2019).
A40: RISK MEASURES
A42: NON-UTILITY GROUP
D44: (a) | G44: (b) | J44: (c) | Q44: (c)
J45: Value Line
D46: Credit Ratings | J46: Safety | L46: Financial | Q46: Market
B47: Company | D47: S&P | G47: Moody's | J47: Rank | L47: Strength | O47: Beta | Q47: Cap
A48: 1 | B48: Church & Dwight | D48: BBB+ | E48: =VLOOKUP(D48,'Ordinal Ratings'!A$8:B$30,2,FALSE) -> 8 | G48: Baa1 | H48: =VLOOKUP(G48,'Ordinal Ratings'!I$8:J$26,2,FALSE) -> 8 | J48: 1 | L48: A+ | M48: =VLOOKUP(L48,'Ordinal Ratings'!E$8:F$17,2,FALSE) -> 2 | O48: 0.75 | Q48: 16300
A49: =A48+1 -> 2 | B49: Coca-Cola | D49: A+ | E49: =VLOOKUP(D49,'Ordinal Ratings'!A$8:B$30,2,FALSE) -> 5 | G49: A1 | H49: =VLOOKUP(G49,'Ordinal Ratings'!I$8:J$26,2,FALSE) -> 5 | J49: 1 | L49: A++ | M49: =VLOOKUP(L49,'Ordinal Ratings'!E$8:F$17,2,FALSE) -> 1 | O49: 0.7 | Q49: 202000
A50: 3 | B50: Colgate-Palmolive | D50: AA- | E50: =VLOOKUP(D50,'Ordinal Ratings'!A$8:B$30,2,FALSE) -> 4 | G50: Aa3 | H50: =VLOOKUP(G50,'Ordinal Ratings'!I$8:J$26,2,FALSE) -> 4 | J50: 1 | L50: A+ | M50: =VLOOKUP(L50,'Ordinal Ratings'!E$8:F$17,2,FALSE) -> 2 | O50: 0.75 | Q50: 56600
A51: 4 | B51: Federal Realty Inv. | D51: A- | E51: =VLOOKUP(D51,'Ordinal Ratings'!A$8:B$30,2,FALSE) -> 7 | G51: A3 | H51: =VLOOKUP(G51,'Ordinal Ratings'!I$8:J$26,2,FALSE) -> 7 | J51: 1 | L51: A | M51: =VLOOKUP(L51,'Ordinal Ratings'!E$8:F$17,2,FALSE) -> 3 | O51: 0.7 | Q51: 8500
A52: 5 | B52: General Mills | D52: BBB | E52: =VLOOKUP(D52,'Ordinal Ratings'!A$8:B$30,2,FALSE) -> 9 | G52: Baa2 | H52: =VLOOKUP(G52,'Ordinal Ratings'!I$8:J$26,2,FALSE) -> 9 | J52: 1 | L52: A | M52: =VLOOKUP(L52,'Ordinal Ratings'!E$8:F$17,2,FALSE) -> 3 | O52: 0.75 | Q52: 24500
A53: 6 | B53: Kellogg | D53: BBB | E53: =VLOOKUP(D53,'Ordinal Ratings'!A$8:B$30,2,FALSE) -> 9 | G53: Baa2 | H53: =VLOOKUP(G53,'Ordinal Ratings'!I$8:J$26,2,FALSE) -> 9 | J53: 1 | L53: A | M53: =VLOOKUP(L53,'Ordinal Ratings'!E$8:F$17,2,FALSE) -> 3 | O53: 0.7 | Q53: 20100
A54: 7 | B54: Kimberly-Clark | D54: A | E54: =VLOOKUP(D54,'Ordinal Ratings'!A$8:B$30,2,FALSE) -> 6 | G54: A2 | H54: =VLOOKUP(G54,'Ordinal Ratings'!I$8:J$26,2,FALSE) -> 6 | J54: 1 | L54: A+ | M54: =VLOOKUP(L54,'Ordinal Ratings'!E$8:F$17,2,FALSE) -> 2 | O54: 0.75 | Q54: 40600
A55: 8 | B55: McCormick & Co. | D55: BBB | E55: =VLOOKUP(D55,'Ordinal Ratings'!A$8:B$30,2,FALSE) -> 9 | G55: Baa2 | H55: =VLOOKUP(G55,'Ordinal Ratings'!I$8:J$26,2,FALSE) -> 9 | J55: 1 | L55: A+ | M55: =VLOOKUP(L55,'Ordinal Ratings'!E$8:F$17,2,FALSE) -> 2 | O55: 0.75 | Q55: 18500
A56: 9 | B56: PepsiCo, Inc. | D56: A+ | E56: =VLOOKUP(D56,'Ordinal Ratings'!A$8:B$30,2,FALSE) -> 5 | G56: A1 | H56: =VLOOKUP(G56,'Ordinal Ratings'!I$8:J$26,2,FALSE) -> 5 | J56: 1 | L56: A++ | M56: =VLOOKUP(L56,'Ordinal Ratings'!E$8:F$17,2,FALSE) -> 1 | O56: 0.75 | Q56: 156400
A57: 10 | B57: Procter & Gamble | D57: AA- | E57: =VLOOKUP(D57,'Ordinal Ratings'!A$8:B$30,2,FALSE) -> 4 | G57: Aa3 | H57: =VLOOKUP(G57,'Ordinal Ratings'!I$8:J$26,2,FALSE) -> 4 | J57: 1 | L57: A++ | M57: =VLOOKUP(L57,'Ordinal Ratings'!E$8:F$17,2,FALSE) -> 1 | O57: 0.65 | Q57: 250000
A58: 11 | B58: Public Storage | D58: A | E58: =VLOOKUP(D58,'Ordinal Ratings'!A$8:B$30,2,FALSE) -> 6 | G58: A2 | H58: =VLOOKUP(G58,'Ordinal Ratings'!I$8:J$26,2,FALSE) -> 6 | J58: 1 | L58: A+ | M58: =VLOOKUP(L58,'Ordinal Ratings'!E$8:F$17,2,FALSE) -> 2 | O58: 0.75 | Q58: 34300
A59: 12 | B59: Smucker (J.M.) | D59: BBB | E59: =VLOOKUP(D59,'Ordinal Ratings'!A$8:B$30,2,FALSE) -> 9 | G59: Baa2 | H59: =VLOOKUP(G59,'Ordinal Ratings'!I$8:J$26,2,FALSE) -> 9 | J59: 1 | L59: A | M59: =VLOOKUP(L59,'Ordinal Ratings'!E$8:F$17,2,FALSE) -> 3 | O59: 0.7 | Q59: 11300
A60: 13 | B60: Sysco Corp. | D60: BBB+ | E60: =VLOOKUP(D60,'Ordinal Ratings'!A$8:B$30,2,FALSE) -> 8 | G60: A3 | H60: =VLOOKUP(G60,'Ordinal Ratings'!I$8:J$26,2,FALSE) -> 7 | J60: 1 | L60: A+ | M60: =VLOOKUP(L60,'Ordinal Ratings'!E$8:F$17,2,FALSE) -> 2 | O60: 0.75 | Q60: 32700
A61: 14 | B61: Verizon Communications | D61: BBB+ | E61: =VLOOKUP(D61,'Ordinal Ratings'!A$8:B$30,2,FALSE) -> 8 | G61: Baa1 | H61: =VLOOKUP(G61,'Ordinal Ratings'!I$8:J$26,2,FALSE) -> 8 | J61: 1 | L61: A++ | M61: =VLOOKUP(L61,'Ordinal Ratings'!E$8:F$17,2,FALSE) -> 1 | O61: 0.75 | Q61: 232000
A62: 15 | B62: Walmart Inc. | D62: AA | E62: =VLOOKUP(D62,'Ordinal Ratings'!A$8:B$30,2,FALSE) -> 3 | G62: Aa2 | H62: =VLOOKUP(G62,'Ordinal Ratings'!I$8:J$26,2,FALSE) -> 3 | J62: 1 | L62: A++ | M62: =VLOOKUP(L62,'Ordinal Ratings'!E$8:F$17,2,FALSE) -> 1 | O62: 0.7 | Q62: 280000
A63: 16 | B63: Waste Management | D63: A- | E63: =VLOOKUP(D63,'Ordinal Ratings'!A$8:B$30,2,FALSE) -> 7 | G63: Baa1 | H63: =VLOOKUP(G63,'Ordinal Ratings'!I$8:J$26,2,FALSE) -> 8 | J63: 1 | L63: A | M63: =VLOOKUP(L63,'Ordinal Ratings'!E$8:F$17,2,FALSE) -> 3 | O63: 0.75 | Q63: 42100
B65: Average | D65: =VLOOKUP(E65,'Ordinal Ratings'!$B$8:$C$28,2,FALSE) -> A- | E65: =ROUND(AVERAGE(E48:E63),0) -> 7 | G65: =VLOOKUP(H65,'Ordinal Ratings'!$J$8:$K$28,2,FALSE) -> A3 | H65: =ROUND(AVERAGE(H48:H63),0) -> 7 | J65: =AVERAGE(J48:J63) -> 1 | L65: =VLOOKUP(M65,'Ordinal Ratings'!$F$8:$G$17,2,FALSE) -> A+ | M65: =ROUND(AVERAGE(M48:M63),0) -> 2 | O65: =AVERAGE(O48:O63) -> 0.728125 | Q65: =AVERAGE(Q48:Q63) -> 89118.75
A69: (a) | B69: www.standardandpoors.com (retrieved Mar. 25, 2019).
A70: (b) | B70: www.moodys.com (retrieved Mar. 25, 2019).
A71: (c) | B71: The Value Line Investment Survey (Jan. 4, Jan. 18, Jan. 25, Feb. 22, Mar. 15 & Mar. 22, 2019).

Sheet Tables
E4: Value Line
B5: Credit Rating | E5: Safety | F5: Financial
B6: S&P | C6: Moody's | E6: Rank | F6: Strength | G6: Beta
A7: Utility Group | B7: ='Proxy Group Risk Measures'!D32 -> BBB+ | C7: ='Proxy Group Risk Measures'!G32 -> Baa2 | E7: ='Proxy Group Risk Measures'!J32 -> 2.238095238 | F7: ='Proxy Group Risk Measures'!L32 -> B++ | G7: ='Proxy Group Risk Measures'!O32 -> 0.6285714286
A8: Avista | B8: ='Proxy Group Risk Measures'!D$12 -> BBB | C8: ='Proxy Group Risk Measures'!G$12 -> Baa2 | E8: ='Proxy Group Risk Measures'!J$12 -> 2 | F8: ='Proxy Group Risk Measures'!L$12 -> A | G8: ='Proxy Group Risk Measures'!O$12 -> 0.65
E12: Value Line
B13: Credit Rating | E13: Safety | F13: Financial
B14: S&P | C14: Moody's | E14: Rank | F14: Strength | G14: Beta
A15: Non-Utility Group | B15: ='Proxy Group Risk Measures'!D65 -> A- | C15: ='Proxy Group Risk Measures'!G65 -> A3 | E15: ='Proxy Group Risk Measures'!J65 -> 1 | F15: ='Proxy Group Risk Measures'!L65 -> A+ | G15: ='Proxy Group Risk Measures'!O65 -> 0.728125
A16: Utility Group | B16: =B7 -> BBB+ | C16: =C7 -> Baa2 | E16: =E7 -> 2.238095238 | F16: =F7 -> B++ | G16: =G7 -> 0.6285714286
A17: Avista | B17: ='Proxy Group Risk Measures'!D$12 -> BBB | C17: ='Proxy Group Risk Measures'!G$12 -> Baa2 | E17: ='Proxy Group Risk Measures'!J$12 -> 2 | F17: ='Proxy Group Risk Measures'!L$12 -> A | G17: ='Proxy Group Risk Measures'!O$12 -> 0.65

Sheet Table 1 - Fig. 1
C4: From Exh. AMM-4 | E4: Graph Data
B5: =B4+1 -> 1 | C5: ='4'!F7 -> 0.1000462226 | E5: 1 | F5: 0.09011380575 | H5: 0.099
B6: =B5+1 -> 2 | C6: ='4'!F8 -> 0.09989121835 | E6: =E5+1 -> 2 | F6: 0.09341124457 | H6: 0.099
B7: 3 | C7: ='4'!F9 -> 0.09341124457 | E7: =E6+1 -> 3 | F7: 0.0978554588 | H7: 0.099
B8: 4 | C8: ='4'!F10 -> 0.09011380575 | E8: 4 | F8: 0.09989121835 | H8: 0.099
B9: 5 | C9: ='4'!H7 -> 0.112394096 | E9: 5 | F9: 0.1000462226 | H9: 0.099
B10: 6 | C10: ='4'!H8 -> 0.0978554588 | E10: 6 | F10: 0.1005 | H10: 0.099
B11: 7 | C11: ='4'!H9 -> 0.1089491684 | E11: 7 | F11: 0.1019047619 | H11: 0.099
B12: 8 | C12: ='4'!H10 -> 0.1022888264 | E12: 8 | F12: 0.10221088 | H12: 0.099
B13: 9 | C13: ='4'!F12 -> 0.1019047619 | E13: 9 | F13: 0.1022888264 | H13: 0.099
B14: 10 | C14: ='4'!H12 -> 0.1005 | E14: 10 | F14: 0.1058019757 | H14: 0.099
B15: 11 | C15: ='4'!F14 -> 0.1111904762 | E15: 11 | F15: 0.1066756494 | H15: 0.099
B16: 12 | C16: ='4'!H14 -> 0.1105 | E16: 12 | F16: 0.10779296 | H16: 0.099
B17: 13 | C17: ='4'!G17 -> 0.10221088 | E17: 13 | F17: 0.1089491684 | H17: 0.099
B18: 14 | C18: ='4'!G18 -> 0.10779296 | E18: 14 | F18: 0.1105 | H18: 0.099
B19: 15 | C19: ='4'!F20 -> 0.1066756494 | E19: 15 | F19: 0.1111904762 | H19: 0.099
B20: 16 | C20: ='4'!H20 -> 0.1058019757 | E20: 16 | F20: 0.112394096 | H20: 0.099
A32: DCF | D32: Average | F32: Midpoint
B33: Value Line | D33: ='4'!F7 -> 0.1000462226 | E33: 5 | F33: ='4'!H7 -> 0.112394096 | G33: 16
B34: IBES | D34: ='4'!F8 -> 0.09989121835 | E34: 4 | F34: ='4'!H8 -> 0.0978554588 | G34: 3
B35: Zacks | D35: ='4'!F9 -> 0.09341124457 | E35: 2 | F35: ='4'!H9 -> 0.1089491684 | G35: 13
B36: Internal br + sv | D36: ='4'!F10 -> 0.09011380575 | E36: 1 | F36: ='4'!H10 -> 0.1022888264 | G36: 9
B37: Internal br + sv | D37: 0.09134261539 | F37: 0.1073883344
A38: CAPM | D38: ='4'!F12 -> 0.1019047619 | E38: 7 | F38: ='4'!H12 -> 0.1005 | G38: 6
B39: Projected Bond Yield | D39: 0.1065529167 | E39: 28 | F39: 0.106435
A40: Empirical CAPM | D40: ='4'!F14 -> 0.1111904762 | E40: 15 | F40: ='4'!H14 -> 0.1105 | G40: 14
B41: Projected Bond Yield | D41: 0.1116209375 | E41: 35 | F41: 0.11196375 | G41: 36
A42: Utility Risk Premium
B43: Current Bond Yields | D43: 10.2% 7
B44: Projected Bond Yields | D44: 10.8% 12
A46: Expected Earnings | D46: ='4'!F20 -> 0.1066756494 | E46: 11 | F46: ='4'!H20 -> 0.1058019757 | G46: 10
A48: Cost of Equity Recommendation
B49: Cost of Equity Range | D49: 0.098 | E49: -- | F49: 0.108
A51: Flotation Cost Adjustment | D51: 0.001
A53: Recommended ROE Range | D53: =D49+D51 -> 0.099 | E53: -- | F53: =F49+D51 -> 0.109
A56: Note: Footnotes correspond to rank order in the subsequent figure.

Sheet Fig. 2

Sheet 4
A1: ='Exhibit List'!C2 -> ROE ANALYSIS | J1: ='Exhibit List'!B2 -> Exh. AMM-4
J2: Page 1 of 1
A3: ='Exhibit List'!D2 -> SUMMARY OF RESULTS
B6: DCF | F6: Average | H6: Midpoint
C7: Value Line | F7: ='6 (3)'!E32 -> 0.1000462226 | H7: ='6 (3)'!E33 -> 0.112394096
C8: IBES | F8: ='6 (3)'!G32 -> 0.09989121835 | H8: ='6 (3)'!G33 -> 0.0978554588
C9: Zacks | F9: ='6 (3)'!I32 -> 0.09341124457 | H9: ='6 (3)'!I33 -> 0.1089491684
C10: Internal br + sv | F10: ='6 (3)'!L32 -> 0.09011380575 | H10: ='6 (3)'!L33 -> 0.1022888264
B12: CAPM | F12: ='8'!N32 -> 0.1019047619 | H12: ='8'!N33 -> 0.1005
B14: Empirical CAPM | F14: ='9'!Q32 -> 0.1111904762 | H14: ='9'!Q33 -> 0.1105
B16: Utility Risk Premium
C17: Current Bond Yield | G17: ='10 (1)'!G22 -> 0.10221088
C18: Projected Bond Yields | G18: ='10 (2)'!G22 -> 0.10779296
B20: Expected Earnings | F20: ='11'!I32 -> 0.1066756494 | H20: ='11'!I33 -> 0.1058019757
C24: Cost of Equity Range | F24: 0.098 | G24: -- | H24: 0.108
C26: Flotation Cost Adjustment
D27: Dividend Yield | G27: ='6 (1)'!H32 -> 0.03478937069
D28: Flotation Cost Percentage | G28: =ROUND('13'!L62,2) -> 0.03
E29: Adjustment | G29: =G27*G28 -> 0.001043681121
C32: Recommended ROE Range | F32: =F24+G29 -> 0.09904368112 | G32: -- | H32: =H24+G29 -> 0.1090436811
N37: UTILITY | T37: NON-UTILITY
N38: Growth Rate | O38: Average | Q38: Midpoint | T38: Growth Rate | U38: Average | W38: Midpoint
N39: Value Line | O39: =F7 -> 0.1000462226 | Q39: =H7 -> 0.112394096 | T39: Value Line | U39: ='12 (3)'!E27 -> 0.1030187738 | W39: ='12 (3)'!E28 -> 0.112913408
N40: IBES | O40: =F8 -> 0.09989121835 | Q40: =H8 -> 0.0978554588 | T40: IBES | U40: ='12 (3)'!G27 -> 0.09851765923 | W40: ='12 (3)'!G28 -> 0.1021681187
N41: Zacks | O41: =F9 -> 0.09341124457 | Q41: =H9 -> 0.1089491684 | T41: Zacks | U41: ='12 (3)'!I27 -> 0.09490765967 | W41: ='12 (3)'!I28 -> 0.09676440757
N42: br + sv | O42: =F10 -> 0.09011380575 | Q42: =H10 -> 0.1022888264

Sheet 4 (1)
A1: ='Exhibit List'!C3 -> CAPITAL STRUCTURE | N1: ='Exhibit List'!B3 -> Exh. AMM-5
N2: Page 1 of 3
A3: ='Exhibit List'!D3 -> UTILITY GROUP
D6: At Fiscal Year-End 2018 (a) | J6: Value Line Projected (b) | Q6: At Fiscal Year-End 2018
H8: Common | N8: Common | Q8: Long-term | S8: Common
B9: Company | D9: Debt | F9: Preferred | H9: Equity | J9: Debt | L9: Other | N9: Equity | Q9: Debt | R9: Preferred | S9: Stock | T9: Total
A10: =A9+1 -> 1 | B10: =VLOOKUP('Utility Group'!$B3,vldatabase,2,FALSE) -> Algonquin Pwr & Util | D10: =Q10/T10 -> 0.4733826606 | F10: =R10/T10 -> 0.07404587404 | H10: =S10/T10 -> 0.4525714654 | J10: =VLOOKUP('Utility Group'!$B3,vldatabase,13,FALSE) -> n/a | L10: =IF(J10="n/a","n/a",1-J10-N10) -> n/a | N10: =VLOOKUP('Utility Group'!$B3,vldatabase,15,FALSE) -> n/a | Q10: =VLOOKUP('Utility Group'!$B3,capitalization,5,FALSE) -> 3323.747 | R10: =VLOOKUP('Utility Group'!$B3,capitalization,6,FALSE) -> 519.896 | S10: =VLOOKUP('Utility Group'!$B3,capitalization,7,FALSE) -> 3177.626 | T10: =SUM(Q10:S10) -> 7021.269
A11: =A10+1 -> 2 | B11: =VLOOKUP('Utility Group'!$B4,vldatabase,2,FALSE) -> Ameren Corp. | D11: =Q11/T11 -> 0.5205403405 | F11: =R11/T11 -> 0.008758943992 | H11: =S11/T11 -> 0.4707007155 | J11: =VLOOKUP('Utility Group'!$B4,vldatabase,13,FALSE) -> 0.5 | L11: =IF(J11="n/a","n/a",1-J11-N11) -> 0.005 | N11: =VLOOKUP('Utility Group'!$B4,vldatabase,15,FALSE) -> 0.495 | Q11: =VLOOKUP('Utility Group'!$B4,capitalization,5,FALSE) -> 8439 | R11: =VLOOKUP('Utility Group'!$B4,capitalization,6,FALSE) -> 142 | S11: =VLOOKUP('Utility Group'!$B4,capitalization,7,FALSE) -> 7631 | T11: =SUM(Q11:S11) -> 16212
A12: 3 | B12: =VLOOKUP('Utility Group'!$B5,vldatabase,2,FALSE) -> Avangrid, Inc. | D12: 0.2722419088 | F12: 0.01412709662 | H12: 0.7136309946 | J12: =VLOOKUP('Utility Group'!$B5,vldatabase,13,FALSE) -> 0.385 | L12: 0 | N12: =VLOOKUP('Utility Group'!$B5,vldatabase,15,FALSE) -> 0.615 | Q12: =VLOOKUP('Utility Group'!$B5,capitalization,5,FALSE) -> 5762 | R12: =VLOOKUP('Utility Group'!$B5,capitalization,6,FALSE) -> 299 | S12: =VLOOKUP('Utility Group'!$B5,capitalization,7,FALSE) -> 15104 | T12: 21165
A13: 4 | B13: =VLOOKUP('Utility Group'!$B6,vldatabase,2,FALSE) -> Avista Corp. | D13: 0.5122523554 | F13: 0.0002268216459 | H13: 0.4875208229 | J13: =VLOOKUP('Utility Group'!$B6,vldatabase,13,FALSE) -> 0.505 | L13: 0 | N13: =VLOOKUP('Utility Group'!$B6,vldatabase,15,FALSE) -> 0.495 | Q13: =VLOOKUP('Utility Group'!$B6,capitalization,5,FALSE) -> 1863.174 | R13: =VLOOKUP('Utility Group'!$B6,capitalization,6,FALSE) -> 0.825 | S13: =VLOOKUP('Utility Group'!$B6,capitalization,7,FALSE) -> 1773.22 | T13: 3637.219
A14: 5 | B14: =VLOOKUP('Utility Group'!$B7,vldatabase,2,FALSE) -> Black Hills Corp. | D14: 0.563801952 | F14: 0.02018210904 | H14: 0.416015939 | J14: =VLOOKUP('Utility Group'!$B7,vldatabase,13,FALSE) -> 0.495 | L14: 0 | N14: =VLOOKUP('Utility Group'!$B7,vldatabase,15,FALSE) -> 0.505 | Q14: =VLOOKUP('Utility Group'!$B7,capitalization,5,FALSE) -> 2956.578 | R14: =VLOOKUP('Utility Group'!$B7,capitalization,6,FALSE) -> 105.835 | S14: =VLOOKUP('Utility Group'!$B7,capitalization,7,FALSE) -> 2181.588 | T14: 5244.001
A15: 6 | B15: =VLOOKUP('Utility Group'!$B8,vldatabase,2,FALSE) -> CenterPoint Energy | D15: 0.5314571462 | F15: 0 | H15: 0.4685428538 | J15: =VLOOKUP('Utility Group'!$B8,vldatabase,13,FALSE) -> 0.48 | L15: 0.035 | N15: =VLOOKUP('Utility Group'!$B8,vldatabase,15,FALSE) -> 0.485 | Q15: =VLOOKUP('Utility Group'!$B8,capitalization,5,FALSE) -> 9140 | R15: =VLOOKUP('Utility Group'!$B8,capitalization,6,FALSE) -> 0 | S15: =VLOOKUP('Utility Group'!$B8,capitalization,7,FALSE) -> 8058 | T15: 17198
A16: 7 | B16: =VLOOKUP('Utility Group'!$B9,vldatabase,2,FALSE) -> CMS Energy Corp. | D16: 0.7078583186 | F16: 0.002255684936 | H16: 0.2898859965 | J16: =VLOOKUP('Utility Group'!$B9,vldatabase,13,FALSE) -> 0.635 | L16: 0 | N16: =VLOOKUP('Utility Group'!$B9,vldatabase,15,FALSE) -> 0.365 | Q16: =VLOOKUP('Utility Group'!$B9,capitalization,5,FALSE) -> 11611 | R16: =VLOOKUP('Utility Group'!$B9,capitalization,6,FALSE) -> 37 | S16: =VLOOKUP('Utility Group'!$B9,capitalization,7,FALSE) -> 4755 | T16: 16403
A17: 8 | B17: =VLOOKUP('Utility Group'!$B10,vldatabase,2,FALSE) -> Dominion Energy | D17: 0.576 | F17: 0.03732692308 | H17: 0.3866730769 | J17: =VLOOKUP('Utility Group'!$B10,vldatabase,13,FALSE) -> 0.59 | L17: 5.551115123e-17 | N17: =VLOOKUP('Utility Group'!$B10,vldatabase,15,FALSE) -> 0.41 | Q17: =VLOOKUP('Utility Group'!$B10,capitalization,5,FALSE) -> 29952 | R17: =VLOOKUP('Utility Group'!$B10,capitalization,6,FALSE) -> 1941 | S17: =VLOOKUP('Utility Group'!$B10,capitalization,7,FALSE) -> 20107 | T17: 52000
A18: 9 | B18: =VLOOKUP('Utility Group'!$B11,vldatabase,2,FALSE) -> DTE Energy Co. | D18: 0.5598767967 | F18: 0.01971252567 | H18: 0.4204106776 | J18: =VLOOKUP('Utility Group'!$B11,vldatabase,13,FALSE) -> 0.535 | L18: -5.551115123e-17 | N18: =VLOOKUP('Utility Group'!$B11,vldatabase,15,FALSE) -> 0.465 | Q18: =VLOOKUP('Utility Group'!$B11,capitalization,5,FALSE) -> 13633 | R18: =VLOOKUP('Utility Group'!$B11,capitalization,6,FALSE) -> 480 | S18: =VLOOKUP('Utility Group'!$B11,capitalization,7,FALSE) -> 10237 | T18: 24350
A19: 10 | B19: =VLOOKUP('Utility Group'!$B12,vldatabase,2,FALSE) -> Edison International | D19: 0.5376237986 | F19: 0.08014472097 | H19: 0.3822314805 | J19: =VLOOKUP('Utility Group'!$B12,vldatabase,13,FALSE) -> 0.47 | L19: 0.07 | N19: =VLOOKUP('Utility Group'!$B12,vldatabase,15,FALSE) -> 0.46 | Q19: =VLOOKUP('Utility Group'!$B12,capitalization,5,FALSE) -> 14711 | R19: =VLOOKUP('Utility Group'!$B12,capitalization,6,FALSE) -> 2193 | S19: =VLOOKUP('Utility Group'!$B12,capitalization,7,FALSE) -> 10459 | T19: 27363
A20: 11 | B20: =VLOOKUP('Utility Group'!$B13,vldatabase,2,FALSE) -> El Paso Electric Co. | D20: 0.10607128 | F20: 0 | H20: 0.89392872 | J20: =VLOOKUP('Utility Group'!$B13,vldatabase,13,FALSE) -> 0.555 | L20: -5.551115123e-17 | N20: =VLOOKUP('Utility Group'!$B13,vldatabase,15,FALSE) -> 0.445 | Q20: =VLOOKUP('Utility Group'!$B13,capitalization,5,FALSE) -> 1385.219 | R20: =VLOOKUP('Utility Group'!$B13,capitalization,6,FALSE) -> 0 | S20: =VLOOKUP('Utility Group'!$B13,capitalization,7,FALSE) -> 11674.103 | T20: 13059.322
A21: 12 | B21: =VLOOKUP('Utility Group'!$B14,vldatabase,2,FALSE) -> Emera Inc. | D21: 0.6483655181 | F21: 0.001724935841 | H21: 0.349909546 | J21: =VLOOKUP('Utility Group'!$B14,vldatabase,13,FALSE) -> 0.6072918955 | L21: 0.03114430046 | N21: =VLOOKUP('Utility Group'!$B14,vldatabase,15,FALSE) -> 0.3615638041 | Q21: =VLOOKUP('Utility Group'!$B14,capitalization,5,FALSE) -> 15411 | R21: =VLOOKUP('Utility Group'!$B14,capitalization,6,FALSE) -> 41 | S21: =VLOOKUP('Utility Group'!$B14,capitalization,7,FALSE) -> 8317 | T21: 23769
A22: 13 | B22: =VLOOKUP('Utility Group'!$B15,vldatabase,2,FALSE) -> Entergy Corp. | D22: 0.6464062517 | F22: 0 | H22: 0.3535937483 | J22: =VLOOKUP('Utility Group'!$B15,vldatabase,13,FALSE) -> 0.595 | L22: 0.01 | N22: =VLOOKUP('Utility Group'!$B15,vldatabase,15,FALSE) -> 0.395 | Q22: =VLOOKUP('Utility Group'!$B15,capitalization,5,FALSE) -> 16168.312 | R22: =VLOOKUP('Utility Group'!$B15,capitalization,6,FALSE) -> 0 | S22: =VLOOKUP('Utility Group'!$B15,capitalization,7,FALSE) -> 8844.305 | T22: 25012.617
A23: 14 | B23: =VLOOKUP('Utility Group'!$B16,vldatabase,2,FALSE) -> Exelon Corp. | D23: 0.5171839869 | F23: 0.03366718253 | H23: 0.4491488306 | J23: =VLOOKUP('Utility Group'!$B16,vldatabase,13,FALSE) -> 0.49 | L23: 0 | N23: =VLOOKUP('Utility Group'!$B16,vldatabase,15,FALSE) -> 0.51 | Q23: =VLOOKUP('Utility Group'!$B16,capitalization,5,FALSE) -> 35424 | R23: =VLOOKUP('Utility Group'!$B16,capitalization,6,FALSE) -> 2306 | S23: =VLOOKUP('Utility Group'!$B16,capitalization,7,FALSE) -> 30764 | T23: 68494
A24: 15 | B24: =VLOOKUP('Utility Group'!$B17,vldatabase,2,FALSE) -> FirstEnergy Corp. | D24: 0.7281793522 | F24: 0.002832296154 | H24: 0.2689883517 | J24: =VLOOKUP('Utility Group'!$B17,vldatabase,13,FALSE) -> 0.665 | L24: -5.551115123e-17 | N24: =VLOOKUP('Utility Group'!$B17,vldatabase,15,FALSE) -> 0.335 | Q24: =VLOOKUP('Utility Group'!$B17,capitalization,5,FALSE) -> 18254 | R24: =VLOOKUP('Utility Group'!$B17,capitalization,6,FALSE) -> 71 | S24: =VLOOKUP('Utility Group'!$B17,capitalization,7,FALSE) -> 6743 | T24: 25068
A25: 16 | B25: =VLOOKUP('Utility Group'!$B18,vldatabase,2,FALSE) -> Hawaiian Elec. | D25: 0.4650365507 | F25: 0 | H25: 0.5349634493 | J25: =VLOOKUP('Utility Group'!$B18,vldatabase,13,FALSE) -> 0.44 | L25: 0.01 | N25: =VLOOKUP('Utility Group'!$B18,vldatabase,15,FALSE) -> 0.55 | Q25: =VLOOKUP('Utility Group'!$B18,capitalization,5,FALSE) -> 1879.641 | R25: =VLOOKUP('Utility Group'!$B18,capitalization,6,FALSE) -> 0 | S25: =VLOOKUP('Utility Group'!$B18,capitalization,7,FALSE) -> 2162.28 | T25: 4041.921
A26: 17 | B26: =VLOOKUP('Utility Group'!$B19,vldatabase,2,FALSE) -> IDACORP, Inc. | D26: 0.4357546278 | F26: 0.001294590152 | H26: 0.5629507821 | J26: =VLOOKUP('Utility Group'!$B19,vldatabase,13,FALSE) -> 0.43 | L26: 1.110223025e-16 | N26: =VLOOKUP('Utility Group'!$B19,vldatabase,15,FALSE) -> 0.57 | Q26: =VLOOKUP('Utility Group'!$B19,capitalization,5,FALSE) -> 1834.788 | R26: =VLOOKUP('Utility Group'!$B19,capitalization,6,FALSE) -> 5.451 | S26: =VLOOKUP('Utility Group'!$B19,capitalization,7,FALSE) -> 2370.36 | T26: 4210.599
A27: 18 | B27: =VLOOKUP('Utility Group'!$B20,vldatabase,2,FALSE) -> NorthWestern Corp. | D27: 0.5200469481 | F27: 0 | H27: 0.4799530519 | J27: =VLOOKUP('Utility Group'!$B20,vldatabase,13,FALSE) -> 0.465 | L27: -1.110223025e-16 | N27: =VLOOKUP('Utility Group'!$B20,vldatabase,15,FALSE) -> 0.535 | Q27: =VLOOKUP('Utility Group'!$B20,capitalization,5,FALSE) -> 2104.643 | R27: =VLOOKUP('Utility Group'!$B20,capitalization,6,FALSE) -> 0 | S27: =VLOOKUP('Utility Group'!$B20,capitalization,7,FALSE) -> 1942.382 | T27: 4047.025
A28: 19 | B28: =VLOOKUP('Utility Group'!$B21,vldatabase,2,FALSE) -> OGE Energy Corp. | D28: 0.4400027964 | F28: 0 | H28: 0.5599972036 | J28: =VLOOKUP('Utility Group'!$B21,vldatabase,13,FALSE) -> 0.455 | L28: -1.110223025e-16 | N28: =VLOOKUP('Utility Group'!$B21,vldatabase,15,FALSE) -> 0.545 | Q28: =VLOOKUP('Utility Group'!$B21,capitalization,5,FALSE) -> 3146.9 | R28: =VLOOKUP('Utility Group'!$B21,capitalization,6,FALSE) -> 0 | S28: =VLOOKUP('Utility Group'!$B21,capitalization,7,FALSE) -> 4005.1 | T28: 7152
A29: 20 | B29: =VLOOKUP('Utility Group'!$B22,vldatabase,2,FALSE) -> Otter Tail Corp. | D29: 0.4474279342 | F29: 0 | H29: 0.5525720658 | J29: =VLOOKUP('Utility Group'!$B22,vldatabase,13,FALSE) -> 0.505 | L29: 0 | N29: =VLOOKUP('Utility Group'!$B22,vldatabase,15,FALSE) -> 0.495 | Q29: =VLOOKUP('Utility Group'!$B22,capitalization,5,FALSE) -> 590.174 | R29: =VLOOKUP('Utility Group'!$B22,capitalization,6,FALSE) -> 0 | S29: =VLOOKUP('Utility Group'!$B22,capitalization,7,FALSE) -> 728.863 | T29: 1319.037
A30: 21 | B30: =VLOOKUP('Utility Group'!$B23,vldatabase,2,FALSE) -> PNM Resources | D30: 0.6037280352 | F30: 0.01451871649 | H30: 0.3817532483 | J30: =VLOOKUP('Utility Group'!$B23,vldatabase,13,FALSE) -> 0.58 | L30: 5.551115123e-17 | N30: =VLOOKUP('Utility Group'!$B23,vldatabase,15,FALSE) -> 0.42 | Q30: =VLOOKUP('Utility Group'!$B23,capitalization,5,FALSE) -> 2670.111 | R30: =VLOOKUP('Utility Group'!$B23,capitalization,6,FALSE) -> 64.212 | S30: =VLOOKUP('Utility Group'!$B23,capitalization,7,FALSE) -> 1688.382 | T30: 4422.705
A31: 22 | B31: =VLOOKUP('Utility Group'!$B24,vldatabase,2,FALSE) -> Sempra Energy | D31: 0.5474466284 | F31: 0.04960970563 | H31: 0.4029436659 | J31: =VLOOKUP('Utility Group'!$B24,vldatabase,13,FALSE) -> 0.555 | L31: -5.551115123e-17 | N31: =VLOOKUP('Utility Group'!$B24,vldatabase,15,FALSE) -> 0.445 | Q31: =VLOOKUP('Utility Group'!$B24,capitalization,5,FALSE) -> 23284 | R31: =VLOOKUP('Utility Group'!$B24,capitalization,6,FALSE) -> 2110 | S31: =VLOOKUP('Utility Group'!$B24,capitalization,7,FALSE) -> 17138 | T31: 42532
Q32: =VLOOKUP('Utility Group'!$B34,capitalization,3,FALSE) ->  | R32: =VLOOKUP('Utility Group'!$B34,capitalization,4,FALSE) ->  | S32: =VLOOKUP('Utility Group'!$B34,capitalization,5,FALSE) ->  | T32: =SUM(Q32:S32) -> 
B33: Average | D33: =AVERAGE(D10:D31) -> 0.5163947812 | F33: =AVERAGE(F10:F31) -> 0.01638309667 | H33: =AVERAGE(H10:H31) -> 0.4672221221 | J33: =AVERAGE(J10:J31) -> 0.5208234236 | L33: =AVERAGE(L10:L31) -> 0.007673538117 | N33: =AVERAGE(N10:N31) -> 0.4715030383
A36: (a) | B36: Company Form 10-K and Annual Reports.
A37: (b) | B37: ='Utility Group Criteria'!B51 -> The Value Line Investment Survey (Jan. 25, Feb. 15 & Mar. 15, 2019)
H39: =MIN(H10:H31) -> 0.2689883517 | N39: =MIN(N10:N31) -> 0.335
H40: =MAX(H10:H31) -> 0.89392872 | N40: =MAX(N10:N31) -> 0.615

Sheet 4 (2-3)
A1: ='Exhibit List'!C4 -> CAPITAL STRUCTURE | F1: ='Exhibit List'!B4 -> Exh. AMM-5 | G1: =A1 -> CAPITAL STRUCTURE | L1: =F1 -> Exh. AMM-5
F2: Page 2 of 3 | L2: Page 3 of 3
A3: ='Exhibit List'!D4 -> ELECTRIC GROUP OPERATING SUBSIDIARIES | G3: =A3 -> ELECTRIC GROUP OPERATING SUBSIDIARIES
C6: At Year-End 2017/2018 (a) | I6: At Year-End 2017/2018 (a)
A8: Operating Company | C8: Debt | D8: Preferred | E8: Common Equity | G8: Operating Company | I8: Debt | J8: Preferred | K8: Common Equity
A9: ALGONQUIN PWR. & UTIL. | G9: EXELON CORP.
A10: Empire District Electric | C10: ='Capital Structure - Op. Cos.'!K11 -> 0.4850529588 | D10: ='Capital Structure - Op. Cos.'!L11 -> 0 | E10: ='Capital Structure - Op. Cos.'!M11 -> 0.5149470412 | G10: Delmarva Power and Light | I10: ='Capital Structure - Op. Cos.'!K47 -> 0.4975024975 | J10: ='Capital Structure - Op. Cos.'!L47 -> 0 | K10: ='Capital Structure - Op. Cos.'!M47 -> 0.5024975025
A11: Liberty Utilities (Granite State Elec.) | C11: ='Capital Structure - Op. Cos.'!K12 -> 0.2447808253 | D11: ='Capital Structure - Op. Cos.'!L12 -> 0 | E11: ='Capital Structure - Op. Cos.'!M12 -> 0.7552191747 | G11: Baltimore Gas & Electric Co. | I11: ='Capital Structure - Op. Cos.'!K48 -> 0.4616372392 | J11: ='Capital Structure - Op. Cos.'!L48 -> 0 | K11: ='Capital Structure - Op. Cos.'!M48 -> 0.5383627608
A12: AMEREN CORP. | G12: Commonweath Edison Co. | I12: ='Capital Structure - Op. Cos.'!K49 -> 0.4415195117 | J12: ='Capital Structure - Op. Cos.'!L49 -> 0 | K12: ='Capital Structure - Op. Cos.'!M49 -> 0.5584804883
A13: Ameren Illinois Co. | C13: ='Capital Structure - Op. Cos.'!K14 -> 0.4661951909 | D13: ='Capital Structure - Op. Cos.'!L14 -> 0.008769448373 | E13: ='Capital Structure - Op. Cos.'!M14 -> 0.5250353607 | G13: PECO Energy Co. | I13: ='Capital Structure - Op. Cos.'!K50 -> 0.4466975666 | J13: ='Capital Structure - Op. Cos.'!L50 -> 0 | K13: ='Capital Structure - Op. Cos.'!M50 -> 0.5533024334
A14: Union Electric Co. | C14: ='Capital Structure - Op. Cos.'!K15 -> 0.4859608606 | D14: ='Capital Structure - Op. Cos.'!L15 -> 0.009724079251 | E14: ='Capital Structure - Op. Cos.'!M15 -> 0.5043150602 | G14: Potomac Electric Power Co. | I14: ='Capital Structure - Op. Cos.'!K51 -> 0.4980765708 | J14: ='Capital Structure - Op. Cos.'!L51 -> 0 | K14: ='Capital Structure - Op. Cos.'!M51 -> 0.5019234292
A15: AVANGRID | G15: Atlantic City Electric Co. | I15: ='Capital Structure - Op. Cos.'!K52 -> 0.5133967156 | J15: ='Capital Structure - Op. Cos.'!L52 -> 0 | K15: ='Capital Structure - Op. Cos.'!M52 -> 0.4866032844
A16: Central Maine Pwr | C16: ='Capital Structure - Op. Cos.'!K17 -> 0.3617774508 | D16: ='Capital Structure - Op. Cos.'!L17 -> 0.0001987381737 | E16: ='Capital Structure - Op. Cos.'!M17 -> 0.6380238111 | G16: FIRSTENERGY CORP.
A17: NY State E&G | C17: ='Capital Structure - Op. Cos.'!K18 -> 0.4670084495 | D17: ='Capital Structure - Op. Cos.'!L18 -> 0 | E17: ='Capital Structure - Op. Cos.'!M18 -> 0.5329915505 | G17: The Allegheny Generating Company | I17: ='Capital Structure - Op. Cos.'!K54 -> 0.3971686877 | J17: ='Capital Structure - Op. Cos.'!L54 -> 0 | K17: ='Capital Structure - Op. Cos.'!M54 -> 0.6028313123
A18: Rochester G&E | C18: ='Capital Structure - Op. Cos.'!K19 -> 0.5036605966 | D18: ='Capital Structure - Op. Cos.'!L19 -> 0 | E18: ='Capital Structure - Op. Cos.'!M19 -> 0.4963394034 | G18: Cleveland Elec. Illuminating Co. | I18: ='Capital Structure - Op. Cos.'!K55 -> 0.4473040912 | J18: ='Capital Structure - Op. Cos.'!L55 -> 0 | K18: ='Capital Structure - Op. Cos.'!M55 -> 0.5526959088
A19: United Illuminating | C19: ='Capital Structure - Op. Cos.'!K20 -> 0.4400165464 | D19: ='Capital Structure - Op. Cos.'!L20 -> 0 | E19: ='Capital Structure - Op. Cos.'!M20 -> 0.5599834536 | G19: Jersey Central Power & Light Co. | I19: ='Capital Structure - Op. Cos.'!K56 -> 0.3470202708 | J19: ='Capital Structure - Op. Cos.'!L56 -> 0 | K19: ='Capital Structure - Op. Cos.'!M56 -> 0.6529797292
A20: BLACK HILLS CORP. | G20: Metropolitan Edison Co. | I20: ='Capital Structure - Op. Cos.'!K57 -> 0.4767302088 | J20: ='Capital Structure - Op. Cos.'!L57 -> 0 | K20: ='Capital Structure - Op. Cos.'!M57 -> 0.5232697912
A21: Black Hills Power | C21: ='Capital Structure - Op. Cos.'!K22 -> 0.4650828571 | D21: ='Capital Structure - Op. Cos.'!L22 -> 0 | E21: ='Capital Structure - Op. Cos.'!M22 -> 0.5349171429 | G21: Monongahela Power Co. | I21: ='Capital Structure - Op. Cos.'!K58 -> 0.5084636763 | J21: ='Capital Structure - Op. Cos.'!L58 -> 0 | K21: ='Capital Structure - Op. Cos.'!M58 -> 0.4915363237
A22: Cheyenne Light Fuel & Power | C22: ='Capital Structure - Op. Cos.'!K23 -> 0.4599271225 | D22: ='Capital Structure - Op. Cos.'!L23 -> 0 | E22: ='Capital Structure - Op. Cos.'!M23 -> 0.5400728775 | G22: Ohio Edison Co. | I22: ='Capital Structure - Op. Cos.'!K59 -> 0.3508823547 | J22: ='Capital Structure - Op. Cos.'!L59 -> 0 | K22: ='Capital Structure - Op. Cos.'!M59 -> 0.6491176453
A23: Black Hills/Colorado Electric Utility Co | C23: ='Capital Structure - Op. Cos.'!K24 -> 0.4430812727 | D23: ='Capital Structure - Op. Cos.'!L24 -> 0 | E23: ='Capital Structure - Op. Cos.'!M24 -> 0.5569187273 | G23: Pennsylvania Electric Co. | I23: ='Capital Structure - Op. Cos.'!K60 -> 0.4793513491 | J23: ='Capital Structure - Op. Cos.'!L60 -> 0 | K23: ='Capital Structure - Op. Cos.'!M60 -> 0.5206486509
A24: CENTERPOINT ENERGY | G24: The Potomac Edison Co. | I24: ='Capital Structure - Op. Cos.'!K61 -> 0.4841001226 | J24: ='Capital Structure - Op. Cos.'!L61 -> 0 | K24: ='Capital Structure - Op. Cos.'!M61 -> 0.5158998774
A25: CenterPoint Energy Houston Elect. | C25: ='Capital Structure - Op. Cos.'!K26 -> 0.5502263961 | D25: ='Capital Structure - Op. Cos.'!L26 -> 0 | E25: ='Capital Structure - Op. Cos.'!M26 -> 0.4497736039 | G25: Toledo Edison Co. | I25: ='Capital Structure - Op. Cos.'!K62 -> 0.3996324132 | J25: ='Capital Structure - Op. Cos.'!L62 -> 0 | K25: ='Capital Structure - Op. Cos.'!M62 -> 0.6003675868
A26: CMS ENERGY | G26: West Penn Power Co. | I26: ='Capital Structure - Op. Cos.'!K63 -> 0.471778465 | J26: ='Capital Structure - Op. Cos.'!L63 -> 0 | K26: ='Capital Structure - Op. Cos.'!M63 -> 0.528221535
A27: Consumers Energy Co. | C27: ='Capital Structure - Op. Cos.'!K28 -> 0.4966174438 | D27: ='Capital Structure - Op. Cos.'!L28 -> 0.002691496326 | E27: ='Capital Structure - Op. Cos.'!M28 -> 0.5006910599 | G27: HAWAIIAN ELEC.
A28: DOMINION ENERGY | G28: Hawaiian Electric Co. | I28: ='Capital Structure - Op. Cos.'!K65 -> 0.4159811841 | J28: ='Capital Structure - Op. Cos.'!L65 -> 0.01005442814 | K28: ='Capital Structure - Op. Cos.'!M65 -> 0.5739643877
A29: Virginia Electric & Power | C29: ='Capital Structure - Op. Cos.'!K30 -> 0.4721660329 | D29: ='Capital Structure - Op. Cos.'!L30 -> 0 | E29: ='Capital Structure - Op. Cos.'!M30 -> 0.5278339671 | G29: IDACORP
A30: DTE ENERGY CO. | G30: Idaho Power Co. | I30: ='Capital Structure - Op. Cos.'!K67 -> 0.4553697272 | J30: ='Capital Structure - Op. Cos.'!L67 -> 0 | K30: ='Capital Structure - Op. Cos.'!M67 -> 0.5446302728
A31: DTE Electric Co. | C31: ='Capital Structure - Op. Cos.'!K32 -> 0.4908559436 | D31: ='Capital Structure - Op. Cos.'!L32 -> 0 | E31: ='Capital Structure - Op. Cos.'!M32 -> 0.5091440564 | G31: NORTHWESTERN CORP.
A32: EDISON INTERNATIONAL | G32: NorthWestern Corporation | I32: ='Capital Structure - Op. Cos.'!K69 -> 0.5010708573 | J32: ='Capital Structure - Op. Cos.'!L69 -> 0 | K32: ='Capital Structure - Op. Cos.'!M69 -> 0.4989291427
A33: Southern California Edison Co. | C33: ='Capital Structure - Op. Cos.'!K34 -> 0.4847884587 | D33: ='Capital Structure - Op. Cos.'!L34 -> 0.08390641351 | E33: ='Capital Structure - Op. Cos.'!M34 -> 0.4313051278 | G33: OGE ENERGY CORP.
A34: EL PASO ELECTRIC | G34: Oklahoma G&E | I34: ='Capital Structure - Op. Cos.'!K71 -> 0.4663709201 | J34: ='Capital Structure - Op. Cos.'!L71 -> 0 | K34: ='Capital Structure - Op. Cos.'!M71 -> 0.5336290799
A35: El Paso Electric Co. | C35: ='Capital Structure - Op. Cos.'!K36 -> 0.494596268 | D35: ='Capital Structure - Op. Cos.'!L36 -> 0 | E35: ='Capital Structure - Op. Cos.'!M36 -> 0.505403732 | G35: OTTER TAIL CORP.
A36: EMERA INC. | G36: Otter Tail Power Co. | I36: ='Capital Structure - Op. Cos.'!K73 -> 0.4265768983 | J36: ='Capital Structure - Op. Cos.'!L73 -> 0 | K36: ='Capital Structure - Op. Cos.'!M73 -> 0.5734231017
A37: Emera Maine | C37: ='Capital Structure - Op. Cos.'!K38 -> 0.3818524187 | D37: ='Capital Structure - Op. Cos.'!L38 -> 0.0004287705479 | E37: ='Capital Structure - Op. Cos.'!M38 -> 0.6177188108 | G37: PNM RESOURCES
A38: Tampa Electric Co. | C38: ='Capital Structure - Op. Cos.'!K39 -> 0.4259709591 | D38: ='Capital Structure - Op. Cos.'!L39 -> 0 | E38: ='Capital Structure - Op. Cos.'!M39 -> 0.5740290409 | G38: Public Service Company of New Mexico | I38: ='Capital Structure - Op. Cos.'!K75 -> 0.5424269504 | J38: ='Capital Structure - Op. Cos.'!L75 -> 0.003775235776 | K38: ='Capital Structure - Op. Cos.'!M75 -> 0.4537978138
A39: ENTERGY CORP. | G39: Texas-New Mexico Power Co. | I39: ='Capital Structure - Op. Cos.'!K76 -> 0.460505918 | J39: ='Capital Structure - Op. Cos.'!L76 -> 0 | K39: ='Capital Structure - Op. Cos.'!M76 -> 0.539494082
A40: Entergy Arkansas Inc. | C40: ='Capital Structure - Op. Cos.'!K41 -> 0.5195411011 | D40: ='Capital Structure - Op. Cos.'!L41 -> 0 | E40: ='Capital Structure - Op. Cos.'!M41 -> 0.4804588989 | G40: SEMPRA ENERGY
A41: Entergy Louisiana LLC | C41: ='Capital Structure - Op. Cos.'!K42 -> 0.5355209815 | D41: ='Capital Structure - Op. Cos.'!L42 -> 0 | E41: ='Capital Structure - Op. Cos.'!M42 -> 0.4644790185 | G41: San Diego Gas & Electric | I41: ='Capital Structure - Op. Cos.'!K78 -> 0.5042159883 | J41: ='Capital Structure - Op. Cos.'!L78 -> 0 | K41: ='Capital Structure - Op. Cos.'!M78 -> 0.4957840117
A42: Entergy Mississippi Inc. | C42: ='Capital Structure - Op. Cos.'!K43 -> 0.5064026561 | D42: ='Capital Structure - Op. Cos.'!L43 -> 0 | E42: ='Capital Structure - Op. Cos.'!M43 -> 0.4935973439
A43: Entergy New Orleans Inc. | C43: ='Capital Structure - Op. Cos.'!K44 -> 0.5133366219 | D43: ='Capital Structure - Op. Cos.'!L44 -> 0 | E43: ='Capital Structure - Op. Cos.'!M44 -> 0.4866633781 | G43: Minimum | I43: =MIN(C10:C44,I10:I42) -> 0.2447808253 | J43: =MIN(D10:D44,J10:J42) -> 0 | K43: =MIN(E10:E44,K10:K42) -> 0.4313051278
A44: Entergy Texas Inc. | C44: ='Capital Structure - Op. Cos.'!K45 -> 0.5155532593 | D44: ='Capital Structure - Op. Cos.'!L45 -> 0 | E44: ='Capital Structure - Op. Cos.'!M45 -> 0.4844467407 | G44: Maximum | I44: =MAX(C10:C44,I10:I42) -> 0.5502263961 | J44: =MAX(D10:D44,J10:J42) -> 0.08390641351 | K44: =MAX(E10:E44,K10:K42) -> 0.7552191747
G45: Simple Average | I45: =AVERAGE(C10:C44,I10:I42) -> 0.4625781845 | J45: =AVERAGE(D10:D44,J10:J42) -> 0.002490596044 | K45: =AVERAGE(E10:E44,K10:K42) -> 0.5349312194
G46: Weighted Average | I46: ='Capital Structure - Op. Cos.'!N80 -> 0.4772395609 | J46: ='Capital Structure - Op. Cos.'!O80 -> 0.01018353613 | K46: ='Capital Structure - Op. Cos.'!P80 -> 0.5125769029
G48: (a) Data from most recent Company 10-K (year-end 2018) and FERC Form 1 reports (year-end 2017).

Sheet 6 (1)
A1: ='Exhibit List'!C5 -> DCF MODEL - UTILITY GROUP | I1: ='Exhibit List'!B5 -> Exh. AMM-6
I2: Page 1 of 3
A3: ='Exhibit List'!D5 -> DIVIDEND YIELD
D6: (a) | F6: (b)
B8: Company | D8: Price | F8: Dividends | H8: Yield
A9: =A8+1 -> 1 | B9: =VLOOKUP('Utility Group'!$B3,vldatabase,2,FALSE) -> Algonquin Pwr & Util | D9: =HLOOKUP('Utility Group'!$B3,stockprice,33,FALSE) -> 11.08333333 | F9: =VLOOKUP('Utility Group'!$B3,vldatabase,4,FALSE) -> 0.512 | H9: =F9/D9 -> 0.04619548872
A10: =A9+1 -> 2 | B10: =VLOOKUP('Utility Group'!$B4,vldatabase,2,FALSE) -> Ameren Corp. | D10: =HLOOKUP('Utility Group'!$B4,stockprice,33,FALSE) -> 71.37966667 | F10: =VLOOKUP('Utility Group'!$B4,vldatabase,4,FALSE) -> 1.96 | H10: =F10/D10 -> 0.02745880013
A11: 3 | B11: =VLOOKUP('Utility Group'!$B5,vldatabase,2,FALSE) -> Avangrid, Inc. | D11: =HLOOKUP('Utility Group'!$B5,stockprice,33,FALSE) -> 49.31166667 | F11: =VLOOKUP('Utility Group'!$B5,vldatabase,4,FALSE) -> 1.82 | H11: 0.03690810153
A12: 4 | B12: =VLOOKUP('Utility Group'!$B6,vldatabase,2,FALSE) -> Avista Corp. | D12: =HLOOKUP('Utility Group'!$B6,stockprice,33,FALSE) -> 40.92033333 | F12: =VLOOKUP('Utility Group'!$B6,vldatabase,4,FALSE) -> 1.55 | H12: 0.03787847932
A13: 5 | B13: =VLOOKUP('Utility Group'!$B7,vldatabase,2,FALSE) -> Black Hills Corp. | D13: =HLOOKUP('Utility Group'!$B7,stockprice,33,FALSE) -> 71.45766667 | F13: =VLOOKUP('Utility Group'!$B7,vldatabase,4,FALSE) -> 2.05 | H13: 0.02868831429
A14: 6 | B14: =VLOOKUP('Utility Group'!$B8,vldatabase,2,FALSE) -> CenterPoint Energy | D14: =HLOOKUP('Utility Group'!$B8,stockprice,33,FALSE) -> 30.63466667 | F14: =VLOOKUP('Utility Group'!$B8,vldatabase,4,FALSE) -> 1.16 | H14: 0.03786559889
A15: 7 | B15: =VLOOKUP('Utility Group'!$B9,vldatabase,2,FALSE) -> CMS Energy Corp. | D15: =HLOOKUP('Utility Group'!$B9,stockprice,33,FALSE) -> 54.07766667 | F15: =VLOOKUP('Utility Group'!$B9,vldatabase,4,FALSE) -> 1.56 | H15: 0.02884739849
A16: 8 | B16: =VLOOKUP('Utility Group'!$B10,vldatabase,2,FALSE) -> Dominion Energy | D16: =HLOOKUP('Utility Group'!$B10,stockprice,33,FALSE) -> 74.852 | F16: =VLOOKUP('Utility Group'!$B10,vldatabase,4,FALSE) -> 3.67 | H16: 0.04903008604
A17: 9 | B17: =VLOOKUP('Utility Group'!$B11,vldatabase,2,FALSE) -> DTE Energy Co. | D17: =HLOOKUP('Utility Group'!$B11,stockprice,33,FALSE) -> 122.279 | F17: =VLOOKUP('Utility Group'!$B11,vldatabase,4,FALSE) -> 3.9 | H17: 0.03189427457
A18: 10 | B18: =VLOOKUP('Utility Group'!$B12,vldatabase,2,FALSE) -> Edison International | D18: =HLOOKUP('Utility Group'!$B12,stockprice,33,FALSE) -> 61.94133333 | F18: =VLOOKUP('Utility Group'!$B12,vldatabase,4,FALSE) -> 2.46 | H18: 0.03971499914
A19: 11 | B19: =VLOOKUP('Utility Group'!$B13,vldatabase,2,FALSE) -> El Paso Electric Co. | D19: =HLOOKUP('Utility Group'!$B13,stockprice,33,FALSE) -> 56.08266667 | F19: =VLOOKUP('Utility Group'!$B13,vldatabase,4,FALSE) -> 1.52 | H19: 0.02710284818
A20: 12 | B20: =VLOOKUP('Utility Group'!$B14,vldatabase,2,FALSE) -> Emera Inc. | D20: =HLOOKUP('Utility Group'!$B14,stockprice,33,FALSE) -> 47.47266673 | F20: =VLOOKUP('Utility Group'!$B14,vldatabase,4,FALSE) -> 2.35 | H20: 0.0495021696
A21: 13 | B21: =VLOOKUP('Utility Group'!$B15,vldatabase,2,FALSE) -> Entergy Corp. | D21: =HLOOKUP('Utility Group'!$B15,stockprice,33,FALSE) -> 92.59733333 | F21: =VLOOKUP('Utility Group'!$B15,vldatabase,4,FALSE) -> 3.68 | H21: 0.03974196521
A22: 14 | B22: =VLOOKUP('Utility Group'!$B16,vldatabase,2,FALSE) -> Exelon Corp. | D22: =HLOOKUP('Utility Group'!$B16,stockprice,33,FALSE) -> 48.71966667 | F22: =VLOOKUP('Utility Group'!$B16,vldatabase,4,FALSE) -> 1.45 | H22: 0.02976210839
A23: 15 | B23: =VLOOKUP('Utility Group'!$B17,vldatabase,2,FALSE) -> FirstEnergy Corp. | D23: =HLOOKUP('Utility Group'!$B17,stockprice,33,FALSE) -> 40.54166667 | F23: =VLOOKUP('Utility Group'!$B17,vldatabase,4,FALSE) -> 1.54 | H23: 0.03798561151
A24: 16 | B24: =VLOOKUP('Utility Group'!$B18,vldatabase,2,FALSE) -> Hawaiian Elec. | D24: =HLOOKUP('Utility Group'!$B18,stockprice,33,FALSE) -> 38.92933333 | F24: =VLOOKUP('Utility Group'!$B18,vldatabase,4,FALSE) -> 1.28 | H24: 0.03288009042
A25: 17 | B25: =VLOOKUP('Utility Group'!$B19,vldatabase,2,FALSE) -> IDACORP, Inc. | D25: =HLOOKUP('Utility Group'!$B19,stockprice,33,FALSE) -> 98.95333333 | F25: =VLOOKUP('Utility Group'!$B19,vldatabase,4,FALSE) -> 2.56 | H25: 0.02587078084
A26: 18 | B26: =VLOOKUP('Utility Group'!$B20,vldatabase,2,FALSE) -> NorthWestern Corp. | D26: =HLOOKUP('Utility Group'!$B20,stockprice,33,FALSE) -> 68.301 | F26: =VLOOKUP('Utility Group'!$B20,vldatabase,4,FALSE) -> 2.3 | H26: 0.03367447036
A27: 19 | B27: =VLOOKUP('Utility Group'!$B21,vldatabase,2,FALSE) -> OGE Energy Corp. | D27: =HLOOKUP('Utility Group'!$B21,stockprice,33,FALSE) -> 42.27466667 | F27: =VLOOKUP('Utility Group'!$B21,vldatabase,4,FALSE) -> 1.58 | H27: 0.03737462941
A28: 20 | B28: =VLOOKUP('Utility Group'!$B22,vldatabase,2,FALSE) -> Otter Tail Corp. | D28: =HLOOKUP('Utility Group'!$B22,stockprice,33,FALSE) -> 50.033 | F28: =VLOOKUP('Utility Group'!$B22,vldatabase,4,FALSE) -> 1.42 | H28: 0.02838126836
A29: 21 | B29: =VLOOKUP('Utility Group'!$B23,vldatabase,2,FALSE) -> PNM Resources | D29: =HLOOKUP('Utility Group'!$B23,stockprice,33,FALSE) -> 44.95633333 | F29: =VLOOKUP('Utility Group'!$B23,vldatabase,4,FALSE) -> 1.16 | H29: 0.02580281607
A30: 22 | B30: =VLOOKUP('Utility Group'!$B24,vldatabase,2,FALSE) -> Sempra Energy | D30: =HLOOKUP('Utility Group'!$B24,stockprice,33,FALSE) -> 120.4053333 | F30: =VLOOKUP('Utility Group'!$B24,vldatabase,4,FALSE) -> 3.95 | H30: 0.03280585578
B32: Average | H32: =AVERAGE(H9:H30) -> 0.03478937069
A35: (a) | B35: ='Stock Price (Utility)'!B37 -> Average of closing prices for 30 trading days ended Mar. 22, 2019.
A36: (b) | B36: ='Electric Utility Data'!B50 -> The Value Line Investment Survey, Summary & Index (Mar. 22, 2019).
H37: =MIN(H9:H30) -> 0.02580281607
H38: =MAX(H9:H30) -> 0.0495021696

Sheet 6 (2)
A1: ='Exhibit List'!C6 -> DCF MODEL - UTILITY GROUP | L1: ='Exhibit List'!B6 -> Exh. AMM-6
L2: Page 2 of 3
A3: ='Exhibit List'!D6 -> GROWTH RATES
E5: (a) | G5: (b) | I5: (c) | K5: (d)
D7: Earnings Growth | K7: br+sv
B8: Company | E8: Value Line | G8: IBES | I8: Zacks | K8: Growth
A9: =A8+1 -> 1 | B9: =VLOOKUP('Utility Group'!$B3,vldatabase,2,FALSE) -> Algonquin Pwr & Util | E9: =VLOOKUP('Utility Group'!$B3,vldatabase,19,FALSE) -> n/a | G9: =VLOOKUP('Utility Group'!$B3,vldatabase,30,FALSE) -> 0.082 | I9: =VLOOKUP('Utility Group'!$B3,vldatabase,31,FALSE) -> 0.1038 | K9: ='7'!Q8 -> n/a
A10: =A9+1 -> 2 | B10: =VLOOKUP('Utility Group'!$B4,vldatabase,2,FALSE) -> Ameren Corp. | E10: =VLOOKUP('Utility Group'!$B4,vldatabase,19,FALSE) -> 0.065 | G10: =VLOOKUP('Utility Group'!$B4,vldatabase,30,FALSE) -> 0.077 | I10: =VLOOKUP('Utility Group'!$B4,vldatabase,31,FALSE) -> 0.0679 | K10: ='7'!Q9 -> 0.0476786094
A11: 3 | B11: =VLOOKUP('Utility Group'!$B5,vldatabase,2,FALSE) -> Avangrid, Inc. | E11: =VLOOKUP('Utility Group'!$B5,vldatabase,19,FALSE) -> 0.12 | G11: =VLOOKUP('Utility Group'!$B5,vldatabase,30,FALSE) -> 0.092 | I11: =VLOOKUP('Utility Group'!$B5,vldatabase,31,FALSE) -> 0.0768 | K11: ='7'!Q10 -> 0.02046203253
A12: 4 | B12: =VLOOKUP('Utility Group'!$B6,vldatabase,2,FALSE) -> Avista Corp. | E12: =VLOOKUP('Utility Group'!$B6,vldatabase,19,FALSE) -> 0.055 | G12: =VLOOKUP('Utility Group'!$B6,vldatabase,30,FALSE) -> 0.0565 | I12: =VLOOKUP('Utility Group'!$B6,vldatabase,31,FALSE) -> 0.032 | K12: ='7'!Q11 -> 0.04007828275
A13: 5 | B13: =VLOOKUP('Utility Group'!$B7,vldatabase,2,FALSE) -> Black Hills Corp. | E13: =VLOOKUP('Utility Group'!$B7,vldatabase,19,FALSE) -> 0.065 | G13: =VLOOKUP('Utility Group'!$B7,vldatabase,30,FALSE) -> 0.0363 | I13: =VLOOKUP('Utility Group'!$B7,vldatabase,31,FALSE) -> 0.0477 | K13: ='7'!Q12 -> 0.06073741093
A14: 6 | B14: =VLOOKUP('Utility Group'!$B8,vldatabase,2,FALSE) -> CenterPoint Energy | E14: =VLOOKUP('Utility Group'!$B8,vldatabase,19,FALSE) -> 0.125 | G14: =VLOOKUP('Utility Group'!$B8,vldatabase,30,FALSE) -> 0.055 | I14: =VLOOKUP('Utility Group'!$B8,vldatabase,31,FALSE) -> 0.0525 | K14: ='7'!Q13 -> 0.04816197338
A15: 7 | B15: =VLOOKUP('Utility Group'!$B9,vldatabase,2,FALSE) -> CMS Energy Corp. | E15: =VLOOKUP('Utility Group'!$B9,vldatabase,19,FALSE) -> 0.07 | G15: =VLOOKUP('Utility Group'!$B9,vldatabase,30,FALSE) -> 0.0689 | I15: =VLOOKUP('Utility Group'!$B9,vldatabase,31,FALSE) -> 0.0635 | K15: ='7'!Q14 -> 0.06399893141
A16: 8 | B16: =VLOOKUP('Utility Group'!$B10,vldatabase,2,FALSE) -> Dominion Energy | E16: =VLOOKUP('Utility Group'!$B10,vldatabase,19,FALSE) -> 0.065 | G16: =VLOOKUP('Utility Group'!$B10,vldatabase,30,FALSE) -> 0.0553 | I16: =VLOOKUP('Utility Group'!$B10,vldatabase,31,FALSE) -> 0.0544 | K16: ='7'!Q15 -> 0.07472427256
A17: 9 | B17: =VLOOKUP('Utility Group'!$B11,vldatabase,2,FALSE) -> DTE Energy Co. | E17: =VLOOKUP('Utility Group'!$B11,vldatabase,19,FALSE) -> 0.05 | G17: =VLOOKUP('Utility Group'!$B11,vldatabase,30,FALSE) -> 0.0416 | I17: =VLOOKUP('Utility Group'!$B11,vldatabase,31,FALSE) -> 0.06 | K17: ='7'!Q16 -> 0.05015467122
A18: 10 | B18: =VLOOKUP('Utility Group'!$B12,vldatabase,2,FALSE) -> Edison International | E18: =VLOOKUP('Utility Group'!$B12,vldatabase,19,FALSE) -> 0.045 | G18: =VLOOKUP('Utility Group'!$B12,vldatabase,30,FALSE) -> 0.0495 | I18: =VLOOKUP('Utility Group'!$B12,vldatabase,31,FALSE) -> 0.0564 | K18: ='7'!Q17 -> 0.06332799758
A19: 11 | B19: =VLOOKUP('Utility Group'!$B13,vldatabase,2,FALSE) -> El Paso Electric Co. | E19: =VLOOKUP('Utility Group'!$B13,vldatabase,19,FALSE) -> 0.03 | G19: =VLOOKUP('Utility Group'!$B13,vldatabase,30,FALSE) -> 0.051 | I19: =VLOOKUP('Utility Group'!$B13,vldatabase,31,FALSE) -> 0.0408 | K19: ='7'!Q18 -> 0.02934547816
A20: 12 | B20: =VLOOKUP('Utility Group'!$B14,vldatabase,2,FALSE) -> Emera Inc. | E20: =VLOOKUP('Utility Group'!$B14,vldatabase,19,FALSE) -> 0.08 | G20: =VLOOKUP('Utility Group'!$B14,vldatabase,30,FALSE) -> 0.0483 | I20: =VLOOKUP('Utility Group'!$B14,vldatabase,31,FALSE) -> n/a | K20: ='7'!Q19 -> 0.04985968361
A21: 13 | B21: =VLOOKUP('Utility Group'!$B15,vldatabase,2,FALSE) -> Entergy Corp. | E21: =VLOOKUP('Utility Group'!$B15,vldatabase,19,FALSE) -> 0 | G21: =VLOOKUP('Utility Group'!$B15,vldatabase,30,FALSE) -> -0.0393 | I21: =VLOOKUP('Utility Group'!$B15,vldatabase,31,FALSE) -> n/a | K21: ='7'!Q20 -> 0.04664399102
A22: 14 | B22: =VLOOKUP('Utility Group'!$B16,vldatabase,2,FALSE) -> Exelon Corp. | E22: =VLOOKUP('Utility Group'!$B16,vldatabase,19,FALSE) -> 0.075 | G22: =VLOOKUP('Utility Group'!$B16,vldatabase,30,FALSE) -> 0.0317 | I22: =VLOOKUP('Utility Group'!$B16,vldatabase,31,FALSE) -> 0.0423 | K22: ='7'!Q21 -> 0.05466408986
A23: 15 | B23: =VLOOKUP('Utility Group'!$B17,vldatabase,2,FALSE) -> FirstEnergy Corp. | E23: =VLOOKUP('Utility Group'!$B17,vldatabase,19,FALSE) -> 0.065 | G23: =VLOOKUP('Utility Group'!$B17,vldatabase,30,FALSE) -> -0.0661 | I23: =VLOOKUP('Utility Group'!$B17,vldatabase,31,FALSE) -> n/a | K23: ='7'!Q22 -> 0.1000985093
A24: 16 | B24: =VLOOKUP('Utility Group'!$B18,vldatabase,2,FALSE) -> Hawaiian Elec. | E24: =VLOOKUP('Utility Group'!$B18,vldatabase,19,FALSE) -> 0.035 | G24: =VLOOKUP('Utility Group'!$B18,vldatabase,30,FALSE) -> 0.078 | I24: =VLOOKUP('Utility Group'!$B18,vldatabase,31,FALSE) -> 0.0621 | K24: ='7'!Q23 -> 0.03945819051
A25: 17 | B25: =VLOOKUP('Utility Group'!$B19,vldatabase,2,FALSE) -> IDACORP, Inc. | E25: =VLOOKUP('Utility Group'!$B19,vldatabase,19,FALSE) -> 0.045 | G25: =VLOOKUP('Utility Group'!$B19,vldatabase,30,FALSE) -> 0.026 | I25: =VLOOKUP('Utility Group'!$B19,vldatabase,31,FALSE) -> 0.0388 | K25: ='7'!Q24 -> 0.04062275114
A26: 18 | B26: =VLOOKUP('Utility Group'!$B20,vldatabase,2,FALSE) -> NorthWestern Corp. | E26: =VLOOKUP('Utility Group'!$B20,vldatabase,19,FALSE) -> 0.025 | G26: =VLOOKUP('Utility Group'!$B20,vldatabase,30,FALSE) -> 0.0274 | I26: =VLOOKUP('Utility Group'!$B20,vldatabase,31,FALSE) -> 0.0245 | K26: ='7'!Q25 -> 0.03099430744
A27: 19 | B27: =VLOOKUP('Utility Group'!$B21,vldatabase,2,FALSE) -> OGE Energy Corp. | E27: =VLOOKUP('Utility Group'!$B21,vldatabase,19,FALSE) -> 0.065 | G27: =VLOOKUP('Utility Group'!$B21,vldatabase,30,FALSE) -> -0.028 | I27: =VLOOKUP('Utility Group'!$B21,vldatabase,31,FALSE) -> 0.048 | K27: ='7'!Q26 -> 0.03458926849
A28: 20 | B28: =VLOOKUP('Utility Group'!$B22,vldatabase,2,FALSE) -> Otter Tail Corp. | E28: =VLOOKUP('Utility Group'!$B22,vldatabase,19,FALSE) -> 0.05 | G28: =VLOOKUP('Utility Group'!$B22,vldatabase,30,FALSE) -> 0.09 | I28: =VLOOKUP('Utility Group'!$B22,vldatabase,31,FALSE) -> 0.07 | K28: ='7'!Q27 -> 0.04835162001
A29: 21 | B29: =VLOOKUP('Utility Group'!$B23,vldatabase,2,FALSE) -> PNM Resources | E29: =VLOOKUP('Utility Group'!$B23,vldatabase,19,FALSE) -> 0.075 | G29: =VLOOKUP('Utility Group'!$B23,vldatabase,30,FALSE) -> 0.041 | I29: =VLOOKUP('Utility Group'!$B23,vldatabase,31,FALSE) -> 0.0479 | K29: ='7'!Q28 -> 0.04797199468
A30: 22 | B30: =VLOOKUP('Utility Group'!$B24,vldatabase,2,FALSE) -> Sempra Energy | E30: =VLOOKUP('Utility Group'!$B24,vldatabase,19,FALSE) -> 0.095 | G30: =VLOOKUP('Utility Group'!$B24,vldatabase,30,FALSE) -> 0.08 | I30: =VLOOKUP('Utility Group'!$B24,vldatabase,31,FALSE) -> 0.0833 | K30: ='7'!Q29 -> 0.0894410092
A34: (a) | B34: ='Proxy Group Risk Measures'!B38 -> The Value Line Investment Survey (Jan. 25, Feb. 15 & Mar. 15, 2019)
A35: (b) | B35: ='Electric Utility Data'!B55 -> www.finance.yahoo.com (retreived Mar. 26, 2019).
A36: (c) | B36: ='Electric Utility Data'!B56 -> www.zacks.com (retrieved Mar. 26, 2019).
A37: (d) | B37: ="See " & 'Exhibit List'!B8 &"." -> See Exh. AMM-7.

Sheet 6 (3)
A1: ='Exhibit List'!C7 -> DCF MODEL - UTILITY GROUP | M1: ='Exhibit List'!B7 -> Exh. AMM-6
M2: Page 3 of 3
A3: ='Exhibit List'!D7 -> DCF COST OF EQUITY ESTIMATES
E5: (a) | G5: (a) | I5: (a) | L5: (a)
D7: Earnings Growth | L7: br+sv
B8: Company | E8: Value Line | G8: IBES | I8: Zacks | L8: Growth
A9: =A8+1 -> 1 | B9: =VLOOKUP('Utility Group'!$B3,vldatabase,2,FALSE) -> Algonquin Pwr & Util | E9: =IF('6 (2)'!E9="n/a","n/a",'6 (1)'!$H9+'6 (2)'!E9) -> n/a | G9: =IF('6 (2)'!G9="n/a","n/a",'6 (1)'!$H9+'6 (2)'!G9) -> 0.1281954887 | I9: =IF('6 (2)'!I9="n/a","n/a",'6 (1)'!$H9+'6 (2)'!I9) -> 0.1499954887 | L9: =IF('6 (2)'!K9="n/a","n/a",'6 (1)'!$H9+'6 (2)'!K9) -> n/a | P9: =IF(E9="n/a","n/a",IF(E9<$E$43,"nmf",IF(E9>$E$44,"nmf",E9))) -> n/a | Q9: =IF(G9="n/a","n/a",IF(G9<$E$43,"nmf",IF(G9>$E$44,"nmf",G9))) -> 0.1281954887 | R9: =IF(I9="n/a","n/a",IF(I9<$E$43,"nmf",IF(I9>$E$44,"nmf",I9))) -> 0.1499954887 | T9: =IF(L9="n/a","n/a",IF(L9<$E$43,"nmf",IF(L9>$E$44,"nmf",L9))) -> n/a
A10: =A9+1 -> 2 | B10: =VLOOKUP('Utility Group'!$B4,vldatabase,2,FALSE) -> Ameren Corp. | E10: =IF('6 (2)'!E10="n/a","n/a",'6 (1)'!$H10+'6 (2)'!E10) -> 0.09245880013 | G10: =IF('6 (2)'!G10="n/a","n/a",'6 (1)'!$H10+'6 (2)'!G10) -> 0.1044588001 | I10: =IF('6 (2)'!I10="n/a","n/a",'6 (1)'!$H10+'6 (2)'!I10) -> 0.09535880013 | L10: =IF('6 (2)'!K10="n/a","n/a",'6 (1)'!$H10+'6 (2)'!K10) -> 0.07513740952 | P10: =IF(E10="n/a","n/a",IF(E10<$E$43,"nmf",IF(E10>$E$44,"nmf",E10))) -> 0.09245880013 | Q10: =IF(G10="n/a","n/a",IF(G10<$E$43,"nmf",IF(G10>$E$44,"nmf",G10))) -> 0.1044588001 | R10: =IF(I10="n/a","n/a",IF(I10<$E$43,"nmf",IF(I10>$E$44,"nmf",I10))) -> 0.09535880013 | T10: =IF(L10="n/a","n/a",IF(L10<$E$43,"nmf",IF(L10>$E$44,"nmf",L10))) -> 0.07513740952
A11: 3 | B11: =VLOOKUP('Utility Group'!$B5,vldatabase,2,FALSE) -> Avangrid, Inc. | E11: =IF('6 (2)'!E11="n/a","n/a",'6 (1)'!$H11+'6 (2)'!E11) -> 0.1569081015 | G11: =IF('6 (2)'!G11="n/a","n/a",'6 (1)'!$H11+'6 (2)'!G11) -> 0.1289081015 | I11: =IF('6 (2)'!I11="n/a","n/a",'6 (1)'!$H11+'6 (2)'!I11) -> 0.1137081015 | L11: =IF('6 (2)'!K11="n/a","n/a",'6 (1)'!$H11+'6 (2)'!K11) -> 0.05737013406 | P11: 0.1569081015 | Q11: 0.1289081015 | R11: 0.1137081015 | T11: nmf
A12: 4 | B12: =VLOOKUP('Utility Group'!$B6,vldatabase,2,FALSE) -> Avista Corp. | E12: =IF('6 (2)'!E12="n/a","n/a",'6 (1)'!$H12+'6 (2)'!E12) -> 0.09287847932 | G12: =IF('6 (2)'!G12="n/a","n/a",'6 (1)'!$H12+'6 (2)'!G12) -> 0.09437847932 | I12: =IF('6 (2)'!I12="n/a","n/a",'6 (1)'!$H12+'6 (2)'!I12) -> 0.06987847932 | L12: =IF('6 (2)'!K12="n/a","n/a",'6 (1)'!$H12+'6 (2)'!K12) -> 0.07795676207 | P12: 0.09287847932 | Q12: 0.09437847932 | R12: 0.06987847932 | T12: 0.07795676207
A13: 5 | B13: =VLOOKUP('Utility Group'!$B7,vldatabase,2,FALSE) -> Black Hills Corp. | E13: =IF('6 (2)'!E13="n/a","n/a",'6 (1)'!$H13+'6 (2)'!E13) -> 0.09368831429 | G13: =IF('6 (2)'!G13="n/a","n/a",'6 (1)'!$H13+'6 (2)'!G13) -> 0.06498831429 | I13: =IF('6 (2)'!I13="n/a","n/a",'6 (1)'!$H13+'6 (2)'!I13) -> 0.07638831429 | L13: =IF('6 (2)'!K13="n/a","n/a",'6 (1)'!$H13+'6 (2)'!K13) -> 0.08942572523 | P13: 0.09368831429 | Q13: nmf | R13: 0.07638831429 | T13: 0.08942572523
A14: 6 | B14: =VLOOKUP('Utility Group'!$B8,vldatabase,2,FALSE) -> CenterPoint Energy | E14: =IF('6 (2)'!E14="n/a","n/a",'6 (1)'!$H14+'6 (2)'!E14) -> 0.1628655989 | G14: =IF('6 (2)'!G14="n/a","n/a",'6 (1)'!$H14+'6 (2)'!G14) -> 0.09286559889 | I14: =IF('6 (2)'!I14="n/a","n/a",'6 (1)'!$H14+'6 (2)'!I14) -> 0.09036559889 | L14: =IF('6 (2)'!K14="n/a","n/a",'6 (1)'!$H14+'6 (2)'!K14) -> 0.08602757226 | P14: nmf | Q14: 0.09286559889 | R14: 0.09036559889 | T14: 0.08602757226
A15: 7 | B15: =VLOOKUP('Utility Group'!$B9,vldatabase,2,FALSE) -> CMS Energy Corp. | E15: =IF('6 (2)'!E15="n/a","n/a",'6 (1)'!$H15+'6 (2)'!E15) -> 0.09884739849 | G15: =IF('6 (2)'!G15="n/a","n/a",'6 (1)'!$H15+'6 (2)'!G15) -> 0.09774739849 | I15: =IF('6 (2)'!I15="n/a","n/a",'6 (1)'!$H15+'6 (2)'!I15) -> 0.09234739849 | L15: =IF('6 (2)'!K15="n/a","n/a",'6 (1)'!$H15+'6 (2)'!K15) -> 0.0928463299 | P15: 0.09884739849 | Q15: 0.09774739849 | R15: 0.09234739849 | T15: 0.0928463299
A16: 8 | B16: =VLOOKUP('Utility Group'!$B10,vldatabase,2,FALSE) -> Dominion Energy | E16: =IF('6 (2)'!E16="n/a","n/a",'6 (1)'!$H16+'6 (2)'!E16) -> 0.114030086 | G16: =IF('6 (2)'!G16="n/a","n/a",'6 (1)'!$H16+'6 (2)'!G16) -> 0.104330086 | I16: =IF('6 (2)'!I16="n/a","n/a",'6 (1)'!$H16+'6 (2)'!I16) -> 0.103430086 | L16: =IF('6 (2)'!K16="n/a","n/a",'6 (1)'!$H16+'6 (2)'!K16) -> 0.1237543586 | P16: 0.114030086 | Q16: 0.104330086 | R16: 0.103430086 | T16: 0.1237543586
A17: 9 | B17: =VLOOKUP('Utility Group'!$B11,vldatabase,2,FALSE) -> DTE Energy Co. | E17: =IF('6 (2)'!E17="n/a","n/a",'6 (1)'!$H17+'6 (2)'!E17) -> 0.08189427457 | G17: =IF('6 (2)'!G17="n/a","n/a",'6 (1)'!$H17+'6 (2)'!G17) -> 0.07349427457 | I17: =IF('6 (2)'!I17="n/a","n/a",'6 (1)'!$H17+'6 (2)'!I17) -> 0.09189427457 | L17: =IF('6 (2)'!K17="n/a","n/a",'6 (1)'!$H17+'6 (2)'!K17) -> 0.08204894579 | P17: 0.08189427457 | Q17: 0.07349427457 | R17: 0.09189427457 | T17: 0.08204894579
A18: 10 | B18: =VLOOKUP('Utility Group'!$B12,vldatabase,2,FALSE) -> Edison International | E18: =IF('6 (2)'!E18="n/a","n/a",'6 (1)'!$H18+'6 (2)'!E18) -> 0.08471499914 | G18: =IF('6 (2)'!G18="n/a","n/a",'6 (1)'!$H18+'6 (2)'!G18) -> 0.08921499914 | I18: =IF('6 (2)'!I18="n/a","n/a",'6 (1)'!$H18+'6 (2)'!I18) -> 0.09611499914 | L18: =IF('6 (2)'!K18="n/a","n/a",'6 (1)'!$H18+'6 (2)'!K18) -> 0.1030429967 | P18: 0.08471499914 | Q18: 0.08921499914 | R18: 0.09611499914 | T18: 0.1030429967
A19: 11 | B19: =VLOOKUP('Utility Group'!$B13,vldatabase,2,FALSE) -> El Paso Electric Co. | E19: =IF('6 (2)'!E19="n/a","n/a",'6 (1)'!$H19+'6 (2)'!E19) -> 0.05710284818 | G19: =IF('6 (2)'!G19="n/a","n/a",'6 (1)'!$H19+'6 (2)'!G19) -> 0.07810284818 | I19: =IF('6 (2)'!I19="n/a","n/a",'6 (1)'!$H19+'6 (2)'!I19) -> 0.06790284818 | L19: =IF('6 (2)'!K19="n/a","n/a",'6 (1)'!$H19+'6 (2)'!K19) -> 0.05644832633 | P19: nmf | Q19: 0.07810284818 | R19: 0.06790284818 | T19: nmf
A20: 12 | B20: =VLOOKUP('Utility Group'!$B14,vldatabase,2,FALSE) -> Emera Inc. | E20: =IF('6 (2)'!E20="n/a","n/a",'6 (1)'!$H20+'6 (2)'!E20) -> 0.1295021696 | G20: =IF('6 (2)'!G20="n/a","n/a",'6 (1)'!$H20+'6 (2)'!G20) -> 0.0978021696 | I20: =IF('6 (2)'!I20="n/a","n/a",'6 (1)'!$H20+'6 (2)'!I20) -> n/a | L20: =IF('6 (2)'!K20="n/a","n/a",'6 (1)'!$H20+'6 (2)'!K20) -> 0.09936185321 | P20: 0.1295021696 | Q20: 0.0978021696 | R20: n/a | T20: 0.09936185321
A21: 13 | B21: =VLOOKUP('Utility Group'!$B15,vldatabase,2,FALSE) -> Entergy Corp. | E21: =IF('6 (2)'!E21="n/a","n/a",'6 (1)'!$H21+'6 (2)'!E21) -> 0.03974196521 | G21: =IF('6 (2)'!G21="n/a","n/a",'6 (1)'!$H21+'6 (2)'!G21) -> 0.0004419652114 | I21: =IF('6 (2)'!I21="n/a","n/a",'6 (1)'!$H21+'6 (2)'!I21) -> n/a | L21: =IF('6 (2)'!K21="n/a","n/a",'6 (1)'!$H21+'6 (2)'!K21) -> 0.08638595623 | P21: nmf | Q21: nmf | R21: n/a | T21: 0.08638595623
A22: 14 | B22: =VLOOKUP('Utility Group'!$B16,vldatabase,2,FALSE) -> Exelon Corp. | E22: =IF('6 (2)'!E22="n/a","n/a",'6 (1)'!$H22+'6 (2)'!E22) -> 0.1047621084 | G22: =IF('6 (2)'!G22="n/a","n/a",'6 (1)'!$H22+'6 (2)'!G22) -> 0.06146210839 | I22: =IF('6 (2)'!I22="n/a","n/a",'6 (1)'!$H22+'6 (2)'!I22) -> 0.07206210839 | L22: =IF('6 (2)'!K22="n/a","n/a",'6 (1)'!$H22+'6 (2)'!K22) -> 0.08442619825 | P22: 0.1047621084 | Q22: nmf | R22: 0.07206210839 | T22: 0.08442619825
A23: 15 | B23: =VLOOKUP('Utility Group'!$B17,vldatabase,2,FALSE) -> FirstEnergy Corp. | E23: =IF('6 (2)'!E23="n/a","n/a",'6 (1)'!$H23+'6 (2)'!E23) -> 0.1029856115 | G23: =IF('6 (2)'!G23="n/a","n/a",'6 (1)'!$H23+'6 (2)'!G23) -> -0.02811438849 | I23: =IF('6 (2)'!I23="n/a","n/a",'6 (1)'!$H23+'6 (2)'!I23) -> n/a | L23: =IF('6 (2)'!K23="n/a","n/a",'6 (1)'!$H23+'6 (2)'!K23) -> 0.1380841208 | P23: 0.1029856115 | Q23: nmf | R23: n/a | T23: 0.1380841208
A24: 16 | B24: =VLOOKUP('Utility Group'!$B18,vldatabase,2,FALSE) -> Hawaiian Elec. | E24: =IF('6 (2)'!E24="n/a","n/a",'6 (1)'!$H24+'6 (2)'!E24) -> 0.06788009042 | G24: =IF('6 (2)'!G24="n/a","n/a",'6 (1)'!$H24+'6 (2)'!G24) -> 0.1108800904 | I24: =IF('6 (2)'!I24="n/a","n/a",'6 (1)'!$H24+'6 (2)'!I24) -> 0.09498009042 | L24: =IF('6 (2)'!K24="n/a","n/a",'6 (1)'!$H24+'6 (2)'!K24) -> 0.07233828093 | P24: 0.06788009042 | Q24: 0.1108800904 | R24: 0.09498009042 | T24: 0.07233828093
A25: 17 | B25: =VLOOKUP('Utility Group'!$B19,vldatabase,2,FALSE) -> IDACORP, Inc. | E25: =IF('6 (2)'!E25="n/a","n/a",'6 (1)'!$H25+'6 (2)'!E25) -> 0.07087078084 | G25: =IF('6 (2)'!G25="n/a","n/a",'6 (1)'!$H25+'6 (2)'!G25) -> 0.05187078084 | I25: =IF('6 (2)'!I25="n/a","n/a",'6 (1)'!$H25+'6 (2)'!I25) -> 0.06467078084 | L25: =IF('6 (2)'!K25="n/a","n/a",'6 (1)'!$H25+'6 (2)'!K25) -> 0.06649353198 | P25: 0.07087078084 | Q25: nmf | R25: nmf | T25: 0.06649353198
A26: 18 | B26: =VLOOKUP('Utility Group'!$B20,vldatabase,2,FALSE) -> NorthWestern Corp. | E26: =IF('6 (2)'!E26="n/a","n/a",'6 (1)'!$H26+'6 (2)'!E26) -> 0.05867447036 | G26: =IF('6 (2)'!G26="n/a","n/a",'6 (1)'!$H26+'6 (2)'!G26) -> 0.06107447036 | I26: =IF('6 (2)'!I26="n/a","n/a",'6 (1)'!$H26+'6 (2)'!I26) -> 0.05817447036 | L26: =IF('6 (2)'!K26="n/a","n/a",'6 (1)'!$H26+'6 (2)'!K26) -> 0.0646687778 | P26: nmf | Q26: nmf | R26: nmf | T26: nmf
A27: 19 | B27: =VLOOKUP('Utility Group'!$B21,vldatabase,2,FALSE) -> OGE Energy Corp. | E27: =IF('6 (2)'!E27="n/a","n/a",'6 (1)'!$H27+'6 (2)'!E27) -> 0.1023746294 | G27: =IF('6 (2)'!G27="n/a","n/a",'6 (1)'!$H27+'6 (2)'!G27) -> 0.009374629408 | I27: =IF('6 (2)'!I27="n/a","n/a",'6 (1)'!$H27+'6 (2)'!I27) -> 0.08537462941 | L27: =IF('6 (2)'!K27="n/a","n/a",'6 (1)'!$H27+'6 (2)'!K27) -> 0.0719638979 | P27: 0.1023746294 | Q27: nmf | R27: 0.08537462941 | T27: 0.0719638979
A28: 20 | B28: =VLOOKUP('Utility Group'!$B22,vldatabase,2,FALSE) -> Otter Tail Corp. | E28: =IF('6 (2)'!E28="n/a","n/a",'6 (1)'!$H28+'6 (2)'!E28) -> 0.07838126836 | G28: =IF('6 (2)'!G28="n/a","n/a",'6 (1)'!$H28+'6 (2)'!G28) -> 0.1183812684 | I28: =IF('6 (2)'!I28="n/a","n/a",'6 (1)'!$H28+'6 (2)'!I28) -> 0.09838126836 | L28: =IF('6 (2)'!K28="n/a","n/a",'6 (1)'!$H28+'6 (2)'!K28) -> 0.07673288837 | P28: 0.07838126836 | Q28: 0.1183812684 | R28: 0.09838126836 | T28: 0.07673288837
A29: 21 | B29: =VLOOKUP('Utility Group'!$B23,vldatabase,2,FALSE) -> PNM Resources | E29: =IF('6 (2)'!E29="n/a","n/a",'6 (1)'!$H29+'6 (2)'!E29) -> 0.1008028161 | G29: =IF('6 (2)'!G29="n/a","n/a",'6 (1)'!$H29+'6 (2)'!G29) -> 0.06680281607 | I29: =IF('6 (2)'!I29="n/a","n/a",'6 (1)'!$H29+'6 (2)'!I29) -> 0.07370281607 | L29: =IF('6 (2)'!K29="n/a","n/a",'6 (1)'!$H29+'6 (2)'!K29) -> 0.07377481075 | P29: 0.1008028161 | Q29: 0.06680281607 | R29: 0.07370281607 | T29: 0.07377481075
A30: 22 | B30: =VLOOKUP('Utility Group'!$B24,vldatabase,2,FALSE) -> Sempra Energy | E30: =IF('6 (2)'!E30="n/a","n/a",'6 (1)'!$H30+'6 (2)'!E30) -> 0.1278058558 | G30: =IF('6 (2)'!G30="n/a","n/a",'6 (1)'!$H30+'6 (2)'!G30) -> 0.1128058558 | I30: =IF('6 (2)'!I30="n/a","n/a",'6 (1)'!$H30+'6 (2)'!I30) -> 0.1161058558 | L30: =IF('6 (2)'!K30="n/a","n/a",'6 (1)'!$H30+'6 (2)'!K30) -> 0.122246865 | P30: 0.1278058558 | Q30: 0.1128058558 | R30: 0.1161058558 | T30: 0.122246865
B32: Average (b) | E32: =P34 -> 0.1000462226 | G32: =Q34 -> 0.09989121835 | I32: =R34 -> 0.09341124457 | L32: =T34 -> 0.09011380575 | O32: Max | P32: =MAX(P9:P30) -> 0.1569081015 | Q32: =MAX(Q9:Q30) -> 0.1289081015 | R32: 0.1499954887 | T32: =MAX(T9:T30) -> 0.1380841208
B33: Midpoint (b,c) | E33: =AVERAGE(P32:P33) -> 0.112394096 | G33: =AVERAGE(Q32:Q33) -> 0.0978554588 | I33: =AVERAGE(R32:R33) -> 0.1089491684 | L33: =AVERAGE(T32:T33) -> 0.1022888264 | O33: Min | P33: =MIN(P9:P30) -> 0.06788009042 | Q33: =MIN(Q9:Q30) -> 0.06680281607 | R33: 0.06790284818 | T33: =MIN(T9:T30) -> 0.06649353198
O34: Average | P34: =AVERAGE(P9:P30) -> 0.1000462226 | Q34: =AVERAGE(Q9:Q30) -> 0.09989121835 | R34: 0.09341124457 | T34: =AVERAGE(T9:T30) -> 0.09011380575
A36: (a) | B36: ="Sum of dividend yield (" & M1 & ", p. 1) and respective growth rate (" & M1 & ", p. 2)." -> Sum of dividend yield (Exh. AMM-6, p. 1) and respective growth rate (Exh. AMM-6, p. 2).
A37: (b) | B37: Excludes highlighted figures.
A38: (c) | B38: Average of low and high values.
B43: Min | E43: 0.065
B44: Max | E44: 0.16

Sheet 7
A1: ='Exhibit List'!$C$8 -> DCF MODEL - UTILITY GROUP | Q1: ='Exhibit List'!$B$8 -> Exh. AMM-7 | R1: =A1 -> DCF MODEL - UTILITY GROUP | AH1: =Q1 -> Exh. AMM-7
Q2: Page 1 of 2 | AH2: Page 2 of 2
A3: ='Exhibit List'!$D$8 -> BR+SV GROWTH RATE | R3: =A3 -> BR+SV GROWTH RATE
C5: (a) | D5: (a) | E5: (a) | I5: (b) | J5: (c) | M5: (d) | N5: (e) | T5: (a) | U5: (a) | V5: (f) | X5: (a) | Y5: (a) | Z5: (f) | AA5: (g) | AB5: (a) | AC5: (a) | AE5: (h) | AF5: (a) | AG5: (a) | AH5: (g)
C6: 2022 | I6: Adjustment | M6: "sv" Factor | T6: 2017 | X6: 2022 | AA6: Chg | AB6: 2022 Price | AF6: Common Shares
B7: Company | C7: EPS | D7: DPS | E7: BVPS | G7: b | H7: r | I7: Factor | J7: Adjusted r | K7: br | M7: s | N7: v | O7: sv | Q7: br + sv | S7: Company | T7: Eq Ratio | U7: Tot Cap | V7: Com Eq | X7: Eq Ratio | Y7: Tot Cap | Z7: Com Eq | AA7: Equity | AB7: High | AC7: Low | AD7: Avg. | AE7: M/B | AF7: 2017 | AG7: 2022 | AH7: Growth
A8: =A7+1 -> 1 | B8: =VLOOKUP('Utility Group'!$B3,vldatabase,2,FALSE) -> Algonquin Pwr & Util | C8: =VLOOKUP('Utility Group'!$B3,vldatabase,7,FALSE) -> n/a | D8: =VLOOKUP('Utility Group'!$B3,vldatabase,8,FALSE) -> n/a | E8: =VLOOKUP('Utility Group'!$B3,vldatabase,9,FALSE) -> n/a | G8: =IF(E8="n/a", "n/a",+(C8-D8)/C8) -> n/a | H8: =IF(E8="n/a","n/a",C8/E8) -> n/a | I8: =IF(AA8="n/a","n/a",2*(1+AA8)/(2+AA8)) -> n/a | J8: =IF(H8="n/a","n/a",H8*I8) -> n/a | K8: =IF(G8="n/a","n/a",G8*J8) -> n/a | M8: =IF(AE8="n/a","n/a",AE8*AH8) -> n/a | N8: =IF(AE8="n/a","n/a",1-1/AE8) -> n/a | O8: =IF(M8="n/a","n/a",M8*N8) -> n/a | Q8: =IF(K8="n/a","n/a",K8+O8) -> n/a | R8: =A8 -> 1 | S8: =B8 -> Algonquin Pwr & Util | T8: =VLOOKUP('Utility Group'!$B3,vldatabase,14,FALSE) -> n/a | U8: =VLOOKUP('Utility Group'!$B3,vldatabase,16,FALSE) -> n/a | V8: =IF(U8="n/a","n/a",T8*U8) -> n/a | X8: =VLOOKUP('Utility Group'!$B3,vldatabase,15,FALSE) -> n/a | Y8: =VLOOKUP('Utility Group'!$B3,vldatabase,17,FALSE) -> n/a | Z8: =IF(Y8="n/a","n/a",X8*Y8) -> n/a | AA8: =IF(V8="n/a","n/a",(+Z8/V8)^(1/5)-1) -> n/a | AB8: =VLOOKUP('Utility Group'!$B3,vldatabase,5,FALSE) -> n/a | AC8: =VLOOKUP('Utility Group'!$B3,vldatabase,6,FALSE) -> n/a | AD8: =IF(AB8="n/a","n/a",AVERAGE(AB8:AC8)) -> n/a | AE8: =IF(AD8="n/a","n/a",AD8/E8) -> n/a | AF8: =VLOOKUP('Utility Group'!$B3,vldatabase,10,FALSE) -> n/a | AG8: =VLOOKUP('Utility Group'!$B3,vldatabase,11,FALSE) -> n/a | AH8: =IF(AF8="n/a","n/a",(+AG8/AF8)^(1/5)-1) -> n/a
A9: =A8+1 -> 2 | B9: =VLOOKUP('Utility Group'!$B4,vldatabase,2,FALSE) -> Ameren Corp. | C9: =VLOOKUP('Utility Group'!$B4,vldatabase,7,FALSE) -> 4.25 | D9: =VLOOKUP('Utility Group'!$B4,vldatabase,8,FALSE) -> 2.55 | E9: =VLOOKUP('Utility Group'!$B4,vldatabase,9,FALSE) -> 40.25 | G9: =IF(E9="n/a", "n/a",+(C9-D9)/C9) -> 0.4 | H9: =IF(E9="n/a","n/a",C9/E9) -> 0.1055900621 | I9: =IF(AA9="n/a","n/a",2*(1+AA9)/(2+AA9)) -> 1.029013189 | J9: =IF(H9="n/a","n/a",H9*I9) -> 0.1086535665 | K9: =IF(G9="n/a","n/a",G9*J9) -> 0.04346142661 | M9: =IF(AE9="n/a","n/a",AE9*AH9) -> 0.01107542955 | N9: =IF(AE9="n/a","n/a",1-1/AE9) -> 0.3807692308 | O9: =IF(M9="n/a","n/a",M9*N9) -> 0.00421718279 | Q9: =IF(K9="n/a","n/a",K9+O9) -> 0.0476786094 | R9: =A9 -> 2 | S9: =B9 -> Ameren Corp. | T9: =VLOOKUP('Utility Group'!$B4,vldatabase,14,FALSE) -> 0.488 | U9: =VLOOKUP('Utility Group'!$B4,vldatabase,16,FALSE) -> 15632 | V9: =IF(U9="n/a","n/a",T9*U9) -> 7628.416 | X9: =VLOOKUP('Utility Group'!$B4,vldatabase,15,FALSE) -> 0.495 | Y9: =VLOOKUP('Utility Group'!$B4,vldatabase,17,FALSE) -> 20600 | Z9: =IF(Y9="n/a","n/a",X9*Y9) -> 10197 | AA9: =IF(V9="n/a","n/a",(+Z9/V9)^(1/5)-1) -> 0.059760212 | AB9: =VLOOKUP('Utility Group'!$B4,vldatabase,5,FALSE) -> 75 | AC9: =VLOOKUP('Utility Group'!$B4,vldatabase,6,FALSE) -> 55 | AD9: =IF(AB9="n/a","n/a",AVERAGE(AB9:AC9)) -> 65 | AE9: =IF(AD9="n/a","n/a",AD9/E9) -> 1.614906832 | AF9: =VLOOKUP('Utility Group'!$B4,vldatabase,10,FALSE) -> 244.5 | AG9: =VLOOKUP('Utility Group'!$B4,vldatabase,11,FALSE) -> 253 | AH9: =IF(AF9="n/a","n/a",(+AG9/AF9)^(1/5)-1) -> 0.00685824676
A10: 3 | B10: =VLOOKUP('Utility Group'!$B5,vldatabase,2,FALSE) -> Avangrid, Inc. | C10: =VLOOKUP('Utility Group'!$B5,vldatabase,7,FALSE) -> 3.5 | D10: =VLOOKUP('Utility Group'!$B5,vldatabase,8,FALSE) -> 2.4 | E10: =VLOOKUP('Utility Group'!$B5,vldatabase,9,FALSE) -> 54.25 | G10: 0.3142857143 | H10: 0.06451612903 | I10: 1.00915024 | J10: 0.06510646713 | K10: 0.02046203253 | M10: 0 | N10: 0.01363636364 | O10: 0 | Q10: 0.02046203253 | R10: 3 | S10: Avangrid, Inc. | T10: =VLOOKUP('Utility Group'!$B5,vldatabase,14,FALSE) -> 0.715 | U10: =VLOOKUP('Utility Group'!$B5,vldatabase,16,FALSE) -> 21350 | V10: 15265.25 | X10: =VLOOKUP('Utility Group'!$B5,vldatabase,15,FALSE) -> 0.615 | Y10: =VLOOKUP('Utility Group'!$B5,vldatabase,17,FALSE) -> 27200 | Z10: 16728 | AA10: 0.01846948117 | AB10: =VLOOKUP('Utility Group'!$B5,vldatabase,5,FALSE) -> 65 | AC10: =VLOOKUP('Utility Group'!$B5,vldatabase,6,FALSE) -> 45 | AD10: 55 | AE10: 1.013824885 | AF10: =VLOOKUP('Utility Group'!$B5,vldatabase,10,FALSE) -> 309 | AG10: =VLOOKUP('Utility Group'!$B5,vldatabase,11,FALSE) -> 309 | AH10: 0
A11: 4 | B11: =VLOOKUP('Utility Group'!$B6,vldatabase,2,FALSE) -> Avista Corp. | C11: =VLOOKUP('Utility Group'!$B6,vldatabase,7,FALSE) -> 2.75 | D11: =VLOOKUP('Utility Group'!$B6,vldatabase,8,FALSE) -> 1.75 | E11: =VLOOKUP('Utility Group'!$B6,vldatabase,9,FALSE) -> 30.75 | G11: 0.3636363636 | H11: 0.08943089431 | I11: 1.024254989 | J11: 0.0916000397 | K11: 0.03330910535 | M11: 0.02448425869 | N11: 0.2764705882 | O11: 0.006769177401 | Q11: 0.04007828275 | R11: 4 | S11: Avista Corp. | T11: =VLOOKUP('Utility Group'!$B6,vldatabase,14,FALSE) -> 0.528 | U11: =VLOOKUP('Utility Group'!$B6,vldatabase,16,FALSE) -> 3273.2 | V11: 1728.2496 | X11: =VLOOKUP('Utility Group'!$B6,vldatabase,15,FALSE) -> 0.495 | Y11: =VLOOKUP('Utility Group'!$B6,vldatabase,17,FALSE) -> 4450 | Z11: 2202.75 | AA11: 0.04971583591 | AB11: =VLOOKUP('Utility Group'!$B6,vldatabase,5,FALSE) -> 50 | AC11: =VLOOKUP('Utility Group'!$B6,vldatabase,6,FALSE) -> 35 | AD11: 42.5 | AE11: 1.382113821 | AF11: =VLOOKUP('Utility Group'!$B6,vldatabase,10,FALSE) -> 65.49 | AG11: =VLOOKUP('Utility Group'!$B6,vldatabase,11,FALSE) -> 71.5 | AH11: 0.01771508128
A12: 5 | B12: =VLOOKUP('Utility Group'!$B7,vldatabase,2,FALSE) -> Black Hills Corp. | C12: =VLOOKUP('Utility Group'!$B7,vldatabase,7,FALSE) -> 4.25 | D12: =VLOOKUP('Utility Group'!$B7,vldatabase,8,FALSE) -> 2.45 | E12: =VLOOKUP('Utility Group'!$B7,vldatabase,9,FALSE) -> 42.75 | G12: 0.4235294118 | H12: 0.09941520468 | I12: 1.042358445 | J12: 0.1036262781 | K12: 0.04388877661 | M12: 0.0432808955 | N12: 0.3892857143 | O12: 0.01684863432 | Q12: 0.06073741093 | R12: 5 | S12: Black Hills Corp. | T12: =VLOOKUP('Utility Group'!$B7,vldatabase,14,FALSE) -> 0.355 | U12: =VLOOKUP('Utility Group'!$B7,vldatabase,16,FALSE) -> 4818.4 | V12: 1710.532 | X12: =VLOOKUP('Utility Group'!$B7,vldatabase,15,FALSE) -> 0.505 | Y12: =VLOOKUP('Utility Group'!$B7,vldatabase,17,FALSE) -> 5175 | Z12: 2613.375 | AA12: 0.08846409049 | AB12: =VLOOKUP('Utility Group'!$B7,vldatabase,5,FALSE) -> 80 | AC12: =VLOOKUP('Utility Group'!$B7,vldatabase,6,FALSE) -> 60 | AD12: 70 | AE12: 1.637426901 | AF12: =VLOOKUP('Utility Group'!$B7,vldatabase,10,FALSE) -> 53.54 | AG12: =VLOOKUP('Utility Group'!$B7,vldatabase,11,FALSE) -> 61 | AH12: 0.02643226118
A13: 6 | B13: =VLOOKUP('Utility Group'!$B8,vldatabase,2,FALSE) -> CenterPoint Energy | C13: =VLOOKUP('Utility Group'!$B8,vldatabase,7,FALSE) -> 2.25 | D13: =VLOOKUP('Utility Group'!$B8,vldatabase,8,FALSE) -> 1.35 | E13: =VLOOKUP('Utility Group'!$B8,vldatabase,9,FALSE) -> 22.25 | G13: 0.4 | H13: 0.1011235955 | I13: 1.064532698 | J13: 0.107649374 | K13: 0.0430597496 | M13: 0.01975054366 | N13: 0.2583333333 | O13: 0.005102223778 | Q13: 0.04816197338 | R13: 6 | S13: CenterPoint Energy | T13: =VLOOKUP('Utility Group'!$B8,vldatabase,14,FALSE) -> 0.375 | U13: =VLOOKUP('Utility Group'!$B8,vldatabase,16,FALSE) -> 16740 | V13: 6277.5 | X13: =VLOOKUP('Utility Group'!$B8,vldatabase,15,FALSE) -> 0.485 | Y13: =VLOOKUP('Utility Group'!$B8,vldatabase,17,FALSE) -> 24700 | Z13: 11979.5 | AA13: 0.1379689023 | AB13: =VLOOKUP('Utility Group'!$B8,vldatabase,5,FALSE) -> 35 | AC13: =VLOOKUP('Utility Group'!$B8,vldatabase,6,FALSE) -> 25 | AD13: 30 | AE13: 1.348314607 | AF13: =VLOOKUP('Utility Group'!$B8,vldatabase,10,FALSE) -> 501.2 | AG13: =VLOOKUP('Utility Group'!$B8,vldatabase,11,FALSE) -> 539 | AH13: 0.01464831988
A14: 7 | B14: =VLOOKUP('Utility Group'!$B9,vldatabase,2,FALSE) -> CMS Energy Corp. | C14: =VLOOKUP('Utility Group'!$B9,vldatabase,7,FALSE) -> 3.25 | D14: =VLOOKUP('Utility Group'!$B9,vldatabase,8,FALSE) -> 2 | E14: =VLOOKUP('Utility Group'!$B9,vldatabase,9,FALSE) -> 24.5 | G14: 0.3846153846 | H14: 0.1326530612 | I14: 1.042922755 | J14: 0.1383468961 | K14: 0.05321034466 | M14: 0.02022860015 | N14: 0.5333333333 | O14: 0.01078858675 | Q14: 0.06399893141 | R14: 7 | S14: CMS Energy Corp. | T14: =VLOOKUP('Utility Group'!$B9,vldatabase,14,FALSE) -> 0.307 | U14: =VLOOKUP('Utility Group'!$B9,vldatabase,16,FALSE) -> 15476 | V14: 4751.132 | X14: =VLOOKUP('Utility Group'!$B9,vldatabase,15,FALSE) -> 0.365 | Y14: =VLOOKUP('Utility Group'!$B9,vldatabase,17,FALSE) -> 20000 | Z14: 7300 | AA14: 0.08969548815 | AB14: =VLOOKUP('Utility Group'!$B9,vldatabase,5,FALSE) -> 60 | AC14: =VLOOKUP('Utility Group'!$B9,vldatabase,6,FALSE) -> 45 | AD14: 52.5 | AE14: 2.142857143 | AF14: =VLOOKUP('Utility Group'!$B9,vldatabase,10,FALSE) -> 283.37 | AG14: =VLOOKUP('Utility Group'!$B9,vldatabase,11,FALSE) -> 297 | AH14: 0.009440013404
A15: 8 | B15: =VLOOKUP('Utility Group'!$B10,vldatabase,2,FALSE) -> Dominion Energy | C15: =VLOOKUP('Utility Group'!$B10,vldatabase,7,FALSE) -> 5.25 | D15: =VLOOKUP('Utility Group'!$B10,vldatabase,8,FALSE) -> 4.45 | E15: =VLOOKUP('Utility Group'!$B10,vldatabase,9,FALSE) -> 40 | G15: 0.1523809524 | H15: 0.13125 | I15: 1.050113185 | J15: 0.1378273555 | K15: 0.0210022637 | M15: 0.09279256076 | N15: 0.5789473684 | O15: 0.05372200886 | Q15: 0.07472427256 | R15: 8 | S15: Dominion Energy | T15: =VLOOKUP('Utility Group'!$B10,vldatabase,14,FALSE) -> 0.39 | U15: =VLOOKUP('Utility Group'!$B10,vldatabase,16,FALSE) -> 51250 | V15: 19987.5 | X15: =VLOOKUP('Utility Group'!$B10,vldatabase,15,FALSE) -> 0.41 | Y15: =VLOOKUP('Utility Group'!$B10,vldatabase,17,FALSE) -> 80500 | Z15: 33005 | AA15: 0.1055140135 | AB15: =VLOOKUP('Utility Group'!$B10,vldatabase,5,FALSE) -> 110 | AC15: =VLOOKUP('Utility Group'!$B10,vldatabase,6,FALSE) -> 80 | AD15: 95 | AE15: 2.375 | AF15: =VLOOKUP('Utility Group'!$B10,vldatabase,10,FALSE) -> 677 | AG15: =VLOOKUP('Utility Group'!$B10,vldatabase,11,FALSE) -> 820 | AH15: 0.0390705519
A16: 9 | B16: =VLOOKUP('Utility Group'!$B11,vldatabase,2,FALSE) -> DTE Energy Co. | C16: =VLOOKUP('Utility Group'!$B11,vldatabase,7,FALSE) -> 7.5 | D16: =VLOOKUP('Utility Group'!$B11,vldatabase,8,FALSE) -> 4.8 | E16: =VLOOKUP('Utility Group'!$B11,vldatabase,9,FALSE) -> 73.5 | G16: 0.36 | H16: 0.1020408163 | I16: 1.03604037 | J16: 0.1057184051 | K16: 0.03805862583 | M16: 0.031215601 | N16: 0.3875 | O16: 0.01209604539 | Q16: 0.05015467122 | R16: 9 | S16: DTE Energy Co. | T16: =VLOOKUP('Utility Group'!$B11,vldatabase,14,FALSE) -> 0.458 | U16: =VLOOKUP('Utility Group'!$B11,vldatabase,16,FALSE) -> 22371 | V16: 10245.918 | X16: =VLOOKUP('Utility Group'!$B11,vldatabase,15,FALSE) -> 0.465 | Y16: =VLOOKUP('Utility Group'!$B11,vldatabase,17,FALSE) -> 31600 | Z16: 14694 | AA16: 0.07477568315 | AB16: =VLOOKUP('Utility Group'!$B11,vldatabase,5,FALSE) -> 140 | AC16: =VLOOKUP('Utility Group'!$B11,vldatabase,6,FALSE) -> 100 | AD16: 120 | AE16: 1.632653061 | AF16: =VLOOKUP('Utility Group'!$B11,vldatabase,10,FALSE) -> 181.93 | AG16: =VLOOKUP('Utility Group'!$B11,vldatabase,11,FALSE) -> 200 | AH16: 0.01911955561
A17: 10 | B17: =VLOOKUP('Utility Group'!$B12,vldatabase,2,FALSE) -> Edison International | C17: =VLOOKUP('Utility Group'!$B12,vldatabase,7,FALSE) -> 5.5 | D17: =VLOOKUP('Utility Group'!$B12,vldatabase,8,FALSE) -> 2.7 | E17: =VLOOKUP('Utility Group'!$B12,vldatabase,9,FALSE) -> 45.25 | G17: 0.5090909091 | H17: 0.1215469613 | I17: 1.023425675 | J17: 0.124394281 | K17: 0.06332799758 | M17: 0 | N17: 0.3296296296 | O17: 0 | Q17: 0.06332799758 | R17: 10 | S17: Edison International | T17: =VLOOKUP('Utility Group'!$B12,vldatabase,14,FALSE) -> 0.458 | U17: =VLOOKUP('Utility Group'!$B12,vldatabase,16,FALSE) -> 25506 | V17: 11681.748 | X17: =VLOOKUP('Utility Group'!$B12,vldatabase,15,FALSE) -> 0.46 | Y17: =VLOOKUP('Utility Group'!$B12,vldatabase,17,FALSE) -> 32100 | Z17: 14766 | AA17: 0.04797520197 | AB17: =VLOOKUP('Utility Group'!$B12,vldatabase,5,FALSE) -> 80 | AC17: =VLOOKUP('Utility Group'!$B12,vldatabase,6,FALSE) -> 55 | AD17: 67.5 | AE17: 1.491712707 | AF17: =VLOOKUP('Utility Group'!$B12,vldatabase,10,FALSE) -> 325.81 | AG17: =VLOOKUP('Utility Group'!$B12,vldatabase,11,FALSE) -> 325.81 | AH17: 0
A18: 11 | B18: =VLOOKUP('Utility Group'!$B13,vldatabase,2,FALSE) -> El Paso Electric Co. | C18: =VLOOKUP('Utility Group'!$B13,vldatabase,7,FALSE) -> 2.75 | D18: =VLOOKUP('Utility Group'!$B13,vldatabase,8,FALSE) -> 1.85 | E18: =VLOOKUP('Utility Group'!$B13,vldatabase,9,FALSE) -> 32.75 | G18: 0.3272727273 | H18: 0.08396946565 | I18: 1.022611566 | J18: 0.08586814676 | K18: 0.02810230258 | M18: 0.003304643954 | N18: 0.3761904762 | O18: 0.001243175583 | Q18: 0.02934547816 | R18: 11 | S18: El Paso Electric Co. | T18: =VLOOKUP('Utility Group'!$B13,vldatabase,14,FALSE) -> 0.473 | U18: =VLOOKUP('Utility Group'!$B13,vldatabase,16,FALSE) -> 2269.9 | V18: 1073.6627 | X18: =VLOOKUP('Utility Group'!$B13,vldatabase,15,FALSE) -> 0.445 | Y18: =VLOOKUP('Utility Group'!$B13,vldatabase,17,FALSE) -> 3025 | Z18: 1346.125 | AA18: 0.04626935442 | AB18: =VLOOKUP('Utility Group'!$B13,vldatabase,5,FALSE) -> 60 | AC18: =VLOOKUP('Utility Group'!$B13,vldatabase,6,FALSE) -> 45 | AD18: 52.5 | AE18: 1.603053435 | AF18: =VLOOKUP('Utility Group'!$B13,vldatabase,10,FALSE) -> 40.58 | AG18: =VLOOKUP('Utility Group'!$B13,vldatabase,11,FALSE) -> 41 | AH18: 0.002061468372
A19: 12 | B19: =VLOOKUP('Utility Group'!$B14,vldatabase,2,FALSE) -> Emera Inc. | C19: =VLOOKUP('Utility Group'!$B14,vldatabase,7,FALSE) -> 4 | D19: =VLOOKUP('Utility Group'!$B14,vldatabase,8,FALSE) -> 2.72 | E19: =VLOOKUP('Utility Group'!$B14,vldatabase,9,FALSE) -> 37.85 | G19: 0.32 | H19: 0.105680317 | I19: 1.007870556 | J19: 0.1065120799 | K19: 0.03408386558 | M19: 0.03300856587 | N19: 0.4779310345 | O19: 0.01577581803 | Q19: 0.04985968361 | R19: 12 | S19: Emera Inc. | T19: =VLOOKUP('Utility Group'!$B14,vldatabase,14,FALSE) -> 0.3365031625 | U19: =VLOOKUP('Utility Group'!$B14,vldatabase,16,FALSE) -> 22609 | V19: 7608 | X19: =VLOOKUP('Utility Group'!$B14,vldatabase,15,FALSE) -> 0.3615638041 | Y19: =VLOOKUP('Utility Group'!$B14,vldatabase,17,FALSE) -> 22765 | Z19: 8231 | AA19: 0.01586598685 | AB19: =VLOOKUP('Utility Group'!$B14,vldatabase,5,FALSE) -> 85 | AC19: =VLOOKUP('Utility Group'!$B14,vldatabase,6,FALSE) -> 60 | AD19: 72.5 | AE19: 1.915455746 | AF19: =VLOOKUP('Utility Group'!$B14,vldatabase,10,FALSE) -> 234.12 | AG19: =VLOOKUP('Utility Group'!$B14,vldatabase,11,FALSE) -> 255 | AH19: 0.01723274784
A20: 13 | B20: =VLOOKUP('Utility Group'!$B15,vldatabase,2,FALSE) -> Entergy Corp. | C20: =VLOOKUP('Utility Group'!$B15,vldatabase,7,FALSE) -> 6 | D20: =VLOOKUP('Utility Group'!$B15,vldatabase,8,FALSE) -> 4 | E20: =VLOOKUP('Utility Group'!$B15,vldatabase,9,FALSE) -> 57.75 | G20: 0.3333333333 | H20: 0.1038961039 | I20: 1.031036261 | J20: 0.1071206505 | K20: 0.0357068835 | M20: 0.0321679633 | N20: 0.34 | O20: 0.01093710752 | Q20: 0.04664399102 | R20: 13 | S20: Entergy Corp. | T20: =VLOOKUP('Utility Group'!$B15,vldatabase,14,FALSE) -> 0.359 | U20: =VLOOKUP('Utility Group'!$B15,vldatabase,16,FALSE) -> 24602 | V20: 8832.118 | X20: =VLOOKUP('Utility Group'!$B15,vldatabase,15,FALSE) -> 0.395 | Y20: =VLOOKUP('Utility Group'!$B15,vldatabase,17,FALSE) -> 30500 | Z20: 12047.5 | AA20: 0.0640607274 | AB20: =VLOOKUP('Utility Group'!$B15,vldatabase,5,FALSE) -> 105 | AC20: =VLOOKUP('Utility Group'!$B15,vldatabase,6,FALSE) -> 70 | AD20: 87.5 | AE20: 1.515151515 | AF20: =VLOOKUP('Utility Group'!$B15,vldatabase,10,FALSE) -> 189.06 | AG20: =VLOOKUP('Utility Group'!$B15,vldatabase,11,FALSE) -> 210 | AH20: 0.02123085578
A21: 14 | B21: =VLOOKUP('Utility Group'!$B16,vldatabase,2,FALSE) -> Exelon Corp. | C21: =VLOOKUP('Utility Group'!$B16,vldatabase,7,FALSE) -> 4 | D21: =VLOOKUP('Utility Group'!$B16,vldatabase,8,FALSE) -> 1.8 | E21: =VLOOKUP('Utility Group'!$B16,vldatabase,9,FALSE) -> 41.75 | G21: 0.55 | H21: 0.09580838323 | I21: 1.029324975 | J21: 0.09861796164 | K21: 0.0542398789 | M21: 0.003504351454 | N21: 0.1210526316 | O21: 0.0004242109655 | Q21: 0.05466408986 | R21: 14 | S21: Exelon Corp. | T21: =VLOOKUP('Utility Group'!$B16,vldatabase,14,FALSE) -> 0.47 | U21: =VLOOKUP('Utility Group'!$B16,vldatabase,16,FALSE) -> 65225 | V21: 30655.75 | X21: =VLOOKUP('Utility Group'!$B16,vldatabase,15,FALSE) -> 0.51 | Y21: =VLOOKUP('Utility Group'!$B16,vldatabase,17,FALSE) -> 80600 | Z21: 41106 | AA21: 0.06042181739 | AB21: =VLOOKUP('Utility Group'!$B16,vldatabase,5,FALSE) -> 55 | AC21: =VLOOKUP('Utility Group'!$B16,vldatabase,6,FALSE) -> 40 | AD21: 47.5 | AE21: 1.137724551 | AF21: =VLOOKUP('Utility Group'!$B16,vldatabase,10,FALSE) -> 968 | AG21: =VLOOKUP('Utility Group'!$B16,vldatabase,11,FALSE) -> 983 | AH21: 0.003080140489
A22: 15 | B22: =VLOOKUP('Utility Group'!$B17,vldatabase,2,FALSE) -> FirstEnergy Corp. | C22: =VLOOKUP('Utility Group'!$B17,vldatabase,7,FALSE) -> 3.5 | D22: =VLOOKUP('Utility Group'!$B17,vldatabase,8,FALSE) -> 1.9 | E22: =VLOOKUP('Utility Group'!$B17,vldatabase,9,FALSE) -> 19.5 | G22: 0.4571428571 | H22: 0.1794871795 | I22: 1.056370734 | J22: 0.1896050035 | K22: 0.08667657302 | M22: 0.02276935619 | N22: 0.5894736842 | O22: 0.01342193628 | Q22: 0.1000985093 | R22: 15 | S22: FirstEnergy Corp. | T22: =VLOOKUP('Utility Group'!$B17,vldatabase,14,FALSE) -> 0.24 | U22: =VLOOKUP('Utility Group'!$B17,vldatabase,16,FALSE) -> 25325 | V22: 6078 | X22: =VLOOKUP('Utility Group'!$B17,vldatabase,15,FALSE) -> 0.335 | Y22: =VLOOKUP('Utility Group'!$B17,vldatabase,17,FALSE) -> 31900 | Z22: 10686.5 | AA22: 0.1194764421 | AB22: =VLOOKUP('Utility Group'!$B17,vldatabase,5,FALSE) -> 55 | AC22: =VLOOKUP('Utility Group'!$B17,vldatabase,6,FALSE) -> 40 | AD22: 47.5 | AE22: 2.435897436 | AF22: =VLOOKUP('Utility Group'!$B17,vldatabase,10,FALSE) -> 525 | AG22: =VLOOKUP('Utility Group'!$B17,vldatabase,11,FALSE) -> 550 | AH22: 0.00934741991
A23: 16 | B23: =VLOOKUP('Utility Group'!$B18,vldatabase,2,FALSE) -> Hawaiian Elec. | C23: =VLOOKUP('Utility Group'!$B18,vldatabase,7,FALSE) -> 2.25 | D23: =VLOOKUP('Utility Group'!$B18,vldatabase,8,FALSE) -> 1.4 | E23: =VLOOKUP('Utility Group'!$B18,vldatabase,9,FALSE) -> 23.75 | G23: 0.3777777778 | H23: 0.09473684211 | I23: 1.024040476 | J23: 0.09701436088 | K23: 0.03664986966 | M23: 0.01043090601 | N23: 0.2692307692 | O23: 0.00280832085 | Q23: 0.03945819051 | R23: 16 | S23: Hawaiian Elec. | T23: =VLOOKUP('Utility Group'!$B18,vldatabase,14,FALSE) -> 0.557 | U23: =VLOOKUP('Utility Group'!$B18,vldatabase,16,FALSE) -> 3765.5 | V23: 2097.3835 | X23: =VLOOKUP('Utility Group'!$B18,vldatabase,15,FALSE) -> 0.55 | Y23: =VLOOKUP('Utility Group'!$B18,vldatabase,17,FALSE) -> 4850 | Z23: 2667.5 | AA23: 0.0492653134 | AB23: =VLOOKUP('Utility Group'!$B18,vldatabase,5,FALSE) -> 35 | AC23: =VLOOKUP('Utility Group'!$B18,vldatabase,6,FALSE) -> 30 | AD23: 32.5 | AE23: 1.368421053 | AF23: =VLOOKUP('Utility Group'!$B18,vldatabase,10,FALSE) -> 108.79 | AG23: =VLOOKUP('Utility Group'!$B18,vldatabase,11,FALSE) -> 113 | AH23: 0.007622585163
A24: 17 | B24: =VLOOKUP('Utility Group'!$B19,vldatabase,2,FALSE) -> IDACORP, Inc. | C24: =VLOOKUP('Utility Group'!$B19,vldatabase,7,FALSE) -> 5.25 | D24: =VLOOKUP('Utility Group'!$B19,vldatabase,8,FALSE) -> 3.05 | E24: =VLOOKUP('Utility Group'!$B19,vldatabase,9,FALSE) -> 55.25 | G24: 0.419047619 | H24: 0.09502262443 | I24: 1.021077645 | J24: 0.09702547757 | K24: 0.04065829536 | M24: -0.0001148904086 | N24: 0.309375 | O24: -3.554422015e-05 | Q24: 0.04062275114 | R24: 17 | S24: IDACORP, Inc. | T24: =VLOOKUP('Utility Group'!$B19,vldatabase,14,FALSE) -> 0.563 | U24: =VLOOKUP('Utility Group'!$B19,vldatabase,16,FALSE) -> 3997.5 | V24: 2250.5925 | X24: =VLOOKUP('Utility Group'!$B19,vldatabase,15,FALSE) -> 0.57 | Y24: =VLOOKUP('Utility Group'!$B19,vldatabase,17,FALSE) -> 4875 | Z24: 2778.75 | AA24: 0.04306295557 | AB24: =VLOOKUP('Utility Group'!$B19,vldatabase,5,FALSE) -> 90 | AC24: =VLOOKUP('Utility Group'!$B19,vldatabase,6,FALSE) -> 70 | AD24: 80 | AE24: 1.447963801 | AF24: =VLOOKUP('Utility Group'!$B19,vldatabase,10,FALSE) -> 50.42 | AG24: =VLOOKUP('Utility Group'!$B19,vldatabase,11,FALSE) -> 50.4 | AH24: -7.934618841e-05
A25: 18 | B25: =VLOOKUP('Utility Group'!$B20,vldatabase,2,FALSE) -> NorthWestern Corp. | C25: =VLOOKUP('Utility Group'!$B20,vldatabase,7,FALSE) -> 3.75 | D25: =VLOOKUP('Utility Group'!$B20,vldatabase,8,FALSE) -> 2.6 | E25: =VLOOKUP('Utility Group'!$B20,vldatabase,9,FALSE) -> 42.5 | G25: 0.3066666667 | H25: 0.08823529412 | I25: 1.017921886 | J25: 0.08981663696 | K25: 0.02754376867 | M25: 0.009968223129 | N25: 0.3461538462 | O25: 0.003450538775 | Q25: 0.03099430744 | R25: 18 | S25: NorthWestern Corp. | T25: =VLOOKUP('Utility Group'!$B20,vldatabase,14,FALSE) -> 0.498 | U25: =VLOOKUP('Utility Group'!$B20,vldatabase,16,FALSE) -> 3614.5 | V25: 1800.021 | X25: =VLOOKUP('Utility Group'!$B20,vldatabase,15,FALSE) -> 0.535 | Y25: =VLOOKUP('Utility Group'!$B20,vldatabase,17,FALSE) -> 4025 | Z25: 2153.375 | AA25: 0.03649788198 | AB25: =VLOOKUP('Utility Group'!$B20,vldatabase,5,FALSE) -> 75 | AC25: =VLOOKUP('Utility Group'!$B20,vldatabase,6,FALSE) -> 55 | AD25: 65 | AE25: 1.529411765 | AF25: =VLOOKUP('Utility Group'!$B20,vldatabase,10,FALSE) -> 49.37 | AG25: =VLOOKUP('Utility Group'!$B20,vldatabase,11,FALSE) -> 51 | AH25: 0.006517684353
A26: 19 | B26: =VLOOKUP('Utility Group'!$B21,vldatabase,2,FALSE) -> OGE Energy Corp. | C26: =VLOOKUP('Utility Group'!$B21,vldatabase,7,FALSE) -> 2.75 | D26: =VLOOKUP('Utility Group'!$B21,vldatabase,8,FALSE) -> 1.95 | E26: =VLOOKUP('Utility Group'!$B21,vldatabase,9,FALSE) -> 23.5 | G26: 0.2909090909 | H26: 0.1170212766 | I26: 1.016059762 | J26: 0.1189006105 | K26: 0.03458926849 | M26: 0 | N26: 0.4777777778 | O26: 0 | Q26: 0.03458926849 | R26: 19 | S26: OGE Energy Corp. | T26: =VLOOKUP('Utility Group'!$B21,vldatabase,14,FALSE) -> 0.58 | U26: =VLOOKUP('Utility Group'!$B21,vldatabase,16,FALSE) -> 6902 | V26: 4003.16 | X26: =VLOOKUP('Utility Group'!$B21,vldatabase,15,FALSE) -> 0.545 | Y26: =VLOOKUP('Utility Group'!$B21,vldatabase,17,FALSE) -> 8625 | Z26: 4700.625 | AA26: 0.03264377533 | AB26: =VLOOKUP('Utility Group'!$B21,vldatabase,5,FALSE) -> 50 | AC26: =VLOOKUP('Utility Group'!$B21,vldatabase,6,FALSE) -> 40 | AD26: 45 | AE26: 1.914893617 | AF26: =VLOOKUP('Utility Group'!$B21,vldatabase,10,FALSE) -> 199.7 | AG26: =VLOOKUP('Utility Group'!$B21,vldatabase,11,FALSE) -> 199.7 | AH26: 0
A27: 20 | B27: =VLOOKUP('Utility Group'!$B22,vldatabase,2,FALSE) -> Otter Tail Corp. | C27: =VLOOKUP('Utility Group'!$B22,vldatabase,7,FALSE) -> 2.5 | D27: =VLOOKUP('Utility Group'!$B22,vldatabase,8,FALSE) -> 1.65 | E27: =VLOOKUP('Utility Group'!$B22,vldatabase,9,FALSE) -> 23.25 | G27: 0.34 | H27: 0.1075268817 | I27: 1.028015775 | J27: 0.1105393306 | K27: 0.03758337241 | M27: 0.02109244376 | N27: 0.5105263158 | O27: 0.0107682476 | Q27: 0.04835162001 | R27: 20 | S27: Otter Tail Corp. | T27: =VLOOKUP('Utility Group'!$B22,vldatabase,14,FALSE) -> 0.553 | U27: =VLOOKUP('Utility Group'!$B22,vldatabase,16,FALSE) -> 1318.9 | V27: 729.3517 | X27: =VLOOKUP('Utility Group'!$B22,vldatabase,15,FALSE) -> 0.495 | Y27: =VLOOKUP('Utility Group'!$B22,vldatabase,17,FALSE) -> 1950 | Z27: 965.25 | AA27: 0.05764656233 | AB27: =VLOOKUP('Utility Group'!$B22,vldatabase,5,FALSE) -> 55 | AC27: =VLOOKUP('Utility Group'!$B22,vldatabase,6,FALSE) -> 40 | AD27: 47.5 | AE27: 2.043010753 | AF27: =VLOOKUP('Utility Group'!$B22,vldatabase,10,FALSE) -> 39.66 | AG27: =VLOOKUP('Utility Group'!$B22,vldatabase,11,FALSE) -> 41.75 | AH27: 0.01032419616
A28: 21 | B28: =VLOOKUP('Utility Group'!$B23,vldatabase,2,FALSE) -> PNM Resources | C28: =VLOOKUP('Utility Group'!$B23,vldatabase,7,FALSE) -> 2.5 | D28: =VLOOKUP('Utility Group'!$B23,vldatabase,8,FALSE) -> 1.35 | E28: =VLOOKUP('Utility Group'!$B23,vldatabase,9,FALSE) -> 26.5 | G28: 0.46 | H28: 0.09433962264 | I28: 1.026301359 | J28: 0.09682088296 | K28: 0.04453760616 | M28: 0.01170814268 | N28: 0.2933333333 | O28: 0.00343438852 | Q28: 0.04797199468 | R28: 21 | S28: PNM Resources | T28: =VLOOKUP('Utility Group'!$B23,vldatabase,14,FALSE) -> 0.436 | U28: =VLOOKUP('Utility Group'!$B23,vldatabase,16,FALSE) -> 3887.5 | V28: 1694.95 | X28: =VLOOKUP('Utility Group'!$B23,vldatabase,15,FALSE) -> 0.42 | Y28: =VLOOKUP('Utility Group'!$B23,vldatabase,17,FALSE) -> 5250 | Z28: 2205 | AA28: 0.05402361333 | AB28: =VLOOKUP('Utility Group'!$B23,vldatabase,5,FALSE) -> 45 | AC28: =VLOOKUP('Utility Group'!$B23,vldatabase,6,FALSE) -> 30 | AD28: 37.5 | AE28: 1.41509434 | AF28: =VLOOKUP('Utility Group'!$B23,vldatabase,10,FALSE) -> 79.65 | AG28: =VLOOKUP('Utility Group'!$B23,vldatabase,11,FALSE) -> 83 | AH28: 0.008273754163
A29: 22 | B29: =VLOOKUP('Utility Group'!$B24,vldatabase,2,FALSE) -> Sempra Energy | C29: =VLOOKUP('Utility Group'!$B24,vldatabase,7,FALSE) -> 8 | D29: =VLOOKUP('Utility Group'!$B24,vldatabase,8,FALSE) -> 4.9 | E29: =VLOOKUP('Utility Group'!$B24,vldatabase,9,FALSE) -> 67.25 | G29: 0.3875 | H29: 0.1189591078 | I29: 1.04855479 | J29: 0.1247351423 | K29: 0.04833486764 | M29: 0.08190891674 | N29: 0.5018518519 | O29: 0.04110614155 | Q29: 0.0894410092 | R29: 22 | S29: Sempra Energy | T29: =VLOOKUP('Utility Group'!$B24,vldatabase,14,FALSE) -> 0.435 | U29: =VLOOKUP('Utility Group'!$B24,vldatabase,16,FALSE) -> 29135 | V29: 12673.725 | X29: =VLOOKUP('Utility Group'!$B24,vldatabase,15,FALSE) -> 0.445 | Y29: =VLOOKUP('Utility Group'!$B24,vldatabase,17,FALSE) -> 46300 | Z29: 20603.5 | AA29: 0.1020653413 | AB29: =VLOOKUP('Utility Group'!$B24,vldatabase,5,FALSE) -> 155 | AC29: =VLOOKUP('Utility Group'!$B24,vldatabase,6,FALSE) -> 115 | AD29: 135 | AE29: 2.007434944 | AF29: =VLOOKUP('Utility Group'!$B24,vldatabase,10,FALSE) -> 251.36 | AG29: =VLOOKUP('Utility Group'!$B24,vldatabase,11,FALSE) -> 307 | AH29: 0.04080277519
R31: (a) | S31: ='Proxy Group Risk Measures'!B38 -> The Value Line Investment Survey (Jan. 25, Feb. 15 & Mar. 15, 2019)
R32: (b) | S32: Computed using the formula 2*(1+5-Yr. Change in Equity)/(2+5 Yr. Change in Equity).
R33: (c) | S33: Product of average year-end "r" for 2022 and Adjustment Factor.
R34: (d) | S34: Product of change in common shares outstanding and M/B Ratio.
R35: (e) | S35: Computed as 1 - B/M Ratio.
R36: (f) | S36: Product of total capital and equity ratio.
R37: (g) | S37: Five-year compound rate of change.
R38: (h) | S38: Average of High and Low expected market prices divided by 2022 BVPS.

Sheet 8
A1: ='Exhibit List'!C9 -> CAPM - CURRENT BOND YIELD | O1: ='Exhibit List'!B9 -> Exh. AMM-8
O2: Page 1 of 1
A3: ='Exhibit List'!D9 -> UTILITY GROUP
C5: (a) | E5: (b) | H5: (c) | J5: (d) | L5: (e) | M5: (f)
C6: Market Return (Rm) | N6: Size
C7: Div | E7: Proj. | G7: Cost of | H7: Risk-Free | I7: Risk | K7: Unadjusted | L7: Market | M7: Size | N7: Adjusted
B8: Company | C8: Yield | E8: Growth | G8: Equity | H8: Rate | I8: Premium | J8: Beta | K8: Ke | L8: Cap | M8: Adjustment | N8: Ke
A9: =A8+1 -> 1 | B9: =VLOOKUP('Utility Group'!$B3,vldatabase,2,FALSE) -> Algonquin Pwr & Util | C9: ='2019 03 Market DCF'!$J$425 -> 0.025 | E9: ='2019 03 Market DCF'!$P$426 -> 0.107 | G9: =C9+E9 -> 0.132 | H9: =ROUND('Bond Yields'!$K$16,3) -> 0.031 | I9: =G9-H9 -> 0.101 | J9: =VLOOKUP('Utility Group'!$B3,vldatabase,23,FALSE) -> n/a | K9: =IF(J9="n/a","n/a",J9*I9+H9) -> n/a | L9: =VLOOKUP('Utility Group'!$B3,vldatabase,28,FALSE) -> 5520 | M9: =IF(L9>'Size Premium'!$A$5,'Size Premium'!$B$5,IF(L9>'Size Premium'!$A$6,'Size Premium'!$B$6,IF(L9>'Size Premium'!$A$7,'Size Premium'!$B$7,IF(L9>'Size Premium'!$A$8,'Size Premium'!$B$8,IF(L9>'Size Premium'!$A$9,'Size Premium'!$B$9,IF(L9>'Size Premium'!$A$10,'Size Premium'!$B$10,IF(L9>'Size Premium'!$A$11,'Size Premium'!$B$11,IF(L9>'Size Premium'!$A$12,'Size Premium'!$B$12,"ERROR")))))))) -> 0.008217 | N9: =IF(K9="n/a","n/a",ROUND(K9+M9,3)) -> n/a
A10: =A9+1 -> 2 | B10: =VLOOKUP('Utility Group'!$B4,vldatabase,2,FALSE) -> Ameren Corp. | C10: ='2019 03 Market DCF'!$J$425 -> 0.025 | E10: ='2019 03 Market DCF'!$P$426 -> 0.107 | G10: =C10+E10 -> 0.132 | H10: =ROUND('Bond Yields'!$K$16,3) -> 0.031 | I10: =G10-H10 -> 0.101 | J10: =VLOOKUP('Utility Group'!$B4,vldatabase,23,FALSE) -> 0.6 | K10: =IF(J10="n/a","n/a",J10*I10+H10) -> 0.0916 | L10: =VLOOKUP('Utility Group'!$B4,vldatabase,28,FALSE) -> 17912.07 | M10: =IF(L10>'Size Premium'!$A$5,'Size Premium'!$B$5,IF(L10>'Size Premium'!$A$6,'Size Premium'!$B$6,IF(L10>'Size Premium'!$A$7,'Size Premium'!$B$7,IF(L10>'Size Premium'!$A$8,'Size Premium'!$B$8,IF(L10>'Size Premium'!$A$9,'Size Premium'!$B$9,IF(L10>'Size Premium'!$A$10,'Size Premium'!$B$10,IF(L10>'Size Premium'!$A$11,'Size Premium'!$B$11,IF(L10>'Size Premium'!$A$12,'Size Premium'!$B$12,"ERROR")))))))) -> 0.005036 | N10: =IF(K10="n/a","n/a",ROUND(K10+M10,3)) -> 0.097
A11: 3 | B11: =VLOOKUP('Utility Group'!$B5,vldatabase,2,FALSE) -> Avangrid, Inc. | C11: ='2019 03 Market DCF'!$J$425 -> 0.025 | E11: ='2019 03 Market DCF'!$P$426 -> 0.107 | G11: 0.132 | H11: =ROUND('Bond Yields'!$K$16,3) -> 0.031 | I11: 0.101 | J11: =VLOOKUP('Utility Group'!$B5,vldatabase,23,FALSE) -> 0.4 | K11: 0.0714 | L11: =VLOOKUP('Utility Group'!$B5,vldatabase,28,FALSE) -> 15252.49 | M11: =IF(L11>'Size Premium'!$A$5,'Size Premium'!$B$5,IF(L11>'Size Premium'!$A$6,'Size Premium'!$B$6,IF(L11>'Size Premium'!$A$7,'Size Premium'!$B$7,IF(L11>'Size Premium'!$A$8,'Size Premium'!$B$8,IF(L11>'Size Premium'!$A$9,'Size Premium'!$B$9,IF(L11>'Size Premium'!$A$10,'Size Premium'!$B$10,IF(L11>'Size Premium'!$A$11,'Size Premium'!$B$11,IF(L11>'Size Premium'!$A$12,'Size Premium'!$B$12,"ERROR")))))))) -> 0.005036 | N11: 0.076
A12: 4 | B12: =VLOOKUP('Utility Group'!$B6,vldatabase,2,FALSE) -> Avista Corp. | C12: ='2019 03 Market DCF'!$J$425 -> 0.025 | E12: ='2019 03 Market DCF'!$P$426 -> 0.107 | G12: 0.132 | H12: =ROUND('Bond Yields'!$K$16,3) -> 0.031 | I12: 0.101 | J12: =VLOOKUP('Utility Group'!$B6,vldatabase,23,FALSE) -> 0.65 | K12: 0.09665 | L12: =VLOOKUP('Utility Group'!$B6,vldatabase,28,FALSE) -> 2684.67 | M12: =IF(L12>'Size Premium'!$A$5,'Size Premium'!$B$5,IF(L12>'Size Premium'!$A$6,'Size Premium'!$B$6,IF(L12>'Size Premium'!$A$7,'Size Premium'!$B$7,IF(L12>'Size Premium'!$A$8,'Size Premium'!$B$8,IF(L12>'Size Premium'!$A$9,'Size Premium'!$B$9,IF(L12>'Size Premium'!$A$10,'Size Premium'!$B$10,IF(L12>'Size Premium'!$A$11,'Size Premium'!$B$11,IF(L12>'Size Premium'!$A$12,'Size Premium'!$B$12,"ERROR")))))))) -> 0.015353 | N12: 0.112
A13: 5 | B13: =VLOOKUP('Utility Group'!$B7,vldatabase,2,FALSE) -> Black Hills Corp. | C13: ='2019 03 Market DCF'!$J$425 -> 0.025 | E13: ='2019 03 Market DCF'!$P$426 -> 0.107 | G13: 0.132 | H13: =ROUND('Bond Yields'!$K$16,3) -> 0.031 | I13: 0.101 | J13: =VLOOKUP('Utility Group'!$B7,vldatabase,23,FALSE) -> 0.75 | K13: 0.10675 | L13: =VLOOKUP('Utility Group'!$B7,vldatabase,28,FALSE) -> 4359.29 | M13: =IF(L13>'Size Premium'!$A$5,'Size Premium'!$B$5,IF(L13>'Size Premium'!$A$6,'Size Premium'!$B$6,IF(L13>'Size Premium'!$A$7,'Size Premium'!$B$7,IF(L13>'Size Premium'!$A$8,'Size Premium'!$B$8,IF(L13>'Size Premium'!$A$9,'Size Premium'!$B$9,IF(L13>'Size Premium'!$A$10,'Size Premium'!$B$10,IF(L13>'Size Premium'!$A$11,'Size Premium'!$B$11,IF(L13>'Size Premium'!$A$12,'Size Premium'!$B$12,"ERROR")))))))) -> 0.012553 | N13: 0.119
A14: 6 | B14: =VLOOKUP('Utility Group'!$B8,vldatabase,2,FALSE) -> CenterPoint Energy | C14: ='2019 03 Market DCF'!$J$425 -> 0.025 | E14: ='2019 03 Market DCF'!$P$426 -> 0.107 | G14: 0.132 | H14: =ROUND('Bond Yields'!$K$16,3) -> 0.031 | I14: 0.101 | J14: =VLOOKUP('Utility Group'!$B8,vldatabase,23,FALSE) -> 0.8 | K14: 0.1118 | L14: =VLOOKUP('Utility Group'!$B8,vldatabase,28,FALSE) -> 15346.65 | M14: =IF(L14>'Size Premium'!$A$5,'Size Premium'!$B$5,IF(L14>'Size Premium'!$A$6,'Size Premium'!$B$6,IF(L14>'Size Premium'!$A$7,'Size Premium'!$B$7,IF(L14>'Size Premium'!$A$8,'Size Premium'!$B$8,IF(L14>'Size Premium'!$A$9,'Size Premium'!$B$9,IF(L14>'Size Premium'!$A$10,'Size Premium'!$B$10,IF(L14>'Size Premium'!$A$11,'Size Premium'!$B$11,IF(L14>'Size Premium'!$A$12,'Size Premium'!$B$12,"ERROR")))))))) -> 0.005036 | N14: 0.117
A15: 7 | B15: =VLOOKUP('Utility Group'!$B9,vldatabase,2,FALSE) -> CMS Energy Corp. | C15: ='2019 03 Market DCF'!$J$425 -> 0.025 | E15: ='2019 03 Market DCF'!$P$426 -> 0.107 | G15: 0.132 | H15: =ROUND('Bond Yields'!$K$16,3) -> 0.031 | I15: 0.101 | J15: =VLOOKUP('Utility Group'!$B9,vldatabase,23,FALSE) -> 0.55 | K15: 0.08655 | L15: =VLOOKUP('Utility Group'!$B9,vldatabase,28,FALSE) -> 15647.91 | M15: =IF(L15>'Size Premium'!$A$5,'Size Premium'!$B$5,IF(L15>'Size Premium'!$A$6,'Size Premium'!$B$6,IF(L15>'Size Premium'!$A$7,'Size Premium'!$B$7,IF(L15>'Size Premium'!$A$8,'Size Premium'!$B$8,IF(L15>'Size Premium'!$A$9,'Size Premium'!$B$9,IF(L15>'Size Premium'!$A$10,'Size Premium'!$B$10,IF(L15>'Size Premium'!$A$11,'Size Premium'!$B$11,IF(L15>'Size Premium'!$A$12,'Size Premium'!$B$12,"ERROR")))))))) -> 0.005036 | N15: 0.092
A16: 8 | B16: =VLOOKUP('Utility Group'!$B10,vldatabase,2,FALSE) -> Dominion Energy | C16: ='2019 03 Market DCF'!$J$425 -> 0.025 | E16: ='2019 03 Market DCF'!$P$426 -> 0.107 | G16: 0.132 | H16: =ROUND('Bond Yields'!$K$16,3) -> 0.031 | I16: 0.101 | J16: =VLOOKUP('Utility Group'!$B10,vldatabase,23,FALSE) -> 0.55 | K16: 0.08655 | L16: =VLOOKUP('Utility Group'!$B10,vldatabase,28,FALSE) -> 49197.05 | M16: =IF(L16>'Size Premium'!$A$5,'Size Premium'!$B$5,IF(L16>'Size Premium'!$A$6,'Size Premium'!$B$6,IF(L16>'Size Premium'!$A$7,'Size Premium'!$B$7,IF(L16>'Size Premium'!$A$8,'Size Premium'!$B$8,IF(L16>'Size Premium'!$A$9,'Size Premium'!$B$9,IF(L16>'Size Premium'!$A$10,'Size Premium'!$B$10,IF(L16>'Size Premium'!$A$11,'Size Premium'!$B$11,IF(L16>'Size Premium'!$A$12,'Size Premium'!$B$12,"ERROR")))))))) -> -0.002872 | N16: 0.084
A17: 9 | B17: =VLOOKUP('Utility Group'!$B11,vldatabase,2,FALSE) -> DTE Energy Co. | C17: ='2019 03 Market DCF'!$J$425 -> 0.025 | E17: ='2019 03 Market DCF'!$P$426 -> 0.107 | G17: 0.132 | H17: =ROUND('Bond Yields'!$K$16,3) -> 0.031 | I17: 0.101 | J17: =VLOOKUP('Utility Group'!$B11,vldatabase,23,FALSE) -> 0.55 | K17: 0.08655 | L17: =VLOOKUP('Utility Group'!$B11,vldatabase,28,FALSE) -> 22420.44 | M17: =IF(L17>'Size Premium'!$A$5,'Size Premium'!$B$5,IF(L17>'Size Premium'!$A$6,'Size Premium'!$B$6,IF(L17>'Size Premium'!$A$7,'Size Premium'!$B$7,IF(L17>'Size Premium'!$A$8,'Size Premium'!$B$8,IF(L17>'Size Premium'!$A$9,'Size Premium'!$B$9,IF(L17>'Size Premium'!$A$10,'Size Premium'!$B$10,IF(L17>'Size Premium'!$A$11,'Size Premium'!$B$11,IF(L17>'Size Premium'!$A$12,'Size Premium'!$B$12,"ERROR")))))))) -> 0.005036 | N17: 0.092
A18: 10 | B18: =VLOOKUP('Utility Group'!$B12,vldatabase,2,FALSE) -> Edison International | C18: ='2019 03 Market DCF'!$J$425 -> 0.025 | E18: ='2019 03 Market DCF'!$P$426 -> 0.107 | G18: 0.132 | H18: =ROUND('Bond Yields'!$K$16,3) -> 0.031 | I18: 0.101 | J18: =VLOOKUP('Utility Group'!$B12,vldatabase,23,FALSE) -> 0.55 | K18: 0.08655 | L18: =VLOOKUP('Utility Group'!$B12,vldatabase,28,FALSE) -> 21171.2 | M18: =IF(L18>'Size Premium'!$A$5,'Size Premium'!$B$5,IF(L18>'Size Premium'!$A$6,'Size Premium'!$B$6,IF(L18>'Size Premium'!$A$7,'Size Premium'!$B$7,IF(L18>'Size Premium'!$A$8,'Size Premium'!$B$8,IF(L18>'Size Premium'!$A$9,'Size Premium'!$B$9,IF(L18>'Size Premium'!$A$10,'Size Premium'!$B$10,IF(L18>'Size Premium'!$A$11,'Size Premium'!$B$11,IF(L18>'Size Premium'!$A$12,'Size Premium'!$B$12,"ERROR")))))))) -> 0.005036 | N18: 0.092
A19: 11 | B19: =VLOOKUP('Utility Group'!$B13,vldatabase,2,FALSE) -> El Paso Electric Co. | C19: ='2019 03 Market DCF'!$J$425 -> 0.025 | E19: ='2019 03 Market DCF'!$P$426 -> 0.107 | G19: 0.132 | H19: =ROUND('Bond Yields'!$K$16,3) -> 0.031 | I19: 0.101 | J19: =VLOOKUP('Utility Group'!$B13,vldatabase,23,FALSE) -> 0.65 | K19: 0.09665 | L19: =VLOOKUP('Utility Group'!$B13,vldatabase,28,FALSE) -> 2359.09 | M19: =IF(L19>'Size Premium'!$A$5,'Size Premium'!$B$5,IF(L19>'Size Premium'!$A$6,'Size Premium'!$B$6,IF(L19>'Size Premium'!$A$7,'Size Premium'!$B$7,IF(L19>'Size Premium'!$A$8,'Size Premium'!$B$8,IF(L19>'Size Premium'!$A$9,'Size Premium'!$B$9,IF(L19>'Size Premium'!$A$10,'Size Premium'!$B$10,IF(L19>'Size Premium'!$A$11,'Size Premium'!$B$11,IF(L19>'Size Premium'!$A$12,'Size Premium'!$B$12,"ERROR")))))))) -> 0.015353 | N19: 0.112
A20: 12 | B20: =VLOOKUP('Utility Group'!$B14,vldatabase,2,FALSE) -> Emera Inc. | C20: ='2019 03 Market DCF'!$J$425 -> 0.025 | E20: ='2019 03 Market DCF'!$P$426 -> 0.107 | G20: 0.132 | H20: =ROUND('Bond Yields'!$K$16,3) -> 0.031 | I20: 0.101 | J20: =VLOOKUP('Utility Group'!$B14,vldatabase,23,FALSE) -> 0.55 | K20: 0.08655 | L20: =VLOOKUP('Utility Group'!$B14,vldatabase,28,FALSE) -> 11301.63 | M20: =IF(L20>'Size Premium'!$A$5,'Size Premium'!$B$5,IF(L20>'Size Premium'!$A$6,'Size Premium'!$B$6,IF(L20>'Size Premium'!$A$7,'Size Premium'!$B$7,IF(L20>'Size Premium'!$A$8,'Size Premium'!$B$8,IF(L20>'Size Premium'!$A$9,'Size Premium'!$B$9,IF(L20>'Size Premium'!$A$10,'Size Premium'!$B$10,IF(L20>'Size Premium'!$A$11,'Size Premium'!$B$11,IF(L20>'Size Premium'!$A$12,'Size Premium'!$B$12,"ERROR")))))))) -> 0.00839 | N20: 0.095
A21: 13 | B21: =VLOOKUP('Utility Group'!$B15,vldatabase,2,FALSE) -> Entergy Corp. | C21: ='2019 03 Market DCF'!$J$425 -> 0.025 | E21: ='2019 03 Market DCF'!$P$426 -> 0.107 | G21: 0.132 | H21: =ROUND('Bond Yields'!$K$16,3) -> 0.031 | I21: 0.101 | J21: =VLOOKUP('Utility Group'!$B15,vldatabase,23,FALSE) -> 0.6 | K21: 0.0916 | L21: =VLOOKUP('Utility Group'!$B15,vldatabase,28,FALSE) -> 17950.87 | M21: =IF(L21>'Size Premium'!$A$5,'Size Premium'!$B$5,IF(L21>'Size Premium'!$A$6,'Size Premium'!$B$6,IF(L21>'Size Premium'!$A$7,'Size Premium'!$B$7,IF(L21>'Size Premium'!$A$8,'Size Premium'!$B$8,IF(L21>'Size Premium'!$A$9,'Size Premium'!$B$9,IF(L21>'Size Premium'!$A$10,'Size Premium'!$B$10,IF(L21>'Size Premium'!$A$11,'Size Premium'!$B$11,IF(L21>'Size Premium'!$A$12,'Size Premium'!$B$12,"ERROR")))))))) -> 0.005036 | N21: 0.097
A22: 14 | B22: =VLOOKUP('Utility Group'!$B16,vldatabase,2,FALSE) -> Exelon Corp. | C22: ='2019 03 Market DCF'!$J$425 -> 0.025 | E22: ='2019 03 Market DCF'!$P$426 -> 0.107 | G22: 0.132 | H22: =ROUND('Bond Yields'!$K$16,3) -> 0.031 | I22: 0.101 | J22: =VLOOKUP('Utility Group'!$B16,vldatabase,23,FALSE) -> 0.7 | K22: 0.1017 | L22: =VLOOKUP('Utility Group'!$B16,vldatabase,28,FALSE) -> 48021.22 | M22: =IF(L22>'Size Premium'!$A$5,'Size Premium'!$B$5,IF(L22>'Size Premium'!$A$6,'Size Premium'!$B$6,IF(L22>'Size Premium'!$A$7,'Size Premium'!$B$7,IF(L22>'Size Premium'!$A$8,'Size Premium'!$B$8,IF(L22>'Size Premium'!$A$9,'Size Premium'!$B$9,IF(L22>'Size Premium'!$A$10,'Size Premium'!$B$10,IF(L22>'Size Premium'!$A$11,'Size Premium'!$B$11,IF(L22>'Size Premium'!$A$12,'Size Premium'!$B$12,"ERROR")))))))) -> -0.002872 | N22: 0.099
A23: 15 | B23: =VLOOKUP('Utility Group'!$B17,vldatabase,2,FALSE) -> FirstEnergy Corp. | C23: ='2019 03 Market DCF'!$J$425 -> 0.025 | E23: ='2019 03 Market DCF'!$P$426 -> 0.107 | G23: 0.132 | H23: =ROUND('Bond Yields'!$K$16,3) -> 0.031 | I23: 0.101 | J23: =VLOOKUP('Utility Group'!$B17,vldatabase,23,FALSE) -> 0.65 | K23: 0.09665 | L23: =VLOOKUP('Utility Group'!$B17,vldatabase,28,FALSE) -> 21091.99 | M23: =IF(L23>'Size Premium'!$A$5,'Size Premium'!$B$5,IF(L23>'Size Premium'!$A$6,'Size Premium'!$B$6,IF(L23>'Size Premium'!$A$7,'Size Premium'!$B$7,IF(L23>'Size Premium'!$A$8,'Size Premium'!$B$8,IF(L23>'Size Premium'!$A$9,'Size Premium'!$B$9,IF(L23>'Size Premium'!$A$10,'Size Premium'!$B$10,IF(L23>'Size Premium'!$A$11,'Size Premium'!$B$11,IF(L23>'Size Premium'!$A$12,'Size Premium'!$B$12,"ERROR")))))))) -> 0.005036 | N23: 0.102
A24: 16 | B24: =VLOOKUP('Utility Group'!$B18,vldatabase,2,FALSE) -> Hawaiian Elec. | C24: ='2019 03 Market DCF'!$J$425 -> 0.025 | E24: ='2019 03 Market DCF'!$P$426 -> 0.107 | G24: 0.132 | H24: =ROUND('Bond Yields'!$K$16,3) -> 0.031 | I24: 0.101 | J24: =VLOOKUP('Utility Group'!$B18,vldatabase,23,FALSE) -> 0.6 | K24: 0.0916 | L24: =VLOOKUP('Utility Group'!$B18,vldatabase,28,FALSE) -> 4419.4 | M24: =IF(L24>'Size Premium'!$A$5,'Size Premium'!$B$5,IF(L24>'Size Premium'!$A$6,'Size Premium'!$B$6,IF(L24>'Size Premium'!$A$7,'Size Premium'!$B$7,IF(L24>'Size Premium'!$A$8,'Size Premium'!$B$8,IF(L24>'Size Premium'!$A$9,'Size Premium'!$B$9,IF(L24>'Size Premium'!$A$10,'Size Premium'!$B$10,IF(L24>'Size Premium'!$A$11,'Size Premium'!$B$11,IF(L24>'Size Premium'!$A$12,'Size Premium'!$B$12,"ERROR")))))))) -> 0.012553 | N24: 0.104
A25: 17 | B25: =VLOOKUP('Utility Group'!$B19,vldatabase,2,FALSE) -> IDACORP, Inc. | C25: ='2019 03 Market DCF'!$J$425 -> 0.025 | E25: ='2019 03 Market DCF'!$P$426 -> 0.107 | G25: 0.132 | H25: =ROUND('Bond Yields'!$K$16,3) -> 0.031 | I25: 0.101 | J25: =VLOOKUP('Utility Group'!$B19,vldatabase,23,FALSE) -> 0.55 | K25: 0.08655 | L25: =VLOOKUP('Utility Group'!$B19,vldatabase,28,FALSE) -> 5011.75 | M25: =IF(L25>'Size Premium'!$A$5,'Size Premium'!$B$5,IF(L25>'Size Premium'!$A$6,'Size Premium'!$B$6,IF(L25>'Size Premium'!$A$7,'Size Premium'!$B$7,IF(L25>'Size Premium'!$A$8,'Size Premium'!$B$8,IF(L25>'Size Premium'!$A$9,'Size Premium'!$B$9,IF(L25>'Size Premium'!$A$10,'Size Premium'!$B$10,IF(L25>'Size Premium'!$A$11,'Size Premium'!$B$11,IF(L25>'Size Premium'!$A$12,'Size Premium'!$B$12,"ERROR")))))))) -> 0.008217 | N25: 0.095
A26: 18 | B26: =VLOOKUP('Utility Group'!$B20,vldatabase,2,FALSE) -> NorthWestern Corp. | C26: ='2019 03 Market DCF'!$J$425 -> 0.025 | E26: ='2019 03 Market DCF'!$P$426 -> 0.107 | G26: 0.132 | H26: =ROUND('Bond Yields'!$K$16,3) -> 0.031 | I26: 0.101 | J26: =VLOOKUP('Utility Group'!$B20,vldatabase,23,FALSE) -> 0.55 | K26: 0.08655 | L26: =VLOOKUP('Utility Group'!$B20,vldatabase,28,FALSE) -> 3544.75 | M26: =IF(L26>'Size Premium'!$A$5,'Size Premium'!$B$5,IF(L26>'Size Premium'!$A$6,'Size Premium'!$B$6,IF(L26>'Size Premium'!$A$7,'Size Premium'!$B$7,IF(L26>'Size Premium'!$A$8,'Size Premium'!$B$8,IF(L26>'Size Premium'!$A$9,'Size Premium'!$B$9,IF(L26>'Size Premium'!$A$10,'Size Premium'!$B$10,IF(L26>'Size Premium'!$A$11,'Size Premium'!$B$11,IF(L26>'Size Premium'!$A$12,'Size Premium'!$B$12,"ERROR")))))))) -> 0.012553 | N26: 0.099
A27: 19 | B27: =VLOOKUP('Utility Group'!$B21,vldatabase,2,FALSE) -> OGE Energy Corp. | C27: ='2019 03 Market DCF'!$J$425 -> 0.025 | E27: ='2019 03 Market DCF'!$P$426 -> 0.107 | G27: 0.132 | H27: =ROUND('Bond Yields'!$K$16,3) -> 0.031 | I27: 0.101 | J27: =VLOOKUP('Utility Group'!$B21,vldatabase,23,FALSE) -> 0.85 | K27: 0.11685 | L27: =VLOOKUP('Utility Group'!$B21,vldatabase,28,FALSE) -> 8551.15 | M27: =IF(L27>'Size Premium'!$A$5,'Size Premium'!$B$5,IF(L27>'Size Premium'!$A$6,'Size Premium'!$B$6,IF(L27>'Size Premium'!$A$7,'Size Premium'!$B$7,IF(L27>'Size Premium'!$A$8,'Size Premium'!$B$8,IF(L27>'Size Premium'!$A$9,'Size Premium'!$B$9,IF(L27>'Size Premium'!$A$10,'Size Premium'!$B$10,IF(L27>'Size Premium'!$A$11,'Size Premium'!$B$11,IF(L27>'Size Premium'!$A$12,'Size Premium'!$B$12,"ERROR")))))))) -> 0.00839 | N27: 0.125
A28: 20 | B28: =VLOOKUP('Utility Group'!$B22,vldatabase,2,FALSE) -> Otter Tail Corp. | C28: ='2019 03 Market DCF'!$J$425 -> 0.025 | E28: ='2019 03 Market DCF'!$P$426 -> 0.107 | G28: 0.132 | H28: =ROUND('Bond Yields'!$K$16,3) -> 0.031 | I28: 0.101 | J28: =VLOOKUP('Utility Group'!$B22,vldatabase,23,FALSE) -> 0.7 | K28: 0.1017 | L28: =VLOOKUP('Utility Group'!$B22,vldatabase,28,FALSE) -> 1951.07 | M28: =IF(L28>'Size Premium'!$A$5,'Size Premium'!$B$5,IF(L28>'Size Premium'!$A$6,'Size Premium'!$B$6,IF(L28>'Size Premium'!$A$7,'Size Premium'!$B$7,IF(L28>'Size Premium'!$A$8,'Size Premium'!$B$8,IF(L28>'Size Premium'!$A$9,'Size Premium'!$B$9,IF(L28>'Size Premium'!$A$10,'Size Premium'!$B$10,IF(L28>'Size Premium'!$A$11,'Size Premium'!$B$11,IF(L28>'Size Premium'!$A$12,'Size Premium'!$B$12,"ERROR")))))))) -> 0.015825 | N28: 0.118
A29: 21 | B29: =VLOOKUP('Utility Group'!$B23,vldatabase,2,FALSE) -> PNM Resources | C29: ='2019 03 Market DCF'!$J$425 -> 0.025 | E29: ='2019 03 Market DCF'!$P$426 -> 0.107 | G29: 0.132 | H29: =ROUND('Bond Yields'!$K$16,3) -> 0.031 | I29: 0.101 | J29: =VLOOKUP('Utility Group'!$B23,vldatabase,23,FALSE) -> 0.65 | K29: 0.09665 | L29: =VLOOKUP('Utility Group'!$B23,vldatabase,28,FALSE) -> 3748.47 | M29: =IF(L29>'Size Premium'!$A$5,'Size Premium'!$B$5,IF(L29>'Size Premium'!$A$6,'Size Premium'!$B$6,IF(L29>'Size Premium'!$A$7,'Size Premium'!$B$7,IF(L29>'Size Premium'!$A$8,'Size Premium'!$B$8,IF(L29>'Size Premium'!$A$9,'Size Premium'!$B$9,IF(L29>'Size Premium'!$A$10,'Size Premium'!$B$10,IF(L29>'Size Premium'!$A$11,'Size Premium'!$B$11,IF(L29>'Size Premium'!$A$12,'Size Premium'!$B$12,"ERROR")))))))) -> 0.012553 | N29: 0.109
A30: 22 | B30: =VLOOKUP('Utility Group'!$B24,vldatabase,2,FALSE) -> Sempra Energy | C30: ='2019 03 Market DCF'!$J$425 -> 0.025 | E30: ='2019 03 Market DCF'!$P$426 -> 0.107 | G30: 0.132 | H30: =ROUND('Bond Yields'!$K$16,3) -> 0.031 | I30: 0.101 | J30: =VLOOKUP('Utility Group'!$B24,vldatabase,23,FALSE) -> 0.75 | K30: 0.10675 | L30: =VLOOKUP('Utility Group'!$B24,vldatabase,28,FALSE) -> 34459.3 | M30: =IF(L30>'Size Premium'!$A$5,'Size Premium'!$B$5,IF(L30>'Size Premium'!$A$6,'Size Premium'!$B$6,IF(L30>'Size Premium'!$A$7,'Size Premium'!$B$7,IF(L30>'Size Premium'!$A$8,'Size Premium'!$B$8,IF(L30>'Size Premium'!$A$9,'Size Premium'!$B$9,IF(L30>'Size Premium'!$A$10,'Size Premium'!$B$10,IF(L30>'Size Premium'!$A$11,'Size Premium'!$B$11,IF(L30>'Size Premium'!$A$12,'Size Premium'!$B$12,"ERROR")))))))) -> -0.002872 | N30: 0.104
B32: Average | K32: =AVERAGE(K9:K30) -> 0.09448571429 | N32: =AVERAGE(N9:N30) -> 0.1019047619
B33: Midpoint (g) | K33: =AVERAGE(K44:K45) -> 0.094125 | N33: =AVERAGE(N44:N45) -> 0.1005
A35: (a) | B35: ="Weighted average for dividend-paying stocks in the S&P 500 based on data from "&'2019 03 Market DCF'!B432 -> Weighted average for dividend-paying stocks in the S&P 500 based on data from www.zacks.com (retrieved Mar. 11, 2019).
A36: (b) | B36: ="Average of weighted average earnings growth rates from Value Line Investment Survey, IBES, and Zacks Investment Research for dividend-paying stocks in the S&P 500 based on data from "&'2019 03 Market DCF'!B435&", "&'2019 03 Market DCF'!B434&", and "&'2019 03 Market DCF'!B433&"." -> Average of weighted average earnings growth rates from Value Line Investment Survey, IBES, and Zacks Investment Research for dividend-paying stocks in the S&P 500 based on data from www.valueline.com (retrieved Mar. 11, 2019), http://finance.yahoo.com (retrieved Mar. 11, 2019), and www.zacks.com (retrieved Mar. 11, 2019).
A38: (c) | B38: ="Average yield on 30-year Treasury bonds for the six-months ending "&'Bond Yields'!B14&" based on data from the Federal Reserve at "&'Bond Yields'!B21&"." -> Average yield on 30-year Treasury bonds for the six-months ending Mar. 2019 based on data from the Federal Reserve at https://fred.stlouisfed.org/..
A39: (d) | B39: ='Proxy Group Risk Measures'!B38&"." -> The Value Line Investment Survey (Jan. 25, Feb. 15 & Mar. 15, 2019).
A40: (e) | B40: ='Proxy Group Risk Measures'!B39 -> www.valueline.com (retrieved Mar. 26, 2019).
A41: (f) | B41: ='Size Premium'!A18 -> Duff & Phelps, 2019 CRSP Deciles Size Study -- Supplementary Data Exhibits, Cost of Capital Navigator.
A42: (g) | B42: Average of low and high values.
J44: Min | K44: =MIN(K9:K30) -> 0.0714 | N44: =MIN(N9:N30) -> 0.076
J45: Max | K45: =MAX(K9:K30) -> 0.11685 | N45: =MAX(N9:N30) -> 0.125
N46: ='6 (3)'!E43 -> 0.065

Sheet 9
A1: ='Exhibit List'!C11 -> EMPIRICAL CAPM - CURRENT BOND YIELD | Q1: ='Exhibit List'!B11 -> Exh. AMM-9
Q2: Page 1 of 1
A3: ='Exhibit List'!D11 -> UTILITY GROUP
C5: (a) | D5: (b) | F5: (c) | H5: (d) | J5: (e) | K5: (d) | O5: (f) | P5: (g)
C6: Market Return (Rm) | Q6: Size
C7: Div | D7: Proj. | E7: Cost of | F7: Risk-Free | G7: Risk | H7: Unadjusted RP | J7: Beta Adjusted RP | M7: Total | N7: Unadjusted | O7: Market | P7: Size | Q7: Adjusted
B8: Company | C8: Yield | D8: Growth | E8: Equity | F8: Rate | G8: Premium | H8: Weight | I8: RP1 | J8: Beta | K8: Weight | L8: RP2 | M8: RP | N8: Ke | O8: Cap | P8: Adjustment | Q8: Ke
A9: =A8+1 -> 1 | B9: =VLOOKUP('Utility Group'!$B3,vldatabase,2,FALSE) -> Algonquin Pwr & Util | C9: ='8'!C9 -> 0.025 | D9: ='8'!E9 -> 0.107 | E9: =C9+D9 -> 0.132 | F9: ='8'!H9 -> 0.031 | G9: =E9-F9 -> 0.101 | H9: 0.25 | I9: =G9*H9 -> 0.02525 | J9: =VLOOKUP('Utility Group'!$B3,vldatabase,23,FALSE) -> n/a | K9: 0.75 | L9: =IF(J9="n/a","n/a",G9*J9*K9) -> n/a | M9: =IF(L9="n/a","n/a",L9+I9) -> n/a | N9: =IF(M9="n/a","n/a",M9+F9) -> n/a | O9: =VLOOKUP('Utility Group'!$B3,vldatabase,28,FALSE) -> 5520 | P9: =IF(O9>'Size Premium'!$A$5,'Size Premium'!$B$5,IF(O9>'Size Premium'!$A$6,'Size Premium'!$B$6,IF(O9>'Size Premium'!$A$7,'Size Premium'!$B$7,IF(O9>'Size Premium'!$A$8,'Size Premium'!$B$8,IF(O9>'Size Premium'!$A$9,'Size Premium'!$B$9,IF(O9>'Size Premium'!$A$10,'Size Premium'!$B$10,IF(O9>'Size Premium'!$A$11,'Size Premium'!$B$11,IF(O9>'Size Premium'!$A$12,'Size Premium'!$B$12,"ERROR")))))))) -> 0.008217 | Q9: =IF(N9="n/a","n/a",ROUND(N9+P9,3)) -> n/a
A10: =A9+1 -> 2 | B10: =VLOOKUP('Utility Group'!$B4,vldatabase,2,FALSE) -> Ameren Corp. | C10: ='8'!C10 -> 0.025 | D10: ='8'!E10 -> 0.107 | E10: =C10+D10 -> 0.132 | F10: ='8'!H10 -> 0.031 | G10: =E10-F10 -> 0.101 | H10: 0.25 | I10: =G10*H10 -> 0.02525 | J10: =VLOOKUP('Utility Group'!$B4,vldatabase,23,FALSE) -> 0.6 | K10: 0.75 | L10: 0.04545 | M10: 0.0707 | N10: 0.1017 | O10: =VLOOKUP('Utility Group'!$B4,vldatabase,28,FALSE) -> 17912.07 | P10: =IF(O10>'Size Premium'!$A$5,'Size Premium'!$B$5,IF(O10>'Size Premium'!$A$6,'Size Premium'!$B$6,IF(O10>'Size Premium'!$A$7,'Size Premium'!$B$7,IF(O10>'Size Premium'!$A$8,'Size Premium'!$B$8,IF(O10>'Size Premium'!$A$9,'Size Premium'!$B$9,IF(O10>'Size Premium'!$A$10,'Size Premium'!$B$10,IF(O10>'Size Premium'!$A$11,'Size Premium'!$B$11,IF(O10>'Size Premium'!$A$12,'Size Premium'!$B$12,"ERROR")))))))) -> 0.005036 | Q10: =IF(N10="n/a","n/a",ROUND(N10+P10,3)) -> 0.107
A11: 3 | B11: =VLOOKUP('Utility Group'!$B5,vldatabase,2,FALSE) -> Avangrid, Inc. | C11: ='8'!C11 -> 0.025 | D11: ='8'!E11 -> 0.107 | E11: 0.132 | F11: ='8'!H11 -> 0.031 | G11: 0.101 | H11: 0.25 | I11: 0.02525 | J11: =VLOOKUP('Utility Group'!$B5,vldatabase,23,FALSE) -> 0.4 | K11: 0.75 | L11: 0.0303 | M11: 0.05555 | N11: 0.08655 | O11: =VLOOKUP('Utility Group'!$B5,vldatabase,28,FALSE) -> 15252.49 | P11: =IF(O11>'Size Premium'!$A$5,'Size Premium'!$B$5,IF(O11>'Size Premium'!$A$6,'Size Premium'!$B$6,IF(O11>'Size Premium'!$A$7,'Size Premium'!$B$7,IF(O11>'Size Premium'!$A$8,'Size Premium'!$B$8,IF(O11>'Size Premium'!$A$9,'Size Premium'!$B$9,IF(O11>'Size Premium'!$A$10,'Size Premium'!$B$10,IF(O11>'Size Premium'!$A$11,'Size Premium'!$B$11,IF(O11>'Size Premium'!$A$12,'Size Premium'!$B$12,"ERROR")))))))) -> 0.005036 | Q11: 0.092
A12: 4 | B12: =VLOOKUP('Utility Group'!$B6,vldatabase,2,FALSE) -> Avista Corp. | C12: ='8'!C12 -> 0.025 | D12: ='8'!E12 -> 0.107 | E12: 0.132 | F12: ='8'!H12 -> 0.031 | G12: 0.101 | H12: 0.25 | I12: 0.02525 | J12: =VLOOKUP('Utility Group'!$B6,vldatabase,23,FALSE) -> 0.65 | K12: 0.75 | L12: 0.0492375 | M12: 0.0744875 | N12: 0.1054875 | O12: =VLOOKUP('Utility Group'!$B6,vldatabase,28,FALSE) -> 2684.67 | P12: =IF(O12>'Size Premium'!$A$5,'Size Premium'!$B$5,IF(O12>'Size Premium'!$A$6,'Size Premium'!$B$6,IF(O12>'Size Premium'!$A$7,'Size Premium'!$B$7,IF(O12>'Size Premium'!$A$8,'Size Premium'!$B$8,IF(O12>'Size Premium'!$A$9,'Size Premium'!$B$9,IF(O12>'Size Premium'!$A$10,'Size Premium'!$B$10,IF(O12>'Size Premium'!$A$11,'Size Premium'!$B$11,IF(O12>'Size Premium'!$A$12,'Size Premium'!$B$12,"ERROR")))))))) -> 0.015353 | Q12: 0.121
A13: 5 | B13: =VLOOKUP('Utility Group'!$B7,vldatabase,2,FALSE) -> Black Hills Corp. | C13: ='8'!C13 -> 0.025 | D13: ='8'!E13 -> 0.107 | E13: 0.132 | F13: ='8'!H13 -> 0.031 | G13: 0.101 | H13: 0.25 | I13: 0.02525 | J13: =VLOOKUP('Utility Group'!$B7,vldatabase,23,FALSE) -> 0.75 | K13: 0.75 | L13: 0.0568125 | M13: 0.0820625 | N13: 0.1130625 | O13: =VLOOKUP('Utility Group'!$B7,vldatabase,28,FALSE) -> 4359.29 | P13: =IF(O13>'Size Premium'!$A$5,'Size Premium'!$B$5,IF(O13>'Size Premium'!$A$6,'Size Premium'!$B$6,IF(O13>'Size Premium'!$A$7,'Size Premium'!$B$7,IF(O13>'Size Premium'!$A$8,'Size Premium'!$B$8,IF(O13>'Size Premium'!$A$9,'Size Premium'!$B$9,IF(O13>'Size Premium'!$A$10,'Size Premium'!$B$10,IF(O13>'Size Premium'!$A$11,'Size Premium'!$B$11,IF(O13>'Size Premium'!$A$12,'Size Premium'!$B$12,"ERROR")))))))) -> 0.012553 | Q13: 0.126
A14: 6 | B14: =VLOOKUP('Utility Group'!$B8,vldatabase,2,FALSE) -> CenterPoint Energy | C14: ='8'!C14 -> 0.025 | D14: ='8'!E14 -> 0.107 | E14: 0.132 | F14: ='8'!H14 -> 0.031 | G14: 0.101 | H14: 0.25 | I14: 0.02525 | J14: =VLOOKUP('Utility Group'!$B8,vldatabase,23,FALSE) -> 0.8 | K14: 0.75 | L14: 0.0606 | M14: 0.08585 | N14: 0.11685 | O14: =VLOOKUP('Utility Group'!$B8,vldatabase,28,FALSE) -> 15346.65 | P14: =IF(O14>'Size Premium'!$A$5,'Size Premium'!$B$5,IF(O14>'Size Premium'!$A$6,'Size Premium'!$B$6,IF(O14>'Size Premium'!$A$7,'Size Premium'!$B$7,IF(O14>'Size Premium'!$A$8,'Size Premium'!$B$8,IF(O14>'Size Premium'!$A$9,'Size Premium'!$B$9,IF(O14>'Size Premium'!$A$10,'Size Premium'!$B$10,IF(O14>'Size Premium'!$A$11,'Size Premium'!$B$11,IF(O14>'Size Premium'!$A$12,'Size Premium'!$B$12,"ERROR")))))))) -> 0.005036 | Q14: 0.122
A15: 7 | B15: =VLOOKUP('Utility Group'!$B9,vldatabase,2,FALSE) -> CMS Energy Corp. | C15: ='8'!C15 -> 0.025 | D15: ='8'!E15 -> 0.107 | E15: 0.132 | F15: ='8'!H15 -> 0.031 | G15: 0.101 | H15: 0.25 | I15: 0.02525 | J15: =VLOOKUP('Utility Group'!$B9,vldatabase,23,FALSE) -> 0.55 | K15: 0.75 | L15: 0.0416625 | M15: 0.0669125 | N15: 0.0979125 | O15: =VLOOKUP('Utility Group'!$B9,vldatabase,28,FALSE) -> 15647.91 | P15: =IF(O15>'Size Premium'!$A$5,'Size Premium'!$B$5,IF(O15>'Size Premium'!$A$6,'Size Premium'!$B$6,IF(O15>'Size Premium'!$A$7,'Size Premium'!$B$7,IF(O15>'Size Premium'!$A$8,'Size Premium'!$B$8,IF(O15>'Size Premium'!$A$9,'Size Premium'!$B$9,IF(O15>'Size Premium'!$A$10,'Size Premium'!$B$10,IF(O15>'Size Premium'!$A$11,'Size Premium'!$B$11,IF(O15>'Size Premium'!$A$12,'Size Premium'!$B$12,"ERROR")))))))) -> 0.005036 | Q15: 0.103
A16: 8 | B16: =VLOOKUP('Utility Group'!$B10,vldatabase,2,FALSE) -> Dominion Energy | C16: ='8'!C16 -> 0.025 | D16: ='8'!E16 -> 0.107 | E16: 0.132 | F16: ='8'!H16 -> 0.031 | G16: 0.101 | H16: 0.25 | I16: 0.02525 | J16: =VLOOKUP('Utility Group'!$B10,vldatabase,23,FALSE) -> 0.55 | K16: 0.75 | L16: 0.0416625 | M16: 0.0669125 | N16: 0.0979125 | O16: =VLOOKUP('Utility Group'!$B10,vldatabase,28,FALSE) -> 49197.05 | P16: =IF(O16>'Size Premium'!$A$5,'Size Premium'!$B$5,IF(O16>'Size Premium'!$A$6,'Size Premium'!$B$6,IF(O16>'Size Premium'!$A$7,'Size Premium'!$B$7,IF(O16>'Size Premium'!$A$8,'Size Premium'!$B$8,IF(O16>'Size Premium'!$A$9,'Size Premium'!$B$9,IF(O16>'Size Premium'!$A$10,'Size Premium'!$B$10,IF(O16>'Size Premium'!$A$11,'Size Premium'!$B$11,IF(O16>'Size Premium'!$A$12,'Size Premium'!$B$12,"ERROR")))))))) -> -0.002872 | Q16: 0.095
A17: 9 | B17: =VLOOKUP('Utility Group'!$B11,vldatabase,2,FALSE) -> DTE Energy Co. | C17: ='8'!C17 -> 0.025 | D17: ='8'!E17 -> 0.107 | E17: 0.132 | F17: ='8'!H17 -> 0.031 | G17: 0.101 | H17: 0.25 | I17: 0.02525 | J17: =VLOOKUP('Utility Group'!$B11,vldatabase,23,FALSE) -> 0.55 | K17: 0.75 | L17: 0.0416625 | M17: 0.0669125 | N17: 0.0979125 | O17: =VLOOKUP('Utility Group'!$B11,vldatabase,28,FALSE) -> 22420.44 | P17: =IF(O17>'Size Premium'!$A$5,'Size Premium'!$B$5,IF(O17>'Size Premium'!$A$6,'Size Premium'!$B$6,IF(O17>'Size Premium'!$A$7,'Size Premium'!$B$7,IF(O17>'Size Premium'!$A$8,'Size Premium'!$B$8,IF(O17>'Size Premium'!$A$9,'Size Premium'!$B$9,IF(O17>'Size Premium'!$A$10,'Size Premium'!$B$10,IF(O17>'Size Premium'!$A$11,'Size Premium'!$B$11,IF(O17>'Size Premium'!$A$12,'Size Premium'!$B$12,"ERROR")))))))) -> 0.005036 | Q17: 0.103
A18: 10 | B18: =VLOOKUP('Utility Group'!$B12,vldatabase,2,FALSE) -> Edison International | C18: ='8'!C18 -> 0.025 | D18: ='8'!E18 -> 0.107 | E18: 0.132 | F18: ='8'!H18 -> 0.031 | G18: 0.101 | H18: 0.25 | I18: 0.02525 | J18: =VLOOKUP('Utility Group'!$B12,vldatabase,23,FALSE) -> 0.55 | K18: 0.75 | L18: 0.0416625 | M18: 0.0669125 | N18: 0.0979125 | O18: =VLOOKUP('Utility Group'!$B12,vldatabase,28,FALSE) -> 21171.2 | P18: =IF(O18>'Size Premium'!$A$5,'Size Premium'!$B$5,IF(O18>'Size Premium'!$A$6,'Size Premium'!$B$6,IF(O18>'Size Premium'!$A$7,'Size Premium'!$B$7,IF(O18>'Size Premium'!$A$8,'Size Premium'!$B$8,IF(O18>'Size Premium'!$A$9,'Size Premium'!$B$9,IF(O18>'Size Premium'!$A$10,'Size Premium'!$B$10,IF(O18>'Size Premium'!$A$11,'Size Premium'!$B$11,IF(O18>'Size Premium'!$A$12,'Size Premium'!$B$12,"ERROR")))))))) -> 0.005036 | Q18: 0.103
A19: 11 | B19: =VLOOKUP('Utility Group'!$B13,vldatabase,2,FALSE) -> El Paso Electric Co. | C19: ='8'!C19 -> 0.025 | D19: ='8'!E19 -> 0.107 | E19: 0.132 | F19: ='8'!H19 -> 0.031 | G19: 0.101 | H19: 0.25 | I19: 0.02525 | J19: =VLOOKUP('Utility Group'!$B13,vldatabase,23,FALSE) -> 0.65 | K19: 0.75 | L19: 0.0492375 | M19: 0.0744875 | N19: 0.1054875 | O19: =VLOOKUP('Utility Group'!$B13,vldatabase,28,FALSE) -> 2359.09 | P19: =IF(O19>'Size Premium'!$A$5,'Size Premium'!$B$5,IF(O19>'Size Premium'!$A$6,'Size Premium'!$B$6,IF(O19>'Size Premium'!$A$7,'Size Premium'!$B$7,IF(O19>'Size Premium'!$A$8,'Size Premium'!$B$8,IF(O19>'Size Premium'!$A$9,'Size Premium'!$B$9,IF(O19>'Size Premium'!$A$10,'Size Premium'!$B$10,IF(O19>'Size Premium'!$A$11,'Size Premium'!$B$11,IF(O19>'Size Premium'!$A$12,'Size Premium'!$B$12,"ERROR")))))))) -> 0.015353 | Q19: 0.121
A20: 12 | B20: =VLOOKUP('Utility Group'!$B14,vldatabase,2,FALSE) -> Emera Inc. | C20: ='8'!C20 -> 0.025 | D20: ='8'!E20 -> 0.107 | E20: 0.132 | F20: ='8'!H20 -> 0.031 | G20: 0.101 | H20: 0.25 | I20: 0.02525 | J20: =VLOOKUP('Utility Group'!$B14,vldatabase,23,FALSE) -> 0.55 | K20: 0.75 | L20: 0.0416625 | M20: 0.0669125 | N20: 0.0979125 | O20: =VLOOKUP('Utility Group'!$B14,vldatabase,28,FALSE) -> 11301.63 | P20: =IF(O20>'Size Premium'!$A$5,'Size Premium'!$B$5,IF(O20>'Size Premium'!$A$6,'Size Premium'!$B$6,IF(O20>'Size Premium'!$A$7,'Size Premium'!$B$7,IF(O20>'Size Premium'!$A$8,'Size Premium'!$B$8,IF(O20>'Size Premium'!$A$9,'Size Premium'!$B$9,IF(O20>'Size Premium'!$A$10,'Size Premium'!$B$10,IF(O20>'Size Premium'!$A$11,'Size Premium'!$B$11,IF(O20>'Size Premium'!$A$12,'Size Premium'!$B$12,"ERROR")))))))) -> 0.00839 | Q20: 0.106
A21: 13 | B21: =VLOOKUP('Utility Group'!$B15,vldatabase,2,FALSE) -> Entergy Corp. | C21: ='8'!C21 -> 0.025 | D21: ='8'!E21 -> 0.107 | E21: 0.132 | F21: ='8'!H21 -> 0.031 | G21: 0.101 | H21: 0.25 | I21: 0.02525 | J21: =VLOOKUP('Utility Group'!$B15,vldatabase,23,FALSE) -> 0.6 | K21: 0.75 | L21: 0.04545 | M21: 0.0707 | N21: 0.1017 | O21: =VLOOKUP('Utility Group'!$B15,vldatabase,28,FALSE) -> 17950.87 | P21: =IF(O21>'Size Premium'!$A$5,'Size Premium'!$B$5,IF(O21>'Size Premium'!$A$6,'Size Premium'!$B$6,IF(O21>'Size Premium'!$A$7,'Size Premium'!$B$7,IF(O21>'Size Premium'!$A$8,'Size Premium'!$B$8,IF(O21>'Size Premium'!$A$9,'Size Premium'!$B$9,IF(O21>'Size Premium'!$A$10,'Size Premium'!$B$10,IF(O21>'Size Premium'!$A$11,'Size Premium'!$B$11,IF(O21>'Size Premium'!$A$12,'Size Premium'!$B$12,"ERROR")))))))) -> 0.005036 | Q21: 0.107
A22: 14 | B22: =VLOOKUP('Utility Group'!$B16,vldatabase,2,FALSE) -> Exelon Corp. | C22: ='8'!C22 -> 0.025 | D22: ='8'!E22 -> 0.107 | E22: 0.132 | F22: ='8'!H22 -> 0.031 | G22: 0.101 | H22: 0.25 | I22: 0.02525 | J22: =VLOOKUP('Utility Group'!$B16,vldatabase,23,FALSE) -> 0.7 | K22: 0.75 | L22: 0.053025 | M22: 0.078275 | N22: 0.109275 | O22: =VLOOKUP('Utility Group'!$B16,vldatabase,28,FALSE) -> 48021.22 | P22: =IF(O22>'Size Premium'!$A$5,'Size Premium'!$B$5,IF(O22>'Size Premium'!$A$6,'Size Premium'!$B$6,IF(O22>'Size Premium'!$A$7,'Size Premium'!$B$7,IF(O22>'Size Premium'!$A$8,'Size Premium'!$B$8,IF(O22>'Size Premium'!$A$9,'Size Premium'!$B$9,IF(O22>'Size Premium'!$A$10,'Size Premium'!$B$10,IF(O22>'Size Premium'!$A$11,'Size Premium'!$B$11,IF(O22>'Size Premium'!$A$12,'Size Premium'!$B$12,"ERROR")))))))) -> -0.002872 | Q22: 0.106
A23: 15 | B23: =VLOOKUP('Utility Group'!$B17,vldatabase,2,FALSE) -> FirstEnergy Corp. | C23: ='8'!C23 -> 0.025 | D23: ='8'!E23 -> 0.107 | E23: 0.132 | F23: ='8'!H23 -> 0.031 | G23: 0.101 | H23: 0.25 | I23: 0.02525 | J23: =VLOOKUP('Utility Group'!$B17,vldatabase,23,FALSE) -> 0.65 | K23: 0.75 | L23: 0.0492375 | M23: 0.0744875 | N23: 0.1054875 | O23: =VLOOKUP('Utility Group'!$B17,vldatabase,28,FALSE) -> 21091.99 | P23: =IF(O23>'Size Premium'!$A$5,'Size Premium'!$B$5,IF(O23>'Size Premium'!$A$6,'Size Premium'!$B$6,IF(O23>'Size Premium'!$A$7,'Size Premium'!$B$7,IF(O23>'Size Premium'!$A$8,'Size Premium'!$B$8,IF(O23>'Size Premium'!$A$9,'Size Premium'!$B$9,IF(O23>'Size Premium'!$A$10,'Size Premium'!$B$10,IF(O23>'Size Premium'!$A$11,'Size Premium'!$B$11,IF(O23>'Size Premium'!$A$12,'Size Premium'!$B$12,"ERROR")))))))) -> 0.005036 | Q23: 0.111
A24: 16 | B24: =VLOOKUP('Utility Group'!$B18,vldatabase,2,FALSE) -> Hawaiian Elec. | C24: ='8'!C24 -> 0.025 | D24: ='8'!E24 -> 0.107 | E24: 0.132 | F24: ='8'!H24 -> 0.031 | G24: 0.101 | H24: 0.25 | I24: 0.02525 | J24: =VLOOKUP('Utility Group'!$B18,vldatabase,23,FALSE) -> 0.6 | K24: 0.75 | L24: 0.04545 | M24: 0.0707 | N24: 0.1017 | O24: =VLOOKUP('Utility Group'!$B18,vldatabase,28,FALSE) -> 4419.4 | P24: =IF(O24>'Size Premium'!$A$5,'Size Premium'!$B$5,IF(O24>'Size Premium'!$A$6,'Size Premium'!$B$6,IF(O24>'Size Premium'!$A$7,'Size Premium'!$B$7,IF(O24>'Size Premium'!$A$8,'Size Premium'!$B$8,IF(O24>'Size Premium'!$A$9,'Size Premium'!$B$9,IF(O24>'Size Premium'!$A$10,'Size Premium'!$B$10,IF(O24>'Size Premium'!$A$11,'Size Premium'!$B$11,IF(O24>'Size Premium'!$A$12,'Size Premium'!$B$12,"ERROR")))))))) -> 0.012553 | Q24: 0.114
A25: 17 | B25: =VLOOKUP('Utility Group'!$B19,vldatabase,2,FALSE) -> IDACORP, Inc. | C25: ='8'!C25 -> 0.025 | D25: ='8'!E25 -> 0.107 | E25: 0.132 | F25: ='8'!H25 -> 0.031 | G25: 0.101 | H25: 0.25 | I25: 0.02525 | J25: =VLOOKUP('Utility Group'!$B19,vldatabase,23,FALSE) -> 0.55 | K25: 0.75 | L25: 0.0416625 | M25: 0.0669125 | N25: 0.0979125 | O25: =VLOOKUP('Utility Group'!$B19,vldatabase,28,FALSE) -> 5011.75 | P25: =IF(O25>'Size Premium'!$A$5,'Size Premium'!$B$5,IF(O25>'Size Premium'!$A$6,'Size Premium'!$B$6,IF(O25>'Size Premium'!$A$7,'Size Premium'!$B$7,IF(O25>'Size Premium'!$A$8,'Size Premium'!$B$8,IF(O25>'Size Premium'!$A$9,'Size Premium'!$B$9,IF(O25>'Size Premium'!$A$10,'Size Premium'!$B$10,IF(O25>'Size Premium'!$A$11,'Size Premium'!$B$11,IF(O25>'Size Premium'!$A$12,'Size Premium'!$B$12,"ERROR")))))))) -> 0.008217 | Q25: 0.106
A26: 18 | B26: =VLOOKUP('Utility Group'!$B20,vldatabase,2,FALSE) -> NorthWestern Corp. | C26: ='8'!C26 -> 0.025 | D26: ='8'!E26 -> 0.107 | E26: 0.132 | F26: ='8'!H26 -> 0.031 | G26: 0.101 | H26: 0.25 | I26: 0.02525 | J26: =VLOOKUP('Utility Group'!$B20,vldatabase,23,FALSE) -> 0.55 | K26: 0.75 | L26: 0.0416625 | M26: 0.0669125 | N26: 0.0979125 | O26: =VLOOKUP('Utility Group'!$B20,vldatabase,28,FALSE) -> 3544.75 | P26: =IF(O26>'Size Premium'!$A$5,'Size Premium'!$B$5,IF(O26>'Size Premium'!$A$6,'Size Premium'!$B$6,IF(O26>'Size Premium'!$A$7,'Size Premium'!$B$7,IF(O26>'Size Premium'!$A$8,'Size Premium'!$B$8,IF(O26>'Size Premium'!$A$9,'Size Premium'!$B$9,IF(O26>'Size Premium'!$A$10,'Size Premium'!$B$10,IF(O26>'Size Premium'!$A$11,'Size Premium'!$B$11,IF(O26>'Size Premium'!$A$12,'Size Premium'!$B$12,"ERROR")))))))) -> 0.012553 | Q26: 0.11
A27: 19 | B27: =VLOOKUP('Utility Group'!$B21,vldatabase,2,FALSE) -> OGE Energy Corp. | C27: ='8'!C27 -> 0.025 | D27: ='8'!E27 -> 0.107 | E27: 0.132 | F27: ='8'!H27 -> 0.031 | G27: 0.101 | H27: 0.25 | I27: 0.02525 | J27: =VLOOKUP('Utility Group'!$B21,vldatabase,23,FALSE) -> 0.85 | K27: 0.75 | L27: 0.0643875 | M27: 0.0896375 | N27: 0.1206375 | O27: =VLOOKUP('Utility Group'!$B21,vldatabase,28,FALSE) -> 8551.15 | P27: =IF(O27>'Size Premium'!$A$5,'Size Premium'!$B$5,IF(O27>'Size Premium'!$A$6,'Size Premium'!$B$6,IF(O27>'Size Premium'!$A$7,'Size Premium'!$B$7,IF(O27>'Size Premium'!$A$8,'Size Premium'!$B$8,IF(O27>'Size Premium'!$A$9,'Size Premium'!$B$9,IF(O27>'Size Premium'!$A$10,'Size Premium'!$B$10,IF(O27>'Size Premium'!$A$11,'Size Premium'!$B$11,IF(O27>'Size Premium'!$A$12,'Size Premium'!$B$12,"ERROR")))))))) -> 0.00839 | Q27: 0.129
A28: 20 | B28: =VLOOKUP('Utility Group'!$B22,vldatabase,2,FALSE) -> Otter Tail Corp. | C28: ='8'!C28 -> 0.025 | D28: ='8'!E28 -> 0.107 | E28: 0.132 | F28: ='8'!H28 -> 0.031 | G28: 0.101 | H28: 0.25 | I28: 0.02525 | J28: =VLOOKUP('Utility Group'!$B22,vldatabase,23,FALSE) -> 0.7 | K28: 0.75 | L28: 0.053025 | M28: 0.078275 | N28: 0.109275 | O28: =VLOOKUP('Utility Group'!$B22,vldatabase,28,FALSE) -> 1951.07 | P28: =IF(O28>'Size Premium'!$A$5,'Size Premium'!$B$5,IF(O28>'Size Premium'!$A$6,'Size Premium'!$B$6,IF(O28>'Size Premium'!$A$7,'Size Premium'!$B$7,IF(O28>'Size Premium'!$A$8,'Size Premium'!$B$8,IF(O28>'Size Premium'!$A$9,'Size Premium'!$B$9,IF(O28>'Size Premium'!$A$10,'Size Premium'!$B$10,IF(O28>'Size Premium'!$A$11,'Size Premium'!$B$11,IF(O28>'Size Premium'!$A$12,'Size Premium'!$B$12,"ERROR")))))))) -> 0.015825 | Q28: 0.125
A29: 21 | B29: =VLOOKUP('Utility Group'!$B23,vldatabase,2,FALSE) -> PNM Resources | C29: ='8'!C29 -> 0.025 | D29: ='8'!E29 -> 0.107 | E29: 0.132 | F29: ='8'!H29 -> 0.031 | G29: 0.101 | H29: 0.25 | I29: 0.02525 | J29: =VLOOKUP('Utility Group'!$B23,vldatabase,23,FALSE) -> 0.65 | K29: 0.75 | L29: 0.0492375 | M29: 0.0744875 | N29: 0.1054875 | O29: =VLOOKUP('Utility Group'!$B23,vldatabase,28,FALSE) -> 3748.47 | P29: =IF(O29>'Size Premium'!$A$5,'Size Premium'!$B$5,IF(O29>'Size Premium'!$A$6,'Size Premium'!$B$6,IF(O29>'Size Premium'!$A$7,'Size Premium'!$B$7,IF(O29>'Size Premium'!$A$8,'Size Premium'!$B$8,IF(O29>'Size Premium'!$A$9,'Size Premium'!$B$9,IF(O29>'Size Premium'!$A$10,'Size Premium'!$B$10,IF(O29>'Size Premium'!$A$11,'Size Premium'!$B$11,IF(O29>'Size Premium'!$A$12,'Size Premium'!$B$12,"ERROR")))))))) -> 0.012553 | Q29: 0.118
A30: 22 | B30: =VLOOKUP('Utility Group'!$B24,vldatabase,2,FALSE) -> Sempra Energy | C30: ='8'!C30 -> 0.025 | D30: ='8'!E30 -> 0.107 | E30: 0.132 | F30: ='8'!H30 -> 0.031 | G30: 0.101 | H30: 0.25 | I30: 0.02525 | J30: =VLOOKUP('Utility Group'!$B24,vldatabase,23,FALSE) -> 0.75 | K30: 0.75 | L30: 0.0568125 | M30: 0.0820625 | N30: 0.1130625 | O30: =VLOOKUP('Utility Group'!$B24,vldatabase,28,FALSE) -> 34459.3 | P30: =IF(O30>'Size Premium'!$A$5,'Size Premium'!$B$5,IF(O30>'Size Premium'!$A$6,'Size Premium'!$B$6,IF(O30>'Size Premium'!$A$7,'Size Premium'!$B$7,IF(O30>'Size Premium'!$A$8,'Size Premium'!$B$8,IF(O30>'Size Premium'!$A$9,'Size Premium'!$B$9,IF(O30>'Size Premium'!$A$10,'Size Premium'!$B$10,IF(O30>'Size Premium'!$A$11,'Size Premium'!$B$11,IF(O30>'Size Premium'!$A$12,'Size Premium'!$B$12,"ERROR")))))))) -> -0.002872 | Q30: 0.11
K31: 0.75
B32: Average | N32: =AVERAGE(N9:N30) -> 0.1038642857 | Q32: =AVERAGE(Q9:Q30) -> 0.1111904762
B33: Midpoint (h) | N33: =AVERAGE(N44:N45) -> 0.10359375 | Q33: =AVERAGE(Q44:Q45) -> 0.1105
A35: (a) | B35: ='8'!B35 -> Weighted average for dividend-paying stocks in the S&P 500 based on data from www.zacks.com (retrieved Mar. 11, 2019).
A36: (b) | B36: ='8'!B36 -> Average of weighted average earnings growth rates from Value Line Investment Survey, IBES, and Zacks Investment Research for dividend-paying stocks in the S&P 500 based on data from www.valueline.com (retrieved Mar. 11, 2019), http://finance.yahoo.com (retrieved Mar. 11, 2019), and www.zacks.com (retrieved Mar. 11, 2019).
A38: (c) | B38: ='8'!B38 -> Average yield on 30-year Treasury bonds for the six-months ending Mar. 2019 based on data from the Federal Reserve at https://fred.stlouisfed.org/..
A39: (d) | B39: Roger A. Morin, New Regulatory Finance, Pub. Util. Reports, Inc. (2006) at 190.
A40: (e) | B40: ='8'!B39 -> The Value Line Investment Survey (Jan. 25, Feb. 15 & Mar. 15, 2019).
A41: (f) | B41: ='8'!B40 -> www.valueline.com (retrieved Mar. 26, 2019).
A42: (g) | B42: ='8'!B41 -> Duff & Phelps, 2019 CRSP Deciles Size Study -- Supplementary Data Exhibits, Cost of Capital Navigator.
A43: (h) | B43: Average of low and high values.
M44: Min | N44: =MIN(N9:N30) -> 0.08655 | Q44: =MIN(Q9:Q30) -> 0.092
M45: Max | N45: =MAX(N9:N30) -> 0.1206375 | Q45: =MAX(Q9:Q30) -> 0.129

Sheet 10 (1)
A1: ='Exhibit List'!C13 -> ELECTRIC UTILITY RISK PREMIUM | G1: ='Exhibit List'!B13 -> Exh. AMM-10
G2: Page 1 of 4
A3: ='Exhibit List'!D13 -> CURRENT BOND YIELD
A6: Current Equity Risk Premium
A7: (a) | B7: Avg. Yield over Study Period | G7: =ROUND(+'10 (3)'!G52,4) -> 0.0819
A8: (b) | B8: Average Utility Bond Yield | G8: ='Bond Yields'!I16 -> 0.0447
C9: Change in Bond Yield | G9: =-G7+G8 -> -0.0372
A11: (c) | B11: Risk Premium/Interest Rate Relationship | G11: =ROUND('10 (4)'!B46,4) -> -0.4304
C12: Adjustment to Average Risk Premium | G12: =G9*G11 -> 0.01601088
A14: (a) | B14: Average Risk Premium over Study Period | G14: =ROUND('10 (3)'!J52,4) -> 0.0375
C15: Adjusted Risk Premium | G15: =G12+G14 -> 0.05351088
A18: Implied Cost of Equity
A19: (b) | B19: Baa Utility Bond Yield | G19: ='Bond Yields'!C16 -> 0.0487
B20: Adjusted Equity Risk Premium | G20: =G15 -> 0.05351088
B22: Risk Premium Cost of Equity | G22: =G19+G20 -> 0.10221088
A26: (a) | B26: =G1 & ", page 3." -> Exh. AMM-10, page 3.
A27: (b) | B27: ="Average bond yield on all utility bonds and Baa subset for the six-months ending "&'Bond Yields'!B14&" based on data from Moody's Investors Service at www.credittrends.com." -> Average bond yield on all utility bonds and Baa subset for the six-months ending Mar. 2019 based on data from Moody's Investors Service at www.credittrends.com.
A29: (c) | B29: =G1 & ", page 4." -> Exh. AMM-10, page 4.

Sheet 10 (2)
A1: ='Exhibit List'!C14 -> ELECTRIC UTILITY RISK PREMIUM | G1: ='Exhibit List'!B14 -> Exh. AMM-10
G2: Page 2 of 4
A3: ='Exhibit List'!D14 -> PROJECTED BOND YIELD
A6: Current Equity Risk Premium
A7: (a) | B7: Avg. Yield over Study Period | G7: =ROUND(+'10 (3)'!G52,4) -> 0.0819
A8: (b) | B8: Average Utility Bond Yield 2019-2020 | G8: ='Bond Yields'!O39 -> 0.0545
C9: Change in Bond Yield | G9: =-G7+G8 -> -0.0274
A11: (c) | B11: Risk Premium/Interest Rate Relationship | G11: =ROUND('10 (4)'!B46,4) -> -0.4304
C12: Adjustment to Average Risk Premium | G12: =G9*G11 -> 0.01179296
A14: (a) | B14: Average Risk Premium over Study Period | G14: =ROUND('10 (3)'!J52,4) -> 0.0375
C15: Adjusted Risk Premium | G15: =G12+G14 -> 0.04929296
A18: Implied Cost of Equity
A19: (b) | B19: Baa Utility Bond Yield 2019-2020 | G19: ='Bond Yields'!E39 -> 0.0585
B20: Adjusted Equity Risk Premium | G20: =G15 -> 0.04929296
B22: Risk Premium Cost of Equity | G22: =G19+G20 -> 0.10779296
A26: (a) | B26: =G1 & ", page 3." -> Exh. AMM-10, page 3.
A27: (b) | B27: ="Yields on all utility bonds and Baa subset based on data from " &'Bond Yields'!B73&"; " & 'Bond Yields'!B74 & "; & Moody's Investors Service at www.credittrends.com." -> Yields on all utility bonds and Baa subset based on data from IHS Global Insight, Long-Term Macro Forecast - Baseline (Jan. 10, 2019).; Energy Information Administration, Annual Energy Outlook 2019 (Jan. 24, 2019).; & Moody's Investors Service at www.credittrends.com.
A30: (c) | B30: =G1 & ", page 4." -> Exh. AMM-10, page 4.

Sheet 10 (3)
A1: ='Exhibit List'!C15 -> ELECTRIC UTILITY RISK PREMIUM | K1: ='Exhibit List'!B15 -> Exh. AMM-10
K2: Page 3 of 4
A3: ='Exhibit List'!D15 -> AUTHORIZED RETURNS
D4: (a) | G4: (b)
D5: Allowed | G5: Average Utility | J5: Risk
B6: Year | D6: ROE | G6: Bond Yield | J6: Premium
B7: 1974 | D7: 0.131 | G7: 0.0927 | J7: =D7-G7 -> 0.0383
B8: =B7+1 -> 1975 | D8: 0.132 | G8: 0.0988 | J8: 0.0332
B9: 1976 | D9: 0.131 | G9: 0.0917 | J9: 0.0393 | N9: =AVERAGE(G7:G9) -> 0.0944 | O9: =AVERAGE(J7:J9) -> 0.03693333333
B10: 1977 | D10: 0.133 | G10: 0.0858 | J10: 0.0472 | N10: =AVERAGE(G8:G10) -> 0.0921 | O10: =AVERAGE(J8:J10) -> 0.0399
B11: 1978 | D11: 0.132 | G11: 0.0922 | J11: 0.0398 | N11: 0.0899 | O11: 0.0421
B12: 1979 | D12: 0.135 | G12: 0.1039 | J12: 0.0311 | N12: 0.09396666667 | O12: 0.03936666667
B13: 1980 | D13: 0.1423 | G13: 0.1315 | J13: 0.0108 | N13: 0.1092 | O13: 0.02723333333
B14: 1981 | D14: 0.1522 | G14: 0.1562 | J14: -0.004 | N14: 0.1305333333 | O14: 0.01263333333
B15: 1982 | D15: 0.1578 | G15: 0.1533 | J15: 0.0045 | N15: 0.147 | O15: 0.003766666667
B16: 1983 | D16: 0.1536 | G16: 0.1331 | J16: 0.0205 | N16: 0.1475333333 | O16: 0.007
B17: 1984 | D17: 0.1532 | G17: 0.1403 | J17: 0.0129 | N17: 0.1422333333 | O17: 0.01263333333
B18: 1985 | D18: 0.152 | G18: 0.1229 | J18: 0.0291 | N18: 0.1321 | O18: 0.02083333333
B19: 1986 | D19: 0.1393 | G19: 0.0946 | J19: 0.0447 | N19: 0.1192666667 | O19: 0.0289
B20: 1987 | D20: 0.1299 | G20: 0.0998 | J20: 0.0301 | N20: 0.1057666667 | O20: 0.03463333333
B21: 1988 | D21: 0.1279 | G21: 0.1045 | J21: 0.0234 | N21: 0.09963333333 | O21: 0.03273333333
B22: 1989 | D22: 0.1297 | G22: 0.0966 | J22: 0.0331 | N22: 0.1003 | O22: 0.02886666667
B23: 1990 | D23: 0.127 | G23: 0.0976 | J23: 0.0294 | N23: 0.09956666667 | O23: 0.02863333333
B24: 1991 | D24: 0.1254 | G24: 0.0921 | J24: 0.0333 | N24: 0.09543333333 | O24: 0.03193333333
B25: 1992 | D25: 0.1209 | G25: 0.0857 | J25: 0.0352 | N25: 0.0918 | O25: 0.03263333333
B26: 1993 | D26: 0.1146 | G26: 0.0756 | J26: 0.039 | N26: 0.08446666667 | O26: 0.03583333333
B27: 1994 | D27: 0.1121 | G27: 0.083 | J27: 0.0291 | N27: 0.08143333333 | O27: 0.03443333333
B28: 1995 | D28: 0.1158 | G28: 0.0791 | J28: 0.0367 | N28: 0.07923333333 | O28: 0.03493333333
B29: 1996 | D29: 0.114 | G29: 0.0774 | J29: 0.0366 | N29: 0.07983333333 | O29: 0.03413333333
B30: 1997 | D30: 0.1133 | G30: 0.0763 | J30: 0.037 | N30: 0.0776 | O30: 0.03676666667
B31: 1998 | D31: 0.1177 | G31: 0.07 | J31: 0.0477 | N31: 0.07456666667 | O31: 0.04043333333
B32: 1999 | D32: 0.1072 | G32: 0.0755 | J32: 0.0317 | N32: 0.07393333333 | O32: 0.0388
B33: 2000 | D33: 0.1158 | G33: 0.0809 | J33: 0.0349 | N33: 0.07546666667 | O33: 0.0381
B34: 2001 | D34: 0.1107 | G34: 0.0772 | J34: 0.0335 | N34: 0.07786666667 | O34: 0.03336666667
B35: 2002 | D35: 0.1121 | G35: 0.0753 | J35: 0.0368 | N35: 0.0778 | O35: 0.03506666667
B36: 2003 | D36: 0.1096 | G36: 0.0661 | J36: 0.0435 | N36: 0.07286666667 | O36: 0.03793333333
B37: 2004 | D37: 0.1081 | G37: 0.062 | J37: 0.0461 | N37: 0.0678 | O37: 0.04213333333
B38: 2005 | D38: 0.1051 | G38: 0.0567 | J38: 0.0484 | N38: 0.0616 | O38: 0.046
B39: 2006 | D39: 0.1032 | G39: 0.0608 | J39: 0.0424 | N39: 0.05983333333 | O39: 0.04563333333
B40: 2007 | D40: 0.103 | G40: 0.0611 | J40: 0.0419 | N40: 0.05953333333 | O40: 0.04423333333
B41: 2008 | D41: 0.1041 | G41: 0.0665 | J41: 0.0376 | N41: 0.0628 | O41: 0.04063333333
B42: 2009 | D42: 0.1052 | G42: 0.0628 | J42: 0.0424 | N42: 0.06346666667 | O42: 0.04063333333
B43: 2010 | D43: 0.1037 | G43: 0.0556 | J43: 0.0481 | N43: 0.06163333333 | O43: 0.0427
B44: 2011 | D44: 0.1029 | G44: 0.0513 | J44: 0.0516 | N44: 0.05656666667 | O44: 0.04736666667
B45: 2012 | D45: 0.1017 | G45: 0.0426 | J45: 0.0591 | N45: 0.04983333333 | O45: 0.05293333333
B46: 2013 | D46: 0.1003 | G46: 0.0455 | J46: 0.0548 | N46: 0.04646666667 | O46: 0.05516666667
B47: 2014 | D47: 0.0991 | G47: 0.0441 | J47: =D47-G47 -> 0.055 | N47: 0.04406666667 | O47: 0.0563
B48: 2015 | D48: 0.0985 | G48: 0.0437 | J48: =D48-G48 -> 0.0548 | N48: 0.04443333333 | O48: 0.05486666667
B49: 2016 | D49: 0.0977 | G49: 0.0411 | J49: =D49-G49 -> 0.0566 | N49: 0.04296666667 | O49: 0.05546666667
B50: 2017 | D50: 0.0974 | G50: 0.0407 | J50: =D50-G50 -> 0.0567 | N50: =AVERAGE(G48:G50) -> 0.04183333333 | O50: =AVERAGE(J48:J50) -> 0.05603333333
B51: 2018 | D51: 0.0959 | G51: 0.0434 | J51: =D51-G51 -> 0.0525 | N51: 0.04173333333 | O51: 0.05526666667
B52: Average | D52: =AVERAGE(D7:D51) -> 0.1194222222 | G52: =AVERAGE(G7:G51) -> 0.08194666667 | J52: =AVERAGE(J7:J51) -> 0.03747555556
A54: (a) | B54: Major Rate Case Decisions, Regulatory Focus, Regulatory Research Associates; UtilityScope Regulatory Service, Argus.
A56: (b) | B56: Moody's Investors Service.

Sheet 10 (4)
A1: ='Exhibit List'!C16 -> ELECTRIC UTILITY RISK PREMIUM | I1: ='Exhibit List'!B16 -> Exh. AMM-10
I2: Page 4 of 4
A3: ='Exhibit List'!D16 -> REGRESSION RESULTS
A29: SUMMARY OUTPUT
A31: Regression Statistics
A32: Multiple R | B32: 0.9341116901
A33: R Square | B33: 0.8725646496
A34: Adjusted R Square | B34: 0.8696010368
A35: Standard Error | B35: 0.00494091602
A36: Observations | B36: 45
A38: ANOVA
B39: df | C39: SS | D39: MS | E39: F | F39: Significance F
A40: Regression | B40: 1 | C40: 0.007187719113 | D40: 0.007187719113 | E40: 294.4259957 | F40: 7.492326822e-21
A41: Residual | B41: 43 | C41: 0.001049743998 | D41: 2.441265112e-05
A42: Total | B42: 44 | C42: 0.008237463111
B44: Coefficients | C44: Standard Error | D44: t Stat | E44: P-value | F44: Lower 95% | G44: Upper 95% | H44: Lower 95.0% | I44: Upper 95.0%
A45: Intercept | B45: 0.0727420901 | C45: 0.002183289142 | D45: 33.31766219 | E45: 2.400285675e-32 | F45: 0.06833906791 | G45: 0.07714511228 | H45: 0.06833906791 | I45: 0.07714511228
A46: X Variable 1 | B46: -0.4303595982 | C46: 0.02508091736 | D46: -17.15884599 | E46: 7.492326822e-21 | F46: -0.4809400886 | G46: -0.3797791078 | H46: -0.4809400886 | I46: -0.3797791078

Sheet 11
A1: ='Exhibit List'!C17 -> EXPECTED EARNINGS APPROACH | J1: ='Exhibit List'!B17 -> Exh. AMM-11
J2: Page 1 of 1
A3: ='Exhibit List'!D17 -> UTILITY GROUP
D5: (a) | F5: (b) | I5: (c)
F6: Mid-Year
D7: Expected Return | F7: Adjustment | I7: Adjusted Return
B8: Company | D8: on Common Equity | F8: Factor | I8: on Common Equity
A10: =A9+1 -> 1 | B10: =VLOOKUP('Utility Group'!$B3,vldatabase,2,FALSE) -> Algonquin Pwr & Util | D10: =VLOOKUP('Utility Group'!$B3,vldatabase,18,FALSE) -> n/a | F10: ='7'!I8 -> n/a | I10: =IF(D10="n/a","n/a ",D10*F10) -> n/a | M10: =IF(I10="n/a","n/a",IF(I10<$M$44,"nmf",IF(I10>$M$45,"nmf",I10))) -> nmf
A11: =A10+1 -> 2 | B11: =VLOOKUP('Utility Group'!$B4,vldatabase,2,FALSE) -> Ameren Corp. | D11: =VLOOKUP('Utility Group'!$B4,vldatabase,18,FALSE) -> 0.105 | F11: ='7'!I9 -> 1.029013189 | I11: =IF(D11="n/a","n/a ",D11*F11) -> 0.1080463848 | M11: 0.1080463848
A12: 3 | B12: =VLOOKUP('Utility Group'!$B5,vldatabase,2,FALSE) -> Avangrid, Inc. | D12: =VLOOKUP('Utility Group'!$B5,vldatabase,18,FALSE) -> 0.065 | F12: ='7'!I10 -> 1.00915024 | I12: 0.06559476563 | M12: 0.06559476563
A13: 4 | B13: =VLOOKUP('Utility Group'!$B6,vldatabase,2,FALSE) -> Avista Corp. | D13: =VLOOKUP('Utility Group'!$B6,vldatabase,18,FALSE) -> 0.085 | F13: ='7'!I11 -> 1.024254989 | I13: 0.0870616741 | M13: 0.0870616741
A14: 5 | B14: =VLOOKUP('Utility Group'!$B7,vldatabase,2,FALSE) -> Black Hills Corp. | D14: =VLOOKUP('Utility Group'!$B7,vldatabase,18,FALSE) -> 0.1 | F14: ='7'!I12 -> 1.042358445 | I14: 0.1042358445 | M14: 0.1042358445
A15: 6 | B15: =VLOOKUP('Utility Group'!$B8,vldatabase,2,FALSE) -> CenterPoint Energy | D15: =VLOOKUP('Utility Group'!$B8,vldatabase,18,FALSE) -> 0.1 | F15: ='7'!I13 -> 1.064532698 | I15: 0.1064532698 | M15: 0.1064532698
A16: 7 | B16: =VLOOKUP('Utility Group'!$B9,vldatabase,2,FALSE) -> CMS Energy Corp. | D16: =VLOOKUP('Utility Group'!$B9,vldatabase,18,FALSE) -> 0.14 | F16: ='7'!I14 -> 1.042922755 | I16: 0.1460091857 | M16: 0.1460091857
A17: 8 | B17: =VLOOKUP('Utility Group'!$B10,vldatabase,2,FALSE) -> Dominion Energy | D17: =VLOOKUP('Utility Group'!$B10,vldatabase,18,FALSE) -> 0.13 | F17: ='7'!I15 -> 1.050113185 | I17: 0.1365147141 | M17: 0.1365147141
A18: 9 | B18: =VLOOKUP('Utility Group'!$B11,vldatabase,2,FALSE) -> DTE Energy Co. | D18: =VLOOKUP('Utility Group'!$B11,vldatabase,18,FALSE) -> 0.105 | F18: ='7'!I16 -> 1.03604037 | I18: 0.1087842388 | M18: 0.1087842388
A19: 10 | B19: =VLOOKUP('Utility Group'!$B12,vldatabase,2,FALSE) -> Edison International | D19: =VLOOKUP('Utility Group'!$B12,vldatabase,18,FALSE) -> 0.125 | F19: ='7'!I17 -> 1.023425675 | I19: 0.1279282094 | M19: 0.1279282094
A20: 11 | B20: =VLOOKUP('Utility Group'!$B13,vldatabase,2,FALSE) -> El Paso Electric Co. | D20: =VLOOKUP('Utility Group'!$B13,vldatabase,18,FALSE) -> 0.085 | F20: ='7'!I18 -> 1.022611566 | I20: 0.0869219831 | M20: 0.0869219831
A21: 12 | B21: =VLOOKUP('Utility Group'!$B14,vldatabase,2,FALSE) -> Emera Inc. | D21: =VLOOKUP('Utility Group'!$B14,vldatabase,18,FALSE) -> 0.115 | F21: ='7'!I19 -> 1.007870556 | I21: 0.115905114 | M21: 0.115905114
A22: 13 | B22: =VLOOKUP('Utility Group'!$B15,vldatabase,2,FALSE) -> Entergy Corp. | D22: =VLOOKUP('Utility Group'!$B15,vldatabase,18,FALSE) -> 0.105 | F22: ='7'!I20 -> 1.031036261 | I22: 0.1082588074 | M22: 0.1082588074
A23: 14 | B23: =VLOOKUP('Utility Group'!$B16,vldatabase,2,FALSE) -> Exelon Corp. | D23: =VLOOKUP('Utility Group'!$B16,vldatabase,18,FALSE) -> 0.095 | F23: ='7'!I21 -> 1.029324975 | I23: 0.09778587258 | M23: 0.09778587258
A24: 15 | B24: =VLOOKUP('Utility Group'!$B17,vldatabase,2,FALSE) -> FirstEnergy Corp. | D24: =VLOOKUP('Utility Group'!$B17,vldatabase,18,FALSE) -> 0.175 | F24: ='7'!I22 -> 1.056370734 | I24: 0.1848648784 | M24: nmf
A25: 16 | B25: =VLOOKUP('Utility Group'!$B18,vldatabase,2,FALSE) -> Hawaiian Elec. | D25: =VLOOKUP('Utility Group'!$B18,vldatabase,18,FALSE) -> 0.095 | F25: ='7'!I23 -> 1.024040476 | I25: 0.09728384521 | M25: 0.09728384521
A26: 17 | B26: =VLOOKUP('Utility Group'!$B19,vldatabase,2,FALSE) -> IDACORP, Inc. | D26: =VLOOKUP('Utility Group'!$B19,vldatabase,18,FALSE) -> 0.095 | F26: ='7'!I24 -> 1.021077645 | I26: 0.09700237627 | M26: 0.09700237627
A27: 18 | B27: =VLOOKUP('Utility Group'!$B20,vldatabase,2,FALSE) -> NorthWestern Corp. | D27: =VLOOKUP('Utility Group'!$B20,vldatabase,18,FALSE) -> 0.09 | F27: ='7'!I25 -> 1.017921886 | I27: 0.0916129697 | M27: 0.0916129697
A28: 19 | B28: =VLOOKUP('Utility Group'!$B21,vldatabase,2,FALSE) -> OGE Energy Corp. | D28: =VLOOKUP('Utility Group'!$B21,vldatabase,18,FALSE) -> 0.115 | F28: ='7'!I26 -> 1.016059762 | I28: 0.1168468726 | M28: 0.1168468726
A29: 20 | B29: =VLOOKUP('Utility Group'!$B22,vldatabase,2,FALSE) -> Otter Tail Corp. | D29: =VLOOKUP('Utility Group'!$B22,vldatabase,18,FALSE) -> 0.105 | F29: ='7'!I27 -> 1.028015775 | I29: 0.1079416563 | M29: 0.1079416563
A30: 21 | B30: =VLOOKUP('Utility Group'!$B23,vldatabase,2,FALSE) -> PNM Resources | D30: =VLOOKUP('Utility Group'!$B23,vldatabase,18,FALSE) -> 0.095 | F30: ='7'!I28 -> 1.026301359 | I30: 0.09749862915 | M30: 0.09749862915
A31: 22 | B31: =VLOOKUP('Utility Group'!$B24,vldatabase,2,FALSE) -> Sempra Energy | D31: =VLOOKUP('Utility Group'!$B24,vldatabase,18,FALSE) -> 0.12 | F31: ='7'!I29 -> 1.04855479 | I31: 0.1258265748 | M31: 0.1258265748
B32: Average (d) | I32: =AVERAGE(M10:M31) -> 0.1066756494 | L32: Max | M32: =MAX(M10:M31) -> 0.1460091857
B33: Midpoint (d,e) | I33: =AVERAGE(M32:M33) -> 0.1058019757 | L33: Min | M33: =MIN(M10:M31) -> 0.06559476563
A36: (a) | B36: ='Proxy Group Risk Measures'!B38 -> The Value Line Investment Survey (Jan. 25, Feb. 15 & Mar. 15, 2019)
A37: (b) | B37: ="Adjustment to convert year-end return to an average rate of return from " & 'Exhibit List'!B8 & "." -> Adjustment to convert year-end return to an average rate of return from Exh. AMM-7.
A38: (c) | B38: (a) x (b).
A39: (d) | B39: Excludes highlighted values.
A40: (e) | B40: Average of low and high values.
K44: Criteria Min | M44: ='6 (3)'!E43 -> 0.065
K45: Criteria Max | M45: ='6 (3)'!E44 -> 0.16

Sheet 12 (1)
A1: ='Exhibit List'!C18 -> DCF MODEL - NON-UTILITY GROUP | I1: ='Exhibit List'!B18 -> Exh. AMM-12
I2: Page 1 of 3
A3: ='Exhibit List'!D18 -> DIVIDEND YIELD
E6: (a) | G6: (b)
B8: Company | C8: Industry Group | E8: Price | G8: Dividends | I8: Yield
A9: =A8+1 -> 1 | B9: Church & Dwight | C9: Household Products | E9: ='Stock Price (Non-Utility)'!C34 -> 65.703 | G9: 0.91 | I9: =G9/E9 -> 0.01385020471
A10: =A9+1 -> 2 | B10: Coca-Cola | C10: Beverage | E10: ='Stock Price (Non-Utility)'!D34 -> 45.99866667 | G10: 1.66 | I10: 0.03608800255
A11: 3 | B11: Colgate-Palmolive | C11: Household Products | E11: ='Stock Price (Non-Utility)'!E34 -> 66.05133333 | G11: 1.68 | I11: 0.02543476286
A12: 4 | B12: Federal Realty Inv. | C12: REIT | E12: ='Stock Price (Non-Utility)'!F34 -> 133.809 | G12: 4.1 | I12: 0.03064068934
A13: 5 | B13: General Mills | C13: Food Processing | E13: ='Stock Price (Non-Utility)'!G34 -> 46.68766667 | G13: 1.98 | I13: 0.04240948716
A14: 6 | B14: Kellogg | C14: Food Processing | E14: ='Stock Price (Non-Utility)'!H34 -> 55.59933333 | G14: 2.26 | I14: 0.0406479694
A15: 7 | B15: Kimberly-Clark | C15: Household Products | E15: ='Stock Price (Non-Utility)'!I34 -> 117.8983333 | G15: 4.12 | I15: 0.03494536253
A16: 8 | B16: McCormick & Co. | C16: Food Processing | E16: ='Stock Price (Non-Utility)'!J34 -> 135.118 | G16: 2.28 | I16: 0.01687413964
A17: 9 | B17: PepsiCo, Inc. | C17: Beverage | E17: ='Stock Price (Non-Utility)'!K34 -> 116.0388333 | G17: 3.71 | I17: 0.03197205533
A18: 10 | B18: Procter & Gamble | C18: Household Products | E18: ='Stock Price (Non-Utility)'!L34 -> 99.79066667 | G18: 2.87 | I18: 0.0287602047
A19: 11 | B19: Public Storage | C19: REIT | E19: ='Stock Price (Non-Utility)'!M34 -> 212.0966667 | G19: 8.7 | I19: 0.0410190322
A20: 12 | B20: Smucker (J.M.) | C20: Food Processing | E20: ='Stock Price (Non-Utility)'!N34 -> 104.7936667 | G20: 3.46 | I20: 0.03301726249
A21: 13 | B21: Sysco Corp. | C21: Wholesale Food | E21: ='Stock Price (Non-Utility)'!O34 -> 66.61733333 | G21: 1.56 | I21: 0.02341732882
A22: 14 | B22: Verizon Communications | C22: Telecom. Services | E22: ='Stock Price (Non-Utility)'!P34 -> 56.517 | G22: 2.42 | I22: 0.04281897482
A23: 15 | B23: Walmart Inc. | C23: Retail Store | E23: ='Stock Price (Non-Utility)'!Q34 -> 98.552 | G23: 2.12 | I23: 0.02151148632
A24: 16 | B24: Waste Management | C24: Environmental | E24: ='Stock Price (Non-Utility)'!R34 -> 99.924 | G24: 2.05 | I24: 0.02051559185
B26: Average | I26: =AVERAGE(I9:I24) -> 0.03024515967
A30: (a) | B30: ='Stock Price (Non-Utility)'!B37 -> Average of closing prices for 30 trading days ended Mar. 22, 2019.
A31: (b) | B31: The Value Line Investment Survey, Summary & Index(Mar. 22, 2019).

Sheet 12 (2)
A1: ='Exhibit List'!C19 -> DCF MODEL - NON-UTILITY GROUP | J1: ='Exhibit List'!B19 -> Exh. AMM-12
J2: Page 2 of 3
A3: ='Exhibit List'!D19 -> GROWTH RATES
D6: (a) | F6: (b) | H6: (c)
C8: Earnings Growth
B9: Company | D9: Value Line | F9: IBES | H9: Zacks
A10: =A9+1 -> 1 | B10: ='12 (1)'!B9 -> Church & Dwight | D10: 0.085 | F10: 0.0911 | H10: 0.0833
A11: 2 | B11: ='12 (1)'!B10 -> Coca-Cola | D11: 0.065 | F11: 0.0527 | H11: 0.0709
A12: 3 | B12: ='12 (1)'!B11 -> Colgate-Palmolive | D12: 0.06 | F12: 0.0355 | H12: 0.0547
A13: 4 | B13: ='12 (1)'!B12 -> Federal Realty Inv. | D13: n/a | F13: 0.067 | H13: 0.0508
A14: 5 | B14: ='12 (1)'!B13 -> General Mills | D14: 0.03 | F14: 0.0538 | H14: 0.0725
A15: 6 | B15: ='12 (1)'!B14 -> Kellogg | D15: 0.055 | F15: 0.0263 | H15: 0.0418
A16: 7 | B16: ='12 (1)'!B15 -> Kimberly-Clark | D16: 0.07 | F16: 0.0289 | H16: 0.0549
A17: 8 | B17: ='12 (1)'!B16 -> McCormick & Co. | D17: 0.1 | F17: 0.0923 | H17: 0.09
A18: 9 | B18: ='12 (1)'!B17 -> PepsiCo, Inc. | D18: 0.075 | F18: 0.0449 | H18: 0.0719
A19: 10 | B19: ='12 (1)'!B18 -> Procter & Gamble | D19: 0.105 | F19: 0.0617 | H19: 0.0688
A20: 11 | B20: ='12 (1)'!B19 -> Public Storage | D20: n/a | F20: 0.17 | H20: 0.0394
A21: 12 | B21: ='12 (1)'!B20 -> Smucker (J.M.) | D21: 0.055 | F21: 0.0339 | H21: 0.0585
A22: 13 | B22: ='12 (1)'!B21 -> Sysco Corp. | D22: 0.13 | F22: 0.0979 | H22: 0.1029
A23: 14 | B23: ='12 (1)'!B22 -> Verizon Communications | D23: 0.04 | F23: 0.0946 | H23: 0.0412
A24: 15 | B24: ='12 (1)'!B23 -> Walmart Inc. | D24: 0.07 | F24: 0.0353 | H24: 0.0457
A25: 16 | B25: ='12 (1)'!B24 -> Waste Management | D25: 0.09 | F25: 0.105 | H25: 0.0873
A29: (a) | B29: The Value Line Investment Survey (Jan. 4, Jan. 18, Jan. 25, Feb. 22, Mar. 15 & Mar. 22, 2019).
A31: (b) | B31: www.finance.yahoo.com (retrieved Mar. 26, 2019).
A32: (c) | B32: www.zacks.com (retrieved Mar. 25, 2019).

Sheet 12 (3)
A1: ='Exhibit List'!C20 -> DCF MODEL - NON-UTILITY GROUP | K1: ='Exhibit List'!B20 -> Exh. AMM-12
K2: Page 3 of 3
A3: ='Exhibit List'!D20 -> DCF COST OF EQUITY ESTIMATES
E6: (a) | G6: (a) | I6: (a)
D8: Earnings Growth
B9: Company | E9: Value Line | G9: IBES | I9: Zacks
A10: =A9+1 -> 1 | B10: ='12 (1)'!B9 -> Church & Dwight | E10: =IF('12 (2)'!D10="n/a","n/a",'12 (1)'!$I9+'12 (2)'!D10) -> 0.09885020471 | G10: =IF('12 (2)'!F10="n/a","n/a",'12 (1)'!$I9+'12 (2)'!F10) -> 0.1049502047 | I10: =IF('12 (2)'!H10="n/a","n/a",'12 (1)'!$I9+'12 (2)'!H10) -> 0.09715020471 | N10: =IF(E10="n/a","n/a",IF(E10<$E$39,"nmf",IF(E10>$E$40,"nmf",E10))) -> 0.09885020471 | O10: =IF(G10="n/a","n/a",IF(G10<$E$39,"nmf",IF(G10>$E$40,"nmf",G10))) -> 0.1049502047 | P10: =IF(I10="n/a","n/a",IF(I10<$E$39,"nmf",IF(I10>$E$40,"nmf",I10))) -> 0.09715020471
A11: 2 | B11: ='12 (1)'!B10 -> Coca-Cola | E11: =IF('12 (2)'!D11="n/a","n/a",'12 (1)'!$I10+'12 (2)'!D11) -> 0.1010880026 | G11: =IF('12 (2)'!F11="n/a","n/a",'12 (1)'!$I10+'12 (2)'!F11) -> 0.08878800255 | I11: =IF('12 (2)'!H11="n/a","n/a",'12 (1)'!$I10+'12 (2)'!H11) -> 0.1069880026 | N11: 0.1010880026 | O11: 0.08878800255 | P11: 0.1069880026
A12: 3 | B12: ='12 (1)'!B11 -> Colgate-Palmolive | E12: =IF('12 (2)'!D12="n/a","n/a",'12 (1)'!$I11+'12 (2)'!D12) -> 0.08543476286 | G12: =IF('12 (2)'!F12="n/a","n/a",'12 (1)'!$I11+'12 (2)'!F12) -> 0.06093476286 | I12: =IF('12 (2)'!H12="n/a","n/a",'12 (1)'!$I11+'12 (2)'!H12) -> 0.08013476286 | N12: 0.08543476286 | O12: nmf | P12: 0.08013476286
A13: 4 | B13: ='12 (1)'!B12 -> Federal Realty Inv. | E13: =IF('12 (2)'!D13="n/a","n/a",'12 (1)'!$I12+'12 (2)'!D13) -> n/a | G13: =IF('12 (2)'!F13="n/a","n/a",'12 (1)'!$I12+'12 (2)'!F13) -> 0.09764068934 | I13: =IF('12 (2)'!H13="n/a","n/a",'12 (1)'!$I12+'12 (2)'!H13) -> 0.08144068934 | N13: n/a | O13: 0.09764068934 | P13: 0.08144068934
A14: 5 | B14: ='12 (1)'!B13 -> General Mills | E14: =IF('12 (2)'!D14="n/a","n/a",'12 (1)'!$I13+'12 (2)'!D14) -> 0.07240948716 | G14: =IF('12 (2)'!F14="n/a","n/a",'12 (1)'!$I13+'12 (2)'!F14) -> 0.09620948716 | I14: =IF('12 (2)'!H14="n/a","n/a",'12 (1)'!$I13+'12 (2)'!H14) -> 0.1149094872 | N14: 0.07240948716 | O14: 0.09620948716 | P14: 0.1149094872
A15: 6 | B15: ='12 (1)'!B14 -> Kellogg | E15: =IF('12 (2)'!D15="n/a","n/a",'12 (1)'!$I14+'12 (2)'!D15) -> 0.0956479694 | G15: =IF('12 (2)'!F15="n/a","n/a",'12 (1)'!$I14+'12 (2)'!F15) -> 0.0669479694 | I15: =IF('12 (2)'!H15="n/a","n/a",'12 (1)'!$I14+'12 (2)'!H15) -> 0.0824479694 | N15: 0.0956479694 | O15: 0.0669479694 | P15: 0.0824479694
A16: 7 | B16: ='12 (1)'!B15 -> Kimberly-Clark | E16: =IF('12 (2)'!D16="n/a","n/a",'12 (1)'!$I15+'12 (2)'!D16) -> 0.1049453625 | G16: =IF('12 (2)'!F16="n/a","n/a",'12 (1)'!$I15+'12 (2)'!F16) -> 0.06384536253 | I16: =IF('12 (2)'!H16="n/a","n/a",'12 (1)'!$I15+'12 (2)'!H16) -> 0.08984536253 | N16: 0.1049453625 | O16: nmf | P16: 0.08984536253
A17: 8 | B17: ='12 (1)'!B16 -> McCormick & Co. | E17: =IF('12 (2)'!D17="n/a","n/a",'12 (1)'!$I16+'12 (2)'!D17) -> 0.1168741396 | G17: =IF('12 (2)'!F17="n/a","n/a",'12 (1)'!$I16+'12 (2)'!F17) -> 0.1091741396 | I17: =IF('12 (2)'!H17="n/a","n/a",'12 (1)'!$I16+'12 (2)'!H17) -> 0.1068741396 | N17: 0.1168741396 | O17: 0.1091741396 | P17: 0.1068741396
A18: 9 | B18: ='12 (1)'!B17 -> PepsiCo, Inc. | E18: =IF('12 (2)'!D18="n/a","n/a",'12 (1)'!$I17+'12 (2)'!D18) -> 0.1069720553 | G18: =IF('12 (2)'!F18="n/a","n/a",'12 (1)'!$I17+'12 (2)'!F18) -> 0.07687205533 | I18: =IF('12 (2)'!H18="n/a","n/a",'12 (1)'!$I17+'12 (2)'!H18) -> 0.1038720553 | N18: 0.1069720553 | O18: 0.07687205533 | P18: 0.1038720553
A19: 10 | B19: ='12 (1)'!B18 -> Procter & Gamble | E19: =IF('12 (2)'!D19="n/a","n/a",'12 (1)'!$I18+'12 (2)'!D19) -> 0.1337602047 | G19: =IF('12 (2)'!F19="n/a","n/a",'12 (1)'!$I18+'12 (2)'!F19) -> 0.0904602047 | I19: =IF('12 (2)'!H19="n/a","n/a",'12 (1)'!$I18+'12 (2)'!H19) -> 0.0975602047 | N19: 0.1337602047 | O19: 0.0904602047 | P19: 0.0975602047
A20: 11 | B20: ='12 (1)'!B19 -> Public Storage | E20: =IF('12 (2)'!D20="n/a","n/a",'12 (1)'!$I19+'12 (2)'!D20) -> n/a | G20: =IF('12 (2)'!F20="n/a","n/a",'12 (1)'!$I19+'12 (2)'!F20) -> 0.2110190322 | I20: =IF('12 (2)'!H20="n/a","n/a",'12 (1)'!$I19+'12 (2)'!H20) -> 0.0804190322 | N20: n/a | O20: nmf | P20: 0.0804190322
A21: 12 | B21: ='12 (1)'!B20 -> Smucker (J.M.) | E21: =IF('12 (2)'!D21="n/a","n/a",'12 (1)'!$I20+'12 (2)'!D21) -> 0.08801726249 | G21: =IF('12 (2)'!F21="n/a","n/a",'12 (1)'!$I20+'12 (2)'!F21) -> 0.06691726249 | I21: =IF('12 (2)'!H21="n/a","n/a",'12 (1)'!$I20+'12 (2)'!H21) -> 0.09151726249 | N21: 0.08801726249 | O21: 0.06691726249 | P21: 0.09151726249
A22: 13 | B22: ='12 (1)'!B21 -> Sysco Corp. | E22: =IF('12 (2)'!D22="n/a","n/a",'12 (1)'!$I21+'12 (2)'!D22) -> 0.1534173288 | G22: =IF('12 (2)'!F22="n/a","n/a",'12 (1)'!$I21+'12 (2)'!F22) -> 0.1213173288 | I22: =IF('12 (2)'!H22="n/a","n/a",'12 (1)'!$I21+'12 (2)'!H22) -> 0.1263173288 | N22: 0.1534173288 | O22: 0.1213173288 | P22: 0.1263173288
A23: 14 | B23: ='12 (1)'!B22 -> Verizon Communications | E23: =IF('12 (2)'!D23="n/a","n/a",'12 (1)'!$I22+'12 (2)'!D23) -> 0.08281897482 | G23: =IF('12 (2)'!F23="n/a","n/a",'12 (1)'!$I22+'12 (2)'!F23) -> 0.1374189748 | I23: =IF('12 (2)'!H23="n/a","n/a",'12 (1)'!$I22+'12 (2)'!H23) -> 0.08401897482 | N23: 0.08281897482 | O23: 0.1374189748 | P23: 0.08401897482
A24: 15 | B24: ='12 (1)'!B23 -> Walmart Inc. | E24: =IF('12 (2)'!D24="n/a","n/a",'12 (1)'!$I23+'12 (2)'!D24) -> 0.09151148632 | G24: =IF('12 (2)'!F24="n/a","n/a",'12 (1)'!$I23+'12 (2)'!F24) -> 0.05681148632 | I24: =IF('12 (2)'!H24="n/a","n/a",'12 (1)'!$I23+'12 (2)'!H24) -> 0.06721148632 | N24: 0.09151148632 | O24: nmf | P24: 0.06721148632
A25: 16 | B25: ='12 (1)'!B24 -> Waste Management | E25: =IF('12 (2)'!D25="n/a","n/a",'12 (1)'!$I24+'12 (2)'!D25) -> 0.1105155918 | G25: =IF('12 (2)'!F25="n/a","n/a",'12 (1)'!$I24+'12 (2)'!F25) -> 0.1255155918 | I25: =IF('12 (2)'!H25="n/a","n/a",'12 (1)'!$I24+'12 (2)'!H25) -> 0.1078155918 | N25: 0.1105155918 | O25: 0.1255155918 | P25: 0.1078155918
B27: Average (b) | E27: =AVERAGE(N10:N25) -> 0.1030187738 | G27: =AVERAGE(O10:O25) -> 0.09851765923 | I27: =AVERAGE(P10:P25) -> 0.09490765967 | L27: =AVERAGE(E27:I27) -> 0.09881469757
B28: Midpoint (b,c) | E28: =AVERAGE(N28:N29) -> 0.112913408 | G28: =AVERAGE(O28:O29) -> 0.1021681187 | I28: =AVERAGE(P28:P29) -> 0.09676440757 | L28: =AVERAGE(E28:I28) -> 0.1039486447 | M28: Min | N28: =MIN(N10:N25) -> 0.07240948716 | O28: =MIN(O10:O25) -> 0.06691726249 | P28: 0.06721148632
M29: Max | N29: =MAX(N10:N25) -> 0.1534173288 | O29: =MAX(O10:O25) -> 0.1374189748 | P29: 0.1263173288
A32: (a) | B32: ="Sum of dividend yield (" & '12 (3)'!K1 & ", p. 1) and respective growth rate (" & K1 & ", p. 2)." -> Sum of dividend yield (Exh. AMM-12, p. 1) and respective growth rate (Exh. AMM-12, p. 2).
A33: (b) | B33: Excludes highlighted figures.
A34: (c) | B34: Average of low and high values.
B39: Criteria Min | E39: ='6 (3)'!E43 -> 0.065
B40: Criteria Max | E40: ='6 (3)'!E44 -> 0.16

Sheet 13
A1: ='Exhibit List'!C21 -> FLOTATION COST STUDY | L1: ='Exhibit List'!B21 -> Exh. AMM-13
L2: Page 1 of 1
A3: ='Exhibit List'!D21 -> ELECTRIC & GAS UTILITIES
D5: -1 | E5: =D5-1 -> -2 | F5: -3 | G5: -4 | H5: -5 | I5: -6 | J5: -7 | K5: -8 | L5: -9
G6: Underwriting | J6: Total | K6: Gross Proceeds | L6: Flotation
E7: Shares | F7: Offering | G7: Discount | H7: Underwriting | I7: Offering | J7: Flotation | K7: Before Flot. | L7: Cost | N7: Current | O7: Net
A8: No. | B8: Sym | C8: Company | D8: Date | E8: Issued | F8: Price | G8: (per share) | H8: Discount | I8: Expense | J8: Costs | K8: Costs | L8: (%) | N8: Price | O8: Proceeds
A9: 1 | B9: ALE | C9: ALLETE | D9: 2014-02-27 | E9: 3220000 | F9: 49.75 | G9: 1.74125 | H9: =E9*G9 -> 5606825 | I9: 450000 | J9: =I9+H9 -> 6056825 | K9: =F9*E9 -> 160195000 | L9: =J9/K9 -> 0.03780907644
A10: =A9+1 -> 2 | B10: LNT | C10: Alliant Energy | D10: 2018-12-14 | E10: 7268673 | F10: 44.85 | G10: 0.52 | H10: =E10*G10 -> 3779709.96 | I10: 1000000 | J10: =I10+H10 -> 4779709.96 | K10: =F10*E10 -> 325999984.1 | L10: =J10/K10 -> 0.01466168771
A11: 3 | B11: AEE | C11: Ameren Corp. | D11: 2009-09-10 | E11: =19000000+2850000 -> 21850000 | F11: 25.25 | G11: 0.7575 | H11: =E11*G11 -> 16551375 | I11: 450000 | J11: =I11+H11 -> 17001375 | K11: =F11*E11 -> 551712500 | L11: =J11/K11 -> 0.0308156422
A12: 4 | B12: AEP | C12: American Elec Pwr | D12: 2009-04-02 | E12: =60000000+9000000 -> 69000000 | F12: 24.5 | G12: 0.735 | H12: =E12*G12 -> 50715000 | I12: 400000 | J12: =I12+H12 -> 51115000 | K12: =F12*E12 -> 1690500000 | L12: =J12/K12 -> 0.03023661639
A13: 5 | B13: AGR | C13: AVANGRID, Inc. | D13: N/A
A14: 6 | B14: AVA | C14: Avista Corp. | D14: 2006-12-13 | E14: =2750000+412500 -> 3162500 | F14: 25.05 | G14: 0.48 | H14: =E14*G14 -> 1518000 | I14: 300000 | J14: =I14+H14 -> 1818000 | K14: =F14*E14 -> 79220625 | L14: =J14/K14 -> 0.02294856926
A15: 7 | B15: BKH | C15: Black Hills Corp. | D15: 2015-11-19 | E15: =5500000+825000 -> 6325000 | F15: 40.25 | G15: 1.40875 | H15: 8910343.75 | I15: 1200000 | J15: 10110343.75 | K15: 254581250 | L15: 0.03971362286
A16: 8 | B16: CNP | C16: CenterPoint Energy | D16: 2018-09-27 | E16: 60550459 | F16: 27.25 | G16: 0.75 | H16: 45412844.25 | I16: 1000000 | J16: 46412844.25 | K16: 1650000008 | L16: 0.02812899638
A17: 9 | B17: CMS | C17: CMS Energy Corp. | D17: 2005-03-31 | E17: =20000000+3000000 -> 23000000 | F17: 12.25 | G17: 0.4288 | H17: 9862400 | I17: 325000 | J17: 10187400 | K17: 281750000 | L17: 0.03615758651
A18: 10 | B18: ED | C18: Consolidated Edison | D18: 2018-11-15 | E18: 13636363 | F18: 77 | G18: 1.463 | H18: 19949999.07 | I18: 640000 | J18: 20589999.07 | K18: 1049999951 | L18: 0.01960952384
A19: 11 | B19: D | C19: Dominion Energy (a) | D19: 2018-03-29 | E19: 20000000 | F19: 67.3258 | G19: =N19-F19 -> 1.8942 | H19: 37884000 | I19: 450000 | J19: 38334000 | K19: 1346516000 | L19: 0.02846902673 | N19: 69.22 | O19: =K19-H19-I19 -> 1308182000
A20: 12 | B20: DTE | C20: DTE Energy Co. | D20: 2002-06-20 | E20: =5500000+825000 -> 6325000 | F20: 43.25 | G20: 1.4056 | H20: 8890420 | I20: 250000 | J20: 9140420 | K20: 273556250 | L20: 0.03341331079
A21: 13 | B21: DUK | C21: Duke Energy Corp. (a) | D21: 2018-03-08 | E21: 18500000 | F21: 74.072 | G21: =N21-F21 -> 1.788 | H21: 33078000 | I21: 450000 | J21: 33528000 | K21: 1370332000 | L21: 0.02446706346 | N21: 75.86 | O21: =K21-H21-I21 -> 1336804000
A22: 14 | B22: EIX | C22: Edison International | D22: N/A
A23: 15 | B23: EE | C23: El Paso Electric Co. | D23: N/A
A24: 16 | B24: ETR | C24: Entergy Corp. | D24: 2018-06-08 | E24: 13289037 | F24: 75.25 | G24: 0.8 | H24: =E24*G24 -> 10631229.6 | I24: 650000 | J24: =I24+H24 -> 11281229.6 | K24: =F24*E24 -> 1000000034 | L24: =J24/K24 -> 0.01128122921
A25: 17 | B25: EVRG | C25: Evergy Inc. | D25: N/A
A26: 18 | B26: ES | C26: Eversource Energy | D26: 2009-03-17 | E26: =16500000+2475000 -> 18975000 | F26: 20.2 | G26: 0.6565 | H26: =E26*G26 -> 12457087.5 | I26: 350000 | J26: =I26+H26 -> 12807087.5 | K26: =F26*E26 -> 383295000 | L26: =J26/K26 -> 0.03341313479
A27: 19 | B27: EXC | C27: Exelon Corp. | D27: 2014-06-13 | E27: =50000000+7500000 -> 57500000 | F27: 35 | G27: 1.05 | H27: =E27*G27 -> 60375000 | I27: 600000 | J27: =I27+H27 -> 60975000 | K27: =F27*E27 -> 2012500000 | L27: =J27/K27 -> 0.03029813665
A28: 20 | B28: FE | C28: FirstEnergy Corp. | D28: 2003-09-15 | E28: =28000000+4200000 -> 32200000 | F28: 30 | G28: 0.975 | H28: =E28*G28 -> 31395000 | I28: 423000 | J28: =I28+H28 -> 31818000 | K28: =F28*E28 -> 966000000 | L28: =J28/K28 -> 0.0329378882
A29: 21 | B29: FTS | C29: Fortis Inc. | D29: N/A
A30: 22 | B30: HE | C30: Hawaiian Elec. | D30: 2013-03-20 | E30: =6100000+900000 -> 7000000 | F30: 26.75 | G30: 1.00312 | H30: =E30*G30 -> 7021840 | I30: 450000 | J30: =I30+H30 -> 7471840 | K30: =F30*E30 -> 187250000 | L30: =J30/K30 -> 0.03990301736
A31: 23 | B31: IDA | C31: IDACORP, Inc. | D31: 2004-12-10 | E31: =3500000+525000 -> 4025000 | F31: 30 | G31: 1.2 | H31: 4830000 | I31: 300000 | J31: 5130000 | K31: 120750000 | L31: 0.04248447205
A32: 24 | B32: MGEE | C32: MGE Energy | D32: 2004-09-10 | E32: =1100000+165000 -> 1265000 | F32: 31.85 | G32: 1.035 | H32: 1309275 | I32: 125000 | J32: 1434275 | K32: 40290250 | L32: 0.03559856293
A33: 25 | B33: NEE | C33: NextEra Energy, Inc. (a) | D33: 2016-11-03 | E33: =12000000+1800000 -> 13800000 | F33: 124 | G33: =N33-F33 -> 1.89 | H33: 26082000 | I33: 750000 | J33: 26832000 | K33: 1711200000 | L33: 0.0156802244 | N33: 125.89 | O33: =K33-H33-I33 -> 1684368000
A34: 26 | B34: NWE | C34: NorthWestern Corp. (a) | D34: 2015-09-30 | E34: 1100000 | F34: 51.81 | G34: =N34-F34 -> 1.33 | H34: 1463000 | I34: 1000000 | J34: 2463000 | K34: 56991000 | L34: 0.04321735011 | N34: 53.14 | O34: =K34-H34-I34 -> 54528000
A35: 27 | B35: OGE | C35: OGE Energy Corp. | D35: 2003-08-22 | E35: =4650000+674074 -> 5324074 | F35: 21.6 | G35: 0.79 | H35: 4206018.46 | I35: 325000 | J35: 4531018.46 | K35: 114999998.4 | L35: 0.03940016107
A36: 28 | B36: OTTR | C36: Otter Tail Corp. | D36: N/A
A37: 29 | B37: PCG | C37: PG&E Corp. (a) | D37: 2016-08-17 | E37: 4900000 | F37: 63.15 | G37: =N37-F37 -> 0.3 | H37: =E37*G37 -> 1470000 | I37: 175000 | J37: =I37+H37 -> 1645000 | K37: =F37*E37 -> 309435000 | L37: =J37/K37 -> 0.005316140708 | N37: 63.45 | O37: =K37-H37-I37 -> 307790000
A38: 30 | B38: PNW | C38: Pinnacle West Capital | D38: 2010-04-09 | E38: =6000000+900000 -> 6900000 | F38: 38 | G38: 1.33 | H38: 9177000 | I38: 190000 | J38: 9367000 | K38: 262200000 | L38: 0.03572463768
A39: 31 | B39: PNM | C39: PNM Resources | D39: 2006-12-07 | E39: =5000000+750000 -> 5750000 | F39: 30.79 | G39: 1.078 | H39: 6198500 | I39: 250000 | J39: 6448500 | K39: 177042500 | L39: 0.03642345764
A40: 32 | B40: POR | C40: Portland General Elec. | D40: 2013-06-13 | E40: =11100000+1665000 -> 12765000 | F40: 29.5 | G40: 0.95875 | H40: 12238443.75 | I40: 600000 | J40: 12838443.75 | K40: 376567500 | L40: 0.03409333984
A41: 33 | B41: PPL | C41: PPL Corp. | D41: 2018-05-10 | E41: 55000000 | F41: 27 | G41: 0.2943 | H41: 16186500 | I41: 1000000 | J41: 17186500 | K41: 1485000000 | L41: 0.01157340067
A42: 34 | B42: PEG | C42: Pub Sv Enterprise Grp. | D42: 2003-10-02 | E42: =8250000+1237500 -> 9487500 | F42: 41.75 | G42: 1.2525 | H42: 11883093.75 | I42: 350000 | J42: 12233093.75 | K42: 396103125 | L42: 0.03088360828
A43: 35 | B43: SRE | C43: Sempra Energy | D43: 2018-01-05 | E43: =23364486+3504672 -> 26869158 | F43: 107 | G43: 1.926 | H43: 51749998.31 | I43: 1500000 | J43: 53249998.31 | K43: 2874999906 | L43: 0.01852173915
A44: 36 | B44: SO | C44: Southern Company (a) | D44: 2016-08-18 | E44: 32500000 | F44: 49.3 | G44: =N44-F44 -> 1.66 | H44: 53950000 | I44: 557000 | J44: 54507000 | K44: 1602250000 | L44: 0.03401903573 | N44: 50.96 | O44: =K44-H44-I44 -> 1547743000
A45: 37 | B45: VVC | C45: Vectren Corp. | D45: 2007-02-26 | E45: =4600000+690000 -> 5290000 | F45: 28.33 | G45: 0.99 | H45: 5237100 | I45: 425000 | J45: 5662100 | K45: 149865700 | L45: 0.03778116007
A46: 38 | B46: WEC | C46: WEC Energy Group | D46: N/A
A47: 39 | B47: XEL | C47: Xcel Energy Inc. (a) | D47: 2018-11-09 | E47: 8138351 | F47: 49 | G47: =N47-F47 -> 0.5 | H47: =E47*G47 -> 4069175.5 | I47: 650000 | J47: =I47+H47 -> 4719175.5 | K47: =F47*E47 -> 398779199 | L47: =J47/K47 -> 0.01183405632 | N47: 49.5 | O47: =K47-H47-I47 -> 394060023.5
C48: Average | L48: =AVERAGE(L9:L47) -> 0.02896298361
A51: 1 | B51: ATO | C51: Atmos Energy Corp. | D51: 2018-11-30 | E51: 7008087 | F51: 92.75 | G51: 0.9769 | H51: =E51*G51 -> 6846200.19 | I51: 1000000 | J51: =I51+H51 -> 7846200.19 | K51: =F51*E51 -> 650000069.2 | L51: =J51/K51 -> 0.01207107593
A52: =A51+1 -> 2 | B52: CPK | C52: Chesapeake Utilities | D52: 2016-09-23 | E52: 960488 | F52: 62.26 | G52: 2.33 | H52: =E52*G52 -> 2237937.04 | I52: =K52-O52-H52 -> 162045.84 | J52: =I52+H52 -> 2399982.88 | K52: =F52*E52 -> 59799982.88 | L52: =J52/K52 -> 0.04013350447 | O52: 57400000
A53: =A52+1 -> 3 | B53: NJR | C53: New Jersey Resources | D53: N/A
A54: 4 | B54: NI | C54: NiSource Inc. | D54: 2017-05-03 | E54: N/A | F54: N/A | G54: N/A | H54: =0.02*K54 -> 10000000 | I54: 57950 | J54: =H54+I54 -> 10057950 | K54: 500000000 | L54: =J54/K54 -> 0.0201159
A55: 5 | B55: NWN | C55: Northwest Nat. Holding Co. | D55: 2016-11-10 | E55: 1012000 | F55: 54.63 | G55: 2.05 | H55: =E55*G55 -> 2074600 | I55: 250000 | J55: =H55+I55 -> 2324600 | K55: =F55*E55 -> 55285560 | L55: =J55/K55 -> 0.04204714576
A56: 6 | B56: OGS | C56: ONE Gas, Inc. | D56: N/A
A57: 7 | B57: SJI | C57: South Jersey Industries | D57: 2018-04-20 | E57: 11016949 | F57: 29.5 | G57: 1.0325 | H57: =E57*G57 -> 11374999.84 | I57: 700000 | J57: =H57+I57 -> 12074999.84 | K57: =F57*E57 -> 324999995.5 | L57: =J57/K57 -> 0.03715384618
A58: 8 | B58: SWX | C58: Southwest Gas | D58: 2018-11-28 | E58: 3100000 | F58: 75.5 | G58: 2.5481 | H58: =E58*G58 -> 7899110 | I58: 600000 | J58: =H58+I58 -> 8499110 | K58: =F58*E58 -> 234050000 | L58: =J58/K58 -> 0.03631322367
A59: 9 | B59: SR | C59: Spire Inc. | D59: 2018-05-09 | E59: 2000000 | F59: 63.05 | G59: 2.10938 | H59: =E59*G59 -> 4218760 | I59: 325000 | J59: =H59+I59 -> 4543760 | K59: =F59*E59 -> 126100000 | L59: =J59/K59 -> 0.03603298969
C60: Average | L60: =AVERAGE(L51:L59) -> 0.03198109796
C62: Average - Electric & Gas | L62: =AVERAGE(L9:L47,L51:L59) -> 0.02950469644
B64: Column Notes:
B65: (1-4) | C65: SEC Form 424B for each company.
B66: (5) | C66: Column (2) * Column (4)
B67: (6) | C67: SEC Form 424B for each company.
B68: (7) | C68: Column (5) + Column (6)
B69: (8) | C69: Column (2) * Column (3)
B70: (9) | C70: Column (7) / Column (8)
A71: (a) | B71: Underwriting discount computed as the difference between the current market price and the price offered to the issuing company by the underwriters.

Sheet 14 (1)
B1: Count | C1: =COUNTIF(C10:C30,"√") -> 18 | D1: 17 | E1: 6 | F1: 7 | G1: 12 | H1: 11 | I1: 7 | J1: 11 | K1: 13 | M1: =A30-COUNTIF(M10:M30,"- -") -> 16
A2: ='Exhibit List'!C22 -> REGULATORY MECHANISMS | M2: ='Exhibit List'!B22 -> Exh. AMM-14
M3: Page 1 of 4
A4: ='Exhibit List'!D22 -> UTILITY GROUP
C6: Type of Adjustment Clause
E8: Decoupling | I8: New Capital
A9: Holding Company | C9: Elec. Fuel/ Purch. Pwr | D9: Conserv. Program Expense | E9: Full | F9: Partial | G9: Renew- ables Expense | H9: Environ- mental Compliance | I9: Gener- ation Capacity | J9: Generic Infra- structure | K9: Trans- mission Expense | L9: Other | M9: Future Test Year
A10: =A5+1 -> 1 | B10: Algonquin Pwr & Util | C10: √ | D10: - - | E10: - - | F10: √ | G10: - - | H10: √ | I10: - - | J10: √ | K10: √ | L10: Taxes, franchise fees; Renewables mechanism available | M10: P
A11: =A10+1 -> 2 | B11: Ameren Corp. | C11: √ | D11: √ | E11: - - | F11: √ | G11: √ | H11: √ | I11: - - | J11: √ | K11: √ | L11: Taxes, franchise fees, bad debts | M11: O,P
A12: =A11+1 -> 3 | B12: AVANGRID, Inc. | C12: D | D12: √ | E12: √ | F12: - - | G12: √ | H12: - - | I12: D | J12: - - | K12: - - | L12: Storm costs | M12: C
A13: 4 | B13: Black Hills Corp. | C13: √ | D13: √ | E13: - - | F13: √ | G13: √ | H13: √ | I13: √ | J13: √ | K13: √ | M13: O
A14: 5 | B14: CenterPoint Energy | C14: √ | D14: - - | E14: - - | F14: - - | G14: - - | H14: - - | I14: √ | J14: √ | K14: √ | L14: Franchise fees | M14: - -
A15: 6 | B15: CMS Energy Corp. | C15: √ | D15: √ | E15: - - | F15: - - | G15: √ | H15: - - | I15: - - | J15: - - | K15: √ | M15: C
A16: 7 | B16: Dominion Energy | C16: √ | D16: √ | E16: - - | F16: - - | G16: √ | H16: √ | I16: √ | J16: √ | K16: √ | M16: - -
A17: 8 | B17: DTE Energy Co. | C17: √ | D17: √ | E17: - - | F17: - - | G17: √ | H17: - - | I17: - - | J17: - - | K17: √ | L17: Taxes, franchise fees | M17: C
A18: 9 | B18: Edison International | C18: √ | D18: - - | E18: √ | F18: - - | G18: - - | H18: - - | I18: - - | J18: - - | K18: - - | M18: C
A19: 10 | B19: El Paso Electric Co. | C19: √ | D19: √ | E19: - - | F19: - - | G19: - - | H19: - - | I19: √ | J19: - - | K19: - - | L19: Military base discounts | M19: - -
A20: 11 | B20: Emera Inc. | C20: √ | D20: √ | E20: - - | F20: - - | G20: - - | H20: √ | I20: √ | J20: - - | K20: - - | L20: Franchise fees, gross receipts taxes | M20: C
A21: 12 | B21: Entergy Corp. | C21: √ | D21: √ | E21: - - | F21: √ | G21: - - | H21: √ | I21: √ | J21: √ | K21: √ | L21: Taxes, franchise fees, storm costs | M21: O,P
A22: 13 | B22: Exelon Corp. | C22: D | D22: √ | E22: √ | F22: √ | G22: √ | H22: √ | I22: D | J22: √ | K22: √ | L22: Taxes, franchise fees, bad debts, nuclear decomm., societal benefits | M22: O,P
A23: 14 | B23: FirstEnergy Corp. | C23: D | D23: √ | E23: - - | F23: √ | G23: √ | H23: √ | I23: - - | J23: √ | K23: √ | L23: Taxes, fees, low-income assistance, societal benefits, uncollectibles | M23: O,P
A24: 15 | B24: Hawaiian Elec. | C24: √ | D24: √ | E24: √ | F24: - - | G24: √ | H24: - - | I24: √ | J24: √ | K24: - - | L24: IRP cost recovery charge | M24: C
A25: 16 | B25: IDACORP, Inc. | C25: √ | D25: √ | E25: √ | F25: - - | G25: - - | H25: - - | I25: - - | J25: - - | K25: - - | M25: P
A26: 17 | B26: NorthWestern Corp. | C26: √ | D26: √ | E26: - - | F26: - - | G26: - - | H26: - - | I26: - - | J26: - - | K26: - - | L26: Purchased power contracts | M26: - -
A27: 18 | B27: OGE Energy Corp. | C27: √ | D27: √ | E27: - - | F27: √ | G27: √ | H27: √ | I27: - - | J27: √ | K27: √ | L27: Storm costs, taxes, franchise fees | M27: - -
A28: 19 | B28: Otter Tail Corp. | C28: √ | D28: √ | E28: - - | F28: - - | G28: √ | H28: √ | I28: - - | J28: - - | K28: √ | M28: C
A29: 20 | B29: PNM Resources | C29: √ | D29: √ | E29: - - | F29: - - | G29: √ | H29: √ | I29: - - | J29: √ | K29: √ | L29: Taxes, franchise fees | M29: O
A30: 21 | B30: Sempra Energy | C30: √ | D30: - - | E30: √ | F30: - - | G30: - - | H30: - - | I30: - - | J30: - - | K30: - - | M30: C
A32: Sources:
A33: =M2 & ", pages 2-4, contain operating company data that are aggregated into the parent company data on this page." -> Exh. AMM-14, pages 2-4, contain operating company data that are aggregated into the parent company data on this page.
A35: Notes:
A36: D - Delivery-only utility.
A37: C - Fully-forecasted test years commonly used in the state listed for this operating company.
A38: O - Fully-forecasted test years occasionally used in the state listed for this operating company.
A39: P - Partially-forecasted test years commonly or occasionally used in the state listed for this operating company.

Sheet 14 (2-4)
B1: =COUNTIF(B10:B87,"*") -> 55 | D1: =COUNTIF(D10:D87,"D") -> 22 | F1: =SUM(F2:G2) -> 23 | J1: =SUM(J2,K2) -> 38
F2: =COUNTIF(F10:F87,"√") -> 12 | G2: =COUNTIF(G10:G87,"√*") -> 11 | J2: =COUNTIF(J10:J87,"√") -> 9 | K2: =COUNTIF(K10:K87,"√") -> 29 | N2: =COUNTIF(N10:N87,"- -") -> 15
A3: ='Exhibit List'!C23 -> REGULATORY MECHANISMS
A5: ='Exhibit List'!D23 -> UTILITY GROUP OPERATING COS.
D6: Type of Adjustment Clause (a)
F8: Decoupling | J8: New Capital Tracker
A9: Holding Company/ Operating Company | C9: State | D9: Elec. Fuel/ Purch. Pwr | E9: Conserv. Program Expense | F9: Full | G9: Partial | H9: Renew- ables Expense | I9: Environ- mental Compliance | J9: Gener- ation Capacity | K9: Generic Infra- structure | L9: Trans- mission Expense | M9: Other | N9: Future Test Year (b)
A10: ALGONQUIN PWR & UTIL
B11: Empire District Electric | C11: MO | D11: √ | E11: - - | F11: - - | G11: - - | H11: - - | I11: √ | J11: - - | K11: - - | L11: √ | M11: √ | N11: P
B12: Liberty Utilities | C12: NH | D12: D | E12: - - | F12: - - | G12: √ | H12: - - | I12: - - | J12: D | K12: √ | L12: - - | M12: - - | N12: - -
A13: AMEREN
B14: Ameren Illinois | C14: IL | D14: D | E14: √ | F14: - - | G14: - - | H14: √ | I14: √ | J14: D | K14: - - | L14: √ | M14: √ | N14: O
B15: Union Electric | C15: MO | D15: √ | E15: √ | F15: - - | G15: √ | H15: - - | I15: √ | J15: - - | K15: √ | L15: √ | M15: √ | N15: P
A16: AVANGRID
B17: Central Maine Pwr | C17: ME | D17: D | E17: - - | F17: √ | G17: - - | H17: - - | I17: - - | J17: D | K17: - - | L17: - - | M17: √ | N17: C
B18: NY State E&G | C18: NY | D18: D | E18: - - | F18: √ | G18: - - | H18: √ | I18: - - | J18: D | K18: - - | L18: - - | M18: √ | N18: C
B19: Rochester G&E | C19: NY | D19: D | E19: - - | F19: √ | G19: - - | H19: √ | I19: - - | J19: D | K19: - - | L19: - - | M19: √ | N19: C
B20: United Illuminating | C20: CT | D20: D | E20: √ | F20: √ | G20: - - | H20: - - | I20: - - | J20: D | K20: - - | L20: √ | M20: - - | N20: C
A21: BLACK HILLS
B22: Black Hills Colorado Electric | C22: CO | D22: √ | E22: √ | F22: - - | G22: - - | H22: √ | I22: - - | J22: √ | K22: √ | L22: - - | M22: √ | N22: - -
B23: Black Hills Power | C23: SD | D23: √ | E23: √ | F23: - - | G23: √ | H23: - - | I23: √ | J23: - - | K23: - - | L23: √ | M23: √ | N23: - -
B24: Cheyenne Light Fuel & Power | C24: WY | D24: √ | E24: √ | F24: - - | G24: √ | H24: √ | I24: - - | J24: - - | K24: - - | L24: - - | M24: √ | N24: O
A25: CENTERPOINT ENERGY
B26: CenterPoint Energy Houston Elect. | C26: TX | D26: D | E26: √ | F26: - - | G26: - - | H26: - - | I26: - - | J26: - - | K26: √ | L26: √ | M26: √ | N26: - -
A27: CMS ENERGY
B28: Consumers Energy | C28: MI | D28: √ | E28: √ | F28: - - | G28: - - | H28: √ | I28: - - | J28: - - | K28: - - | L28: √ | M28: - - | N28: C
A29: DOMINION ENERGY
B30: Virginia Electric & Power | C30: NC | D30: √ | E30: √ | F30: - - | G30: - - | H30: √ | I30: √ | J30: - - | K30: - - | L30: - - | M30: - - | N30: - -
B31: Virginia Electric & Power | C31: VA | D31: √ | E31: √ | F31: - - | G31: - - | H31: √ | I31: - - | J31: √ | K31: √ | L31: √ | M31: √ | N31: - -
A32: DTE ENERGY
B33: DTE Electric | C33: MI | D33: √ | E33: √ | F33: - - | G33: - - | H33: √ | I33: - - | J33: - - | K33: - - | L33: √ | M33: - - | N33: C
A34: EDISON INTERNATIONAL
B35: Southern California Edison Co. | C35: CA | D35: √ | E35: - - | F35: √ | G35: - - | H35: - - | I35: - - | J35: - - | K35: - - | L35: - - | M35: - - | N35: C
A36: EL PASO ELECTRIC
B37: El Paso Electric | C37: NM | D37: √ | E37: √ | F37: - - | G37: - - | H37: - - | I37: - - | J37: - - | K37: - - | L37: - - | M37: √ | N37: O
B38: El Paso Electric | C38: TX | D38: √ | E38: √ | F38: - - | G38: - - | H38: - - | I38: - - | J38: - - | K38: √ | L38: - - | M38: √ | N38: - -
A39: EMERA INC.
B40: Emera Maine | C40: ME | D40: D | E40: - - | F40: - - | G40: - - | H40: - - | I40: - - | J40: - - | K40: - - | L40: - - | M40: - - | N40: C
B41: Tampa Electric Co. | C41: FL | D41: √ | E41: √ | F41: - - | G41: - - | H41: - - | I41: √ | J41: √ | K41: - - | L41: - - | M41: √ | N41: C
A42: ENTERGY CORP.
B43: Entergy Arkansas Inc. | C43: AR | D43: √ | E43: √ | F43: - - | G43: √ | H43: - - | I43: - - | J43: √ | K43: √ | L43: √ | M43: √ | N43: P
B44: Entergy Louisiana LLC | C44: LA | D44: √ | E44: √ | F44: - - | G44: √ | H44: - - | I44: √ | J44: √ | K44: √ | L44: √ | M44: √ | N44: O
B45: Entergy Mississippi Inc. | C45: MS | D45: √ | E45: √ | F45: - - | G45: √ | H45: - - | I45: √ | J45: - - | K45: - - | L45: √ | M45: √ | N45: O
B46: Entergy New Orleans Inc. | C46: LA | D46: √ | E46: √ | F46: - - | G46: √ | H46: - - | I46: √ | J46: √ | K46: - - | L46: √ | M46: √ | N46: O
B47: Entergy Texas Inc. | C47: TX | D47: √ | E47: √ | F47: - - | G47: - - | H47: - - | I47: - - | J47: - - | K47: √ | L47: √ | M47: √ | N47: - -
A48: EXELON CORP.
B49: Baltimore G&E | C49: MD | D49: D | E49: √ | F49: √ | G49: - - | H49: - - | I49: - - | J49: D | K49: √ | L49: - - | M49: √ | N49: P
B50: Commonwealth Edison | C50: IL | D50: D | E50: √ | F50: - - | G50: - - | H50: √ | I50: √ | J50: D | K50: √ | L50: √ | M50: √ | N50: O
B51: PECO Energy | C51: PA | D51: D | E51: √ | F51: - - | G51: - - | H51: - - | I51: - - | J51: D | K51: √ | L51: - - | M51: √ | N51: O
B52: Atlantic City Electric | C52: NJ | D52: D | E52: √ | F52: - - | G52: - - | H52: √ | I52: √ | J52: D | K52: - - | L52: - - | M52: √ | N52: P
B53: Delmarva P&L | C53: MD | D53: D | E53: √ | F53: √ | G53: - - | H53: - - | I53: - - | J53: D | K53: √ | L53: - - | M53: - - | N53: P
B54: Potomac Electric Pwr | C54: DC | D54: D | E54: - - | F54: - - | G54: √ | H54: √ | I54: - - | J54: D | K54: √ | L54: - - | M54: √ | N54: P
A55: FIRSTENERGY
B56: Potomac Edison | C56: MD | D56: D | E56: √ | F56: - - | G56: - - | H56: - - | I56: - - | J56: - - | K56: - - | L56: - - | M56: √ | N56: P
B57: Jersey Central Power & Light | C57: NJ | D57: D | E57: √ | F57: - - | G57: - - | H57: √ | I57: √ | J57: - - | K57: - - | L57: - - | M57: √ | N57: P
B58: Clev. Elec./OH Ed./Toledo Ed. | C58: OH | D58: D | E58: √ | F58: - - | G58: √ | H58: √ | I58: - - | J58: - - | K58: √ | L58: √ | M58: √ | N58: P
B59: Metropolitan Edison | C59: PA | D59: D | E59: √ | F59: - - | G59: - - | H59: - - | I59: - - | J59: - - | K59: √ | L59: √ | M59: √ | N59: O
B60: Pennsylvania Electric | C60: PA | D60: D | E60: √ | F60: - - | G60: - - | H60: - - | I60: - - | J60: - - | K60: √ | L60: √ | M60: √ | N60: O
B61: Pennsylvania Power | C61: PA | D61: D | E61: √ | F61: - - | G61: - - | H61: - - | I61: - - | J61: - - | K61: √ | L61: - - | M61: √ | N61: O
B62: West Penn Power | C62: PA | D62: D | E62: √ | F62: - - | G62: - - | H62: - - | I62: - - | J62: - - | K62: √ | L62: - - | M62: √ | N62: O
B63: Monongahela Power | C63: WV | D63: √ | E63: √ | F63: - - | G63: - - | H63: - - | I63: - - | J63: - - | K63: √ | L63: - - | M63: √ | N63: - -
B64: Potomac Edison | C64: WV | D64: √ | E64: √ | F64: - - | G64: - - | H64: - - | I64: - - | J64: - - | K64: √ | L64: - - | M64: √ | N64: - -
A65: HAWAIIAN ELECTRIC
B66: Hawaiian Electric | C66: HI | D66: √ | E66: √ | F66: √ | G66: - - | H66: √ | I66: - - | J66: √ | K66: √ | L66: - - | M66: √ | N66: C
B67: Hawaii Electric Light | C67: HI | D67: √ | E67: √ | F67: √ | G67: - - | H67: √ | I67: - - | J67: √ | K67: √ | L67: - - | M67: √ | N67: C
B68: Maui Electric | C68: HI | D68: √ | E68: √ | F68: √ | G68: - - | H68: √ | I68: - - | J68: √ | K68: √ | L68: - - | M68: √ | N68: C
A69: IDACORP
B70: Idaho Power | C70: ID | D70: √ | E70: √ | F70: √ | G70: - - | H70: - - | I70: - - | J70: - - | K70: - - | L70: - - | M70: - - | N70: P
B71: Idaho Power | C71: OR | D71: √ | E71: √ | F71: - - | G71: - - | H71: √ | I71: - - | J71: - - | K71: - - | L71: - - | M71: - - | N71: C
A72: NORTHWESTERN CORP.
B73: NorthWestern Corp. | C73: MT | D73: √ | E73: √ | F73: - - | G73: - - | H73: - - | I73: - - | J73: - - | K73: - - | L73: - - | M73: √ | N73: - -
B74: NorthWestern Corp. | C74: SD | D74: √ | E74: √ | F74: - - | G74: - - | H74: - - | I74: - - | J74: - - | K74: - - | L74: - - | M74: - - | N74: - -
A75: OGE ENERGY
B76: Oklahoma G&E | C76: OK | D76: √ | E76: √ | F76: - - | G76: √ | H76: √ | I76: √ | J76: - - | K76: √ | L76: √ | M76: √ | N76: - -
A77: OTTER TAIL CORP.
B78: Otter Tail Power | C78: MN | D78: √ | E78: √ | F78: - - | G78: - - | H78: √ | I78: √ | J78: - - | K78: - - | L78: √ | M78: - - | N78: C
B79: Otter Tail Power | C79: ND | D79: √ | E79: - - | F79: - - | G79: - - | H79: √ | I79: √ | J79: - - | K79: √ | L79: - - | M79: √ | N79: O
A80: PNM RESOURCES
B81: Public Service Co. New Mexico | C81: NM | D81: √ | E81: √ | F81: - - | G81: - - | H81: √ | I81: √ | J81: - - | K81: √ | L81: - - | M81: √ | N81: O
B82: Texas-New Mexico Power Co. | C82: TX | D82: √ | E82: √ | F82: - - | G82: - - | H82: - - | I82: - - | J82: - - | K82: √ | L82: √ | M82: √ | N82: - -
A83: SEMPRA ENERGY
B84: Oncor Electric | C84: TX | D84: D | E84: √ | F84: - - | G84: - - | H84: - - | I84: - - | J84: D | K84: √ | L84: √ | M84: - - | N84: - -
B85: San Diego Gas & Electric | C85: CA | D85: √ | E85: - - | F85: √ | G85: - - | H85: - - | I85: - - | J85: - - | K85: - - | L85: - - | M85: - - | N85: C
A88: Sources:
A89: (a) | B89: Regulatory Research Associates, Regulatory Focus, "Adjustment Clauses-A State-by-State Overview," Sep. 28, 2018.
A90: (b) | B90: Edison Electric Institute, "Alternative Regulation for Emerging Utility Challenges: 2015 Update," Nov. 11, 2015.
A91: (c) | B91: NorthWestern Corp. is not a holding company, with its Montana and South Dakota operations representing its major divisions.
A93: Notes:
A94: D - Delivery-only utility.
A95: C - Fully-forecasted test years commonly used in the state listed for this operating company.
A96: O - Fully-forecasted test years occasionally used in the state listed for this operating company.
A97: P - Partially-forecasted test years commonly or occasionally used in the state listed for this operating company.
A98: LIR - Limited issue reopeners.

Sheet Stock Price (Utility)
C1: 1 | D1: =C1+1 -> 2 | E1: =D1+1 -> 3 | F1: 4 | G1: 5 | H1: 6 | I1: 7 | J1: 8 | K1: 9 | L1: 10 | M1: 11 | N1: =M1+1 -> 12 | O1: =N1+1 -> 13 | P1: =O1+1 -> 14 | Q1: =P1+1 -> 15 | R1: =Q1+1 -> 16 | S1: =R1+1 -> 17 | T1: =S1+1 -> 18 | U1: =T1+1 -> 19 | V1: =U1+1 -> 20 | W1: =V1+1 -> 21 | X1: =W1+1 -> 22
B2: Date | C2: =TRANSPOSE('Utility Group'!B3:B24) -> AQN | D2: AEE | E2: AGR | F2: AVA | G2: BKH | H2: CNP | I2: CMS | J2: D | K2: DTE | L2: EIX | M2: EE | N2: EMA | O2: ETR | P2: EXC | Q2: FE | R2: HE | S2: IDA | T2: NWE | U2: OGE | V2: OTTR | W2: PNM | X2: SRE
A3: =A2+1 -> 1 | B3: 2019-03-22 | C3: 11.28 | D3: 73.75 | E3: 50.04 | F3: 40.75 | G3: 72.87 | H3: 30.72 | I3: 55.64 | J3: 75.52 | K3: 124.89 | L3: 64.69 | M3: 57.55 | N3: 49.98 | O3: 96.12 | P3: 50.28 | Q3: 41.77 | R3: 40.61 | S3: 100.02 | T3: 70.65 | U3: 43.11 | V3: 48.58 | W3: 47.3 | X3: 126.07
A4: 2 | B4: 2019-03-21 | C4: 11.19 | D4: 73.26 | E4: 49.36 | F4: 40.87 | G4: 72.65 | H4: 30.62 | I4: 55.22 | J4: 75.11 | K4: 123.24 | L4: 64.98 | M4: 57.99 | N4: 49.400002 | O4: 94.95 | P4: 49.66 | Q4: 41.24 | R4: 40.59 | S4: 99.4 | T4: 70.44 | U4: 42.82 | V4: 49.19 | W4: 47.06 | X4: 125.87
A5: 3 | B5: 2019-03-20 | C5: 11.19 | D5: 72.23 | E5: 48.81 | F5: 40.45 | G5: 71.39 | H5: 30.26 | I5: 54.6 | J5: 74.94 | K5: 122.4 | L5: 63.29 | M5: 57.58 | N5: 48.98 | O5: 93.57 | P5: 49.1 | Q5: 40.59 | R5: 40.06 | S5: 98.2 | T5: 69.77 | U5: 42.26 | V5: 49.01 | W5: 46.49 | X5: 125.05
A6: 4 | B6: 2019-03-19 | C6: 11.08 | D6: 72 | E6: 48.69 | F6: 40.67 | G6: 71.85 | H6: 30.27 | I6: 54.37 | J6: 75.19 | K6: 122.14 | L6: 63.01 | M6: 57.51 | N6: 49 | O6: 93.18 | P6: 49.08 | Q6: 40.41 | R6: 40.04 | S6: 98.04 | T6: 69.82 | U6: 41.96 | V6: 49.11 | W6: 46.38 | X6: 123.93
A7: 5 | B7: 2019-03-18 | C7: 11.22 | D7: 72.51 | E7: 49.5 | F7: 41.47 | G7: 72.74 | H7: 30.58 | I7: 55.32 | J7: 76.61 | K7: 123.34 | L7: 63.52 | M7: 58.72 | N7: 48.869999 | O7: 94.49 | P7: 49.67 | Q7: 41.24 | R7: 40.59 | S7: 99.61 | T7: 70.32 | U7: 42.85 | V7: 50.15 | W7: 47.44 | X7: 124.65
A8: 6 | B8: 2019-03-15 | C8: 11.23 | D8: 73.04 | E8: 49.54 | F8: 41.45 | G8: 73.02 | H8: 30.81 | I8: 55.53 | J8: 77.04 | K8: 123.98 | L8: 63.92 | M8: 58.6 | N8: 49 | O8: 94.66 | P8: 50 | Q8: 41.23 | R8: 40.63 | S8: 99.54 | T8: 70.74 | U8: 43.11 | V8: 50.13 | W8: 47.17 | X8: 124.62
A9: 7 | B9: 2019-03-14 | C9: 11.22 | D9: 72.61 | E9: 49.43 | F9: 41.11 | G9: 72.69 | H9: 30.41 | I9: 55.15 | J9: 76.64 | K9: 124.38 | L9: 64.05 | M9: 58.74 | N9: 48.869999 | O9: 94.94 | P9: 49.62 | Q9: 41.21 | R9: 40.26 | S9: 99.28 | T9: 70.23 | U9: 42.83 | V9: 50.41 | W9: 46.53 | X9: 124.45
A10: 8 | B10: 2019-03-13 | C10: 11.25 | D10: 72.94 | E10: 49.49 | F10: 41.49 | G10: 72.72 | H10: 30.41 | I10: 55.3 | J10: 76.3 | K10: 124.16 | L10: 64.1 | M10: 59.19 | N10: 49.09 | O10: 95.01 | P10: 49.63 | Q10: 41.62 | R10: 40.14 | S10: 100.07 | T10: 70.65 | U10: 42.79 | V10: 50.74 | W10: 46.82 | X10: 124.34
A11: 9 | B11: 2019-03-12 | C11: 11.3 | D11: 72.37 | E11: 49.5 | F11: 41.45 | G11: 73 | H11: 30.68 | I11: 55.32 | J11: 76.33 | K11: 124.06 | L11: 64.16 | M11: 59.53 | N11: 49.150002 | O11: 94.89 | P11: 49.46 | Q11: 41.58 | R11: 39.8 | S11: 101.22 | T11: 70.88 | U11: 42.91 | V11: 51.05 | W11: 47.2 | X11: 124
A12: 10 | B12: 2019-03-11 | C12: 11.16 | D12: 72.57 | E12: 48.84 | F12: 41.01 | G12: 73.24 | H12: 30.43 | I12: 54.95 | J12: 76.32 | K12: 123.69 | L12: 63.13 | M12: 59.44 | N12: 47.869999 | O12: 93.96 | P12: 49.08 | Q12: 41.36 | R12: 39.96 | S12: 101.48 | T12: 70.55 | U12: 42.74 | V12: 51.54 | W12: 47.11 | X12: 123.19
A13: 11 | B13: 2019-03-08 | C13: 11.14 | D13: 71.7 | E13: 48.3 | F13: 41.09 | G13: 72.81 | H13: 30.03 | I13: 54.64 | J13: 75.73 | K13: 123.2 | L13: 62.05 | M13: 58.45 | N13: 47.77 | O13: 92.49 | P13: 48.78 | Q13: 40.89 | R13: 39.41 | S13: 100.34 | T13: 70.17 | U13: 42.37 | V13: 50.43 | W13: 45.86 | X13: 122.3
A14: 12 | B14: 2019-03-07 | C14: 11.19 | D14: 71.22 | E14: 48.1 | F14: 40.5 | G14: 72.33 | H14: 30.03 | I14: 54.28 | J14: 76.12 | K14: 122.5 | L14: 62.2 | M14: 57.61 | N14: 47.900002 | O14: 92.13 | P14: 48.55 | Q14: 40.78 | R14: 39.13 | S14: 99.35 | T14: 69.63 | U14: 42.11 | V14: 50.2 | W14: 44.94 | X14: 121.7
A15: 13 | B15: 2019-03-06 | C15: 11.18 | D15: 71.07 | E15: 48.5 | F15: 40.05 | G15: 72.09 | H15: 30.1 | I15: 54.03 | J15: 75.83 | K15: 122.38 | L15: 61.73 | M15: 57.48 | N15: 47.310001 | O15: 92.09 | P15: 48.43 | Q15: 40.72 | R15: 38.88 | S15: 98.7 | T15: 69.2 | U15: 41.96 | V15: 50.06 | W15: 44.23 | X15: 120.97
A16: 14 | B16: 2019-03-05 | C16: 11.23 | D16: 71.07 | E16: 48.28 | F16: 40 | G16: 71.88 | H16: 30.17 | I16: 54 | J16: 75.45 | K16: 122.76 | L16: 62.5 | M16: 57.91 | N16: 47.150002 | O16: 92.17 | P16: 48.42 | Q16: 40.42 | R16: 38.84 | S16: 98.6 | T16: 68.85 | U16: 42.05 | V16: 50.21 | W16: 44.32 | X16: 121.08
A17: 15 | B17: 2019-03-04 | C17: 11.24 | D17: 71.3 | E17: 48.6 | F17: 40.16 | G17: 72 | H17: 30.34 | I17: 54.15 | J17: 75.27 | K17: 123.11 | L17: 62.09 | M17: 57.71 | N17: 47.259998 | O17: 92.64 | P17: 48.45 | Q17: 40.74 | R17: 38.84 | S17: 99.59 | T17: 69.49 | U17: 42.34 | V17: 50.91 | W17: 44.76 | X17: 121.33
A18: 16 | B18: 2019-03-01 | C18: 11.04 | D18: 70.93 | E18: 48.71 | F18: 40.06 | G18: 71.95 | H18: 30.17 | I18: 54.1 | J18: 74.79 | K18: 122.9 | L18: 61.31 | M18: 57.09 | N18: 47.009998 | O18: 93.25 | P18: 48.54 | Q18: 40.9 | R18: 38.43 | S18: 98.92 | T18: 69.05 | U18: 42.43 | V18: 50.63 | W18: 44.79 | X18: 121.26
A19: 17 | B19: 2019-02-28 | C19: 11.09 | D19: 71.24 | E19: 48.35 | F19: 40.41 | G19: 70.98 | H19: 30.14 | I19: 54.4 | J19: 74.09 | K19: 123.56 | L19: 59.89 | M19: 53.8 | N19: 46.82 | O19: 93.33 | P19: 48.59 | Q19: 40.75 | R19: 38.28 | S19: 98.41 | T19: 68.54 | U19: 42.52 | V19: 50.28 | W19: 43.68 | X19: 120.44
A20: 18 | B20: 2019-02-27 | C20: 11.03 | D20: 70.42 | E20: 48.49 | F20: 40.23 | G20: 71.04 | H20: 31.16 | I20: 53.85 | J20: 74.33 | K20: 122.36 | L20: 60.61 | M20: 53.63 | N20: 46.400002 | O20: 92.46 | P20: 48.3 | Q20: 40.72 | R20: 38.09 | S20: 98.06 | T20: 67.96 | U20: 42.3 | V20: 49.94 | W20: 43.83 | X20: 120.33
A21: 19 | B21: 2019-02-26 | C21: 11.12 | D21: 70.22 | E21: 48.7 | F21: 40.74 | G21: 70.69 | H21: 30.93 | I21: 53.85 | J21: 73.89 | K21: 122.3 | L21: 61.34 | M21: 53.9 | N21: 46.509998 | O21: 92.7 | P21: 48.56 | Q21: 40.78 | R21: 38 | S21: 98.11 | T21: 67.32 | U21: 41.92 | V21: 49.7 | W21: 44.36 | X21: 118.9
A22: 20 | B22: 2019-02-25 | C22: 10.97 | D22: 70.88 | E22: 49.18 | F22: 41.03 | G22: 70.59 | H22: 31.01 | I22: 53.82 | J22: 75.12 | K22: 122.82 | L22: 60.67 | M22: 54.32 | N22: 46.419998 | O22: 92.45 | P22: 48.42 | Q22: 40.43 | R22: 38.15 | S22: 98.59 | T22: 67.21 | U22: 42.24 | V22: 50.03 | W22: 44.23 | X22: 117.59
A23: 21 | B23: 2019-02-22 | C23: 11.06 | D23: 72.18 | E23: 49.27 | F23: 41.73 | G23: 71.19 | H23: 31.4 | I23: 54.2 | J23: 75.05 | K23: 123.72 | L23: 61.41 | M23: 55 | N23: 46.470001 | O23: 92.77 | P23: 48.74 | Q23: 40.72 | R23: 38.62 | S23: 99.42 | T23: 67.41 | U23: 42.79 | V23: 49.94 | W23: 44.6 | X23: 118.48
A24: 22 | B24: 2019-02-21 | C24: 11 | D24: 71.2 | E24: 48.9 | F24: 41.37 | G24: 70.37 | H24: 31.22 | I24: 53.41 | J24: 74.34 | K24: 122.74 | L24: 61.26 | M24: 54.89 | N24: 46.52 | O24: 91.19 | P24: 48.49 | Q24: 40.05 | R24: 38.31 | S24: 99.1 | T24: 66.78 | U24: 42.6 | V24: 49.95 | W24: 44.17 | X24: 117.67
A25: 23 | B25: 2019-02-20 | C25: 10.87 | D25: 70.4 | E25: 48.51 | F25: 41.57 | G25: 70.12 | H25: 30.98 | I25: 52.79 | J25: 73.54 | K25: 121.77 | L25: 62.68 | M25: 54.23 | N25: 46.389999 | O25: 91.24 | P25: 48.13 | Q25: 39.59 | R25: 37.98 | S25: 98.29 | T25: 66.19 | U25: 41.94 | V25: 49.68 | W25: 43.9 | X25: 117.13
A26: 24 | B26: 2019-02-19 | C26: 10.93 | D26: 70.09 | E26: 51.18 | F26: 41.58 | G26: 69.8 | H26: 31.21 | I26: 52.79 | J26: 73.54 | K26: 120.51 | L26: 61.65 | M26: 54.07 | N26: 46.169998 | O26: 90.05 | P26: 48.15 | Q26: 39.6 | R26: 37.7 | S26: 98.51 | T26: 66.02 | U26: 41.93 | V26: 50.49 | W26: 43.59 | X26: 116.27
A27: 25 | B27: 2019-02-15 | C27: 10.75 | D27: 69.68 | E27: 50.63 | F27: 41.23 | G27: 69.64 | H27: 30.89 | I27: 52.77 | J27: 73.26 | K27: 119.81 | L27: 60.5 | M27: 53.38 | N27: 46.450001 | O27: 89.86 | P27: 48.26 | Q27: 39.59 | R27: 37.86 | S27: 97.89 | T27: 65.54 | U27: 41.88 | V27: 50.23 | W27: 43.36 | X27: 115.26
A28: 26 | B28: 2019-02-14 | C28: 10.8 | D28: 69.03 | E28: 50.46 | F28: 41.01 | G28: 69.53 | H28: 30.83 | I28: 52.5 | J28: 72.9 | K28: 119.21 | L28: 60.52 | M28: 52.44 | N28: 46.080002 | O28: 89.69 | P28: 47.86 | Q28: 39.45 | R28: 37.68 | S28: 97.6 | T28: 64.99 | U28: 41.64 | V28: 49.11 | W28: 43.06 | X28: 114.05
A29: 27 | B29: 2019-02-13 | C29: 10.81 | D29: 70.06 | E29: 50.43 | F29: 41 | G29: 70.39 | H29: 30.76 | I29: 52.78 | J29: 73.25 | K29: 119.35 | L29: 60.41 | M29: 52.42 | N29: 46.209999 | O29: 89.36 | P29: 47.9 | Q29: 39.51 | R29: 37.57 | S29: 97.17 | T29: 65.06 | U29: 41.67 | V29: 49.53 | W29: 42.97 | X29: 114.24
A30: 28 | B30: 2019-02-12 | C30: 10.92 | D30: 70.19 | E30: 50.49 | F30: 41.09 | G30: 70.42 | H30: 30.84 | I30: 52.79 | J30: 73.2 | K30: 119.49 | L30: 60.07 | M30: 52.82 | N30: 46.330002 | O30: 90.86 | P30: 47.92 | Q30: 39.52 | R30: 37.68 | S30: 98.16 | T30: 65.58 | U30: 41.47 | V30: 49.85 | W30: 42.9 | X30: 114.12
A31: 29 | B31: 2019-02-11 | C31: 10.93 | D31: 70.76 | E31: 50.56 | F31: 40.97 | G31: 70.31 | H31: 30.79 | I31: 52.83 | J31: 72.81 | K31: 119.04 | L31: 58.42 | M31: 52.93 | N31: 46.360001 | O31: 90.6 | P31: 47.8 | Q31: 39.35 | R31: 37.77 | S31: 98.38 | T31: 64.98 | U31: 41.44 | V31: 50.02 | W31: 42.74 | X31: 114.95
A32: 30 | B32: 2019-02-08 | C32: 11.08 | D32: 70.47 | E32: 50.51 | F32: 41.07 | G32: 69.43 | H32: 30.85 | I32: 52.95 | J32: 73.05 | K32: 118.56 | L32: 58.08 | M32: 53.55 | N32: 46.439999 | O32: 90.82 | P32: 47.72 | Q32: 39.49 | R32: 37.98 | S32: 98.55 | T32: 65.01 | U32: 41.26 | V32: 49.89 | W32: 42.9 | X32: 117.92
B34: Average | C34: =AVERAGE(C3:C32) -> 11.08333333 | D34: =AVERAGE(D3:D32) -> 71.37966667 | E34: 49.31166667 | F34: 40.92033333 | G34: 71.45766667 | H34: =AVERAGE(H3:H32) -> 30.63466667 | I34: 54.07766667 | J34: 74.852 | K34: 122.279 | L34: 61.94133333 | M34: 56.08266667 | N34: 47.47266673 | O34: 92.59733333 | P34: 48.71966667 | Q34: 40.54166667 | R34: 38.92933333 | S34: 98.95333333 | T34: 68.301 | U34: 42.27466667 | V34: 50.033 | W34: 44.95633333 | X34: 120.4053333
A37: (a) | B37: Average of closing prices for 30 trading days ended Mar. 22, 2019.
B69: 2019-01-21 | C69: 44.860001 | D69: Emera on MLK Day

Sheet Stock Price (Non-Utility)
C1: 1 | D1: 2 | E1: 3 | F1: 4 | G1: 5 | H1: 6 | I1: 7 | J1: 8 | K1: 9 | L1: 10 | M1: 11 | N1: 12 | O1: 13 | P1: 14 | Q1: 15 | R1: 16
B2: Date | C2: CHD | D2: KO | E2: CL | F2: FRT | G2: GIS | H2: K | I2: KMB | J2: MKC | K2: PEP | L2: PG | M2: PSA | N2: SJM | O2: SYY | P2: VZ | Q2: WMT | R2: WM
A3: 1 | B3: 2019-03-22 | C3: 67.1 | D3: 45.93 | E3: 66 | F3: 134.52 | G3: 50.74 | H3: 56.74 | I3: 122.05 | J3: 142.37 | K3: 120.72 | L3: 101.66 | M3: 222.12 | N3: 114.3 | O3: 65.56 | P3: 59.76 | Q3: 98.28 | R3: 101.9
A4: 2 | B4: 2019-03-21 | C4: 66.77 | D4: 45.51 | E4: 65.83 | F4: 134.06 | G4: 50.04 | H4: 56.48 | I4: 121.46 | J4: 143.28 | K4: 119.44 | L4: 102.49 | M4: 222.02 | N4: 111.59 | O4: 65.91 | P4: 58.29 | Q4: 99.06 | R4: 101.95
A5: 3 | B5: 2019-03-20 | C5: 65.82 | D5: 45.53 | E5: 65.11 | F5: 131.7 | G5: 48.29 | H5: 54.11 | I5: 119.57 | J5: 139.39 | K5: 118.32 | L5: 101.72 | M5: 218.85 | N5: 107.07 | O5: 65.41 | P5: 57.67 | Q5: 98.64 | R5: 100.8
A6: 4 | B6: 2019-03-19 | C6: 66.38 | D6: 45.56 | E6: 65.75 | F6: 131.28 | G6: 47.24 | H6: 54.41 | I6: 119.94 | J6: 140.3 | K6: 118.09 | L6: 101.9 | M6: 217.48 | N6: 106.91 | O6: 66.18 | P6: 57.5 | Q6: 99.85 | R6: 101.26
A7: 5 | B7: 2019-03-18 | C7: 66.86 | D7: 45.41 | E7: 66.29 | F7: 132.39 | G7: 47.62 | H7: 54.27 | I7: 119.57 | J7: 140.71 | K7: 117.27 | L7: 101.51 | M7: 217.76 | N7: 107.02 | O7: 66.46 | P7: 58.07 | Q7: 99.66 | R7: 101.4
A8: 6 | B8: 2019-03-15 | C8: 67.4 | D8: 45.3 | E8: 67.2 | F8: 132.68 | G8: 47.51 | H8: 54.27 | I8: 120.19 | J8: 139.99 | K8: 115.66 | L8: 102.44 | M8: 217.62 | N8: 105.58 | O8: 66.27 | P8: 58.39 | Q8: 98.42 | R8: 100.97
A9: 7 | B9: 2019-03-14 | C9: 66.93 | D9: 45.7 | E9: 66.25 | F9: 133.48 | G9: 47.46 | H9: 53.81 | I9: 118.45 | J9: 139.46 | K9: 115.5 | L9: 101.32 | M9: 218.57 | N9: 103.85 | O9: 66.12 | P9: 57.95 | Q9: 98.22 | R9: 101.16
A10: 8 | B10: 2019-03-13 | C10: 66.94 | D10: 46.22 | E10: 66.52 | F10: 133.86 | G10: 47.08 | H10: 53.61 | I10: 118.47 | J10: 139.2 | K10: 116.58 | L10: 101.18 | M10: 219.14 | N10: 103.26 | O10: 66.45 | P10: 57.66 | Q10: 99.03 | R10: 101.08
A11: 9 | B11: 2019-03-12 | C11: 66.4 | D11: 46.05 | E11: 65.74 | F11: 134 | G11: 46.83 | H11: 54.16 | I11: 117.78 | J11: 138.4 | K11: 116.57 | L11: 100.05 | M11: 218.27 | N11: 102.8 | O11: 66.18 | P11: 57.43 | Q11: 98.37 | R11: 100.51
A12: 10 | B12: 2019-03-11 | C12: 66.45 | D12: 46.18 | E12: 65.85 | F12: 132.9 | G12: 46.91 | H12: 54.15 | I12: 117.59 | J12: 139.08 | K12: 116.59 | L12: 99.58 | M12: 218.84 | N12: 103.13 | O12: 66.46 | P12: 57.58 | Q12: 98.48 | R12: 99.85
A13: 11 | B13: 2019-03-08 | C13: 65.65 | D13: 44.84 | E13: 65.35 | F13: 131.83 | G13: 46.56 | H13: 54.56 | I13: 115.88 | J13: 137.05 | K13: 115.23 | L13: 98.41 | M13: 214.32 | N13: 102.49 | O13: 65.78 | P13: 56.53 | Q13: 97.59 | R13: 98.95
A14: 12 | B14: 2019-03-07 | C14: 65.63 | D14: 45.28 | E14: 65.34 | F14: 132.36 | G14: 46.4 | H14: 54.3 | I14: 115.18 | J14: 135.63 | K14: 116.1 | L14: 98.55 | M14: 214.17 | N14: 102.63 | O14: 65.87 | P14: 56.3 | Q14: 97.45 | R14: 99.7
A15: 13 | B15: 2019-03-06 | C15: 65.36 | D15: 45.45 | E15: 65.61 | F15: 132.77 | G15: 46.81 | H15: 54.47 | I15: 116.13 | J15: 136.47 | K15: 116.66 | L15: 98.93 | M15: 213.21 | N15: 103.41 | O15: 66.28 | P15: 55.68 | Q15: 98.26 | R15: 99.81
A16: 14 | B16: 2019-03-05 | C16: 65.63 | D16: 45.6 | E16: 65.72 | F16: 134.3 | G16: 46.82 | H16: 54.77 | I16: 116.68 | J16: 135.83 | K16: 116.03 | L16: 99.09 | M16: 213.15 | N16: 102.08 | O16: 66.58 | P16: 56.08 | Q16: 98.34 | R16: 99.71
A17: 15 | B17: 2019-03-04 | C17: 65.89 | D17: 45.65 | E17: 66.03 | F17: 133.07 | G17: 46.78 | H17: 54.61 | I17: 116.44 | J17: 135.47 | K17: 116.17 | L17: 98.87 | M17: 212.35 | N17: 102.54 | O17: 67.11 | P17: 56.24 | Q17: 97.85 | R17: 100.24
A18: 16 | B18: 2019-03-01 | C18: 65.58 | D18: 45.38 | E18: 66 | F18: 132.46 | G18: 47.22 | H18: 56.84 | I18: 115.68 | J18: 136.71 | K18: 116.18 | L18: 98.44 | M18: 212 | N18: 105.42 | O18: 67.58 | P18: 56.96 | Q18: 97.93 | R18: 101
A19: 17 | B19: 2019-02-28 | C19: 65.8 | D19: 45.34 | E19: 65.87 | F19: 133.59 | G19: 47.13 | H19: 56.26 | I19: 116.83 | J19: 135.98 | K19: 115.64 | L19: 98.55 | M19: 211.49 | N19: 105.91 | O19: 67.55 | P19: 56.92 | Q19: 98.99 | R19: 101.25
A20: 18 | B20: 2019-02-27 | C20: 65.74 | D20: 44.94 | E20: 65.87 | F20: 133.12 | G20: 47.09 | H20: 55.76 | I20: 116.67 | J20: 134.75 | K20: 115.37 | L20: 98.91 | M20: 209.61 | N20: 107.57 | O20: 67.11 | P20: 56.72 | Q20: 98.11 | R20: 100.24
A21: 19 | B21: 2019-02-26 | C21: 65.6 | D21: 44.69 | E21: 66.49 | F21: 133.74 | G21: 46.86 | H21: 55.92 | I21: 117.77 | J21: 133.04 | K21: 115.97 | L21: 99.83 | M21: 202.7 | N21: 106.09 | O21: 67.41 | P21: 56.64 | Q21: 98.69 | R21: 99.43
A22: 20 | B22: 2019-02-25 | C22: 65.3 | D22: 44.94 | E22: 66.52 | F22: 134.22 | G22: 46.2 | H22: 55.66 | I22: 117.78 | J22: 133.43 | K22: 116.06 | L22: 99.57 | M22: 201.41 | N22: 101.06 | O22: 67.26 | P22: 56.78 | Q22: 99.12 | R22: 99.3
A23: 21 | B23: 2019-02-22 | C23: 66.28 | D23: 45.28 | E23: 66.9 | F23: 135.16 | G23: 46.58 | H23: 56.73 | I23: 119.1 | J23: 135.74 | K23: 116.76 | L23: 100.25 | M23: 201.14 | N23: 101.42 | O23: 67.33 | P23: 56.92 | Q23: 99.55 | R23: 99.73
A24: 22 | B24: 2019-02-21 | C24: 66.15 | D24: 45.86 | E24: 66.7 | F24: 134.46 | G24: 46.95 | H24: 58.33 | I24: 119.73 | J24: 133.76 | K24: 116.1 | L24: 99.78 | M24: 200.48 | N24: 106.77 | O24: 67.24 | P24: 56.15 | Q24: 99.39 | R24: 99.32
A25: 23 | B25: 2019-02-20 | C25: 64.94 | D25: 45.1 | E25: 66.51 | F25: 133.63 | G25: 46.95 | H25: 58.45 | I25: 118.58 | J25: 130.42 | K25: 115.83 | L25: 99.28 | M25: 205.62 | N25: 106.94 | O25: 67.35 | P25: 55.76 | Q25: 99.88 | R25: 99.18
A26: 24 | B26: 2019-02-19 | C26: 64.96 | D26: 44.83 | E26: 66.72 | F26: 135.33 | G26: 45.74 | H26: 57.42 | I26: 119.57 | J26: 129.69 | K26: 115.93 | L26: 99.99 | M26: 207.91 | N26: 104.01 | O26: 67.01 | P26: 55.44 | Q26: 102.2 | R26: 99.08
A27: 25 | B27: 2019-02-15 | C27: 64.69 | D27: 45.24 | E27: 66.48 | F27: 135.48 | G27: 45.04 | H27: 56.79 | I27: 118.44 | J27: 128.47 | K27: 115.91 | L27: 98.48 | M27: 207.74 | N27: 103.38 | O27: 67.54 | P27: 55.16 | Q27: 99.99 | R27: 99.06
A28: 26 | B28: 2019-02-14 | C28: 64.35 | D28: 45.59 | E28: 65.45 | F28: 134.22 | G28: 44.53 | H28: 56.58 | I28: 116.85 | J28: 127.4 | K28: 112.59 | L28: 98.46 | M28: 208.15 | N28: 101.54 | O28: 66.56 | P28: 54.03 | Q28: 98.52 | R28: 98.84
A29: 27 | B29: 2019-02-13 | C29: 64.82 | D29: 49.79 | E29: 65.94 | F29: 135.58 | G29: 44.47 | H29: 56.96 | I29: 116.09 | J29: 128.59 | K29: 114.12 | L29: 99.24 | M29: 207.96 | N29: 103.73 | O29: 66.53 | P29: 54.48 | Q29: 97.94 | R29: 98.56
A30: 28 | B30: 2019-02-12 | C30: 64.15 | D30: 49.66 | E30: 66.02 | F30: 135.08 | G30: 44.84 | H30: 56.53 | I30: 116 | J30: 128.75 | K30: 113.79 | L30: 99.26 | M30: 207.74 | N30: 104.36 | O30: 66.94 | P30: 54.42 | Q30: 96.97 | R30: 98.65
A31: 29 | B31: 2019-02-11 | C31: 64.18 | D31: 49.61 | E31: 65.79 | F31: 136.48 | G31: 43.99 | H31: 55.67 | I31: 116.79 | J31: 127.49 | K31: 112.97 | L31: 98.27 | M31: 210.51 | N31: 103.34 | O31: 66.29 | P31: 54.05 | Q31: 96.2 | R31: 97.37
A32: 30 | B32: 2019-02-08 | C32: 63.34 | D32: 49.5 | E32: 65.69 | F32: 136.52 | G32: 43.95 | H32: 55.36 | I32: 115.69 | J32: 126.69 | K32: 113.015 | L32: 97.71 | M32: 210.57 | N32: 103.61 | O32: 66.2 | P32: 53.95 | Q32: 95.58 | R32: 97.42
B34: Average | C34: 65.703 | D34: 45.99866667 | E34: 66.05133333 | F34: 133.809 | G34: 46.68766667 | H34: 55.59933333 | I34: 117.8983333 | J34: 135.118 | K34: 116.0388333 | L34: 99.79066667 | M34: 212.0966667 | N34: 104.7936667 | O34: 66.61733333 | P34: 56.517 | Q34: 98.552 | R34: 99.924
A37: (a) | B37: Average of closing prices for 30 trading days ended Mar. 22, 2019.

Sheet 2019 03 Market DCF
E1: EPS Growth Rates | H1: Market | I1: Weighted | K1: Weighted | N1: Weighted | Q1: Weighted
D2: Dividend | G2: Value | H2: Cap | I2: Dividend Yield | K2: IBES | N2: Zacks | Q2: Value Line
B3: Company | C3: Ticker | D3: Yield | E3: IBES | F3: Zacks | G3: Line | H3: ($Millions) | I3: Weight | J3: Product | K3: Mkt. Cap. | L3: Weight | M3: Product | N3: Mkt. Cap. | O3: Weight | P3: Product | Q3: Mkt. Cap. | R3: Weight | S3: Product
B4: (a) | D4: (b) | E4: (c) | F4: (b) | H4: (b)
A5: 1 | B5: Agilent Technologies, Inc. | C5: A | D5: 0.0084 | E5: 0.1065 | F5: 0.1175 | G5: 0.095 | H5: 24759.9 | I5: =H5/H$424 -> 0.001248312268 | J5: =D5*I5 -> 1.048582305e-05 | K5: =IF(E5="n/a","--",IF(E5="NMF","--",$H5)) -> 24759.9 | L5: =IF(K5="--","--",K5/K$424) -> 0.001271152858 | M5: =IF(L5="--","--",E5*L5) -> 0.0001353777793 | N5: =IF(F5="n/a","--",IF(F5="NMF","--",$H5)) -> 24759.9 | O5: =IF(N5="--","--",N5/N$424) -> 0.001263018817 | P5: =IF(O5="--","--",F5*O5) -> 0.000148404711 | Q5: =IF(G5="n/a","--",IF(G5="NMF","--",$H5)) -> 24759.9 | R5: =IF(Q5="--","--",Q5/Q$424) -> 0.001322715138 | S5: =IF(R5="--","--",G5*R5) -> 0.0001256579381
A6: 2 | B6: American Airlines Group Inc. | C6: AAL | D6: 0.0125 | E6: 0.1829 | F6: 0.1607 | G6: 0.01 | H6: 14329.38 | I6: 0.0007224399474 | J6: 9.030499342e-06 | K6: 14329.38 | L6: 0.0007356585582 | M6: 0.0001345519503 | N6: =IF(F6="n/a","--",IF(F6="NMF","--",$H6)) -> 14329.38 | O6: 0.0007309511178 | P6: 0.0001174638446 | Q6: =IF(G6="n/a","--",IF(G6="NMF","--",$H6)) -> 14329.38 | R6: 0.0007654993697 | S6: =IF(R6="--","--",G6*R6) -> 7.654993697e-06
A7: 3 | B7: Advance Auto Parts, Inc. | C7: AAP | D7: 0.0016 | E7: 0.1752 | F7: 0.1289 | G7: 0.13 | H7: 10877.36 | I7: 0.000548400516 | J7: 8.774408256e-07 | K7: 10877.36 | L7: 0.0005584346967 | M7: 9.783775887e-05 | N7: 10877.36 | O7: 0.0005548613025 | P7: 7.152162189e-05 | Q7: 10877.36 | R7: 0.0005810867061 | S7: 7.554127179e-05
A8: 4 | B8: Apple Inc. | C8: AAPL | D8: 0.0169 | E8: 0.13 | F8: 0.0857 | G8: 0.175 | H8: 849876.56 | I8: 0.04284796532 | J8: 0.0007241306139 | K8: 849876.56 | L8: 0.04363196208 | M8: 0.00567215507 | N8: 849876.56 | O8: 0.04335276345 | P8: 0.003715331828 | Q8: 849876.56 | R8: 0.04540182276 | S8: 0.007945318983
A9: 5 | B9: AbbVie Inc. | C9: ABBV | D9: 0.0552 | E9: 0.0958 | F9: 0.0761 | G9: 0.145 | H9: 114436.95 | I9: 0.005769532536 | J9: 0.000318478196 | K9: 114436.95 | L9: 0.005875098688 | M9: 0.0005628344544 | N9: 114436.95 | O9: 0.005837504241 | P9: 0.0004442340727 | Q9: 114436.95 | R9: 0.00611341266 | S9: 0.0008864448357
A10: 6 | B10: AmerisourceBergen Corporation | C10: ABC | D10: 0.0209 | E10: 0.0944 | F10: 0.0803 | G10: 0.08 | H10: 16129.31 | I10: 0.000813186465 | J10: 1.699559712e-05 | K10: 16129.31 | L10: 0.0008280654808 | M10: 7.816938139e-05 | N10: 16129.31 | O10: 0.0008227667333 | P10: 6.606816869e-05 | Q10: 16129.31 | R10: 0.0008616546312 | S10: 6.89323705e-05
A11: 7 | B11: Abbott Laboratories | C11: ABT | D11: 0.0167 | E11: 0.1074 | F11: 0.1173 | G11: 0.1 | H11: 134598.28 | I11: 0.006786000115 | J11: 0.0001133262019 | K11: 134598.28 | L11: 0.006910164753 | M11: 0.0007421516944 | N11: 134598.28 | O11: 0.006865946972 | P11: 0.0008053755798 | Q11: 134598.28 | R11: 0.007190464522 | S11: 0.0007190464522
A12: 8 | B12: Accenture PLC | C12: ACN | D12: 0.0181 | E12: 0.0869 | F12: 0.1033 | G12: 0.095 | H12: 107402.74 | I12: 0.005414890933 | J12: 9.800952588e-05 | K12: 107402.74 | L12: 0.005513968145 | M12: 0.0004791638318 | N12: 107402.74 | O12: 0.005478684553 | P12: 0.0005659481143 | Q12: 107402.74 | R12: 0.005737633434 | S12: 0.0005450751762
A13: 9 | B13: Analog Devices, Inc. | C13: ADI | D13: 0.0205 | E13: 0.0934 | F13: 0.124 | G13: 0.105 | H13: 38823.98 | I13: 0.001957376667 | J13: 4.012622168e-05 | K13: 38823.98 | L13: 0.001993191133 | M13: 0.0001861640518 | N13: 38823.98 | O13: 0.001980436807 | P13: 0.0002455741641 | Q13: 38823.98 | R13: 0.002074041739 | S13: 0.0002177743826
A14: 10 | B14: Archer Daniels Midland Company | C14: ADM | D14: 0.0334 | E14: NMF | F14: n/a | G14: 0.095 | H14: 23478.93 | I14: 0.001183729998 | J14: 3.953658192e-05 | K14: -- | L14: -- | M14: -- | N14: -- | O14: -- | P14: -- | Q14: 23478.93 | R14: 0.001254283585 | S14: 0.0001191569406
A15: 11 | B15: Automatic Data Processing, Inc. | C15: ADP | D15: 0.0212 | E15: 0.1681 | F15: 0.1275 | G15: 0.15 | H15: 65013.43 | I15: 0.003277762119 | J15: 6.948855692e-05 | K15: 65013.43 | L15: 0.003337735909 | M15: 0.0005610734063 | N15: 65013.43 | O15: 0.003316377912 | P15: 0.0004228381838 | Q15: 65013.43 | R15: 0.003473125822 | S15: 0.0005209688733
A16: 12 | B16: Alliance Data Systems Corporation | C16: ADS | D16: 0.0151 | E16: 0.0469 | F16: 0.0984 | G16: 0.135 | H16: 8816.22 | I16: 0.0004444846541 | J16: 6.711718277e-06 | K16: 8816.22 | L16: 0.000452617468 | M16: 2.122775925e-05 | N16: 8816.22 | O16: 0.0004497211926 | P16: 4.425256536e-05 | Q16: 8816.22 | R16: 0.0004709771709 | S16: 6.358191807e-05
A17: 13 | B17: Ameren Corporation | C17: AEE | D17: 0.0265 | E17: 0.077 | F17: 0.0679 | G17: 0.065 | H17: 17540.62 | I17: 0.0008843400475 | J17: 2.343501126e-05 | K17: 17540.62 | L17: 0.000900520973 | M17: 6.934011492e-05 | N17: 17540.62 | O17: 0.0008947585866 | P17: 6.075410803e-05 | Q17: 17540.62 | R17: 0.0009370491644 | S17: 6.090819568e-05
A18: 14 | B18: American Electric Power Company, Inc. | C18: AEP | D18: 0.0327 | E18: 0.0574 | F18: 0.0572 | G18: 0.04 | H18: 40421.51 | I18: 0.002037918846 | J18: 6.663994627e-05 | K18: 40421.51 | L18: 0.002075207006 | M18: 0.0001191168821 | N18: 40421.51 | O18: 0.002061927865 | P18: 0.0001179422739 | Q18: 40421.51 | R18: 0.002159384456 | S18: 8.637537822e-05
A19: 15 | B19: The AES Corporation | C19: AES | D19: 0.0308 | E19: 0.076 | F19: 0.0778 | G19: n/a | H19: 11723.74 | I19: 0.0005910721963 | J19: 1.820502365e-05 | K19: 11723.74 | L19: 0.0006018871483 | M19: 4.574342327e-05 | N19: 11723.74 | O19: 0.0005980357041 | P19: 4.652717778e-05 | Q19: -- | R19: -- | S19: --
A20: 16 | B20: Aflac Incorporated | C20: AFL | D20: 0.0222 | E20: 0.0619 | F20: 0.0343 | G20: 0.085 | H20: 36428.62 | I20: 0.001836610538 | J20: 4.077275395e-05 | K20: 36428.62 | L20: 0.001870215325 | M20: 0.0001157663286 | N20: 36428.62 | O20: 0.001858247915 | P20: 6.373790348e-05 | Q20: 36428.62 | R20: 0.001946077615 | S20: 0.0001654165972
A21: 17 | B21: Allergan plc | C21: AGN | D21: 0.0204 | E21: 0.0501 | F21: 0.0773 | G21: 0.045 | H21: 48248.99 | I21: 0.0024325545 | J21: 4.962411179e-05 | K21: 48248.99 | L21: 0.002477063377 | M21: 0.0001241008752 | N21: 48248.99 | O21: 0.002461212779 | P21: 0.0001902517478 | Q21: 48248.99 | R21: 0.002577541487 | S21: 0.0001159893669
A22: 18 | B22: American International Group, Inc. | C22: AIG | D22: 0.0303 | E22: 0.4975 | F22: 0.11 | G22: NMF | H22: 36692.31 | I22: 0.001849904916 | J22: 5.605211896e-05 | K22: 36692.31 | L22: 0.001883752952 | M22: 0.0009371670935 | N22: 36692.31 | O22: 0.001871698916 | P22: 0.0002058868807 | Q22: -- | R22: -- | S22: --
A23: 19 | B23: Apartment Investment and Management Company | C23: AIV | D23: 0.0316 | E23: 0.071 | F23: 0.0533 | G23: 0.055 | H23: 7129.63 | I23: 0.0003594523644 | J23: 1.135869472e-05 | K23: 7129.63 | L23: 0.0003660293276 | M23: 2.598808226e-05 | N23: 7129.63 | O23: 0.0003636871252 | P23: 1.938452377e-05 | Q23: 7129.63 | R23: 0.0003808767212 | S23: 2.094821967e-05
A24: 20 | B24: Assurant, Inc. | C24: AIZ | D24: 0.024 | E24: 0.194 | F24: n/a | G24: 0.075 | H24: 6167.13 | I24: 0.0003109262978 | J24: 7.462231146e-06 | K24: 6167.13 | L24: 0.0003166153709 | M24: 6.142338196e-05 | N24: -- | O24: -- | P24: -- | Q24: 6167.13 | R24: 0.0003294583665 | S24: 2.470937749e-05
A25: 21 | B25: Arthur J. Gallagher & Co. | C25: AJG | D25: 0.0221 | E25: 0.1375 | F25: 0.1017 | G25: 0.17 | H25: 14340.12 | I25: 0.0007229814227 | J25: 1.597788944e-05 | K25: 14340.12 | L25: 0.000736209941 | M25: 0.0001012288669 | N25: 14340.12 | O25: 0.0007314989722 | P25: 7.439344548e-05 | Q25: 14340.12 | R25: 0.0007660731184 | S25: 0.0001302324301
A26: 22 | B26: Albemarle Corporation | C26: ALB | D26: 0.0162 | E26: 0.1329 | F26: 0.1505 | G26: 0.085 | H26: 8774.41 | I26: 0.0004423767322 | J26: 7.166503061e-06 | K26: 8774.41 | L26: 0.0004504709771 | M26: 5.986759286e-05 | N26: 8774.41 | O26: 0.000447588437 | P26: 6.736205977e-05 | Q26: 8774.41 | R26: 0.000468743611 | S26: 3.984320694e-05
A27: 23 | B27: Alaska Air Group, Inc. | C27: ALK | D27: 0.0252 | E27: 0.1167 | F27: 0.2537 | G27: 0.035 | H27: 6847.71 | I27: 0.0003452388905 | J27: 8.700020039e-06 | K27: 6847.71 | L27: 0.0003515557872 | M27: 4.102656036e-05 | N27: 6847.71 | O27: 0.0003493062002 | P27: 8.861898298e-05 | Q27: 6847.71 | R27: 0.0003658160848 | S27: 1.280356297e-05
A28: 24 | B28: The Allstate Corporation | C28: ALL | D28: 0.0214 | E28: 0.1222 | F28: 0.0833 | G28: 0.115 | H28: 30972.15 | I28: 0.001561513367 | J28: 3.341638606e-05 | K28: 30972.15 | L28: 0.001590084652 | M28: 0.0001943083445 | N28: 30972.15 | O28: 0.001579909784 | P28: 0.000131606485 | Q28: 30972.15 | R28: 0.00165458389 | S28: 0.0001902771474
A29: 25 | B29: Allegion PLC | C29: ALLE | D29: 0.0095 | E29: 0.0928 | F29: 0.1281 | G29: 0.105 | H29: 8310.42 | I29: 0.000418983891 | J29: 3.980346964e-06 | K29: 8310.42 | L29: 0.0004266501129 | M29: 3.959313048e-05 | N29: 8310.42 | O29: 0.0004239200013 | P29: 5.430415217e-05 | Q29: 8310.42 | R29: 0.0004439564916 | S29: 4.661543162e-05
A30: 26 | B30: Applied Materials, Inc. | C30: AMAT | D30: 0.0212 | E30: 0.1077 | F30: 0.0859 | G30: 0.19 | H30: 35830.09 | I30: 0.001806434635 | J30: 3.829641427e-05 | K30: 35830.09 | L30: 0.001839487288 | M30: 0.0001981127809 | N30: 35830.09 | O30: 0.001827716505 | P30: 0.0001570008478 | Q30: 35830.09 | R30: 0.001914103144 | S30: 0.0003636795974
A31: 27 | B31: AMETEK, Inc. | C31: AME | D31: 0.0071 | E31: 0.0845 | F31: 0.0958 | G31: 0.105 | H31: 17861.66 | I31: 0.0009005258225 | J31: 6.39373334e-06 | K31: 17861.66 | L31: 0.0009170029019 | M31: 7.748674521e-05 | N31: 17861.66 | O31: 0.0009111350486 | P31: 8.728673765e-05 | Q31: 17861.66 | R31: 0.0009541996564 | S31: 0.0001001909639
A32: 28 | B32: Affiliated Managers Group, Inc. | C32: AMG | D32: 0.0123 | E32: 0.0479 | F32: 0.0932 | G32: 0.065 | H32: 5404.25 | I32: 0.0002724644113 | J32: 3.351312259e-06 | K32: 5404.25 | L32: 0.0002774497406 | M32: 1.328984257e-05 | N32: 5404.25 | O32: 0.0002756743542 | P32: 2.569284982e-05 | Q32: 5404.25 | R32: 0.000288704045 | S32: 1.876576293e-05
A33: 29 | B33: Amgen Inc. | C33: AMGN | D33: 0.0321 | E33: 0.02 | F33: 0.0585 | G33: 0.07 | H33: 112551.42 | I33: 0.00567447035 | J33: 0.0001821504982 | K33: 112551.42 | L33: 0.005778297132 | M33: 0.0001155659426 | N33: 112551.42 | O33: 0.005741322113 | P33: 0.0003358673436 | Q33: 112551.42 | R33: 0.006012684504 | S33: 0.0004208879153
A34: 30 | B34: Ameriprise Financial, Inc. | C34: AMP | D34: 0.029 | E34: 0.1884 | F34: n/a | G34: 0.16 | H34: 16848.93 | I34: 0.0008494673254 | J34: 2.463455244e-05 | K34: 16848.93 | L34: 0.0008650101785 | M34: 0.0001629679176 | N34: -- | O34: -- | P34: -- | Q34: 16848.93 | R34: 0.0009000979314 | S34: 0.000144015669
A35: 31 | B35: American Tower Corporation (REIT) | C35: AMT | D35: 0.0185 | E35: 0.196 | F35: 0.1404 | G35: 0.095 | H35: 80114.34 | I35: 0.004039100057 | J35: 7.472335105e-05 | K35: 80114.34 | L35: 0.004113004181 | M35: 0.0008061488196 | N35: 80114.34 | O35: 0.004086685284 | P35: 0.0005737706138 | Q35: 80114.34 | R35: 0.004279841611 | S35: 0.000406584953
A36: 32 | B36: Anthem, Inc. | C36: ANTM | D36: 0.0102 | E36: 0.1758 | F36: 0.1383 | G36: 0.18 | H36: 75828.82 | I36: 0.003823038312 | J36: 3.899499078e-05 | K36: 75828.82 | L36: 0.003892989117 | M36: 0.0006843874868 | N36: 75828.82 | O36: 0.003868078084 | P36: 0.000534955199 | Q36: 75828.82 | R36: 0.004050901987 | S36: 0.0007291623577
A37: 33 | B37: Aon plc | C37: AON | D37: 0.0099 | E37: 0.1312 | F37: 0.118 | G37: 0.095 | H37: 38889.43 | I37: 0.00196067644 | J37: 1.941069675e-05 | K37: 38889.43 | L37: 0.001996551282 | M37: 0.0002619475281 | N37: 38889.43 | O37: 0.001983775455 | P37: 0.0002340855037 | Q37: 38889.43 | R37: 0.002077538188 | S37: 0.0001973661278
A38: 34 | B38: A. O. Smith Corporation | C38: AOS | D38: 0.0173 | E38: 0.0935 | F38: 0.1128 | G38: 0.125 | H38: 8645.36 | I38: 0.000435870458 | J38: 7.540558923e-06 | K38: 8645.36 | L38: 0.0004438456565 | M38: 4.149956888e-05 | N38: 8645.36 | O38: 0.0004410055114 | P38: 4.974542169e-05 | Q38: 8645.36 | R38: 0.0004618495449 | S38: 5.773119311e-05
A39: 35 | B39: Apache Corporation | C39: APA | D39: 0.0313 | E39: 0.0751 | F39: 0.07 | G39: n/a | H39: 11994.22 | I39: 0.0006047089034 | J39: 1.892738868e-05 | K39: 11994.22 | L39: 0.0006157733686 | M39: 4.624457998e-05 | N39: 11994.22 | O39: 0.0006118330672 | P39: 4.28283147e-05 | Q39: -- | R39: -- | S39: --
A40: 36 | B40: Anadarko Petroleum Corporation | C40: APC | D40: 0.0285 | E40: 0.3198 | F40: 0.152 | G40: n/a | H40: 21017.16 | I40: 0.001059615696 | J40: 3.019904734e-05 | K40: 21017.16 | L40: 0.001079003671 | M40: 0.000345065374 | N40: 21017.16 | O40: 0.001072099183 | P40: 0.0001629590759 | Q40: -- | R40: -- | S40: --
A41: 37 | B41: Air Products and Chemicals, Inc. | C41: APD | D41: 0.0243 | E41: 0.1185 | F41: 0.1301 | G41: 0.095 | H41: 39832.28 | I41: 0.002008211818 | J41: 4.879954719e-05 | K41: 39832.28 | L41: 0.002044956423 | M41: 0.0002423273362 | N41: 39832.28 | O41: 0.002031870855 | P41: 0.0002643463982 | Q41: 39832.28 | R41: 0.002127906807 | S41: 0.0002021511466
A42: 38 | B42: Amphenol Corporation | C42: APH | D42: 0.0099 | E42: 0.065 | F42: 0.1085 | G42: 0.1 | H42: 27680.36 | I42: 0.001395552203 | J42: 1.381596681e-05 | K42: 27680.36 | L42: 0.001421086867 | M42: 9.237064635e-05 | N42: 27680.36 | O42: 0.001411993407 | P42: 0.0001532012846 | Q42: 27680.36 | R42: 0.00147873098 | S42: 0.000147873098
A43: 39 | B43: Aptiv PLC | C43: APTV | D43: 0.0108 | E43: 0.1125 | F43: 0.1279 | G43: 0.11 | H43: 21268.26 | I43: 0.001072275328 | J43: 1.158057354e-05 | K43: 21268.26 | L43: 0.001091894938 | M43: 0.0001228381805 | N43: 21268.26 | O43: 0.00108490796 | P43: 0.000138759728 | Q43: 21268.26 | R43: 0.001136185908 | S43: 0.0001249804499
A44: 40 | B44: Alexandria Real Estate Equities, Inc. | C44: ARE | D44: 0.0282 | E44: 0.001 | F44: 0.0439 | G44: n/a | H44: 15511.37 | I44: 0.0007820319739 | J44: 2.205330166e-05 | K44: 15511.37 | L44: 0.0007963409506 | M44: 7.963409506e-07 | N44: 15511.37 | O44: 0.0007912452067 | P44: 3.473566457e-05 | Q44: -- | R44: -- | S44: --
A45: 41 | B45: Arconic Inc. | C45: ARNC | D45: 0.013 | E45: 0.112 | F45: n/a | G45: n/a | H45: 8966.56 | I45: 0.0004520642997 | J45: 5.876835896e-06 | K45: 8966.56 | L45: 0.0004603357997 | M45: 5.155760957e-05 | N45: -- | O45: -- | P45: -- | Q45: -- | R45: -- | S45: --
A46: 42 | B46: Atmos Energy Corporation | C46: ATO | D46: 0.021 | E46: 0.064 | F46: 0.065 | G46: 0.075 | H46: 11708.4 | I46: 0.0005902988043 | J46: 1.239627489e-05 | K46: 11708.4 | L46: 0.0006010996054 | M46: 3.847037474e-05 | N46: 11708.4 | O46: 0.0005972532006 | P46: 3.882145804e-05 | Q46: 11708.4 | R46: 0.0006254822484 | S46: 4.691116863e-05
A47: 43 | B47: Activision Blizzard, Inc | C47: ATVI | D47: 0.0081 | E47: 0.073 | F47: 0.1059 | G47: 0.145 | H47: 32103.94 | I47: 0.001618574476 | J47: 1.311045326e-05 | K47: 32103.94 | L47: 0.001648189818 | M47: 0.0001203178567 | N47: 32103.94 | O47: 0.001637643138 | P47: 0.0001734264083 | Q47: 32103.94 | R47: 0.001715045999 | S47: 0.0002486816698
A48: 44 | B48: AvalonBay Communities, Inc. | C48: AVB | D48: 0.0299 | E48: 0.0254 | F48: 0.0561 | G48: 0.055 | H48: 27208.71 | I48: 0.00137177317 | J48: 4.101601777e-05 | K48: 27208.71 | L48: 0.001396872745 | M48: 3.548056771e-05 | N48: 27208.71 | O48: 0.001387934229 | P48: 7.786311027e-05 | Q48: 27208.71 | R48: 0.001453534651 | S48: 7.99444058e-05
A49: 45 | B49: Broadcom Inc. | C49: AVGO | D49: 0.0401 | E49: 0.1528 | F49: 0.1194 | G49: 0.475 | H49: 104646.72 | I49: 0.005275941519 | J49: 0.0002115652549 | K49: 104646.72 | L49: 0.00537247635 | M49: 0.0008209143863 | N49: 104646.72 | O49: 0.005338098156 | P49: 0.0006373689198 | Q49: 104646.72 | R49: 0.005590402251 | S49: 0.002655441069
A50: 46 | B50: Avery Dennison Corporation | C50: AVY | D50: 0.0192 | E50: 0.1197 | F50: 0.07 | G50: 0.115 | H50: 9103.54 | I50: 0.0004589703782 | J50: 8.812231262e-06 | K50: 9103.54 | L50: 0.00046736824 | M50: 5.594397833e-05 | N50: 9103.54 | O50: 0.0004643775752 | P50: 3.250643026e-05 | Q50: 9103.54 | R50: 0.0004863262843 | S50: 5.59275227e-05
A51: 47 | B51: American Water Works Company, Inc. | C51: AWK | D51: 0.0178 | E51: 0.082 | F51: 0.0804 | G51: 0.1 | H51: 18532.5 | I51: 0.0009343473566 | J51: 1.663138295e-05 | K51: 18532.5 | L51: 0.0009514432746 | M51: 7.801834852e-05 | N51: 18532.5 | O51: 0.0009453550391 | P51: 7.600654514e-05 | Q51: 18532.5 | R51: 0.0009900370476 | S51: 9.900370476e-05
A52: 48 | B52: American Express Company | C52: AXP | D52: 0.0144 | E52: 0.125 | F52: 0.105 | G52: 0.09 | H52: 91066.99 | I52: 0.004591296446 | J52: 6.611466882e-05 | K52: 91066.99 | L52: 0.004675304205 | M52: 0.0005844130256 | N52: 91066.99 | O52: 0.004645387179 | P52: 0.0004877656538 | Q52: 91066.99 | R52: 0.004864950434 | S52: 0.0004378455391
A53: 49 | B53: The Boeing Company | C53: BA | D53: 0.0195 | E53: 0.2182 | F53: 0.1363 | G53: 0.175 | H53: 238728.77 | I53: 0.01203591502 | J53: 0.000234700343 | K53: 238728.77 | L53: 0.01225613828 | M53: 0.002674289373 | N53: 238728.77 | O53: 0.0121777119 | P53: 0.001659822131 | Q53: 238728.77 | R53: 0.01275328891 | S53: 0.002231825558
A54: 50 | B54: Bank of America Corporation | C54: BAC | D54: 0.0209 | E54: 0.1184 | F54: 0.08 | G54: 0.13 | H54: 293481.72 | I54: 0.01479637768 | J54: 0.0003092442934 | K54: 293481.72 | L54: 0.0150671096 | M54: 0.001783945777 | N54: 293481.72 | O54: 0.01497069596 | P54: 0.001197655677 | Q54: 293481.72 | R54: 0.01567828278 | S54: 0.002038176761
A55: 51 | B55: Baxter International Inc. | C55: BAX | D55: 0.0103 | E55: 0.109 | F55: 0.122 | G55: 0.125 | H55: 37994.44 | I55: 0.001915554004 | J55: 1.973020624e-05 | K55: 37994.44 | L55: 0.001950603233 | M55: 0.0002126157524 | N55: 37994.44 | O55: 0.001938121425 | P55: 0.0002364508139 | Q55: 37994.44 | R55: 0.00202972633 | S55: 0.0002537157912
A56: 52 | B56: BB&T Corporation | C56: BBT | D56: 0.0327 | E56: 0.0397 | F56: 0.0958 | G56: 0.1 | H56: 37874.51 | I56: 0.00190950753 | J56: 6.244089623e-05 | K56: 37874.51 | L56: 0.001944446125 | M56: 7.719451118e-05 | N56: 37874.51 | O56: 0.001932003717 | P56: 0.0001850859561 | Q56: 37874.51 | R56: 0.002023319469 | S56: 0.0002023319469
A57: 53 | B57: Best Buy Co., Inc. | C57: BBY | D57: 0.0267 | E57: 0.09 | F57: 0.1106 | G57: 0.12 | H57: 18129.4 | I57: 0.0009140243878 | J57: 2.440445115e-05 | K57: 18129.4 | L57: 0.0009307484529 | M57: 8.376736076e-05 | N57: 18129.4 | O57: 0.0009247926424 | P57: 0.0001022820663 | Q57: 18129.4 | R57: 0.0009685027736 | S57: 0.0001162203328
A58: 54 | B58: Becton, Dickinson and Company | C58: BDX | D58: 0.0125 | E58: 0.1167 | F58: 0.1175 | G58: 0.1 | H58: 66383.22 | I58: 0.0033468224 | J58: 4.183528e-05 | K58: 66383.22 | L58: 0.003408059799 | M58: 0.0003977205785 | N58: 66383.22 | O58: 0.003386251803 | P58: 0.0003978845868 | Q58: 66383.22 | R58: 0.003546302287 | S58: 0.0003546302287
A59: 55 | B59: Franklin Resources, Inc. | C59: BEN | D59: 0.0332 | E59: -0.037 | F59: 0.07 | G59: 0.09 | H59: 15962.95 | I59: 0.000804799144 | J59: 2.671933158e-05 | K59: 15962.95 | L59: 0.0008195246956 | M59: -3.032241374e-05 | N59: 15962.95 | O59: 0.0008142806001 | P59: 5.699964201e-05 | Q59: 15962.95 | R59: 0.0008527674027 | S59: 7.674906624e-05
A60: 56 | B60: Brown-Forman Corporation | C60: BF.B | D60: 0.0133 | E60: 0.0947 | F60: 0.09 | G60: n/a | H60: 23809.74 | I60: 0.001200408344 | J60: 1.596543097e-05 | K60: 23809.74 | L60: 0.001222372426 | M60: 0.0001157586688 | N60: 23809.74 | O60: 0.00121455053 | P60: 0.0001093095477 | Q60: -- | R60: -- | S60: --
A61: 57 | B61: Baker Hughes, a GE company | C61: BHGE | D61: 0.028 | E61: NMF | F61: 0.4863 | G61: n/a | H61: 26666.93 | I61: 0.001344458414 | J61: 3.764483559e-05 | K61: -- | L61: -- | M61: -- | N61: 26666.93 | O61: 0.001360297674 | P61: 0.0006615127591 | Q61: -- | R61: -- | S61: --
A62: 58 | B62: The Bank of New York Mellon Corporation | C62: BK | D62: 0.0218 | E62: 0.0943 | F62: 0.0825 | G62: 0.09 | H62: 49155.27 | I62: 0.00247824614 | J62: 5.402576585e-05 | K62: 49155.27 | L62: 0.002523591046 | M62: 0.0002379746356 | N62: 49155.27 | O62: 0.002507442719 | P62: 0.0002068640243 | Q62: 49155.27 | R62: 0.002625956476 | S62: 0.0002363360828
A63: 59 | B63: BlackRock, Inc. | C63: BLK | D63: 0.0313 | E63: 0.0797 | F63: 0.1015 | G63: 0.09 | H63: 66580.04 | I63: 0.003356745414 | J63: 0.0001050661314 | K63: 66580.04 | L63: 0.003418164375 | M63: 0.0002724277007 | N63: 66580.04 | O63: 0.003396291721 | P63: 0.0003447236097 | Q63: 66580.04 | R63: 0.00355681674 | S63: 0.0003201135066
A64: 60 | B64: Ball Corporation | C64: BLL | D64: 0.0073 | E64: 0.1455 | F64: 0.055 | G64: 0.22 | H64: 18391.93 | I64: 0.0009272602821 | J64: 6.769000059e-06 | K64: 18391.93 | L64: 0.0009442265267 | M64: 0.0001373849596 | N64: 18391.93 | O64: 0.0009381844707 | P64: 5.160014589e-05 | Q64: 18391.93 | R64: 0.0009825275639 | S64: 0.0002161560641
A65: 61 | B65: Bristol-Myers Squibb Company | C65: BMY | D65: 0.0319 | E65: 0.0883 | F65: 0.0546 | G65: 0.135 | H65: 83903.22 | I65: 0.004230122855 | J65: 0.0001349409191 | K65: 83903.22 | L65: 0.004307522158 | M65: 0.0003803542065 | N65: 83903.22 | O65: 0.00427995855 | P65: 0.0002336857368 | Q65: 83903.22 | R65: 0.004482249897 | S65: 0.0006051037361
A66: 62 | B66: Broadridge Financial Solutions, Inc. | C66: BR | D66: 0.0196 | E66: 0.1 | F66: 0.1 | G66: 0.11 | H66: 11445.48 | I66: 0.0005770432474 | J66: 1.131004765e-05 | K66: 11445.48 | L66: 0.0005876015093 | M66: 5.876015093e-05 | N66: 11445.48 | O66: 0.0005838414781 | P66: 5.838414781e-05 | Q66: 11445.48 | R66: 0.0006114366237 | S66: 6.72580286e-05
A67: 63 | B67: BorgWarner Inc. | C67: BWA | D67: 0.0178 | E67: 0.0667 | F67: 0.0817 | G67: 0.08 | H67: 7915.49 | I67: 0.0003990728265 | J67: 7.103496312e-06 | K67: 7915.49 | L67: 0.0004063747323 | M67: 2.710519464e-05 | N67: 7915.49 | O67: 0.0004037743617 | P67: 3.298836535e-05 | Q67: 7915.49 | R67: 0.0004228586726 | S67: 3.382869381e-05
A68: 64 | B68: Boston Properties, Inc. | C68: BXP | D68: 0.0287 | E68: 0.07 | F68: 0.0624 | G68: 0.035 | H68: 20461.63 | I68: 0.001031607711 | J68: 2.96071413e-05 | K68: 20461.63 | L68: 0.001050483219 | M68: 7.353382531e-05 | N68: 20461.63 | O68: 0.001043761232 | P68: 6.513070086e-05 | Q68: 20461.63 | R68: 0.001093094389 | S68: 3.82583036e-05
A69: 65 | B69: Citigroup Inc. | C69: C | D69: 0.029 | E69: 0.1681 | F69: 0.1067 | G69: 0.085 | H69: 159498.3 | I69: =H69/H$424 -> 0.00804137677 | J69: =D69*I69 -> 0.0002331999263 | K69: =IF(E69="n/a","--",IF(E69="NMF","--",$H69)) -> 159498.3 | L69: =IF(K69="--","--",K69/K$424) -> 0.008188511256 | M69: =IF(L69="--","--",E69*L69) -> 0.001376488742 | N69: 159498.3 | O69: =IF(N69="--","--",N69/N$424) -> 0.008136113402 | P69: =IF(O69="--","--",F69*O69) -> 0.0008681233 | Q69: 159498.3 | R69: =IF(Q69="--","--",Q69/Q$424) -> 0.008520665104 | S69: 0.0007242565338
A70: 66 | B70: Conagra Brands Inc. | C70: CAG | D70: 0.0378 | E70: 0.063 | F70: 0.07 | G70: 0.045 | H70: 10912.35 | I70: 0.0005501645961 | J70: 2.079622173e-05 | K70: 10912.35 | L70: 0.0005602310545 | M70: 3.529455643e-05 | N70: =IF(F70="n/a","--",IF(F70="NMF","--",$H70)) -> 10912.35 | O70: 0.0005566461654 | P70: 3.896523158e-05 | Q70: =IF(G70="n/a","--",IF(G70="NMF","--",$H70)) -> 10912.35 | R70: 0.0005829559302 | S70: =IF(R70="--","--",G70*R70) -> 2.623301686e-05
A71: 67 | B71: Cardinal Health, Inc. | C71: CAH | D71: 0.0399 | E71: 0.0545 | F71: 0.0622 | G71: 0.1 | H71: 14215.41 | I71: 0.0007166939569 | J71: 2.859608888e-05 | K71: 14215.41 | L71: 0.0007298074324 | M71: 3.977450506e-05 | N71: 14215.41 | O71: 0.000725137433 | P71: 4.510354833e-05 | Q71: 14215.41 | R71: 0.0007594109023 | S71: 7.594109023e-05
A72: 68 | B72: Caterpillar Inc. | C72: CAT | D72: 0.0262 | E72: 0.2522 | F72: 0.1825 | G72: 0.17 | H72: 75597.58 | I72: 0.003811379956 | J72: 9.985815485e-05 | K72: 75597.58 | L72: 0.003881117446 | M72: 0.0009788178199 | N72: 75597.58 | O72: 0.003856282379 | P72: 0.0007037715342 | Q72: 75597.58 | R72: 0.004038548761 | S72: 0.0006865532894
A73: 69 | B73: Chubb Limited | C73: CB | D73: 0.0221 | E73: 0.1078 | F73: 0.1 | G73: 0.085 | H73: 60671.31 | I73: 0.003058846789 | J73: 6.760051404e-05 | K73: 60671.31 | L73: 0.003114815047 | M73: 0.0003357770621 | N73: 60671.31 | O73: 0.003094883509 | P73: 0.0003094883509 | Q73: 60671.31 | R73: 0.003241162532 | S73: 0.0002754988152
A74: 70 | B74: Cboe Global Markets, Inc. | C74: CBOE | D74: 0.0134 | E74: 0.049 | F74: 0.114 | G74: 0.17 | H74: 10303.66 | I74: 0.0005194764594 | J74: 6.960984556e-06 | K74: 10303.66 | L74: 0.0005289814116 | M74: 2.592008917e-05 | N74: 10303.66 | O74: 0.0005255964874 | P74: 5.991799956e-05 | Q74: 10303.66 | R74: 0.0005504386956 | S74: 9.357457825e-05
A75: 71 | B75: CBS Corporation | C75: CBS | D75: 0.0147 | E75: 0.1533 | F75: 0.1333 | G75: 0.105 | H75: 18279.21 | I75: 0.0009215773125 | J75: 1.354718649e-05 | K75: 18279.21 | L75: 0.0009384395748 | M75: 0.0001438627868 | N75: 18279.21 | O75: 0.0009324345493 | P75: 0.0001242935254 | Q75: 18279.21 | R75: 0.0009765058736 | S75: 0.0001025331167
A76: 72 | B76: Crown Castle International Corporation | C76: CCI | D76: 0.0372 | E76: 0.0745 | F76: 0.155 | G76: 0.105 | H76: 50267.11 | I76: 0.002534301435 | J76: 9.42760134e-05 | K76: 50267.11 | L76: 0.002580671995 | M76: 0.0001922600636 | N76: 50267.11 | O76: 0.00256415841 | P76: 0.0003974445536 | Q76: 50267.11 | R76: 0.002685352822 | S76: 0.0002819620463
A77: 73 | B77: Carnival Corporation | C77: CCL | D77: 0.0364 | E77: 0.1132 | F77: 0.1345 | G77: 0.135 | H77: 28961 | I77: 0.001460117836 | J77: 5.314828923e-05 | K77: 28961 | L77: 0.001486833869 | M77: 0.000168309594 | N77: 28961 | O77: 0.001477319697 | P77: 0.0001986994993 | Q77: 28961 | R77: 0.001547144904 | S77: 0.0002088645621
A78: 74 | B78: Celanese Corporation | C78: CE | D78: 0.0216 | E78: 0.1112 | F78: 0.1 | G78: 0.1 | H78: 12781.82 | I78: 0.0006444170905 | J78: 1.391940915e-05 | K78: 12781.82 | L78: 0.0006562081034 | M78: 7.29703411e-05 | N78: 12781.82 | O78: 0.0006520090622 | P78: 6.520090622e-05 | Q78: 12781.82 | R78: 0.0006828261344 | S78: 6.828261344e-05
A79: 75 | B79: CF Industries Holdings, Inc. | C79: CF | D79: 0.0298 | E79: NMF | F79: 0.06 | G79: 0.485 | H79: 8980.28 | I79: 0.0004527560167 | J79: 1.34921293e-05 | K79: -- | L79: -- | M79: -- | N79: 8980.28 | O79: 0.0004580900014 | P79: 2.748540008e-05 | Q79: 8980.28 | R79: 0.0004797415296 | S79: 0.0002326746419
A80: 76 | B80: Citizens Financial Group, Inc. | C80: CFG | D80: 0.0368 | E80: 0.1696 | F80: 0.1669 | G80: 0.125 | H80: 16003.16 | I80: 0.0008068263992 | J80: 2.969121149e-05 | K80: 16003.16 | L80: 0.0008215890438 | M80: 0.0001393415018 | N80: 16003.16 | O80: 0.0008163317387 | P80: 0.0001362457672 | Q80: 16003.16 | R80: 0.0008549154879 | S80: 0.000106864436
A81: 77 | B81: Church & Dwight Co., Inc. | C81: CHD | D81: 0.0139 | E81: 0.0911 | F81: 0.0833 | G81: 0.1 | H81: 16143.4 | I81: 0.0008138968362 | J81: 1.131316602e-05 | K81: 16143.4 | L81: 0.0008287888498 | M81: 7.550266422e-05 | N81: 16143.4 | O81: 0.0008234854735 | P81: 6.859633994e-05 | Q81: 16143.4 | R81: 0.0008624073425 | S81: 8.624073425e-05
A82: 78 | B82: C.H. Robinson Worldwide, Inc. | C82: CHRW | D82: 0.0229 | E82: 0.0819 | F82: 0.0967 | G82: 0.095 | H82: 11966.51 | I82: 0.0006033118568 | J82: 1.381584152e-05 | K82: 11966.51 | L82: 0.00061435076 | M82: 5.031532725e-05 | N82: 11966.51 | O82: 0.0006104195618 | P82: 5.902757162e-05 | Q82: 11966.51 | R82: 0.0006392709149 | S82: 6.073073692e-05
A83: 79 | B83: Cigna Corporation | C83: CI | D83: 0.0002 | E83: 0.1451 | F83: 0.1235 | G83: 0.155 | H83: 62002.66 | I83: 0.003125969053 | J83: 6.251938106e-07 | K83: 62002.66 | L83: 0.003183165459 | M83: 0.0004618773081 | N83: 62002.66 | O83: 0.00316279655 | P83: 0.000390605374 | Q83: 62002.66 | R83: 0.003312285469 | S83: 0.0005134042477
A84: 80 | B84: Cincinnati Financial Corporation | C84: CINF | D84: 0.0251 | E84: 0.0491 | F84: n/a | G84: 0.07 | H84: 13766.63 | I84: 0.0006940679536 | J84: 1.742110564e-05 | K84: 13766.63 | L84: 0.0007067674371 | M84: 3.470228116e-05 | N84: -- | O84: -- | P84: -- | Q84: 13766.63 | R84: 0.0007354363265 | S84: 5.148054286e-05
A85: 81 | B85: Colgate-Palmolive Company | C85: CL | D85: 0.0257 | E85: 0.0355 | F85: 0.0547 | G85: 0.105 | H85: 56310.53 | I85: 0.002838990684 | J85: 7.296206058e-05 | K85: 56310.53 | L85: 0.002890936196 | M85: 0.000102628235 | N85: 56310.53 | O85: 0.002872437248 | P85: 0.0001571223174 | Q85: 56310.53 | R85: 0.003008202394 | S85: 0.0003158612514
A86: 82 | B86: The Clorox Company | C86: CLX | D86: 0.0243 | E86: 0.0455 | F86: 0.0636 | G86: 0.075 | H86: 20228.13 | I86: 0.001019835413 | J86: 2.478200054e-05 | K86: 20228.13 | L86: 0.001038495521 | M86: 4.725154621e-05 | N86: 20228.13 | O86: 0.001031850243 | P86: 6.562567545e-05 | Q86: 20228.13 | R86: 0.001080620429 | S86: 8.104653219e-05
A87: 83 | B87: Comerica Incorporated | C87: CMA | D87: 0.0288 | E87: 0.198 | F87: 0.1962 | G87: 0.155 | H87: 13271.81 | I87: 0.0006691207657 | J87: 1.927067805e-05 | K87: 13271.81 | L87: 0.0006813637861 | M87: 0.0001349100297 | N87: 13271.81 | O87: 0.0006770037751 | P87: 0.0001328281407 | Q87: 13271.81 | R87: 0.0007090022171 | S87: 0.0001098953437
A88: 84 | B88: Comcast Corporation | C88: CMCSA | D88: 0.0199 | E88: 0.1343 | F88: 0.1218 | G88: 0.12 | H88: 177373.7 | I88: 0.008942595318 | J88: 0.0001779576468 | K88: 177373.7 | L88: 0.009106219558 | M88: 0.001222965287 | N88: 177373.7 | O88: 0.009047949338 | P88: 0.001102040229 | Q88: 177373.7 | R88: 0.009475598774 | S88: 0.001137071853
A89: 85 | B89: CME Group Inc. | C89: CME | D89: 0.0175 | E89: 0.0922 | F89: 0.1119 | G89: 0.045 | H89: 61376.15 | I89: 0.003094382491 | J89: 5.415169359e-05 | K89: 61376.15 | L89: 0.003151000952 | M89: 0.0002905222878 | N89: 61376.15 | O89: 0.003130837862 | P89: 0.0003503407568 | Q89: 61376.15 | R89: 0.00327881626 | S89: 0.0001475467317
A90: 86 | B90: Cummins Inc. | C90: CMI | D90: 0.0295 | E90: 0.0765 | F90: 0.0934 | G90: 0.08 | H90: 25609.62 | I90: 0.001291152341 | J90: 3.808899405e-05 | K90: 25609.62 | L90: 0.001314776782 | M90: 0.0001005804238 | N90: 25609.62 | O90: 0.001306363595 | P90: 0.0001220143597 | Q90: 25609.62 | R90: 0.001368108597 | S90: 0.0001094486878
A91: 87 | B91: CMS Energy Corporation | C91: CMS | D91: 0.028 | E91: 0.0689 | F91: 0.0603 | G91: 0.07 | H91: 15484.98 | I91: 0.0007807014774 | J91: 2.185964137e-05 | K91: 15484.98 | L91: 0.0007949861097 | M91: 5.477454296e-05 | N91: 15484.98 | O91: 0.0007898990354 | P91: 4.763091183e-05 | Q91: 15484.98 | R91: 0.0008272334484 | S91: 5.790634139e-05
A92: 88 | B92: CenterPoint Energy, Inc. | C92: CNP | D92: 0.0383 | E92: 0.057 | F92: 0.0539 | G92: 0.125 | H92: 15051.22 | I92: 0.0007588327328 | J92: 2.906329367e-05 | K92: 15051.22 | L92: 0.0007727172288 | M92: 4.404488204e-05 | N92: 15051.22 | O92: 0.0007677726519 | P92: 4.138294594e-05 | Q92: 15051.22 | R92: 0.000804061266 | S92: 0.0001005076583
A93: 89 | B93: Capital One Financial Corporation | C93: COF | D93: 0.0197 | E93: 0.061 | F93: 0.0828 | G93: 0.1 | H93: 38071.48 | I93: 0.001919438106 | J93: 3.781293069e-05 | K93: 38071.48 | L93: 0.001954558403 | M93: 0.0001192280626 | N93: 38071.48 | O93: 0.001942051286 | P93: 0.0001608018465 | Q93: 38071.48 | R93: 0.002033841935 | S93: 0.0002033841935
A94: 90 | B94: Cabot Oil & Gas Corporation | C94: COG | D94: 0.0113 | E94: 0.4104 | F94: 0.4305 | G94: n/a | H94: 10444.46 | I94: 0.0005265751298 | J94: 5.950298966e-06 | K94: 10444.46 | L94: 0.0005362099676 | M94: 0.0002200605707 | N94: 10444.46 | O94: 0.0005327787882 | P94: 0.0002293612683 | Q94: -- | R94: -- | S94: --
A95: 91 | B95: The Cooper Companies, Inc. | C95: COO | D95: 0.0002 | E95: 0.1 | F95: 0.1075 | G95: 0.145 | H95: 14214.57 | I95: 0.0007166516069 | J95: 1.433303214e-07 | K95: 14214.57 | L95: 0.0007297643075 | M95: 7.297643075e-05 | N95: 14214.57 | O95: 0.000725094584 | P95: 7.794766778e-05 | Q95: 14214.57 | R95: 0.0007593660281 | S95: 0.0001101080741
A96: 92 | B96: ConocoPhillips | C96: COP | D96: 0.0186 | E96: 0.0978 | F96: 0.075 | G96: n/a | H96: 74224.05 | I96: 0.003742131116 | J96: 6.960363876e-05 | K96: 74224.05 | L96: 0.003810601548 | M96: 0.0003726768314 | N96: 74224.05 | O96: 0.003786217709 | P96: 0.0002839663282 | Q96: -- | R96: -- | S96: --
A97: 93 | B97: Costco Wholesale Corporation | C97: COST | D97: 0.01 | E97: 0.1082 | F97: 0.095 | G97: 0.085 | H97: 100352.43 | I97: 0.00505943762 | J97: 5.05943762e-05 | K97: 100352.43 | L97: 0.005152011041 | M97: 0.0005574475946 | N97: 100352.43 | O97: 0.005119043593 | P97: 0.0004863091413 | Q97: 100352.43 | R97: 0.00536099412 | S97: 0.0004556845002
A98: 94 | B98: Coty Inc. | C98: COTY | D98: 0.0455 | E98: 0.0788 | F98: 0.0678 | G98: 0.09 | H98: 8263.82 | I98: 0.0004166344731 | J98: 1.895686853e-05 | K98: 8263.82 | L98: 0.0004242577074 | M98: 3.343150734e-05 | N98: 8263.82 | O98: 0.0004215429046 | P98: 2.858060893e-05 | Q98: 8263.82 | R98: 0.000441467042 | S98: 3.973203378e-05
A99: 95 | B99: Campbell Soup Company | C99: CPB | D99: 0.0389 | E99: -0.0215 | F99: 0.0554 | G99: n/a | H99: 10846.27 | I99: 0.000546833061 | J99: 2.127180607e-05 | K99: 10846.27 | L99: 0.0005568385618 | M99: -1.197202908e-05 | N99: 10846.27 | O99: 0.0005532753811 | P99: 3.065145611e-05 | Q99: -- | R99: -- | S99: --
A100: 96 | B100: Cisco Systems, Inc. | C100: CSCO | D100: 0.0258 | E100: 0.0991 | F100: 0.07 | G100: 0.08 | H100: 246030.64 | I100: 0.01240405116 | J100: 0.0003200245199 | K100: 246030.64 | L100: 0.01263101027 | M100: 0.001251733117 | N100: 246030.64 | O100: 0.0125501851 | P100: 0.0008785129567 | Q100: 246030.64 | R100: 0.01314336697 | S100: 0.001051469358
A101: 97 | B101: CSX Corporation | C101: CSX | D101: 0.0134 | E101: 0.1168 | F101: 0.1336 | G101: 0.165 | H101: 58720.77 | I101: 0.002960507013 | J101: 3.967079398e-05 | K101: 58720.77 | L101: 0.003014675931 | M101: 0.0003521141488 | N101: 58720.77 | O101: 0.002995385178 | P101: 0.0004001834598 | Q101: 58720.77 | R101: 0.003136961433 | S101: 0.0005175986365
A102: 98 | B102: Cintas Corporation | C102: CTAS | D102: 0.0102 | E102: 0.159 | F102: 0.1222 | G102: 0.155 | H102: 21046.8 | I102: 0.001061110047 | J102: 1.082332248e-05 | K102: 21046.8 | L102: 0.001080525364 | M102: 0.0001718035329 | N102: 21046.8 | O102: 0.001073611139 | P102: 0.0001311952812 | Q102: 21046.8 | R102: 0.001124355146 | S102: 0.0001742750476
A103: 99 | B103: CenturyLink, Inc. | C103: CTL | D103: 0.1756 | E103: 0.1018 | F103: 0.0534 | G103: 0.005 | H103: 13292.11 | I103: 0.0006701442246 | J103: 0.0001176773258 | K103: 13292.11 | L103: 0.0006824059714 | M103: 6.946892789e-05 | N103: 13292.11 | O103: 0.0006780392914 | P103: 3.620729816e-05 | Q103: 13292.11 | R103: 0.000710086677 | S103: 3.550433385e-06
A104: 100 | B104: Cognizant Technology Solutions Corporation | C104: CTSH | D104: 0.0112 | E104: 0.0881 | F104: 0.101 | G104: 0.1 | H104: 40918.29 | I104: 0.002062964851 | J104: 2.310520633e-05 | K104: 40918.29 | L104: 0.002100711282 | M104: 0.0001850726639 | N104: 40918.29 | O104: 0.002087268941 | P104: 0.000210814163 | Q104: 40918.29 | R104: 0.002185923271 | S104: 0.0002185923271
A105: 101 | B105: Citrix Systems, Inc. | C105: CTXS | D105: 0.014 | E105: 0.0913 | F105: 0.0823 | G105: 0.075 | H105: 13169.97 | I105: 0.0006639863298 | J105: 9.295808617e-06 | K105: 13169.97 | L105: 0.0006761354045 | M105: 6.173116243e-05 | N105: 13169.97 | O105: 0.0006718088495 | P105: 5.528986832e-05 | Q105: 13169.97 | R105: 0.0007035617546 | S105: 5.276713159e-05
A106: 102 | B106: CVS Health Corporation | C106: CVS | D106: 0.0378 | E106: 0.0838 | F106: 0.0757 | G106: 0.08 | H106: 68654.55 | I106: 0.003461335347 | J106: 0.0001308384761 | K106: 68654.55 | L106: 0.003524668009 | M106: 0.0002953671791 | N106: 68654.55 | O106: 0.003502113843 | P106: 0.0002651100179 | Q106: 68654.55 | R106: 0.003667640523 | S106: 0.0002934112418
A107: 103 | B107: Chevron Corporation | C107: CVX | D107: 0.0391 | E107: 0.3772 | F107: 0.0498 | G107: 0.25 | H107: 231085.67 | I107: 0.0116505752 | J107: 0.0004555374904 | K107: 231085.67 | L107: 0.01186374783 | M107: 0.00447500568 | N107: 231085.67 | O107: 0.01178783233 | P107: 0.0005870340499 | Q107: 231085.67 | R107: 0.01234498176 | S107: 0.00308624544
A108: 104 | B108: Concho Resources Inc. | C108: CXO | D108: 0.005 | E108: NMF | F108: 0.2864 | G108: 0.3 | H108: 20115.57 | I108: 0.00101416051 | J108: 5.070802551e-06 | K108: -- | L108: -- | M108: -- | N108: 20115.57 | O108: 0.001026108483 | P108: 0.0002938774696 | Q108: 20115.57 | R108: 0.001074607286 | S108: 0.0003223821859
A109: 105 | B109: Dominion Energy Inc. | C109: D | D109: 0.0485 | E109: 0.0574 | F109: 0.0544 | G109: 0.065 | H109: 60532.05 | I109: 0.003051825761 | J109: 0.0001480135494 | K109: 60532.05 | L109: 0.003107665554 | M109: 0.0001783800028 | N109: 60532.05 | O109: 0.003087779765 | P109: 0.0001679752192 | Q109: 60532.05 | R109: 0.003233723031 | S109: 0.000210191997
A110: 106 | B110: Delta Air Lines, Inc. | C110: DAL | D110: 0.0282 | E110: 0.1143 | F110: 0.1108 | G110: 0.095 | H110: 33669.13 | I110: 0.001697486179 | J110: 4.786911025e-05 | K110: 33669.13 | L110: 0.001728545382 | M110: 0.0001975727372 | N110: 33669.13 | O110: 0.001717484511 | P110: 0.0001902972839 | Q110: 33669.13 | R110: 0.001798661058 | S110: 0.0001708728005
A111: 107 | B111: Deere & Company | C111: DE | D111: 0.0191 | E111: 0.1935 | F111: 0.0853 | G111: 0.14 | H111: 50643.57 | I111: 0.002553281304 | J111: 4.87676729e-05 | K111: 50643.57 | L111: 0.002599999141 | M111: 0.0005030998338 | N111: 50643.57 | O111: 0.002583361883 | P111: 0.0002203607686 | Q111: 50643.57 | R111: 0.002705463943 | S111: 0.000378764952
A112: 108 | B112: Discover Financial Services | C112: DFS | D112: 0.0229 | E112: 0.1706 | F112: 0.0874 | G112: 0.08 | H112: 22947.68 | I112: 0.00115694613 | J112: 2.649406637e-05 | K112: 22947.68 | L112: 0.001178114977 | M112: 0.000200986415 | N112: 22947.68 | O112: 0.001170576281 | P112: 0.0001023083669 | Q112: 22947.68 | R112: 0.001225903324 | S112: 9.807226594e-05
A113: 109 | B113: Dollar General Corporation | C113: DG | D113: 0.0098 | E113: 0.1504 | F113: 0.1261 | G113: 0.13 | H113: 31206.96 | I113: 0.001573351711 | J113: 1.541884677e-05 | K113: 31206.96 | L113: 0.001602139604 | M113: 0.0002409617965 | N113: 31206.96 | O113: 0.001591887597 | P113: 0.000200737026 | Q113: 31206.96 | R113: 0.001667127832 | S113: 0.0002167266181
A114: 110 | B114: Quest Diagnostics Incorporated | C114: DGX | D114: 0.0251 | E114: 0.0592 | F114: 0.0661 | G114: 0.085 | H114: 11327.68 | I114: 0.000571104161 | J114: 1.433471444e-05 | K114: 11327.68 | L114: 0.0005815537544 | M114: 3.442798226e-05 | N114: 11327.68 | O114: 0.0005778324225 | P114: 3.819472312e-05 | Q114: 11327.68 | R114: 0.0006051435513 | S114: 5.143720186e-05
A115: 111 | B115: D.R. Horton, Inc. | C115: DHI | D115: 0.0149 | E115: 0.0967 | F115: 0.1203 | G115: 0.08 | H115: 15086.29 | I115: 0.0007606008462 | J115: 1.133295261e-05 | K115: 15086.29 | L115: 0.0007745176937 | M115: 7.489586098e-05 | N115: 15086.29 | O115: 0.0007695615957 | P115: 9.257825997e-05 | Q115: 15086.29 | R115: 0.0008059347639 | S115: 6.447478111e-05
A116: 112 | B116: Danaher Corporation | C116: DHR | D116: 0.0051 | E116: 0.0677 | F116: 0.1141 | G116: 0.105 | H116: 87762.45 | I116: 0.004424692468 | J116: 2.256593159e-05 | K116: 87762.45 | L116: 0.004505651845 | M116: 0.0003050326299 | N116: 87762.45 | O116: 0.004476820416 | P116: 0.0005108052094 | Q116: 87762.45 | R116: 0.004688416398 | S116: 0.0004922837218
A117: 113 | B117: The Walt Disney Company | C117: DIS | D117: 0.0155 | E117: 0.0364 | F117: 0.0588 | G117: 0.07 | H117: 169665.33 | I117: 0.008553964797 | J117: 0.0001325864543 | K117: 169665.33 | L117: 0.008710478196 | M117: 0.0003170614063 | N117: 169665.33 | O117: 0.008654740304 | P117: 0.0005088987298 | Q117: 169665.33 | R117: 0.009063804797 | S117: 0.0006344663358
A118: 114 | B118: Digital Realty Trust, Inc. | C118: DLR | D118: 0.0361 | E118: NMF | F118: 0.07 | G118: 0.065 | H118: 23274.21 | I118: 0.001173408692 | J118: 4.236005379e-05 | K118: -- | L118: -- | M118: -- | N118: 23274.21 | O118: 0.001187232791 | P118: 8.310629539e-05 | Q118: 23274.21 | R118: 0.001243347101 | S118: 8.081756158e-05
A119: 115 | B119: Dover Corporation | C119: DOV | D119: 0.0215 | E119: 0.149 | F119: 0.12 | G119: 0.13 | H119: 12960.93 | I119: 0.0006534472243 | J119: 1.404911532e-05 | K119: 12960.93 | L119: 0.0006654034632 | M119: 9.914511601e-05 | N119: 12960.93 | O119: 0.0006611455814 | P119: 7.933746976e-05 | Q119: 12960.93 | R119: 0.0006923944892 | S119: 9.00112836e-05
A120: 116 | B120: Duke Realty Corporation | C120: DRE | D120: 0.0288 | E120: 0.06 | F120: 0.0491 | G120: 0.07 | H120: 10737.8 | I120: 0.0005413643624 | J120: 1.559129364e-05 | K120: 10737.8 | L120: 0.0005512698014 | M120: 3.307618808e-05 | N120: 10737.8 | O120: 0.0005477422549 | P120: 2.689414472e-05 | Q120: 10737.8 | R120: 0.0005736311782 | S120: 4.015418247e-05
A121: 117 | B121: Darden Restaurants, Inc. | C121: DRI | D121: 0.0059 | E121: 0.1323 | F121: 0.1004 | G121: 0.12 | H121: 13294.51 | I121: 0.0006702652247 | J121: 3.954564825e-06 | K121: 13294.51 | L121: 0.0006825291854 | M121: 9.029861123e-05 | N121: 13294.51 | O121: 0.000678161717 | P121: 6.808743639e-05 | Q121: 13294.51 | R121: 0.000710214889 | S121: 8.522578668e-05
A122: 118 | B122: DTE Energy Company | C122: DTE | D122: 0.0307 | E122: 0.0416 | F122: 0.06 | G122: 0.05 | H122: 22413.04 | I122: 0.001129991349 | J122: 3.469073442e-05 | K122: 22413.04 | L122: 0.001150667 | M122: 4.786774719e-05 | N122: 22413.04 | O122: 0.001143303942 | P122: 6.859823652e-05 | Q122: 22413.04 | R122: 0.001197341964 | S122: 5.986709821e-05
A123: 119 | B123: Duke Energy Corporation | C123: DUK | D123: 0.0411 | E123: 0.045 | F123: 0.0493 | G123: 0.055 | H123: 65576.39 | I123: 0.0033061447 | J123: 0.0001358825472 | K123: 65576.39 | L123: 0.003366637811 | M123: 0.0001514987015 | N123: 65576.39 | O123: 0.003345094873 | P123: 0.0001649131772 | Q123: 65576.39 | R123: 0.003503200084 | S123: 0.0001926760046
A124: 120 | B124: Devon Energy Corporation | C124: DVN | D124: 0.012 | E124: 0.4168 | F124: 0.1327 | G124: 0.19 | H124: 11706.99 | I124: 0.0005902277167 | J124: 7.082732601e-06 | K124: 11706.99 | L124: 0.0006010272171 | M124: 0.0002505081441 | N124: 11706.99 | O124: 0.0005971812755 | P124: 7.924595527e-05 | Q124: 11706.99 | R124: 0.0006254069239 | S124: 0.0001188273155
A125: 121 | B125: Dow Chemical Company (The) | C125: DWDP | D125: 0.0278 | E125: 0.1127 | F125: 0.1 | G125: n/a | H125: 127350.98 | I125: 0.006420615218 | J125: 0.0001784931031 | K125: 127350.98 | L125: 0.006538094344 | M125: 0.0007368432326 | N125: 127350.98 | O125: 0.006496257422 | P125: 0.0006496257422 | Q125: -- | R125: -- | S125: --
A126: 122 | B126: DXC Technology Company. | C126: DXC | D126: 0.0118 | E126: 0.0995 | F126: 0.0661 | G126: 0.14 | H126: 17220.32 | I126: 0.0008681915808 | J126: 1.024466065e-05 | K126: 17220.32 | L126: 0.000884077035 | M126: 8.796566498e-05 | N126: 17220.32 | O126: 0.0008784198725 | P126: 5.806355357e-05 | Q126: 17220.32 | R126: 0.0009199382044 | S126: 0.0001287913486
A127: 123 | B127: eBay Inc. | C127: EBAY | D127: 0.0156 | E127: 0.1128 | F127: 0.0953 | G127: 0.145 | H127: 32835.04 | I127: 0.00165543412 | J127: 2.582477227e-05 | K127: 32835.04 | L127: 0.001685723889 | M127: 0.0001901496547 | N127: 32835.04 | O127: 0.001674937031 | P127: 0.000159621499 | Q127: 32835.04 | R127: 0.00175410258 | S127: 0.0002543448741
A128: 124 | B128: Ecolab Inc. | C128: ECL | D128: 0.0109 | E128: 0.1337 | F128: 0.1255 | G128: 0.09 | H128: 48811.23 | I128: 0.002460900781 | J128: 2.682381851e-05 | K128: 48811.23 | L128: 0.002505928316 | M128: 0.0003350426158 | N128: 48811.23 | O128: 0.002489893012 | P128: 0.000312481573 | Q128: 48811.23 | R128: 0.002607577285 | S128: 0.0002346819557
A129: 125 | B129: Consolidated Edison Inc | C129: ED | D129: 0.0353 | E129: 0.0299 | F129: 0.03 | G129: 0.03 | H129: 26912.67 | I129: 0.001356847812 | J129: 4.789672776e-05 | K129: 26912.67 | L129: 0.001381674295 | M129: 4.131206142e-05 | N129: 26912.67 | O129: 0.001372833034 | P129: 4.118499102e-05 | Q129: 26912.67 | R129: 0.001437719701 | S129: 4.313159102e-05
A130: 126 | B130: Equifax, Inc. | C130: EFX | D130: 0.0144 | E130: 0.0192 | F130: 0.0854 | G130: 0.075 | H130: 13099.57 | I130: 0.0006604369946 | J130: 9.510292722e-06 | K130: 13099.57 | L130: 0.0006725211265 | M130: 1.291240563e-05 | N130: 13099.57 | O130: 0.0006682176991 | P130: 5.706579151e-05 | Q130: 13099.57 | R130: 0.0006998008692 | S130: 5.248506519e-05
A131: 127 | B131: Edison International | C131: EIX | D131: 0.0395 | E131: 0.0495 | F131: 0.0564 | G131: 0.045 | H131: 20216.57 | I131: 0.001019252596 | J131: 4.026047755e-05 | K131: 20216.57 | L131: 0.00103790204 | M131: 5.1376151e-05 | N131: 20216.57 | O131: 0.00103126056 | P131: 5.816309557e-05 | Q131: 20216.57 | R131: 0.001080002875 | S131: 4.860012936e-05
A132: 128 | B132: The Estee Lauder Companies Inc. | C132: EL | D132: 0.011 | E132: 0.1086 | F132: 0.1244 | G132: 0.125 | H132: 56355.71 | I132: 0.00284126851 | J132: 3.125395361e-05 | K132: 56355.71 | L132: 0.0028932557 | M132: 0.000314207569 | N132: 56355.71 | O132: 0.002874741909 | P132: 0.0003576178935 | Q132: 56355.71 | R132: 0.003010615985 | S132: 0.0003763269982
A133: 129 | B133: Eastman Chemical Company | C133: EMN | D133: 0.0314 | E133: 0.0984 | F133: 0.087 | G133: 0.095 | H133: 11039.59 | I133: =H133/H$424 -> 0.0005565796161 | J133: =D133*I133 -> 1.747659994e-05 | K133: =IF(E133="n/a","--",IF(E133="NMF","--",$H133)) -> 11039.59 | L133: =IF(K133="--","--",K133/K$424) -> 0.0005667634512 | M133: =IF(L133="--","--",E133*L133) -> 5.57695236e-05 | N133: 11039.59 | O133: =IF(N133="--","--",N133/N$424) -> 0.0005631367617 | P133: =IF(O133="--","--",F133*O133) -> 4.899289827e-05 | Q133: 11039.59 | R133: =IF(Q133="--","--",Q133/Q$424) -> 0.0005897533032 | S133: 5.60265638e-05
A134: 130 | B134: Emerson Electric Co. | C134: EMR | D134: 0.0294 | E134: 0.0917 | F134: 0.0863 | G134: 0.14 | H134: 40933.69 | I134: 0.002063741268 | J134: 6.067399328e-05 | K134: 40933.69 | L134: 0.002101501905 | M134: 0.0001927077247 | N134: =IF(F134="n/a","--",IF(F134="NMF","--",$H134)) -> 40933.69 | O134: 0.002088054505 | P134: 0.0001801991038 | Q134: =IF(G134="n/a","--",IF(G134="NMF","--",$H134)) -> 40933.69 | R134: 0.002186745965 | S134: =IF(R134="--","--",G134*R134) -> 0.0003061444351
A135: 131 | B135: EOG Resources, Inc. | C135: EOG | D135: 0.0102 | E135: NMF | F135: 0.1465 | G135: n/a | H135: 50139.78 | I135: 0.002527881878 | J135: 2.578439516e-05 | K135: -- | L135: -- | M135: -- | N135: 50139.78 | O135: 0.002557663223 | P135: 0.0003746976622 | Q135: -- | R135: -- | S135: --
A136: 132 | B136: Equinix, Inc. | C136: EQIX | D136: 0.0229 | E136: NMF | F136: 0.1356 | G136: 0.255 | H136: 34802.68 | I136: 0.001754636021 | J136: 4.018116488e-05 | K136: -- | L136: -- | M136: -- | N136: 34802.68 | O136: 0.001775307644 | P136: 0.0002407317165 | Q136: 34802.68 | R136: 0.001859217189 | S136: 0.0004741003832
A137: 133 | B137: Equity Residential | C137: EQR | D137: 0.0293 | E137: 0.027 | F137: 0.0591 | G137: -0.15 | H137: 27241.94 | I137: 0.001373448516 | J137: 4.024204153e-05 | K137: 27241.94 | L137: 0.001398578745 | M137: 3.776162613e-05 | N137: 27241.94 | O137: 0.001389629314 | P137: 8.212709243e-05 | Q137: 27241.94 | R137: 0.001455309853 | S137: -0.0002182964779
A138: 134 | B138: Eversource Energy | C138: ES | D138: 0.0307 | E138: 0.0588 | F138: 0.0569 | G138: 0.055 | H138: 22097.69 | I138: 0.001114092445 | J138: 3.420263806e-05 | K138: 22097.69 | L138: 0.001134477191 | M138: 6.670725881e-05 | N138: 22097.69 | O138: 0.001127217731 | P138: 6.413868888e-05 | Q138: 22097.69 | R138: 0.001180495441 | S138: 6.492724928e-05
A139: 135 | B139: Essex Property Trust, Inc. | C139: ESS | D139: 0.0262 | E139: 0.079 | F139: 0.0574 | G139: 0.005 | H139: 18623.68 | I139: 0.0009389443506 | J139: 2.460034199e-05 | K139: 18623.68 | L139: 0.0009561243807 | M139: 7.553382607e-05 | N139: 18623.68 | O139: 0.000950006191 | P139: 5.453035536e-05 | Q139: 18623.68 | R139: 0.0009949080353 | S139: 4.974540176e-06
A140: 136 | B140: E*TRADE Financial Corporation | C140: ETFC | D140: 0.012 | E140: 0.2253 | F140: 0.1069 | G140: 0.26 | H140: 11542.18 | I140: 0.0005819185416 | J140: 6.983022499e-06 | K140: 11542.18 | L140: 0.0005925660076 | M140: 0.0001335051215 | N140: 11542.18 | O140: 0.0005887742088 | P140: 6.293996292e-05 | Q140: 11542.18 | R140: 0.0006166024989 | S140: 0.0001603166497
A141: 137 | B141: Eaton Corporation, PLC | C141: ETN | D141: 0.0358 | E141: 0.0753 | F141: 0.0925 | G141: 0.09 | H141: 33625.37 | I141: 0.001695279945 | J141: 6.069102202e-05 | K141: 33625.37 | L141: 0.00172629878 | M141: 0.0001299902981 | N141: 33625.37 | O141: 0.001715252285 | P141: 0.0001586608364 | Q141: 33625.37 | R141: 0.001796323326 | S141: 0.0001616690993
A142: 138 | B142: Entergy Corporation | C142: ETR | D142: 0.0394 | E142: -0.0393 | F142: n/a | G142: 0.005 | H142: 17534.35 | I142: 0.0008840239348 | J142: 3.483054303e-05 | K142: 17534.35 | L142: 0.0009001990763 | M142: -3.53778237e-05 | N142: -- | O142: -- | P142: -- | Q142: 17534.35 | R142: 0.0009367142105 | S142: 4.683571053e-06
A143: 139 | B143: Evergy Inc. | C143: EVRG | D143: 0.0341 | E143: 0.0625 | F143: 0.0667 | G143: n/a | H143: 14198.17 | I143: 0.0007158247731 | J143: 2.440962476e-05 | K143: 14198.17 | L143: 0.000728922345 | M143: 4.555764656e-05 | N143: 14198.17 | O143: 0.0007242580092 | P143: 4.830800921e-05 | Q143: -- | R143: -- | S143: --
A144: 140 | B144: Exelon Corporation | C144: EXC | D144: 0.0297 | E144: 0.0317 | F144: 0.0423 | G144: 0.075 | H144: 47304.21 | I144: 0.002384921817 | J144: 7.083217796e-05 | K144: 47304.21 | L144: 0.002428559151 | M144: 7.698532509e-05 | N144: 47304.21 | O144: 0.002413018929 | P144: 0.0001020707007 | Q144: 47304.21 | R144: 0.002527069764 | S144: 0.0001895302323
A145: 141 | B145: Expeditors International of Washington, Inc. | C145: EXPD | D145: 0.0121 | E145: 0.0971 | F145: 0.08 | G145: 0.085 | H145: 12791.13 | I145: 0.0006448864699 | J145: 7.803126286e-06 | K145: 12791.13 | L145: 0.0006566860711 | M145: 6.376421751e-05 | N145: 12791.13 | O145: 0.0006524839715 | P145: 5.219871772e-05 | Q145: 12791.13 | R145: 0.0006833234902 | S145: 5.808249666e-05
A146: 142 | B146: Expedia Group, Inc. | C146: EXPE | D146: 0.0105 | E146: 0.1404 | F146: 0.134 | G146: 0.2 | H146: 17862.86 | I146: 0.0009005863225 | J146: 9.456156387e-06 | K146: 17862.86 | L146: 0.000917064509 | M146: 0.0001287558571 | N146: 17862.86 | O146: 0.0009111962614 | P146: 0.000122100299 | Q146: 17862.86 | R146: 0.0009542637624 | S146: 0.0001908527525
A147: 143 | B147: Extra Space Storage Inc | C147: EXR | D147: 0.0354 | E147: 0.06 | F147: 0.0456 | G147: 0.05 | H147: 12355.64 | I147: 0.0006229305044 | J147: 2.205173986e-05 | K147: 12355.64 | L147: 0.0006343283735 | M147: 3.805970241e-05 | N147: 12355.64 | O147: 0.0006302693395 | P147: 2.874028188e-05 | Q147: 12355.64 | R147: 0.0006600588883 | S147: 3.300294441e-05
A148: 144 | B148: Ford Motor Company | C148: F | D148: 0.0713 | E148: 0.038 | F148: 0.091 | G148: 0.005 | H148: 33455.62 | I148: 0.001686721711 | J148: 0.000120263258 | K148: 33455.62 | L148: 0.001717583955 | M148: 6.526819029e-05 | N148: 33455.62 | O148: 0.001706593226 | P148: 0.0001552999835 | Q148: 33455.62 | R148: 0.001787254998 | S148: 8.93627499e-06
A149: 145 | B149: Diamondback Energy, Inc. | C149: FANG | D149: 0.0052 | E149: 0.2963 | F149: 0.2065 | G149: n/a | H149: 15698.38 | I149: 0.0007914603996 | J149: 4.115594078e-06 | K149: 15698.38 | L149: 0.0008059418898 | M149: 0.000238800582 | N149: 15698.38 | O149: 0.00080078471 | P149: 0.0001653620426 | Q149: -- | R149: -- | S149: --
A150: 146 | B150: Fastenal Company | C150: FAST | D150: 0.028 | E150: 0.19 | F150: 0.16 | G150: 0.115 | H150: 17578.69 | I150: 0.000886259411 | J150: 2.481526351e-05 | K150: 17578.69 | L150: 0.0009024754554 | M150: 0.0001714703365 | N150: 17578.69 | O150: 0.0008967005624 | P150: 0.00014347209 | Q150: 17578.69 | R150: 0.0009390829272 | S150: 0.0001079945366
A151: 147 | B151: Fortune Brands Home & Security, Inc. | C151: FBHS | D151: 0.019 | E151: 0.0791 | F151: 0.0891 | G151: 0.135 | H151: 6494.77 | I151: 0.0003274448229 | J151: 6.221451636e-06 | K151: 6494.77 | L151: 0.0003334361385 | M151: 2.637479855e-05 | N151: 6494.77 | O151: 0.0003313024982 | P151: 2.951905259e-05 | Q151: 6494.77 | R151: 0.0003469614416 | S151: 4.683979461e-05
A152: 148 | B152: Freeport-McMoRan Inc. | C152: FCX | D152: 0.0165 | E152: 0.0183 | F152: n/a | G152: n/a | H152: 17519.11 | I152: 0.0008832555844 | J152: 1.457371714e-05 | K152: 17519.11 | L152: 0.0008994166673 | M152: 1.645932501e-05 | N152: -- | O152: -- | P152: -- | Q152: -- | R152: -- | S152: --
A153: 149 | B153: FedEx Corporation | C153: FDX | D153: 0.0151 | E153: 0.0971 | F153: 0.1275 | G153: 0.075 | H153: 44842.14 | I153: 0.00226079239 | J153: 3.413796509e-05 | K153: 44842.14 | L153: 0.002302158507 | M153: 0.000223539591 | N153: 44842.14 | O153: 0.002287427115 | P153: 0.0002916469572 | Q153: 44842.14 | R153: 0.00239554188 | S153: 0.000179665641
A154: 150 | B154: FirstEnergy Corporation | C154: FE | D154: 0.0372 | E154: -0.0661 | F154: n/a | G154: 0.065 | H154: 21677.91 | I154: 0.001092928526 | J154: 4.065694116e-05 | K154: 21677.91 | L154: 0.001112926031 | M154: -7.356441068e-05 | N154: -- | O154: -- | P154: -- | Q154: 21677.91 | R154: 0.001158070094 | S154: 7.52745561e-05
